Workbook

Sheet Legende

Sheet Berechnung
A3: Schiffstyp_ID | B3: Schiffsgrößen | C3: Kraftstoffart_ID | D3: Start_Seehafen_ID | E3: Ziel_Seehafen_ID | F3: Geschwindigkeitstyp_ID | G3: Ladungsgewicht [t] | H3: Entfernung [km] | I3: spezifischer Verbrauch [g/tkm] | J3: Gesamtverbrauch [kg] | K3: Gesamtverbrauch [l] | L3: Energieverbrauch TTW [MJ] | M3: Energieverbrauch WTW [MJ] | N3: CO2 TTW [kg] | O3: CO2 WTW [kg] | P3: CO2-Äquivalente TTW [kg] | Q3: CO2-Äquivalente WTW [kg]
A4: Containerschiff | B4: bis 999 TEU | C4: =IF(B4="","","Schweröl (HFO)") -> Schweröl (HFO) | D4: Dubai, VAE | E4: Hamburg, Deutschland | F4: Slow Steaming | G4: 7 | H4: =IF(G4="","",VLOOKUP(INDEX(Seehäfen!$A$3:$A$502, MATCH(Berechnung!D4,Seehäfen!$B$3:$B$502,0))&"_"&INDEX(Seehäfen!$A$3:$A$502, MATCH(Berechnung!E4,Seehäfen!$B$3:$B$502,0)),Entfernung_Seehäfen!$C$2:$E$100001,2,FALSE)) -> 11810.204 | I4: =IF(G4="","",SUM(IF(A4=Energieverbrauch!$A$2:$A$41,1,0)*IF(Berechnung!B4=Energieverbrauch!$B$2:$B$41,1,0)*IF(Berechnung!F4=Energieverbrauch!$C$2:$C$41,1,0)*Energieverbrauch!$D$2:$D$41)) -> 7.4 | J4: =IF(G4="","",PRODUCT(H4,I4,G4)/1000) -> 611.7685672 | K4: =IF(G4="","",J4/IF($C4="Schweröl (HFO)", Treibhausgas_Kennzahlen!B$7,IF(Berechnung!C4="Dieselöl (MDO)",Treibhausgas_Kennzahlen!B$9,Treibhausgas_Kennzahlen!B$8))) -> 630.6892445 | L4: =IF(G4="","",$K4*IF($C4="Schweröl (HFO)",Treibhausgas_Kennzahlen!B$14,IF(Berechnung!C4="Dieselöl (MDO)", Treibhausgas_Kennzahlen!B$16,Treibhausgas_Kennzahlen!B$15))) -> 24786.08731 | M4: =IF(G4="","",$K4*IF($C4="Schweröl (HFO)",Treibhausgas_Kennzahlen!C$14,IF(Berechnung!D4="Dieselöl (MDO)", Treibhausgas_Kennzahlen!C$16,Treibhausgas_Kennzahlen!C$15))) -> 26930.43074 | N4: =IF(G4="","",$J4*IF($C4="Schweröl (HFO)",Treibhausgas_Kennzahlen!D$14,IF(Berechnung!C4="Dieselöl (MDO)",Treibhausgas_Kennzahlen!D$16,Treibhausgas_Kennzahlen!D$15))) -> 1847.541073 | O4: =IF(G4="","",$J4*IF($C4="Schweröl (HFO)",Treibhausgas_Kennzahlen!E$14,IF(Berechnung!D4="Dieselöl (MDO)",Treibhausgas_Kennzahlen!E$16,Treibhausgas_Kennzahlen!E$15))) -> 2006.6009 | P4: =IF(G4="","",$J4*IF($C4="Schweröl (HFO)",Treibhausgas_Kennzahlen!F$14,IF(Berechnung!E4="Dieselöl (MDO)",Treibhausgas_Kennzahlen!F$16,Treibhausgas_Kennzahlen!F$15))) -> 1865.89413 | Q4: =IF(G4="","",$J4*IF($C4="Schweröl (HFO)",Treibhausgas_Kennzahlen!G$14,IF(Berechnung!F4="Dieselöl (MDO)",Treibhausgas_Kennzahlen!G$16,Treibhausgas_Kennzahlen!G$15))) -> 2024.953957
A5: Containerschiff | B5: 1.000 bis 1.999 TEU | C5: =IF(B5="","","Schweröl (HFO)") -> Schweröl (HFO) | D5: Dubai, VAE | E5: Hamburg, Deutschland | F5: Slow Steaming | G5: 7 | H5: =IF(G5="","",VLOOKUP(INDEX(Seehäfen!$A$3:$A$502, MATCH(Berechnung!D5,Seehäfen!$B$3:$B$502,0))&"_"&INDEX(Seehäfen!$A$3:$A$502, MATCH(Berechnung!E5,Seehäfen!$B$3:$B$502,0)),Entfernung_Seehäfen!$C$2:$E$10001,2,FALSE)) -> 11810.204 | I5: =IF(G5="","",SUM(IF(A5=Energieverbrauch!$A$2:$A$41,1,0)*IF(Berechnung!B5=Energieverbrauch!$B$2:$B$41,1,0)*IF(Berechnung!F5=Energieverbrauch!$C$2:$C$41,1,0)*Energieverbrauch!$D$2:$D$41)) -> 6.4 | J5: =IF(G5="","",PRODUCT(H5,I5,G5)/1000) -> 529.0971392 | K5: =IF(G5="","",J5/IF($C5="Schweröl (HFO)", Treibhausgas_Kennzahlen!B$7,IF(Berechnung!C5="Dieselöl (MDO)",Treibhausgas_Kennzahlen!B$9,Treibhausgas_Kennzahlen!B$8))) -> 545.4609682 | L5: =IF(G5="","",$K5*IF($C5="Schweröl (HFO)",Treibhausgas_Kennzahlen!B$14,IF(Berechnung!C5="Dieselöl (MDO)", Treibhausgas_Kennzahlen!B$16,Treibhausgas_Kennzahlen!B$15))) -> 21436.61605 | M5: =IF(G5="","",$K5*IF($C5="Schweröl (HFO)",Treibhausgas_Kennzahlen!C$14,IF(Berechnung!D5="Dieselöl (MDO)", Treibhausgas_Kennzahlen!C$16,Treibhausgas_Kennzahlen!C$15))) -> 23291.18334 | N5: =IF(G5="","",$J5*IF($C5="Schweröl (HFO)",Treibhausgas_Kennzahlen!D$14,IF(Berechnung!C5="Dieselöl (MDO)",Treibhausgas_Kennzahlen!D$16,Treibhausgas_Kennzahlen!D$15))) -> 1597.87336 | O5: =IF(G5="","",$J5*IF($C5="Schweröl (HFO)",Treibhausgas_Kennzahlen!E$14,IF(Berechnung!D5="Dieselöl (MDO)",Treibhausgas_Kennzahlen!E$16,Treibhausgas_Kennzahlen!E$15))) -> 1735.438617 | P5: =IF(G5="","",$J5*IF($C5="Schweröl (HFO)",Treibhausgas_Kennzahlen!F$14,IF(Berechnung!E5="Dieselöl (MDO)",Treibhausgas_Kennzahlen!F$16,Treibhausgas_Kennzahlen!F$15))) -> 1613.746275 | Q5: =IF(G5="","",$J5*IF($C5="Schweröl (HFO)",Treibhausgas_Kennzahlen!G$14,IF(Berechnung!F5="Dieselöl (MDO)",Treibhausgas_Kennzahlen!G$16,Treibhausgas_Kennzahlen!G$15))) -> 1751.311531
A6: Containerschiff | B6: 2.000 bis 2.999 TEU | C6: =IF(B6="","","Schweröl (HFO)") -> Schweröl (HFO) | D6: Dubai, VAE | E6: Hamburg, Deutschland | F6: Slow Steaming | G6: 7 | H6: =IF(G6="","",VLOOKUP(INDEX(Seehäfen!$A$3:$A$502, MATCH(Berechnung!D6,Seehäfen!$B$3:$B$502,0))&"_"&INDEX(Seehäfen!$A$3:$A$502, MATCH(Berechnung!E6,Seehäfen!$B$3:$B$502,0)),Entfernung_Seehäfen!$C$2:$E$100001,2,FALSE)) -> 11810.204 | I6: =IF(G6="","",SUM(IF(A6=Energieverbrauch!$A$2:$A$41,1,0)*IF(Berechnung!B6=Energieverbrauch!$B$2:$B$41,1,0)*IF(Berechnung!F6=Energieverbrauch!$C$2:$C$41,1,0)*Energieverbrauch!$D$2:$D$41)) -> 4 | J6: =IF(G6="","",PRODUCT(H6,I6,G6)/1000) -> 330.685712 | K6: =IF(G6="","",J6/IF($C6="Schweröl (HFO)", Treibhausgas_Kennzahlen!B$7,IF(Berechnung!C6="Dieselöl (MDO)",Treibhausgas_Kennzahlen!B$9,Treibhausgas_Kennzahlen!B$8))) -> 340.9131052 | L6: =IF(G6="","",$K6*IF($C6="Schweröl (HFO)",Treibhausgas_Kennzahlen!B$14,IF(Berechnung!C6="Dieselöl (MDO)", Treibhausgas_Kennzahlen!B$16,Treibhausgas_Kennzahlen!B$15))) -> 13397.88503 | M6: =IF(G6="","",$K6*IF($C6="Schweröl (HFO)",Treibhausgas_Kennzahlen!C$14,IF(Berechnung!D6="Dieselöl (MDO)", Treibhausgas_Kennzahlen!C$16,Treibhausgas_Kennzahlen!C$15))) -> 14556.98959 | N6: =IF(G6="","",$J6*IF($C6="Schweröl (HFO)",Treibhausgas_Kennzahlen!D$14,IF(Berechnung!C6="Dieselöl (MDO)",Treibhausgas_Kennzahlen!D$16,Treibhausgas_Kennzahlen!D$15))) -> 998.6708502 | O6: =IF(G6="","",$J6*IF($C6="Schweröl (HFO)",Treibhausgas_Kennzahlen!E$14,IF(Berechnung!D6="Dieselöl (MDO)",Treibhausgas_Kennzahlen!E$16,Treibhausgas_Kennzahlen!E$15))) -> 1084.649135 | P6: =IF(G6="","",$J6*IF($C6="Schweröl (HFO)",Treibhausgas_Kennzahlen!F$14,IF(Berechnung!E6="Dieselöl (MDO)",Treibhausgas_Kennzahlen!F$16,Treibhausgas_Kennzahlen!F$15))) -> 1008.591422 | Q6: =IF(G6="","",$J6*IF($C6="Schweröl (HFO)",Treibhausgas_Kennzahlen!G$14,IF(Berechnung!F6="Dieselöl (MDO)",Treibhausgas_Kennzahlen!G$16,Treibhausgas_Kennzahlen!G$15))) -> 1094.569707
A7: Containerschiff | B7: 3.000 bis 4.999 TEU | C7: Schweröl (HFO) | D7: Dubai, VAE | E7: hamburg, Deutschland | F7: Slow Steaming | G7: 7 | H7: =IF(G7="","",VLOOKUP(INDEX(Seehäfen!$A$3:$A$502, MATCH(Berechnung!D7,Seehäfen!$B$3:$B$502,0))&"_"&INDEX(Seehäfen!$A$3:$A$502, MATCH(Berechnung!E7,Seehäfen!$B$3:$B$502,0)),Entfernung_Seehäfen!$C$2:$E$10001,2,FALSE)) -> 11810.204 | I7: =IF(G7="","",SUM(IF(A7=Energieverbrauch!$A$2:$A$41,1,0)*IF(Berechnung!B7=Energieverbrauch!$B$2:$B$41,1,0)*IF(Berechnung!F7=Energieverbrauch!$C$2:$C$41,1,0)*Energieverbrauch!$D$2:$D$41)) -> 3.3 | J7: 272.8157124 | K7: =IF(G7="","",J7/IF($C7="Schweröl (HFO)", Treibhausgas_Kennzahlen!B$7,IF(Berechnung!C7="Dieselöl (MDO)",Treibhausgas_Kennzahlen!B$9,Treibhausgas_Kennzahlen!B$8))) -> 281.2533118 | L7: =IF(G7="","",$K7*IF($C7="Schweröl (HFO)",Treibhausgas_Kennzahlen!B$14,IF(Berechnung!C7="Dieselöl (MDO)", Treibhausgas_Kennzahlen!B$16,Treibhausgas_Kennzahlen!B$15))) -> 11053.25515 | M7: =IF(G7="","",$K7*IF($C7="Schweröl (HFO)",Treibhausgas_Kennzahlen!C$14,IF(Berechnung!D7="Dieselöl (MDO)", Treibhausgas_Kennzahlen!C$16,Treibhausgas_Kennzahlen!C$15))) -> 12009.51641 | N7: =IF(G7="","",$J7*IF($C7="Schweröl (HFO)",Treibhausgas_Kennzahlen!D$14,IF(Berechnung!C7="Dieselöl (MDO)",Treibhausgas_Kennzahlen!D$16,Treibhausgas_Kennzahlen!D$15))) -> 823.9034514 | O7: =IF(G7="","",$J7*IF($C7="Schweröl (HFO)",Treibhausgas_Kennzahlen!E$14,IF(Berechnung!D7="Dieselöl (MDO)",Treibhausgas_Kennzahlen!E$16,Treibhausgas_Kennzahlen!E$15))) -> 894.8355367 | P7: =IF(G7="","",$J7*IF($C7="Schweröl (HFO)",Treibhausgas_Kennzahlen!F$14,IF(Berechnung!E7="Dieselöl (MDO)",Treibhausgas_Kennzahlen!F$16,Treibhausgas_Kennzahlen!F$15))) -> 832.0879228 | Q7: =IF(G7="","",$J7*IF($C7="Schweröl (HFO)",Treibhausgas_Kennzahlen!G$14,IF(Berechnung!F7="Dieselöl (MDO)",Treibhausgas_Kennzahlen!G$16,Treibhausgas_Kennzahlen!G$15))) -> 903.020008
A8: Containerschiff | B8: 5.000 bis 7.999 TEU | C8: Schweröl (HFO) | D8: Dubai, VAE | E8: Hamburg, Deutschland | F8: Slow Steaming | G8: 7 | H8: =IF(G8="","",VLOOKUP(INDEX(Seehäfen!$A$3:$A$502, MATCH(Berechnung!D8,Seehäfen!$B$3:$B$502,0))&"_"&INDEX(Seehäfen!$A$3:$A$502, MATCH(Berechnung!E8,Seehäfen!$B$3:$B$502,0)),Entfernung_Seehäfen!$C$2:$E$100001,2,FALSE)) -> 11810.204 | I8: =IF(G8="","",SUM(IF(A8=Energieverbrauch!$A$2:$A$41,1,0)*IF(Berechnung!B8=Energieverbrauch!$B$2:$B$41,1,0)*IF(Berechnung!F8=Energieverbrauch!$C$2:$C$41,1,0)*Energieverbrauch!$D$2:$D$41)) -> 3.3 | J8: 272.8157124 | K8: =IF(G8="","",J8/IF($C8="Schweröl (HFO)", Treibhausgas_Kennzahlen!B$7,IF(Berechnung!C8="Dieselöl (MDO)",Treibhausgas_Kennzahlen!B$9,Treibhausgas_Kennzahlen!B$8))) -> 281.2533118 | L8: =IF(G8="","",$K8*IF($C8="Schweröl (HFO)",Treibhausgas_Kennzahlen!B$14,IF(Berechnung!C8="Dieselöl (MDO)", Treibhausgas_Kennzahlen!B$16,Treibhausgas_Kennzahlen!B$15))) -> 11053.25515 | M8: =IF(G8="","",$K8*IF($C8="Schweröl (HFO)",Treibhausgas_Kennzahlen!C$14,IF(Berechnung!D8="Dieselöl (MDO)", Treibhausgas_Kennzahlen!C$16,Treibhausgas_Kennzahlen!C$15))) -> 12009.51641 | N8: =IF(G8="","",$J8*IF($C8="Schweröl (HFO)",Treibhausgas_Kennzahlen!D$14,IF(Berechnung!C8="Dieselöl (MDO)",Treibhausgas_Kennzahlen!D$16,Treibhausgas_Kennzahlen!D$15))) -> 823.9034514 | O8: =IF(G8="","",$J8*IF($C8="Schweröl (HFO)",Treibhausgas_Kennzahlen!E$14,IF(Berechnung!D8="Dieselöl (MDO)",Treibhausgas_Kennzahlen!E$16,Treibhausgas_Kennzahlen!E$15))) -> 894.8355367 | P8: =IF(G8="","",$J8*IF($C8="Schweröl (HFO)",Treibhausgas_Kennzahlen!F$14,IF(Berechnung!E8="Dieselöl (MDO)",Treibhausgas_Kennzahlen!F$16,Treibhausgas_Kennzahlen!F$15))) -> 832.0879228 | Q8: =IF(G8="","",$J8*IF($C8="Schweröl (HFO)",Treibhausgas_Kennzahlen!G$14,IF(Berechnung!F8="Dieselöl (MDO)",Treibhausgas_Kennzahlen!G$16,Treibhausgas_Kennzahlen!G$15))) -> 903.020008
A9: Containerschiff | B9: 8.000 TEU und mehr | C9: Schweröl (HFO) | D9: Dubai, VAE | E9: Hamburg, Deutschland | F9: Slow Steaming | G9: 7 | H9: =IF(G9="","",VLOOKUP(INDEX(Seehäfen!$A$3:$A$502, MATCH(Berechnung!D9,Seehäfen!$B$3:$B$502,0))&"_"&INDEX(Seehäfen!$A$3:$A$502, MATCH(Berechnung!E9,Seehäfen!$B$3:$B$502,0)),Entfernung_Seehäfen!$C$2:$E$10001,2,FALSE)) -> 11810.204 | I9: =IF(G9="","",SUM(IF(A9=Energieverbrauch!$A$2:$A$41,1,0)*IF(Berechnung!B9=Energieverbrauch!$B$2:$B$41,1,0)*IF(Berechnung!F9=Energieverbrauch!$C$2:$C$41,1,0)*Energieverbrauch!$D$2:$D$41)) -> 2.5 | J9: 206.67857 | K9: =IF(G9="","",J9/IF($C9="Schweröl (HFO)", Treibhausgas_Kennzahlen!B$7,IF(Berechnung!C9="Dieselöl (MDO)",Treibhausgas_Kennzahlen!B$9,Treibhausgas_Kennzahlen!B$8))) -> 213.0706907 | L9: =IF(G9="","",$K9*IF($C9="Schweröl (HFO)",Treibhausgas_Kennzahlen!B$14,IF(Berechnung!C9="Dieselöl (MDO)", Treibhausgas_Kennzahlen!B$16,Treibhausgas_Kennzahlen!B$15))) -> 8373.678145 | M9: =IF(G9="","",$K9*IF($C9="Schweröl (HFO)",Treibhausgas_Kennzahlen!C$14,IF(Berechnung!D9="Dieselöl (MDO)", Treibhausgas_Kennzahlen!C$16,Treibhausgas_Kennzahlen!C$15))) -> 9098.118494 | N9: =IF(G9="","",$J9*IF($C9="Schweröl (HFO)",Treibhausgas_Kennzahlen!D$14,IF(Berechnung!C9="Dieselöl (MDO)",Treibhausgas_Kennzahlen!D$16,Treibhausgas_Kennzahlen!D$15))) -> 624.1692814 | O9: =IF(G9="","",$J9*IF($C9="Schweröl (HFO)",Treibhausgas_Kennzahlen!E$14,IF(Berechnung!D9="Dieselöl (MDO)",Treibhausgas_Kennzahlen!E$16,Treibhausgas_Kennzahlen!E$15))) -> 677.9057096 | P9: =IF(G9="","",$J9*IF($C9="Schweröl (HFO)",Treibhausgas_Kennzahlen!F$14,IF(Berechnung!E9="Dieselöl (MDO)",Treibhausgas_Kennzahlen!F$16,Treibhausgas_Kennzahlen!F$15))) -> 630.3696385 | Q9: =IF(G9="","",$J9*IF($C9="Schweröl (HFO)",Treibhausgas_Kennzahlen!G$14,IF(Berechnung!F9="Dieselöl (MDO)",Treibhausgas_Kennzahlen!G$16,Treibhausgas_Kennzahlen!G$15))) -> 684.1060667
H10: =IF(G10="","",VLOOKUP(INDEX(Seehäfen!$A$3:$A$502, MATCH(Berechnung!D10,Seehäfen!$B$3:$B$502,0))&"_"&INDEX(Seehäfen!$A$3:$A$502, MATCH(Berechnung!E10,Seehäfen!$B$3:$B$502,0)),Entfernung_Seehäfen!$C$2:$E$100001,2,FALSE)) ->  | I10: =IF(G10="","",SUM(IF(A10=Energieverbrauch!$A$2:$A$41,1,0)*IF(Berechnung!B10=Energieverbrauch!$B$2:$B$41,1,0)*IF(Berechnung!F10=Energieverbrauch!$C$2:$C$41,1,0)*Energieverbrauch!$D$2:$D$41)) ->  | K10: =IF(G10="","",J10/IF($C10="Schweröl (HFO)", Treibhausgas_Kennzahlen!B$7,IF(Berechnung!C10="Dieselöl (MDO)",Treibhausgas_Kennzahlen!B$9,Treibhausgas_Kennzahlen!B$8))) ->  | L10: =IF(G10="","",$K10*IF($C10="Schweröl (HFO)",Treibhausgas_Kennzahlen!B$14,IF(Berechnung!C10="Dieselöl (MDO)", Treibhausgas_Kennzahlen!B$16,Treibhausgas_Kennzahlen!B$15))) ->  | M10: =IF(G10="","",$K10*IF($C10="Schweröl (HFO)",Treibhausgas_Kennzahlen!C$14,IF(Berechnung!D10="Dieselöl (MDO)", Treibhausgas_Kennzahlen!C$16,Treibhausgas_Kennzahlen!C$15))) ->  | N10: =IF(G10="","",$J10*IF($C10="Schweröl (HFO)",Treibhausgas_Kennzahlen!D$14,IF(Berechnung!C10="Dieselöl (MDO)",Treibhausgas_Kennzahlen!D$16,Treibhausgas_Kennzahlen!D$15))) ->  | O10: =IF(G10="","",$J10*IF($C10="Schweröl (HFO)",Treibhausgas_Kennzahlen!E$14,IF(Berechnung!D10="Dieselöl (MDO)",Treibhausgas_Kennzahlen!E$16,Treibhausgas_Kennzahlen!E$15))) ->  | P10: =IF(G10="","",$J10*IF($C10="Schweröl (HFO)",Treibhausgas_Kennzahlen!F$14,IF(Berechnung!E10="Dieselöl (MDO)",Treibhausgas_Kennzahlen!F$16,Treibhausgas_Kennzahlen!F$15))) ->  | Q10: =IF(G10="","",$J10*IF($C10="Schweröl (HFO)",Treibhausgas_Kennzahlen!G$14,IF(Berechnung!F10="Dieselöl (MDO)",Treibhausgas_Kennzahlen!G$16,Treibhausgas_Kennzahlen!G$15))) -> 
H11: =IF(G11="","",VLOOKUP(INDEX(Seehäfen!$A$3:$A$502, MATCH(Berechnung!D11,Seehäfen!$B$3:$B$502,0))&"_"&INDEX(Seehäfen!$A$3:$A$502, MATCH(Berechnung!E11,Seehäfen!$B$3:$B$502,0)),Entfernung_Seehäfen!$C$2:$E$10001,2,FALSE)) ->  | I11: =IF(G11="","",SUM(IF(A11=Energieverbrauch!$A$2:$A$41,1,0)*IF(Berechnung!B11=Energieverbrauch!$B$2:$B$41,1,0)*IF(Berechnung!F11=Energieverbrauch!$C$2:$C$41,1,0)*Energieverbrauch!$D$2:$D$41)) ->  | K11: =IF(G11="","",J11/IF($C11="Schweröl (HFO)", Treibhausgas_Kennzahlen!B$7,IF(Berechnung!C11="Dieselöl (MDO)",Treibhausgas_Kennzahlen!B$9,Treibhausgas_Kennzahlen!B$8))) ->  | L11: =IF(G11="","",$K11*IF($C11="Schweröl (HFO)",Treibhausgas_Kennzahlen!B$14,IF(Berechnung!C11="Dieselöl (MDO)", Treibhausgas_Kennzahlen!B$16,Treibhausgas_Kennzahlen!B$15))) ->  | M11: =IF(G11="","",$K11*IF($C11="Schweröl (HFO)",Treibhausgas_Kennzahlen!C$14,IF(Berechnung!D11="Dieselöl (MDO)", Treibhausgas_Kennzahlen!C$16,Treibhausgas_Kennzahlen!C$15))) ->  | N11: =IF(G11="","",$J11*IF($C11="Schweröl (HFO)",Treibhausgas_Kennzahlen!D$14,IF(Berechnung!C11="Dieselöl (MDO)",Treibhausgas_Kennzahlen!D$16,Treibhausgas_Kennzahlen!D$15))) ->  | O11: =IF(G11="","",$J11*IF($C11="Schweröl (HFO)",Treibhausgas_Kennzahlen!E$14,IF(Berechnung!D11="Dieselöl (MDO)",Treibhausgas_Kennzahlen!E$16,Treibhausgas_Kennzahlen!E$15))) ->  | P11: =IF(G11="","",$J11*IF($C11="Schweröl (HFO)",Treibhausgas_Kennzahlen!F$14,IF(Berechnung!E11="Dieselöl (MDO)",Treibhausgas_Kennzahlen!F$16,Treibhausgas_Kennzahlen!F$15))) ->  | Q11: =IF(G11="","",$J11*IF($C11="Schweröl (HFO)",Treibhausgas_Kennzahlen!G$14,IF(Berechnung!F11="Dieselöl (MDO)",Treibhausgas_Kennzahlen!G$16,Treibhausgas_Kennzahlen!G$15))) -> 
H12: =IF(G12="","",VLOOKUP(INDEX(Seehäfen!$A$3:$A$502, MATCH(Berechnung!D12,Seehäfen!$B$3:$B$502,0))&"_"&INDEX(Seehäfen!$A$3:$A$502, MATCH(Berechnung!E12,Seehäfen!$B$3:$B$502,0)),Entfernung_Seehäfen!$C$2:$E$100001,2,FALSE)) ->  | I12: =IF(G12="","",SUM(IF(A12=Energieverbrauch!$A$2:$A$41,1,0)*IF(Berechnung!B12=Energieverbrauch!$B$2:$B$41,1,0)*IF(Berechnung!F12=Energieverbrauch!$C$2:$C$41,1,0)*Energieverbrauch!$D$2:$D$41)) ->  | K12: =IF(G12="","",J12/IF($C12="Schweröl (HFO)", Treibhausgas_Kennzahlen!B$7,IF(Berechnung!C12="Dieselöl (MDO)",Treibhausgas_Kennzahlen!B$9,Treibhausgas_Kennzahlen!B$8))) ->  | L12: =IF(G12="","",$K12*IF($C12="Schweröl (HFO)",Treibhausgas_Kennzahlen!B$14,IF(Berechnung!C12="Dieselöl (MDO)", Treibhausgas_Kennzahlen!B$16,Treibhausgas_Kennzahlen!B$15))) ->  | M12: =IF(G12="","",$K12*IF($C12="Schweröl (HFO)",Treibhausgas_Kennzahlen!C$14,IF(Berechnung!D12="Dieselöl (MDO)", Treibhausgas_Kennzahlen!C$16,Treibhausgas_Kennzahlen!C$15))) ->  | N12: =IF(G12="","",$J12*IF($C12="Schweröl (HFO)",Treibhausgas_Kennzahlen!D$14,IF(Berechnung!C12="Dieselöl (MDO)",Treibhausgas_Kennzahlen!D$16,Treibhausgas_Kennzahlen!D$15))) ->  | O12: =IF(G12="","",$J12*IF($C12="Schweröl (HFO)",Treibhausgas_Kennzahlen!E$14,IF(Berechnung!D12="Dieselöl (MDO)",Treibhausgas_Kennzahlen!E$16,Treibhausgas_Kennzahlen!E$15))) ->  | P12: =IF(G12="","",$J12*IF($C12="Schweröl (HFO)",Treibhausgas_Kennzahlen!F$14,IF(Berechnung!E12="Dieselöl (MDO)",Treibhausgas_Kennzahlen!F$16,Treibhausgas_Kennzahlen!F$15))) ->  | Q12: =IF(G12="","",$J12*IF($C12="Schweröl (HFO)",Treibhausgas_Kennzahlen!G$14,IF(Berechnung!F12="Dieselöl (MDO)",Treibhausgas_Kennzahlen!G$16,Treibhausgas_Kennzahlen!G$15))) -> 
H13: =IF(G13="","",VLOOKUP(INDEX(Seehäfen!$A$3:$A$502, MATCH(Berechnung!D13,Seehäfen!$B$3:$B$502,0))&"_"&INDEX(Seehäfen!$A$3:$A$502, MATCH(Berechnung!E13,Seehäfen!$B$3:$B$502,0)),Entfernung_Seehäfen!$C$2:$E$10001,2,FALSE)) ->  | I13: =IF(G13="","",SUM(IF(A13=Energieverbrauch!$A$2:$A$41,1,0)*IF(Berechnung!B13=Energieverbrauch!$B$2:$B$41,1,0)*IF(Berechnung!F13=Energieverbrauch!$C$2:$C$41,1,0)*Energieverbrauch!$D$2:$D$41)) ->  | K13: =IF(G13="","",J13/IF($C13="Schweröl (HFO)", Treibhausgas_Kennzahlen!B$7,IF(Berechnung!C13="Dieselöl (MDO)",Treibhausgas_Kennzahlen!B$9,Treibhausgas_Kennzahlen!B$8))) ->  | L13: =IF(G13="","",$K13*IF($C13="Schweröl (HFO)",Treibhausgas_Kennzahlen!B$14,IF(Berechnung!C13="Dieselöl (MDO)", Treibhausgas_Kennzahlen!B$16,Treibhausgas_Kennzahlen!B$15))) ->  | M13: =IF(G13="","",$K13*IF($C13="Schweröl (HFO)",Treibhausgas_Kennzahlen!C$14,IF(Berechnung!D13="Dieselöl (MDO)", Treibhausgas_Kennzahlen!C$16,Treibhausgas_Kennzahlen!C$15))) ->  | N13: =IF(G13="","",$J13*IF($C13="Schweröl (HFO)",Treibhausgas_Kennzahlen!D$14,IF(Berechnung!C13="Dieselöl (MDO)",Treibhausgas_Kennzahlen!D$16,Treibhausgas_Kennzahlen!D$15))) ->  | O13: =IF(G13="","",$J13*IF($C13="Schweröl (HFO)",Treibhausgas_Kennzahlen!E$14,IF(Berechnung!D13="Dieselöl (MDO)",Treibhausgas_Kennzahlen!E$16,Treibhausgas_Kennzahlen!E$15))) ->  | P13: =IF(G13="","",$J13*IF($C13="Schweröl (HFO)",Treibhausgas_Kennzahlen!F$14,IF(Berechnung!E13="Dieselöl (MDO)",Treibhausgas_Kennzahlen!F$16,Treibhausgas_Kennzahlen!F$15))) ->  | Q13: =IF(G13="","",$J13*IF($C13="Schweröl (HFO)",Treibhausgas_Kennzahlen!G$14,IF(Berechnung!F13="Dieselöl (MDO)",Treibhausgas_Kennzahlen!G$16,Treibhausgas_Kennzahlen!G$15))) -> 
H14: =IF(G14="","",VLOOKUP(INDEX(Seehäfen!$A$3:$A$502, MATCH(Berechnung!D14,Seehäfen!$B$3:$B$502,0))&"_"&INDEX(Seehäfen!$A$3:$A$502, MATCH(Berechnung!E14,Seehäfen!$B$3:$B$502,0)),Entfernung_Seehäfen!$C$2:$E$100001,2,FALSE)) ->  | I14: =IF(G14="","",SUM(IF(A14=Energieverbrauch!$A$2:$A$41,1,0)*IF(Berechnung!B14=Energieverbrauch!$B$2:$B$41,1,0)*IF(Berechnung!F14=Energieverbrauch!$C$2:$C$41,1,0)*Energieverbrauch!$D$2:$D$41)) ->  | K14: =IF(G14="","",J14/IF($C14="Schweröl (HFO)", Treibhausgas_Kennzahlen!B$7,IF(Berechnung!C14="Dieselöl (MDO)",Treibhausgas_Kennzahlen!B$9,Treibhausgas_Kennzahlen!B$8))) ->  | L14: =IF(G14="","",$K14*IF($C14="Schweröl (HFO)",Treibhausgas_Kennzahlen!B$14,IF(Berechnung!C14="Dieselöl (MDO)", Treibhausgas_Kennzahlen!B$16,Treibhausgas_Kennzahlen!B$15))) ->  | M14: =IF(G14="","",$K14*IF($C14="Schweröl (HFO)",Treibhausgas_Kennzahlen!C$14,IF(Berechnung!D14="Dieselöl (MDO)", Treibhausgas_Kennzahlen!C$16,Treibhausgas_Kennzahlen!C$15))) ->  | N14: =IF(G14="","",$J14*IF($C14="Schweröl (HFO)",Treibhausgas_Kennzahlen!D$14,IF(Berechnung!C14="Dieselöl (MDO)",Treibhausgas_Kennzahlen!D$16,Treibhausgas_Kennzahlen!D$15))) ->  | O14: =IF(G14="","",$J14*IF($C14="Schweröl (HFO)",Treibhausgas_Kennzahlen!E$14,IF(Berechnung!D14="Dieselöl (MDO)",Treibhausgas_Kennzahlen!E$16,Treibhausgas_Kennzahlen!E$15))) ->  | P14: =IF(G14="","",$J14*IF($C14="Schweröl (HFO)",Treibhausgas_Kennzahlen!F$14,IF(Berechnung!E14="Dieselöl (MDO)",Treibhausgas_Kennzahlen!F$16,Treibhausgas_Kennzahlen!F$15))) ->  | Q14: =IF(G14="","",$J14*IF($C14="Schweröl (HFO)",Treibhausgas_Kennzahlen!G$14,IF(Berechnung!F14="Dieselöl (MDO)",Treibhausgas_Kennzahlen!G$16,Treibhausgas_Kennzahlen!G$15))) -> 
H15: =IF(G15="","",VLOOKUP(INDEX(Seehäfen!$A$3:$A$502, MATCH(Berechnung!D15,Seehäfen!$B$3:$B$502,0))&"_"&INDEX(Seehäfen!$A$3:$A$502, MATCH(Berechnung!E15,Seehäfen!$B$3:$B$502,0)),Entfernung_Seehäfen!$C$2:$E$10001,2,FALSE)) ->  | I15: =IF(G15="","",SUM(IF(A15=Energieverbrauch!$A$2:$A$41,1,0)*IF(Berechnung!B15=Energieverbrauch!$B$2:$B$41,1,0)*IF(Berechnung!F15=Energieverbrauch!$C$2:$C$41,1,0)*Energieverbrauch!$D$2:$D$41)) ->  | K15: =IF(G15="","",J15/IF($C15="Schweröl (HFO)", Treibhausgas_Kennzahlen!B$7,IF(Berechnung!C15="Dieselöl (MDO)",Treibhausgas_Kennzahlen!B$9,Treibhausgas_Kennzahlen!B$8))) ->  | L15: =IF(G15="","",$K15*IF($C15="Schweröl (HFO)",Treibhausgas_Kennzahlen!B$14,IF(Berechnung!C15="Dieselöl (MDO)", Treibhausgas_Kennzahlen!B$16,Treibhausgas_Kennzahlen!B$15))) ->  | M15: =IF(G15="","",$K15*IF($C15="Schweröl (HFO)",Treibhausgas_Kennzahlen!C$14,IF(Berechnung!D15="Dieselöl (MDO)", Treibhausgas_Kennzahlen!C$16,Treibhausgas_Kennzahlen!C$15))) ->  | N15: =IF(G15="","",$J15*IF($C15="Schweröl (HFO)",Treibhausgas_Kennzahlen!D$14,IF(Berechnung!C15="Dieselöl (MDO)",Treibhausgas_Kennzahlen!D$16,Treibhausgas_Kennzahlen!D$15))) ->  | O15: =IF(G15="","",$J15*IF($C15="Schweröl (HFO)",Treibhausgas_Kennzahlen!E$14,IF(Berechnung!D15="Dieselöl (MDO)",Treibhausgas_Kennzahlen!E$16,Treibhausgas_Kennzahlen!E$15))) ->  | P15: =IF(G15="","",$J15*IF($C15="Schweröl (HFO)",Treibhausgas_Kennzahlen!F$14,IF(Berechnung!E15="Dieselöl (MDO)",Treibhausgas_Kennzahlen!F$16,Treibhausgas_Kennzahlen!F$15))) ->  | Q15: =IF(G15="","",$J15*IF($C15="Schweröl (HFO)",Treibhausgas_Kennzahlen!G$14,IF(Berechnung!F15="Dieselöl (MDO)",Treibhausgas_Kennzahlen!G$16,Treibhausgas_Kennzahlen!G$15))) -> 
H16: =IF(G16="","",VLOOKUP(INDEX(Seehäfen!$A$3:$A$502, MATCH(Berechnung!D16,Seehäfen!$B$3:$B$502,0))&"_"&INDEX(Seehäfen!$A$3:$A$502, MATCH(Berechnung!E16,Seehäfen!$B$3:$B$502,0)),Entfernung_Seehäfen!$C$2:$E$100001,2,FALSE)) ->  | I16: =IF(G16="","",SUM(IF(A16=Energieverbrauch!$A$2:$A$41,1,0)*IF(Berechnung!B16=Energieverbrauch!$B$2:$B$41,1,0)*IF(Berechnung!F16=Energieverbrauch!$C$2:$C$41,1,0)*Energieverbrauch!$D$2:$D$41)) ->  | K16: =IF(G16="","",J16/IF($C16="Schweröl (HFO)", Treibhausgas_Kennzahlen!B$7,IF(Berechnung!C16="Dieselöl (MDO)",Treibhausgas_Kennzahlen!B$9,Treibhausgas_Kennzahlen!B$8))) ->  | L16: =IF(G16="","",$K16*IF($C16="Schweröl (HFO)",Treibhausgas_Kennzahlen!B$14,IF(Berechnung!C16="Dieselöl (MDO)", Treibhausgas_Kennzahlen!B$16,Treibhausgas_Kennzahlen!B$15))) ->  | M16: =IF(G16="","",$K16*IF($C16="Schweröl (HFO)",Treibhausgas_Kennzahlen!C$14,IF(Berechnung!D16="Dieselöl (MDO)", Treibhausgas_Kennzahlen!C$16,Treibhausgas_Kennzahlen!C$15))) ->  | N16: =IF(G16="","",$J16*IF($C16="Schweröl (HFO)",Treibhausgas_Kennzahlen!D$14,IF(Berechnung!C16="Dieselöl (MDO)",Treibhausgas_Kennzahlen!D$16,Treibhausgas_Kennzahlen!D$15))) ->  | O16: =IF(G16="","",$J16*IF($C16="Schweröl (HFO)",Treibhausgas_Kennzahlen!E$14,IF(Berechnung!D16="Dieselöl (MDO)",Treibhausgas_Kennzahlen!E$16,Treibhausgas_Kennzahlen!E$15))) ->  | P16: =IF(G16="","",$J16*IF($C16="Schweröl (HFO)",Treibhausgas_Kennzahlen!F$14,IF(Berechnung!E16="Dieselöl (MDO)",Treibhausgas_Kennzahlen!F$16,Treibhausgas_Kennzahlen!F$15))) ->  | Q16: =IF(G16="","",$J16*IF($C16="Schweröl (HFO)",Treibhausgas_Kennzahlen!G$14,IF(Berechnung!F16="Dieselöl (MDO)",Treibhausgas_Kennzahlen!G$16,Treibhausgas_Kennzahlen!G$15))) -> 
H17: =IF(G17="","",VLOOKUP(INDEX(Seehäfen!$A$3:$A$502, MATCH(Berechnung!D17,Seehäfen!$B$3:$B$502,0))&"_"&INDEX(Seehäfen!$A$3:$A$502, MATCH(Berechnung!E17,Seehäfen!$B$3:$B$502,0)),Entfernung_Seehäfen!$C$2:$E$10001,2,FALSE)) ->  | I17: =IF(G17="","",SUM(IF(A17=Energieverbrauch!$A$2:$A$41,1,0)*IF(Berechnung!B17=Energieverbrauch!$B$2:$B$41,1,0)*IF(Berechnung!F17=Energieverbrauch!$C$2:$C$41,1,0)*Energieverbrauch!$D$2:$D$41)) ->  | K17: =IF(G17="","",J17/IF($C17="Schweröl (HFO)", Treibhausgas_Kennzahlen!B$7,IF(Berechnung!C17="Dieselöl (MDO)",Treibhausgas_Kennzahlen!B$9,Treibhausgas_Kennzahlen!B$8))) ->  | L17: =IF(G17="","",$K17*IF($C17="Schweröl (HFO)",Treibhausgas_Kennzahlen!B$14,IF(Berechnung!C17="Dieselöl (MDO)", Treibhausgas_Kennzahlen!B$16,Treibhausgas_Kennzahlen!B$15))) ->  | M17: =IF(G17="","",$K17*IF($C17="Schweröl (HFO)",Treibhausgas_Kennzahlen!C$14,IF(Berechnung!D17="Dieselöl (MDO)", Treibhausgas_Kennzahlen!C$16,Treibhausgas_Kennzahlen!C$15))) ->  | N17: =IF(G17="","",$J17*IF($C17="Schweröl (HFO)",Treibhausgas_Kennzahlen!D$14,IF(Berechnung!C17="Dieselöl (MDO)",Treibhausgas_Kennzahlen!D$16,Treibhausgas_Kennzahlen!D$15))) ->  | O17: =IF(G17="","",$J17*IF($C17="Schweröl (HFO)",Treibhausgas_Kennzahlen!E$14,IF(Berechnung!D17="Dieselöl (MDO)",Treibhausgas_Kennzahlen!E$16,Treibhausgas_Kennzahlen!E$15))) ->  | P17: =IF(G17="","",$J17*IF($C17="Schweröl (HFO)",Treibhausgas_Kennzahlen!F$14,IF(Berechnung!E17="Dieselöl (MDO)",Treibhausgas_Kennzahlen!F$16,Treibhausgas_Kennzahlen!F$15))) ->  | Q17: =IF(G17="","",$J17*IF($C17="Schweröl (HFO)",Treibhausgas_Kennzahlen!G$14,IF(Berechnung!F17="Dieselöl (MDO)",Treibhausgas_Kennzahlen!G$16,Treibhausgas_Kennzahlen!G$15))) -> 
H18: =IF(G18="","",VLOOKUP(INDEX(Seehäfen!$A$3:$A$502, MATCH(Berechnung!D18,Seehäfen!$B$3:$B$502,0))&"_"&INDEX(Seehäfen!$A$3:$A$502, MATCH(Berechnung!E18,Seehäfen!$B$3:$B$502,0)),Entfernung_Seehäfen!$C$2:$E$100001,2,FALSE)) ->  | I18: =IF(G18="","",SUM(IF(A18=Energieverbrauch!$A$2:$A$41,1,0)*IF(Berechnung!B18=Energieverbrauch!$B$2:$B$41,1,0)*IF(Berechnung!F18=Energieverbrauch!$C$2:$C$41,1,0)*Energieverbrauch!$D$2:$D$41)) ->  | K18: =IF(G18="","",J18/IF($C18="Schweröl (HFO)", Treibhausgas_Kennzahlen!B$7,IF(Berechnung!C18="Dieselöl (MDO)",Treibhausgas_Kennzahlen!B$9,Treibhausgas_Kennzahlen!B$8))) ->  | L18: =IF(G18="","",$K18*IF($C18="Schweröl (HFO)",Treibhausgas_Kennzahlen!B$14,IF(Berechnung!C18="Dieselöl (MDO)", Treibhausgas_Kennzahlen!B$16,Treibhausgas_Kennzahlen!B$15))) ->  | M18: =IF(G18="","",$K18*IF($C18="Schweröl (HFO)",Treibhausgas_Kennzahlen!C$14,IF(Berechnung!D18="Dieselöl (MDO)", Treibhausgas_Kennzahlen!C$16,Treibhausgas_Kennzahlen!C$15))) ->  | N18: =IF(G18="","",$J18*IF($C18="Schweröl (HFO)",Treibhausgas_Kennzahlen!D$14,IF(Berechnung!C18="Dieselöl (MDO)",Treibhausgas_Kennzahlen!D$16,Treibhausgas_Kennzahlen!D$15))) ->  | O18: =IF(G18="","",$J18*IF($C18="Schweröl (HFO)",Treibhausgas_Kennzahlen!E$14,IF(Berechnung!D18="Dieselöl (MDO)",Treibhausgas_Kennzahlen!E$16,Treibhausgas_Kennzahlen!E$15))) ->  | P18: =IF(G18="","",$J18*IF($C18="Schweröl (HFO)",Treibhausgas_Kennzahlen!F$14,IF(Berechnung!E18="Dieselöl (MDO)",Treibhausgas_Kennzahlen!F$16,Treibhausgas_Kennzahlen!F$15))) ->  | Q18: =IF(G18="","",$J18*IF($C18="Schweröl (HFO)",Treibhausgas_Kennzahlen!G$14,IF(Berechnung!F18="Dieselöl (MDO)",Treibhausgas_Kennzahlen!G$16,Treibhausgas_Kennzahlen!G$15))) -> 
H19: =IF(G19="","",VLOOKUP(INDEX(Seehäfen!$A$3:$A$502, MATCH(Berechnung!D19,Seehäfen!$B$3:$B$502,0))&"_"&INDEX(Seehäfen!$A$3:$A$502, MATCH(Berechnung!E19,Seehäfen!$B$3:$B$502,0)),Entfernung_Seehäfen!$C$2:$E$10001,2,FALSE)) ->  | I19: =IF(G19="","",SUM(IF(A19=Energieverbrauch!$A$2:$A$41,1,0)*IF(Berechnung!B19=Energieverbrauch!$B$2:$B$41,1,0)*IF(Berechnung!F19=Energieverbrauch!$C$2:$C$41,1,0)*Energieverbrauch!$D$2:$D$41)) ->  | K19: =IF(G19="","",J19/IF($C19="Schweröl (HFO)", Treibhausgas_Kennzahlen!B$7,IF(Berechnung!C19="Dieselöl (MDO)",Treibhausgas_Kennzahlen!B$9,Treibhausgas_Kennzahlen!B$8))) ->  | L19: =IF(G19="","",$K19*IF($C19="Schweröl (HFO)",Treibhausgas_Kennzahlen!B$14,IF(Berechnung!C19="Dieselöl (MDO)", Treibhausgas_Kennzahlen!B$16,Treibhausgas_Kennzahlen!B$15))) ->  | M19: =IF(G19="","",$K19*IF($C19="Schweröl (HFO)",Treibhausgas_Kennzahlen!C$14,IF(Berechnung!D19="Dieselöl (MDO)", Treibhausgas_Kennzahlen!C$16,Treibhausgas_Kennzahlen!C$15))) ->  | N19: =IF(G19="","",$J19*IF($C19="Schweröl (HFO)",Treibhausgas_Kennzahlen!D$14,IF(Berechnung!C19="Dieselöl (MDO)",Treibhausgas_Kennzahlen!D$16,Treibhausgas_Kennzahlen!D$15))) ->  | O19: =IF(G19="","",$J19*IF($C19="Schweröl (HFO)",Treibhausgas_Kennzahlen!E$14,IF(Berechnung!D19="Dieselöl (MDO)",Treibhausgas_Kennzahlen!E$16,Treibhausgas_Kennzahlen!E$15))) ->  | P19: =IF(G19="","",$J19*IF($C19="Schweröl (HFO)",Treibhausgas_Kennzahlen!F$14,IF(Berechnung!E19="Dieselöl (MDO)",Treibhausgas_Kennzahlen!F$16,Treibhausgas_Kennzahlen!F$15))) ->  | Q19: =IF(G19="","",$J19*IF($C19="Schweröl (HFO)",Treibhausgas_Kennzahlen!G$14,IF(Berechnung!F19="Dieselöl (MDO)",Treibhausgas_Kennzahlen!G$16,Treibhausgas_Kennzahlen!G$15))) -> 
H20: =IF(G20="","",VLOOKUP(INDEX(Seehäfen!$A$3:$A$502, MATCH(Berechnung!D20,Seehäfen!$B$3:$B$502,0))&"_"&INDEX(Seehäfen!$A$3:$A$502, MATCH(Berechnung!E20,Seehäfen!$B$3:$B$502,0)),Entfernung_Seehäfen!$C$2:$E$100001,2,FALSE)) ->  | I20: =IF(G20="","",SUM(IF(A20=Energieverbrauch!$A$2:$A$41,1,0)*IF(Berechnung!B20=Energieverbrauch!$B$2:$B$41,1,0)*IF(Berechnung!F20=Energieverbrauch!$C$2:$C$41,1,0)*Energieverbrauch!$D$2:$D$41)) ->  | K20: =IF(G20="","",J20/IF($C20="Schweröl (HFO)", Treibhausgas_Kennzahlen!B$7,IF(Berechnung!C20="Dieselöl (MDO)",Treibhausgas_Kennzahlen!B$9,Treibhausgas_Kennzahlen!B$8))) ->  | L20: =IF(G20="","",$K20*IF($C20="Schweröl (HFO)",Treibhausgas_Kennzahlen!B$14,IF(Berechnung!C20="Dieselöl (MDO)", Treibhausgas_Kennzahlen!B$16,Treibhausgas_Kennzahlen!B$15))) ->  | M20: =IF(G20="","",$K20*IF($C20="Schweröl (HFO)",Treibhausgas_Kennzahlen!C$14,IF(Berechnung!D20="Dieselöl (MDO)", Treibhausgas_Kennzahlen!C$16,Treibhausgas_Kennzahlen!C$15))) ->  | N20: =IF(G20="","",$J20*IF($C20="Schweröl (HFO)",Treibhausgas_Kennzahlen!D$14,IF(Berechnung!C20="Dieselöl (MDO)",Treibhausgas_Kennzahlen!D$16,Treibhausgas_Kennzahlen!D$15))) ->  | O20: =IF(G20="","",$J20*IF($C20="Schweröl (HFO)",Treibhausgas_Kennzahlen!E$14,IF(Berechnung!D20="Dieselöl (MDO)",Treibhausgas_Kennzahlen!E$16,Treibhausgas_Kennzahlen!E$15))) ->  | P20: =IF(G20="","",$J20*IF($C20="Schweröl (HFO)",Treibhausgas_Kennzahlen!F$14,IF(Berechnung!E20="Dieselöl (MDO)",Treibhausgas_Kennzahlen!F$16,Treibhausgas_Kennzahlen!F$15))) ->  | Q20: =IF(G20="","",$J20*IF($C20="Schweröl (HFO)",Treibhausgas_Kennzahlen!G$14,IF(Berechnung!F20="Dieselöl (MDO)",Treibhausgas_Kennzahlen!G$16,Treibhausgas_Kennzahlen!G$15))) -> 
H21: =IF(G21="","",VLOOKUP(INDEX(Seehäfen!$A$3:$A$502, MATCH(Berechnung!D21,Seehäfen!$B$3:$B$502,0))&"_"&INDEX(Seehäfen!$A$3:$A$502, MATCH(Berechnung!E21,Seehäfen!$B$3:$B$502,0)),Entfernung_Seehäfen!$C$2:$E$10001,2,FALSE)) ->  | I21: =IF(G21="","",SUM(IF(A21=Energieverbrauch!$A$2:$A$41,1,0)*IF(Berechnung!B21=Energieverbrauch!$B$2:$B$41,1,0)*IF(Berechnung!F21=Energieverbrauch!$C$2:$C$41,1,0)*Energieverbrauch!$D$2:$D$41)) ->  | K21: =IF(G21="","",J21/IF($C21="Schweröl (HFO)", Treibhausgas_Kennzahlen!B$7,IF(Berechnung!C21="Dieselöl (MDO)",Treibhausgas_Kennzahlen!B$9,Treibhausgas_Kennzahlen!B$8))) ->  | L21: =IF(G21="","",$K21*IF($C21="Schweröl (HFO)",Treibhausgas_Kennzahlen!B$14,IF(Berechnung!C21="Dieselöl (MDO)", Treibhausgas_Kennzahlen!B$16,Treibhausgas_Kennzahlen!B$15))) ->  | M21: =IF(G21="","",$K21*IF($C21="Schweröl (HFO)",Treibhausgas_Kennzahlen!C$14,IF(Berechnung!D21="Dieselöl (MDO)", Treibhausgas_Kennzahlen!C$16,Treibhausgas_Kennzahlen!C$15))) ->  | N21: =IF(G21="","",$J21*IF($C21="Schweröl (HFO)",Treibhausgas_Kennzahlen!D$14,IF(Berechnung!C21="Dieselöl (MDO)",Treibhausgas_Kennzahlen!D$16,Treibhausgas_Kennzahlen!D$15))) ->  | O21: =IF(G21="","",$J21*IF($C21="Schweröl (HFO)",Treibhausgas_Kennzahlen!E$14,IF(Berechnung!D21="Dieselöl (MDO)",Treibhausgas_Kennzahlen!E$16,Treibhausgas_Kennzahlen!E$15))) ->  | P21: =IF(G21="","",$J21*IF($C21="Schweröl (HFO)",Treibhausgas_Kennzahlen!F$14,IF(Berechnung!E21="Dieselöl (MDO)",Treibhausgas_Kennzahlen!F$16,Treibhausgas_Kennzahlen!F$15))) ->  | Q21: =IF(G21="","",$J21*IF($C21="Schweröl (HFO)",Treibhausgas_Kennzahlen!G$14,IF(Berechnung!F21="Dieselöl (MDO)",Treibhausgas_Kennzahlen!G$16,Treibhausgas_Kennzahlen!G$15))) -> 
H22: =IF(G22="","",VLOOKUP(INDEX(Seehäfen!$A$3:$A$502, MATCH(Berechnung!D22,Seehäfen!$B$3:$B$502,0))&"_"&INDEX(Seehäfen!$A$3:$A$502, MATCH(Berechnung!E22,Seehäfen!$B$3:$B$502,0)),Entfernung_Seehäfen!$C$2:$E$100001,2,FALSE)) ->  | I22: =IF(G22="","",SUM(IF(A22=Energieverbrauch!$A$2:$A$41,1,0)*IF(Berechnung!B22=Energieverbrauch!$B$2:$B$41,1,0)*IF(Berechnung!F22=Energieverbrauch!$C$2:$C$41,1,0)*Energieverbrauch!$D$2:$D$41)) ->  | K22: =IF(G22="","",J22/IF($C22="Schweröl (HFO)", Treibhausgas_Kennzahlen!B$7,IF(Berechnung!C22="Dieselöl (MDO)",Treibhausgas_Kennzahlen!B$9,Treibhausgas_Kennzahlen!B$8))) ->  | L22: =IF(G22="","",$K22*IF($C22="Schweröl (HFO)",Treibhausgas_Kennzahlen!B$14,IF(Berechnung!C22="Dieselöl (MDO)", Treibhausgas_Kennzahlen!B$16,Treibhausgas_Kennzahlen!B$15))) ->  | M22: =IF(G22="","",$K22*IF($C22="Schweröl (HFO)",Treibhausgas_Kennzahlen!C$14,IF(Berechnung!D22="Dieselöl (MDO)", Treibhausgas_Kennzahlen!C$16,Treibhausgas_Kennzahlen!C$15))) ->  | N22: =IF(G22="","",$J22*IF($C22="Schweröl (HFO)",Treibhausgas_Kennzahlen!D$14,IF(Berechnung!C22="Dieselöl (MDO)",Treibhausgas_Kennzahlen!D$16,Treibhausgas_Kennzahlen!D$15))) ->  | O22: =IF(G22="","",$J22*IF($C22="Schweröl (HFO)",Treibhausgas_Kennzahlen!E$14,IF(Berechnung!D22="Dieselöl (MDO)",Treibhausgas_Kennzahlen!E$16,Treibhausgas_Kennzahlen!E$15))) ->  | P22: =IF(G22="","",$J22*IF($C22="Schweröl (HFO)",Treibhausgas_Kennzahlen!F$14,IF(Berechnung!E22="Dieselöl (MDO)",Treibhausgas_Kennzahlen!F$16,Treibhausgas_Kennzahlen!F$15))) ->  | Q22: =IF(G22="","",$J22*IF($C22="Schweröl (HFO)",Treibhausgas_Kennzahlen!G$14,IF(Berechnung!F22="Dieselöl (MDO)",Treibhausgas_Kennzahlen!G$16,Treibhausgas_Kennzahlen!G$15))) -> 
H23: =IF(G23="","",VLOOKUP(INDEX(Seehäfen!$A$3:$A$502, MATCH(Berechnung!D23,Seehäfen!$B$3:$B$502,0))&"_"&INDEX(Seehäfen!$A$3:$A$502, MATCH(Berechnung!E23,Seehäfen!$B$3:$B$502,0)),Entfernung_Seehäfen!$C$2:$E$10001,2,FALSE)) ->  | I23: =IF(G23="","",SUM(IF(A23=Energieverbrauch!$A$2:$A$41,1,0)*IF(Berechnung!B23=Energieverbrauch!$B$2:$B$41,1,0)*IF(Berechnung!F23=Energieverbrauch!$C$2:$C$41,1,0)*Energieverbrauch!$D$2:$D$41)) ->  | K23: =IF(G23="","",J23/IF($C23="Schweröl (HFO)", Treibhausgas_Kennzahlen!B$7,IF(Berechnung!C23="Dieselöl (MDO)",Treibhausgas_Kennzahlen!B$9,Treibhausgas_Kennzahlen!B$8))) ->  | L23: =IF(G23="","",$K23*IF($C23="Schweröl (HFO)",Treibhausgas_Kennzahlen!B$14,IF(Berechnung!C23="Dieselöl (MDO)", Treibhausgas_Kennzahlen!B$16,Treibhausgas_Kennzahlen!B$15))) ->  | M23: =IF(G23="","",$K23*IF($C23="Schweröl (HFO)",Treibhausgas_Kennzahlen!C$14,IF(Berechnung!D23="Dieselöl (MDO)", Treibhausgas_Kennzahlen!C$16,Treibhausgas_Kennzahlen!C$15))) ->  | N23: =IF(G23="","",$J23*IF($C23="Schweröl (HFO)",Treibhausgas_Kennzahlen!D$14,IF(Berechnung!C23="Dieselöl (MDO)",Treibhausgas_Kennzahlen!D$16,Treibhausgas_Kennzahlen!D$15))) ->  | O23: =IF(G23="","",$J23*IF($C23="Schweröl (HFO)",Treibhausgas_Kennzahlen!E$14,IF(Berechnung!D23="Dieselöl (MDO)",Treibhausgas_Kennzahlen!E$16,Treibhausgas_Kennzahlen!E$15))) ->  | P23: =IF(G23="","",$J23*IF($C23="Schweröl (HFO)",Treibhausgas_Kennzahlen!F$14,IF(Berechnung!E23="Dieselöl (MDO)",Treibhausgas_Kennzahlen!F$16,Treibhausgas_Kennzahlen!F$15))) ->  | Q23: =IF(G23="","",$J23*IF($C23="Schweröl (HFO)",Treibhausgas_Kennzahlen!G$14,IF(Berechnung!F23="Dieselöl (MDO)",Treibhausgas_Kennzahlen!G$16,Treibhausgas_Kennzahlen!G$15))) -> 
H24: =IF(G24="","",VLOOKUP(INDEX(Seehäfen!$A$3:$A$502, MATCH(Berechnung!D24,Seehäfen!$B$3:$B$502,0))&"_"&INDEX(Seehäfen!$A$3:$A$502, MATCH(Berechnung!E24,Seehäfen!$B$3:$B$502,0)),Entfernung_Seehäfen!$C$2:$E$100001,2,FALSE)) ->  | I24: =IF(G24="","",SUM(IF(A24=Energieverbrauch!$A$2:$A$41,1,0)*IF(Berechnung!B24=Energieverbrauch!$B$2:$B$41,1,0)*IF(Berechnung!F24=Energieverbrauch!$C$2:$C$41,1,0)*Energieverbrauch!$D$2:$D$41)) ->  | K24: =IF(G24="","",J24/IF($C24="Schweröl (HFO)", Treibhausgas_Kennzahlen!B$7,IF(Berechnung!C24="Dieselöl (MDO)",Treibhausgas_Kennzahlen!B$9,Treibhausgas_Kennzahlen!B$8))) ->  | L24: =IF(G24="","",$K24*IF($C24="Schweröl (HFO)",Treibhausgas_Kennzahlen!B$14,IF(Berechnung!C24="Dieselöl (MDO)", Treibhausgas_Kennzahlen!B$16,Treibhausgas_Kennzahlen!B$15))) ->  | M24: =IF(G24="","",$K24*IF($C24="Schweröl (HFO)",Treibhausgas_Kennzahlen!C$14,IF(Berechnung!D24="Dieselöl (MDO)", Treibhausgas_Kennzahlen!C$16,Treibhausgas_Kennzahlen!C$15))) ->  | N24: =IF(G24="","",$J24*IF($C24="Schweröl (HFO)",Treibhausgas_Kennzahlen!D$14,IF(Berechnung!C24="Dieselöl (MDO)",Treibhausgas_Kennzahlen!D$16,Treibhausgas_Kennzahlen!D$15))) ->  | O24: =IF(G24="","",$J24*IF($C24="Schweröl (HFO)",Treibhausgas_Kennzahlen!E$14,IF(Berechnung!D24="Dieselöl (MDO)",Treibhausgas_Kennzahlen!E$16,Treibhausgas_Kennzahlen!E$15))) ->  | P24: =IF(G24="","",$J24*IF($C24="Schweröl (HFO)",Treibhausgas_Kennzahlen!F$14,IF(Berechnung!E24="Dieselöl (MDO)",Treibhausgas_Kennzahlen!F$16,Treibhausgas_Kennzahlen!F$15))) ->  | Q24: =IF(G24="","",$J24*IF($C24="Schweröl (HFO)",Treibhausgas_Kennzahlen!G$14,IF(Berechnung!F24="Dieselöl (MDO)",Treibhausgas_Kennzahlen!G$16,Treibhausgas_Kennzahlen!G$15))) -> 
H25: =IF(G25="","",VLOOKUP(INDEX(Seehäfen!$A$3:$A$502, MATCH(Berechnung!D25,Seehäfen!$B$3:$B$502,0))&"_"&INDEX(Seehäfen!$A$3:$A$502, MATCH(Berechnung!E25,Seehäfen!$B$3:$B$502,0)),Entfernung_Seehäfen!$C$2:$E$10001,2,FALSE)) ->  | I25: =IF(G25="","",SUM(IF(A25=Energieverbrauch!$A$2:$A$41,1,0)*IF(Berechnung!B25=Energieverbrauch!$B$2:$B$41,1,0)*IF(Berechnung!F25=Energieverbrauch!$C$2:$C$41,1,0)*Energieverbrauch!$D$2:$D$41)) ->  | K25: =IF(G25="","",J25/IF($C25="Schweröl (HFO)", Treibhausgas_Kennzahlen!B$7,IF(Berechnung!C25="Dieselöl (MDO)",Treibhausgas_Kennzahlen!B$9,Treibhausgas_Kennzahlen!B$8))) ->  | L25: =IF(G25="","",$K25*IF($C25="Schweröl (HFO)",Treibhausgas_Kennzahlen!B$14,IF(Berechnung!C25="Dieselöl (MDO)", Treibhausgas_Kennzahlen!B$16,Treibhausgas_Kennzahlen!B$15))) ->  | M25: =IF(G25="","",$K25*IF($C25="Schweröl (HFO)",Treibhausgas_Kennzahlen!C$14,IF(Berechnung!D25="Dieselöl (MDO)", Treibhausgas_Kennzahlen!C$16,Treibhausgas_Kennzahlen!C$15))) ->  | N25: =IF(G25="","",$J25*IF($C25="Schweröl (HFO)",Treibhausgas_Kennzahlen!D$14,IF(Berechnung!C25="Dieselöl (MDO)",Treibhausgas_Kennzahlen!D$16,Treibhausgas_Kennzahlen!D$15))) ->  | O25: =IF(G25="","",$J25*IF($C25="Schweröl (HFO)",Treibhausgas_Kennzahlen!E$14,IF(Berechnung!D25="Dieselöl (MDO)",Treibhausgas_Kennzahlen!E$16,Treibhausgas_Kennzahlen!E$15))) ->  | P25: =IF(G25="","",$J25*IF($C25="Schweröl (HFO)",Treibhausgas_Kennzahlen!F$14,IF(Berechnung!E25="Dieselöl (MDO)",Treibhausgas_Kennzahlen!F$16,Treibhausgas_Kennzahlen!F$15))) ->  | Q25: =IF(G25="","",$J25*IF($C25="Schweröl (HFO)",Treibhausgas_Kennzahlen!G$14,IF(Berechnung!F25="Dieselöl (MDO)",Treibhausgas_Kennzahlen!G$16,Treibhausgas_Kennzahlen!G$15))) -> 
H26: =IF(G26="","",VLOOKUP(INDEX(Seehäfen!$A$3:$A$502, MATCH(Berechnung!D26,Seehäfen!$B$3:$B$502,0))&"_"&INDEX(Seehäfen!$A$3:$A$502, MATCH(Berechnung!E26,Seehäfen!$B$3:$B$502,0)),Entfernung_Seehäfen!$C$2:$E$100001,2,FALSE)) ->  | I26: =IF(G26="","",SUM(IF(A26=Energieverbrauch!$A$2:$A$41,1,0)*IF(Berechnung!B26=Energieverbrauch!$B$2:$B$41,1,0)*IF(Berechnung!F26=Energieverbrauch!$C$2:$C$41,1,0)*Energieverbrauch!$D$2:$D$41)) ->  | K26: =IF(G26="","",J26/IF($C26="Schweröl (HFO)", Treibhausgas_Kennzahlen!B$7,IF(Berechnung!C26="Dieselöl (MDO)",Treibhausgas_Kennzahlen!B$9,Treibhausgas_Kennzahlen!B$8))) ->  | L26: =IF(G26="","",$K26*IF($C26="Schweröl (HFO)",Treibhausgas_Kennzahlen!B$14,IF(Berechnung!C26="Dieselöl (MDO)", Treibhausgas_Kennzahlen!B$16,Treibhausgas_Kennzahlen!B$15))) ->  | M26: =IF(G26="","",$K26*IF($C26="Schweröl (HFO)",Treibhausgas_Kennzahlen!C$14,IF(Berechnung!D26="Dieselöl (MDO)", Treibhausgas_Kennzahlen!C$16,Treibhausgas_Kennzahlen!C$15))) ->  | N26: =IF(G26="","",$J26*IF($C26="Schweröl (HFO)",Treibhausgas_Kennzahlen!D$14,IF(Berechnung!C26="Dieselöl (MDO)",Treibhausgas_Kennzahlen!D$16,Treibhausgas_Kennzahlen!D$15))) ->  | O26: =IF(G26="","",$J26*IF($C26="Schweröl (HFO)",Treibhausgas_Kennzahlen!E$14,IF(Berechnung!D26="Dieselöl (MDO)",Treibhausgas_Kennzahlen!E$16,Treibhausgas_Kennzahlen!E$15))) ->  | P26: =IF(G26="","",$J26*IF($C26="Schweröl (HFO)",Treibhausgas_Kennzahlen!F$14,IF(Berechnung!E26="Dieselöl (MDO)",Treibhausgas_Kennzahlen!F$16,Treibhausgas_Kennzahlen!F$15))) ->  | Q26: =IF(G26="","",$J26*IF($C26="Schweröl (HFO)",Treibhausgas_Kennzahlen!G$14,IF(Berechnung!F26="Dieselöl (MDO)",Treibhausgas_Kennzahlen!G$16,Treibhausgas_Kennzahlen!G$15))) -> 
H27: =IF(G27="","",VLOOKUP(INDEX(Seehäfen!$A$3:$A$502, MATCH(Berechnung!D27,Seehäfen!$B$3:$B$502,0))&"_"&INDEX(Seehäfen!$A$3:$A$502, MATCH(Berechnung!E27,Seehäfen!$B$3:$B$502,0)),Entfernung_Seehäfen!$C$2:$E$10001,2,FALSE)) ->  | I27: =IF(G27="","",SUM(IF(A27=Energieverbrauch!$A$2:$A$41,1,0)*IF(Berechnung!B27=Energieverbrauch!$B$2:$B$41,1,0)*IF(Berechnung!F27=Energieverbrauch!$C$2:$C$41,1,0)*Energieverbrauch!$D$2:$D$41)) ->  | K27: =IF(G27="","",J27/IF($C27="Schweröl (HFO)", Treibhausgas_Kennzahlen!B$7,IF(Berechnung!C27="Dieselöl (MDO)",Treibhausgas_Kennzahlen!B$9,Treibhausgas_Kennzahlen!B$8))) ->  | L27: =IF(G27="","",$K27*IF($C27="Schweröl (HFO)",Treibhausgas_Kennzahlen!B$14,IF(Berechnung!C27="Dieselöl (MDO)", Treibhausgas_Kennzahlen!B$16,Treibhausgas_Kennzahlen!B$15))) ->  | M27: =IF(G27="","",$K27*IF($C27="Schweröl (HFO)",Treibhausgas_Kennzahlen!C$14,IF(Berechnung!D27="Dieselöl (MDO)", Treibhausgas_Kennzahlen!C$16,Treibhausgas_Kennzahlen!C$15))) ->  | N27: =IF(G27="","",$J27*IF($C27="Schweröl (HFO)",Treibhausgas_Kennzahlen!D$14,IF(Berechnung!C27="Dieselöl (MDO)",Treibhausgas_Kennzahlen!D$16,Treibhausgas_Kennzahlen!D$15))) ->  | O27: =IF(G27="","",$J27*IF($C27="Schweröl (HFO)",Treibhausgas_Kennzahlen!E$14,IF(Berechnung!D27="Dieselöl (MDO)",Treibhausgas_Kennzahlen!E$16,Treibhausgas_Kennzahlen!E$15))) ->  | P27: =IF(G27="","",$J27*IF($C27="Schweröl (HFO)",Treibhausgas_Kennzahlen!F$14,IF(Berechnung!E27="Dieselöl (MDO)",Treibhausgas_Kennzahlen!F$16,Treibhausgas_Kennzahlen!F$15))) ->  | Q27: =IF(G27="","",$J27*IF($C27="Schweröl (HFO)",Treibhausgas_Kennzahlen!G$14,IF(Berechnung!F27="Dieselöl (MDO)",Treibhausgas_Kennzahlen!G$16,Treibhausgas_Kennzahlen!G$15))) -> 
H28: =IF(G28="","",VLOOKUP(INDEX(Seehäfen!$A$3:$A$502, MATCH(Berechnung!D28,Seehäfen!$B$3:$B$502,0))&"_"&INDEX(Seehäfen!$A$3:$A$502, MATCH(Berechnung!E28,Seehäfen!$B$3:$B$502,0)),Entfernung_Seehäfen!$C$2:$E$100001,2,FALSE)) ->  | I28: =IF(G28="","",SUM(IF(A28=Energieverbrauch!$A$2:$A$41,1,0)*IF(Berechnung!B28=Energieverbrauch!$B$2:$B$41,1,0)*IF(Berechnung!F28=Energieverbrauch!$C$2:$C$41,1,0)*Energieverbrauch!$D$2:$D$41)) ->  | K28: =IF(G28="","",J28/IF($C28="Schweröl (HFO)", Treibhausgas_Kennzahlen!B$7,IF(Berechnung!C28="Dieselöl (MDO)",Treibhausgas_Kennzahlen!B$9,Treibhausgas_Kennzahlen!B$8))) ->  | L28: =IF(G28="","",$K28*IF($C28="Schweröl (HFO)",Treibhausgas_Kennzahlen!B$14,IF(Berechnung!C28="Dieselöl (MDO)", Treibhausgas_Kennzahlen!B$16,Treibhausgas_Kennzahlen!B$15))) ->  | M28: =IF(G28="","",$K28*IF($C28="Schweröl (HFO)",Treibhausgas_Kennzahlen!C$14,IF(Berechnung!D28="Dieselöl (MDO)", Treibhausgas_Kennzahlen!C$16,Treibhausgas_Kennzahlen!C$15))) ->  | N28: =IF(G28="","",$J28*IF($C28="Schweröl (HFO)",Treibhausgas_Kennzahlen!D$14,IF(Berechnung!C28="Dieselöl (MDO)",Treibhausgas_Kennzahlen!D$16,Treibhausgas_Kennzahlen!D$15))) ->  | O28: =IF(G28="","",$J28*IF($C28="Schweröl (HFO)",Treibhausgas_Kennzahlen!E$14,IF(Berechnung!D28="Dieselöl (MDO)",Treibhausgas_Kennzahlen!E$16,Treibhausgas_Kennzahlen!E$15))) ->  | P28: =IF(G28="","",$J28*IF($C28="Schweröl (HFO)",Treibhausgas_Kennzahlen!F$14,IF(Berechnung!E28="Dieselöl (MDO)",Treibhausgas_Kennzahlen!F$16,Treibhausgas_Kennzahlen!F$15))) ->  | Q28: =IF(G28="","",$J28*IF($C28="Schweröl (HFO)",Treibhausgas_Kennzahlen!G$14,IF(Berechnung!F28="Dieselöl (MDO)",Treibhausgas_Kennzahlen!G$16,Treibhausgas_Kennzahlen!G$15))) -> 
H29: =IF(G29="","",VLOOKUP(INDEX(Seehäfen!$A$3:$A$502, MATCH(Berechnung!D29,Seehäfen!$B$3:$B$502,0))&"_"&INDEX(Seehäfen!$A$3:$A$502, MATCH(Berechnung!E29,Seehäfen!$B$3:$B$502,0)),Entfernung_Seehäfen!$C$2:$E$10001,2,FALSE)) ->  | I29: =IF(G29="","",SUM(IF(A29=Energieverbrauch!$A$2:$A$41,1,0)*IF(Berechnung!B29=Energieverbrauch!$B$2:$B$41,1,0)*IF(Berechnung!F29=Energieverbrauch!$C$2:$C$41,1,0)*Energieverbrauch!$D$2:$D$41)) ->  | K29: =IF(G29="","",J29/IF($C29="Schweröl (HFO)", Treibhausgas_Kennzahlen!B$7,IF(Berechnung!C29="Dieselöl (MDO)",Treibhausgas_Kennzahlen!B$9,Treibhausgas_Kennzahlen!B$8))) ->  | L29: =IF(G29="","",$K29*IF($C29="Schweröl (HFO)",Treibhausgas_Kennzahlen!B$14,IF(Berechnung!C29="Dieselöl (MDO)", Treibhausgas_Kennzahlen!B$16,Treibhausgas_Kennzahlen!B$15))) ->  | M29: =IF(G29="","",$K29*IF($C29="Schweröl (HFO)",Treibhausgas_Kennzahlen!C$14,IF(Berechnung!D29="Dieselöl (MDO)", Treibhausgas_Kennzahlen!C$16,Treibhausgas_Kennzahlen!C$15))) ->  | N29: =IF(G29="","",$J29*IF($C29="Schweröl (HFO)",Treibhausgas_Kennzahlen!D$14,IF(Berechnung!C29="Dieselöl (MDO)",Treibhausgas_Kennzahlen!D$16,Treibhausgas_Kennzahlen!D$15))) ->  | O29: =IF(G29="","",$J29*IF($C29="Schweröl (HFO)",Treibhausgas_Kennzahlen!E$14,IF(Berechnung!D29="Dieselöl (MDO)",Treibhausgas_Kennzahlen!E$16,Treibhausgas_Kennzahlen!E$15))) ->  | P29: =IF(G29="","",$J29*IF($C29="Schweröl (HFO)",Treibhausgas_Kennzahlen!F$14,IF(Berechnung!E29="Dieselöl (MDO)",Treibhausgas_Kennzahlen!F$16,Treibhausgas_Kennzahlen!F$15))) ->  | Q29: =IF(G29="","",$J29*IF($C29="Schweröl (HFO)",Treibhausgas_Kennzahlen!G$14,IF(Berechnung!F29="Dieselöl (MDO)",Treibhausgas_Kennzahlen!G$16,Treibhausgas_Kennzahlen!G$15))) -> 
H30: =IF(G30="","",VLOOKUP(INDEX(Seehäfen!$A$3:$A$502, MATCH(Berechnung!D30,Seehäfen!$B$3:$B$502,0))&"_"&INDEX(Seehäfen!$A$3:$A$502, MATCH(Berechnung!E30,Seehäfen!$B$3:$B$502,0)),Entfernung_Seehäfen!$C$2:$E$100001,2,FALSE)) ->  | I30: =IF(G30="","",SUM(IF(A30=Energieverbrauch!$A$2:$A$41,1,0)*IF(Berechnung!B30=Energieverbrauch!$B$2:$B$41,1,0)*IF(Berechnung!F30=Energieverbrauch!$C$2:$C$41,1,0)*Energieverbrauch!$D$2:$D$41)) ->  | K30: =IF(G30="","",J30/IF($C30="Schweröl (HFO)", Treibhausgas_Kennzahlen!B$7,IF(Berechnung!C30="Dieselöl (MDO)",Treibhausgas_Kennzahlen!B$9,Treibhausgas_Kennzahlen!B$8))) ->  | L30: =IF(G30="","",$K30*IF($C30="Schweröl (HFO)",Treibhausgas_Kennzahlen!B$14,IF(Berechnung!C30="Dieselöl (MDO)", Treibhausgas_Kennzahlen!B$16,Treibhausgas_Kennzahlen!B$15))) ->  | M30: =IF(G30="","",$K30*IF($C30="Schweröl (HFO)",Treibhausgas_Kennzahlen!C$14,IF(Berechnung!D30="Dieselöl (MDO)", Treibhausgas_Kennzahlen!C$16,Treibhausgas_Kennzahlen!C$15))) ->  | N30: =IF(G30="","",$J30*IF($C30="Schweröl (HFO)",Treibhausgas_Kennzahlen!D$14,IF(Berechnung!C30="Dieselöl (MDO)",Treibhausgas_Kennzahlen!D$16,Treibhausgas_Kennzahlen!D$15))) ->  | O30: =IF(G30="","",$J30*IF($C30="Schweröl (HFO)",Treibhausgas_Kennzahlen!E$14,IF(Berechnung!D30="Dieselöl (MDO)",Treibhausgas_Kennzahlen!E$16,Treibhausgas_Kennzahlen!E$15))) ->  | P30: =IF(G30="","",$J30*IF($C30="Schweröl (HFO)",Treibhausgas_Kennzahlen!F$14,IF(Berechnung!E30="Dieselöl (MDO)",Treibhausgas_Kennzahlen!F$16,Treibhausgas_Kennzahlen!F$15))) ->  | Q30: =IF(G30="","",$J30*IF($C30="Schweröl (HFO)",Treibhausgas_Kennzahlen!G$14,IF(Berechnung!F30="Dieselöl (MDO)",Treibhausgas_Kennzahlen!G$16,Treibhausgas_Kennzahlen!G$15))) -> 
H31: =IF(G31="","",VLOOKUP(INDEX(Seehäfen!$A$3:$A$502, MATCH(Berechnung!D31,Seehäfen!$B$3:$B$502,0))&"_"&INDEX(Seehäfen!$A$3:$A$502, MATCH(Berechnung!E31,Seehäfen!$B$3:$B$502,0)),Entfernung_Seehäfen!$C$2:$E$10001,2,FALSE)) ->  | I31: =IF(G31="","",SUM(IF(A31=Energieverbrauch!$A$2:$A$41,1,0)*IF(Berechnung!B31=Energieverbrauch!$B$2:$B$41,1,0)*IF(Berechnung!F31=Energieverbrauch!$C$2:$C$41,1,0)*Energieverbrauch!$D$2:$D$41)) ->  | K31: =IF(G31="","",J31/IF($C31="Schweröl (HFO)", Treibhausgas_Kennzahlen!B$7,IF(Berechnung!C31="Dieselöl (MDO)",Treibhausgas_Kennzahlen!B$9,Treibhausgas_Kennzahlen!B$8))) ->  | L31: =IF(G31="","",$K31*IF($C31="Schweröl (HFO)",Treibhausgas_Kennzahlen!B$14,IF(Berechnung!C31="Dieselöl (MDO)", Treibhausgas_Kennzahlen!B$16,Treibhausgas_Kennzahlen!B$15))) ->  | M31: =IF(G31="","",$K31*IF($C31="Schweröl (HFO)",Treibhausgas_Kennzahlen!C$14,IF(Berechnung!D31="Dieselöl (MDO)", Treibhausgas_Kennzahlen!C$16,Treibhausgas_Kennzahlen!C$15))) ->  | N31: =IF(G31="","",$J31*IF($C31="Schweröl (HFO)",Treibhausgas_Kennzahlen!D$14,IF(Berechnung!C31="Dieselöl (MDO)",Treibhausgas_Kennzahlen!D$16,Treibhausgas_Kennzahlen!D$15))) ->  | O31: =IF(G31="","",$J31*IF($C31="Schweröl (HFO)",Treibhausgas_Kennzahlen!E$14,IF(Berechnung!D31="Dieselöl (MDO)",Treibhausgas_Kennzahlen!E$16,Treibhausgas_Kennzahlen!E$15))) ->  | P31: =IF(G31="","",$J31*IF($C31="Schweröl (HFO)",Treibhausgas_Kennzahlen!F$14,IF(Berechnung!E31="Dieselöl (MDO)",Treibhausgas_Kennzahlen!F$16,Treibhausgas_Kennzahlen!F$15))) ->  | Q31: =IF(G31="","",$J31*IF($C31="Schweröl (HFO)",Treibhausgas_Kennzahlen!G$14,IF(Berechnung!F31="Dieselöl (MDO)",Treibhausgas_Kennzahlen!G$16,Treibhausgas_Kennzahlen!G$15))) -> 
H32: =IF(G32="","",VLOOKUP(INDEX(Seehäfen!$A$3:$A$502, MATCH(Berechnung!D32,Seehäfen!$B$3:$B$502,0))&"_"&INDEX(Seehäfen!$A$3:$A$502, MATCH(Berechnung!E32,Seehäfen!$B$3:$B$502,0)),Entfernung_Seehäfen!$C$2:$E$100001,2,FALSE)) ->  | I32: =IF(G32="","",SUM(IF(A32=Energieverbrauch!$A$2:$A$41,1,0)*IF(Berechnung!B32=Energieverbrauch!$B$2:$B$41,1,0)*IF(Berechnung!F32=Energieverbrauch!$C$2:$C$41,1,0)*Energieverbrauch!$D$2:$D$41)) ->  | K32: =IF(G32="","",J32/IF($C32="Schweröl (HFO)", Treibhausgas_Kennzahlen!B$7,IF(Berechnung!C32="Dieselöl (MDO)",Treibhausgas_Kennzahlen!B$9,Treibhausgas_Kennzahlen!B$8))) ->  | L32: =IF(G32="","",$K32*IF($C32="Schweröl (HFO)",Treibhausgas_Kennzahlen!B$14,IF(Berechnung!C32="Dieselöl (MDO)", Treibhausgas_Kennzahlen!B$16,Treibhausgas_Kennzahlen!B$15))) ->  | M32: =IF(G32="","",$K32*IF($C32="Schweröl (HFO)",Treibhausgas_Kennzahlen!C$14,IF(Berechnung!D32="Dieselöl (MDO)", Treibhausgas_Kennzahlen!C$16,Treibhausgas_Kennzahlen!C$15))) ->  | N32: =IF(G32="","",$J32*IF($C32="Schweröl (HFO)",Treibhausgas_Kennzahlen!D$14,IF(Berechnung!C32="Dieselöl (MDO)",Treibhausgas_Kennzahlen!D$16,Treibhausgas_Kennzahlen!D$15))) ->  | O32: =IF(G32="","",$J32*IF($C32="Schweröl (HFO)",Treibhausgas_Kennzahlen!E$14,IF(Berechnung!D32="Dieselöl (MDO)",Treibhausgas_Kennzahlen!E$16,Treibhausgas_Kennzahlen!E$15))) ->  | P32: =IF(G32="","",$J32*IF($C32="Schweröl (HFO)",Treibhausgas_Kennzahlen!F$14,IF(Berechnung!E32="Dieselöl (MDO)",Treibhausgas_Kennzahlen!F$16,Treibhausgas_Kennzahlen!F$15))) ->  | Q32: =IF(G32="","",$J32*IF($C32="Schweröl (HFO)",Treibhausgas_Kennzahlen!G$14,IF(Berechnung!F32="Dieselöl (MDO)",Treibhausgas_Kennzahlen!G$16,Treibhausgas_Kennzahlen!G$15))) -> 
H33: =IF(G33="","",VLOOKUP(INDEX(Seehäfen!$A$3:$A$502, MATCH(Berechnung!D33,Seehäfen!$B$3:$B$502,0))&"_"&INDEX(Seehäfen!$A$3:$A$502, MATCH(Berechnung!E33,Seehäfen!$B$3:$B$502,0)),Entfernung_Seehäfen!$C$2:$E$10001,2,FALSE)) ->  | I33: =IF(G33="","",SUM(IF(A33=Energieverbrauch!$A$2:$A$41,1,0)*IF(Berechnung!B33=Energieverbrauch!$B$2:$B$41,1,0)*IF(Berechnung!F33=Energieverbrauch!$C$2:$C$41,1,0)*Energieverbrauch!$D$2:$D$41)) ->  | K33: =IF(G33="","",J33/IF($C33="Schweröl (HFO)", Treibhausgas_Kennzahlen!B$7,IF(Berechnung!C33="Dieselöl (MDO)",Treibhausgas_Kennzahlen!B$9,Treibhausgas_Kennzahlen!B$8))) ->  | L33: =IF(G33="","",$K33*IF($C33="Schweröl (HFO)",Treibhausgas_Kennzahlen!B$14,IF(Berechnung!C33="Dieselöl (MDO)", Treibhausgas_Kennzahlen!B$16,Treibhausgas_Kennzahlen!B$15))) ->  | M33: =IF(G33="","",$K33*IF($C33="Schweröl (HFO)",Treibhausgas_Kennzahlen!C$14,IF(Berechnung!D33="Dieselöl (MDO)", Treibhausgas_Kennzahlen!C$16,Treibhausgas_Kennzahlen!C$15))) ->  | N33: =IF(G33="","",$J33*IF($C33="Schweröl (HFO)",Treibhausgas_Kennzahlen!D$14,IF(Berechnung!C33="Dieselöl (MDO)",Treibhausgas_Kennzahlen!D$16,Treibhausgas_Kennzahlen!D$15))) ->  | O33: =IF(G33="","",$J33*IF($C33="Schweröl (HFO)",Treibhausgas_Kennzahlen!E$14,IF(Berechnung!D33="Dieselöl (MDO)",Treibhausgas_Kennzahlen!E$16,Treibhausgas_Kennzahlen!E$15))) ->  | P33: =IF(G33="","",$J33*IF($C33="Schweröl (HFO)",Treibhausgas_Kennzahlen!F$14,IF(Berechnung!E33="Dieselöl (MDO)",Treibhausgas_Kennzahlen!F$16,Treibhausgas_Kennzahlen!F$15))) ->  | Q33: =IF(G33="","",$J33*IF($C33="Schweröl (HFO)",Treibhausgas_Kennzahlen!G$14,IF(Berechnung!F33="Dieselöl (MDO)",Treibhausgas_Kennzahlen!G$16,Treibhausgas_Kennzahlen!G$15))) -> 
H34: =IF(G34="","",VLOOKUP(INDEX(Seehäfen!$A$3:$A$502, MATCH(Berechnung!D34,Seehäfen!$B$3:$B$502,0))&"_"&INDEX(Seehäfen!$A$3:$A$502, MATCH(Berechnung!E34,Seehäfen!$B$3:$B$502,0)),Entfernung_Seehäfen!$C$2:$E$100001,2,FALSE)) ->  | I34: =IF(G34="","",SUM(IF(A34=Energieverbrauch!$A$2:$A$41,1,0)*IF(Berechnung!B34=Energieverbrauch!$B$2:$B$41,1,0)*IF(Berechnung!F34=Energieverbrauch!$C$2:$C$41,1,0)*Energieverbrauch!$D$2:$D$41)) ->  | K34: =IF(G34="","",J34/IF($C34="Schweröl (HFO)", Treibhausgas_Kennzahlen!B$7,IF(Berechnung!C34="Dieselöl (MDO)",Treibhausgas_Kennzahlen!B$9,Treibhausgas_Kennzahlen!B$8))) ->  | L34: =IF(G34="","",$K34*IF($C34="Schweröl (HFO)",Treibhausgas_Kennzahlen!B$14,IF(Berechnung!C34="Dieselöl (MDO)", Treibhausgas_Kennzahlen!B$16,Treibhausgas_Kennzahlen!B$15))) ->  | M34: =IF(G34="","",$K34*IF($C34="Schweröl (HFO)",Treibhausgas_Kennzahlen!C$14,IF(Berechnung!D34="Dieselöl (MDO)", Treibhausgas_Kennzahlen!C$16,Treibhausgas_Kennzahlen!C$15))) ->  | N34: =IF(G34="","",$J34*IF($C34="Schweröl (HFO)",Treibhausgas_Kennzahlen!D$14,IF(Berechnung!C34="Dieselöl (MDO)",Treibhausgas_Kennzahlen!D$16,Treibhausgas_Kennzahlen!D$15))) ->  | O34: =IF(G34="","",$J34*IF($C34="Schweröl (HFO)",Treibhausgas_Kennzahlen!E$14,IF(Berechnung!D34="Dieselöl (MDO)",Treibhausgas_Kennzahlen!E$16,Treibhausgas_Kennzahlen!E$15))) ->  | P34: =IF(G34="","",$J34*IF($C34="Schweröl (HFO)",Treibhausgas_Kennzahlen!F$14,IF(Berechnung!E34="Dieselöl (MDO)",Treibhausgas_Kennzahlen!F$16,Treibhausgas_Kennzahlen!F$15))) ->  | Q34: =IF(G34="","",$J34*IF($C34="Schweröl (HFO)",Treibhausgas_Kennzahlen!G$14,IF(Berechnung!F34="Dieselöl (MDO)",Treibhausgas_Kennzahlen!G$16,Treibhausgas_Kennzahlen!G$15))) -> 
H35: =IF(G35="","",VLOOKUP(INDEX(Seehäfen!$A$3:$A$502, MATCH(Berechnung!D35,Seehäfen!$B$3:$B$502,0))&"_"&INDEX(Seehäfen!$A$3:$A$502, MATCH(Berechnung!E35,Seehäfen!$B$3:$B$502,0)),Entfernung_Seehäfen!$C$2:$E$10001,2,FALSE)) ->  | I35: =IF(G35="","",SUM(IF(A35=Energieverbrauch!$A$2:$A$41,1,0)*IF(Berechnung!B35=Energieverbrauch!$B$2:$B$41,1,0)*IF(Berechnung!F35=Energieverbrauch!$C$2:$C$41,1,0)*Energieverbrauch!$D$2:$D$41)) ->  | K35: =IF(G35="","",J35/IF($C35="Schweröl (HFO)", Treibhausgas_Kennzahlen!B$7,IF(Berechnung!C35="Dieselöl (MDO)",Treibhausgas_Kennzahlen!B$9,Treibhausgas_Kennzahlen!B$8))) ->  | L35: =IF(G35="","",$K35*IF($C35="Schweröl (HFO)",Treibhausgas_Kennzahlen!B$14,IF(Berechnung!C35="Dieselöl (MDO)", Treibhausgas_Kennzahlen!B$16,Treibhausgas_Kennzahlen!B$15))) ->  | M35: =IF(G35="","",$K35*IF($C35="Schweröl (HFO)",Treibhausgas_Kennzahlen!C$14,IF(Berechnung!D35="Dieselöl (MDO)", Treibhausgas_Kennzahlen!C$16,Treibhausgas_Kennzahlen!C$15))) ->  | N35: =IF(G35="","",$J35*IF($C35="Schweröl (HFO)",Treibhausgas_Kennzahlen!D$14,IF(Berechnung!C35="Dieselöl (MDO)",Treibhausgas_Kennzahlen!D$16,Treibhausgas_Kennzahlen!D$15))) ->  | O35: =IF(G35="","",$J35*IF($C35="Schweröl (HFO)",Treibhausgas_Kennzahlen!E$14,IF(Berechnung!D35="Dieselöl (MDO)",Treibhausgas_Kennzahlen!E$16,Treibhausgas_Kennzahlen!E$15))) ->  | P35: =IF(G35="","",$J35*IF($C35="Schweröl (HFO)",Treibhausgas_Kennzahlen!F$14,IF(Berechnung!E35="Dieselöl (MDO)",Treibhausgas_Kennzahlen!F$16,Treibhausgas_Kennzahlen!F$15))) ->  | Q35: =IF(G35="","",$J35*IF($C35="Schweröl (HFO)",Treibhausgas_Kennzahlen!G$14,IF(Berechnung!F35="Dieselöl (MDO)",Treibhausgas_Kennzahlen!G$16,Treibhausgas_Kennzahlen!G$15))) -> 
H36: =IF(G36="","",VLOOKUP(INDEX(Seehäfen!$A$3:$A$502, MATCH(Berechnung!D36,Seehäfen!$B$3:$B$502,0))&"_"&INDEX(Seehäfen!$A$3:$A$502, MATCH(Berechnung!E36,Seehäfen!$B$3:$B$502,0)),Entfernung_Seehäfen!$C$2:$E$100001,2,FALSE)) ->  | I36: =IF(G36="","",SUM(IF(A36=Energieverbrauch!$A$2:$A$41,1,0)*IF(Berechnung!B36=Energieverbrauch!$B$2:$B$41,1,0)*IF(Berechnung!F36=Energieverbrauch!$C$2:$C$41,1,0)*Energieverbrauch!$D$2:$D$41)) ->  | K36: =IF(G36="","",J36/IF($C36="Schweröl (HFO)", Treibhausgas_Kennzahlen!B$7,IF(Berechnung!C36="Dieselöl (MDO)",Treibhausgas_Kennzahlen!B$9,Treibhausgas_Kennzahlen!B$8))) ->  | L36: =IF(G36="","",$K36*IF($C36="Schweröl (HFO)",Treibhausgas_Kennzahlen!B$14,IF(Berechnung!C36="Dieselöl (MDO)", Treibhausgas_Kennzahlen!B$16,Treibhausgas_Kennzahlen!B$15))) ->  | M36: =IF(G36="","",$K36*IF($C36="Schweröl (HFO)",Treibhausgas_Kennzahlen!C$14,IF(Berechnung!D36="Dieselöl (MDO)", Treibhausgas_Kennzahlen!C$16,Treibhausgas_Kennzahlen!C$15))) ->  | N36: =IF(G36="","",$J36*IF($C36="Schweröl (HFO)",Treibhausgas_Kennzahlen!D$14,IF(Berechnung!C36="Dieselöl (MDO)",Treibhausgas_Kennzahlen!D$16,Treibhausgas_Kennzahlen!D$15))) ->  | O36: =IF(G36="","",$J36*IF($C36="Schweröl (HFO)",Treibhausgas_Kennzahlen!E$14,IF(Berechnung!D36="Dieselöl (MDO)",Treibhausgas_Kennzahlen!E$16,Treibhausgas_Kennzahlen!E$15))) ->  | P36: =IF(G36="","",$J36*IF($C36="Schweröl (HFO)",Treibhausgas_Kennzahlen!F$14,IF(Berechnung!E36="Dieselöl (MDO)",Treibhausgas_Kennzahlen!F$16,Treibhausgas_Kennzahlen!F$15))) ->  | Q36: =IF(G36="","",$J36*IF($C36="Schweröl (HFO)",Treibhausgas_Kennzahlen!G$14,IF(Berechnung!F36="Dieselöl (MDO)",Treibhausgas_Kennzahlen!G$16,Treibhausgas_Kennzahlen!G$15))) -> 
H37: =IF(G37="","",VLOOKUP(INDEX(Seehäfen!$A$3:$A$502, MATCH(Berechnung!D37,Seehäfen!$B$3:$B$502,0))&"_"&INDEX(Seehäfen!$A$3:$A$502, MATCH(Berechnung!E37,Seehäfen!$B$3:$B$502,0)),Entfernung_Seehäfen!$C$2:$E$10001,2,FALSE)) ->  | I37: =IF(G37="","",SUM(IF(A37=Energieverbrauch!$A$2:$A$41,1,0)*IF(Berechnung!B37=Energieverbrauch!$B$2:$B$41,1,0)*IF(Berechnung!F37=Energieverbrauch!$C$2:$C$41,1,0)*Energieverbrauch!$D$2:$D$41)) ->  | K37: =IF(G37="","",J37/IF($C37="Schweröl (HFO)", Treibhausgas_Kennzahlen!B$7,IF(Berechnung!C37="Dieselöl (MDO)",Treibhausgas_Kennzahlen!B$9,Treibhausgas_Kennzahlen!B$8))) ->  | L37: =IF(G37="","",$K37*IF($C37="Schweröl (HFO)",Treibhausgas_Kennzahlen!B$14,IF(Berechnung!C37="Dieselöl (MDO)", Treibhausgas_Kennzahlen!B$16,Treibhausgas_Kennzahlen!B$15))) ->  | M37: =IF(G37="","",$K37*IF($C37="Schweröl (HFO)",Treibhausgas_Kennzahlen!C$14,IF(Berechnung!D37="Dieselöl (MDO)", Treibhausgas_Kennzahlen!C$16,Treibhausgas_Kennzahlen!C$15))) ->  | N37: =IF(G37="","",$J37*IF($C37="Schweröl (HFO)",Treibhausgas_Kennzahlen!D$14,IF(Berechnung!C37="Dieselöl (MDO)",Treibhausgas_Kennzahlen!D$16,Treibhausgas_Kennzahlen!D$15))) ->  | O37: =IF(G37="","",$J37*IF($C37="Schweröl (HFO)",Treibhausgas_Kennzahlen!E$14,IF(Berechnung!D37="Dieselöl (MDO)",Treibhausgas_Kennzahlen!E$16,Treibhausgas_Kennzahlen!E$15))) ->  | P37: =IF(G37="","",$J37*IF($C37="Schweröl (HFO)",Treibhausgas_Kennzahlen!F$14,IF(Berechnung!E37="Dieselöl (MDO)",Treibhausgas_Kennzahlen!F$16,Treibhausgas_Kennzahlen!F$15))) ->  | Q37: =IF(G37="","",$J37*IF($C37="Schweröl (HFO)",Treibhausgas_Kennzahlen!G$14,IF(Berechnung!F37="Dieselöl (MDO)",Treibhausgas_Kennzahlen!G$16,Treibhausgas_Kennzahlen!G$15))) -> 
H38: =IF(G38="","",VLOOKUP(INDEX(Seehäfen!$A$3:$A$502, MATCH(Berechnung!D38,Seehäfen!$B$3:$B$502,0))&"_"&INDEX(Seehäfen!$A$3:$A$502, MATCH(Berechnung!E38,Seehäfen!$B$3:$B$502,0)),Entfernung_Seehäfen!$C$2:$E$100001,2,FALSE)) ->  | I38: =IF(G38="","",SUM(IF(A38=Energieverbrauch!$A$2:$A$41,1,0)*IF(Berechnung!B38=Energieverbrauch!$B$2:$B$41,1,0)*IF(Berechnung!F38=Energieverbrauch!$C$2:$C$41,1,0)*Energieverbrauch!$D$2:$D$41)) ->  | K38: =IF(G38="","",J38/IF($C38="Schweröl (HFO)", Treibhausgas_Kennzahlen!B$7,IF(Berechnung!C38="Dieselöl (MDO)",Treibhausgas_Kennzahlen!B$9,Treibhausgas_Kennzahlen!B$8))) ->  | L38: =IF(G38="","",$K38*IF($C38="Schweröl (HFO)",Treibhausgas_Kennzahlen!B$14,IF(Berechnung!C38="Dieselöl (MDO)", Treibhausgas_Kennzahlen!B$16,Treibhausgas_Kennzahlen!B$15))) ->  | M38: =IF(G38="","",$K38*IF($C38="Schweröl (HFO)",Treibhausgas_Kennzahlen!C$14,IF(Berechnung!D38="Dieselöl (MDO)", Treibhausgas_Kennzahlen!C$16,Treibhausgas_Kennzahlen!C$15))) ->  | N38: =IF(G38="","",$J38*IF($C38="Schweröl (HFO)",Treibhausgas_Kennzahlen!D$14,IF(Berechnung!C38="Dieselöl (MDO)",Treibhausgas_Kennzahlen!D$16,Treibhausgas_Kennzahlen!D$15))) ->  | O38: =IF(G38="","",$J38*IF($C38="Schweröl (HFO)",Treibhausgas_Kennzahlen!E$14,IF(Berechnung!D38="Dieselöl (MDO)",Treibhausgas_Kennzahlen!E$16,Treibhausgas_Kennzahlen!E$15))) ->  | P38: =IF(G38="","",$J38*IF($C38="Schweröl (HFO)",Treibhausgas_Kennzahlen!F$14,IF(Berechnung!E38="Dieselöl (MDO)",Treibhausgas_Kennzahlen!F$16,Treibhausgas_Kennzahlen!F$15))) ->  | Q38: =IF(G38="","",$J38*IF($C38="Schweröl (HFO)",Treibhausgas_Kennzahlen!G$14,IF(Berechnung!F38="Dieselöl (MDO)",Treibhausgas_Kennzahlen!G$16,Treibhausgas_Kennzahlen!G$15))) -> 
H39: =IF(G39="","",VLOOKUP(INDEX(Seehäfen!$A$3:$A$502, MATCH(Berechnung!D39,Seehäfen!$B$3:$B$502,0))&"_"&INDEX(Seehäfen!$A$3:$A$502, MATCH(Berechnung!E39,Seehäfen!$B$3:$B$502,0)),Entfernung_Seehäfen!$C$2:$E$10001,2,FALSE)) ->  | I39: =IF(G39="","",SUM(IF(A39=Energieverbrauch!$A$2:$A$41,1,0)*IF(Berechnung!B39=Energieverbrauch!$B$2:$B$41,1,0)*IF(Berechnung!F39=Energieverbrauch!$C$2:$C$41,1,0)*Energieverbrauch!$D$2:$D$41)) ->  | K39: =IF(G39="","",J39/IF($C39="Schweröl (HFO)", Treibhausgas_Kennzahlen!B$7,IF(Berechnung!C39="Dieselöl (MDO)",Treibhausgas_Kennzahlen!B$9,Treibhausgas_Kennzahlen!B$8))) ->  | L39: =IF(G39="","",$K39*IF($C39="Schweröl (HFO)",Treibhausgas_Kennzahlen!B$14,IF(Berechnung!C39="Dieselöl (MDO)", Treibhausgas_Kennzahlen!B$16,Treibhausgas_Kennzahlen!B$15))) ->  | M39: =IF(G39="","",$K39*IF($C39="Schweröl (HFO)",Treibhausgas_Kennzahlen!C$14,IF(Berechnung!D39="Dieselöl (MDO)", Treibhausgas_Kennzahlen!C$16,Treibhausgas_Kennzahlen!C$15))) ->  | N39: =IF(G39="","",$J39*IF($C39="Schweröl (HFO)",Treibhausgas_Kennzahlen!D$14,IF(Berechnung!C39="Dieselöl (MDO)",Treibhausgas_Kennzahlen!D$16,Treibhausgas_Kennzahlen!D$15))) ->  | O39: =IF(G39="","",$J39*IF($C39="Schweröl (HFO)",Treibhausgas_Kennzahlen!E$14,IF(Berechnung!D39="Dieselöl (MDO)",Treibhausgas_Kennzahlen!E$16,Treibhausgas_Kennzahlen!E$15))) ->  | P39: =IF(G39="","",$J39*IF($C39="Schweröl (HFO)",Treibhausgas_Kennzahlen!F$14,IF(Berechnung!E39="Dieselöl (MDO)",Treibhausgas_Kennzahlen!F$16,Treibhausgas_Kennzahlen!F$15))) ->  | Q39: =IF(G39="","",$J39*IF($C39="Schweröl (HFO)",Treibhausgas_Kennzahlen!G$14,IF(Berechnung!F39="Dieselöl (MDO)",Treibhausgas_Kennzahlen!G$16,Treibhausgas_Kennzahlen!G$15))) -> 
H40: =IF(G40="","",VLOOKUP(INDEX(Seehäfen!$A$3:$A$502, MATCH(Berechnung!D40,Seehäfen!$B$3:$B$502,0))&"_"&INDEX(Seehäfen!$A$3:$A$502, MATCH(Berechnung!E40,Seehäfen!$B$3:$B$502,0)),Entfernung_Seehäfen!$C$2:$E$100001,2,FALSE)) ->  | I40: =IF(G40="","",SUM(IF(A40=Energieverbrauch!$A$2:$A$41,1,0)*IF(Berechnung!B40=Energieverbrauch!$B$2:$B$41,1,0)*IF(Berechnung!F40=Energieverbrauch!$C$2:$C$41,1,0)*Energieverbrauch!$D$2:$D$41)) ->  | K40: =IF(G40="","",J40/IF($C40="Schweröl (HFO)", Treibhausgas_Kennzahlen!B$7,IF(Berechnung!C40="Dieselöl (MDO)",Treibhausgas_Kennzahlen!B$9,Treibhausgas_Kennzahlen!B$8))) ->  | L40: =IF(G40="","",$K40*IF($C40="Schweröl (HFO)",Treibhausgas_Kennzahlen!B$14,IF(Berechnung!C40="Dieselöl (MDO)", Treibhausgas_Kennzahlen!B$16,Treibhausgas_Kennzahlen!B$15))) ->  | M40: =IF(G40="","",$K40*IF($C40="Schweröl (HFO)",Treibhausgas_Kennzahlen!C$14,IF(Berechnung!D40="Dieselöl (MDO)", Treibhausgas_Kennzahlen!C$16,Treibhausgas_Kennzahlen!C$15))) ->  | N40: =IF(G40="","",$J40*IF($C40="Schweröl (HFO)",Treibhausgas_Kennzahlen!D$14,IF(Berechnung!C40="Dieselöl (MDO)",Treibhausgas_Kennzahlen!D$16,Treibhausgas_Kennzahlen!D$15))) ->  | O40: =IF(G40="","",$J40*IF($C40="Schweröl (HFO)",Treibhausgas_Kennzahlen!E$14,IF(Berechnung!D40="Dieselöl (MDO)",Treibhausgas_Kennzahlen!E$16,Treibhausgas_Kennzahlen!E$15))) ->  | P40: =IF(G40="","",$J40*IF($C40="Schweröl (HFO)",Treibhausgas_Kennzahlen!F$14,IF(Berechnung!E40="Dieselöl (MDO)",Treibhausgas_Kennzahlen!F$16,Treibhausgas_Kennzahlen!F$15))) ->  | Q40: =IF(G40="","",$J40*IF($C40="Schweröl (HFO)",Treibhausgas_Kennzahlen!G$14,IF(Berechnung!F40="Dieselöl (MDO)",Treibhausgas_Kennzahlen!G$16,Treibhausgas_Kennzahlen!G$15))) -> 
H41: =IF(G41="","",VLOOKUP(INDEX(Seehäfen!$A$3:$A$502, MATCH(Berechnung!D41,Seehäfen!$B$3:$B$502,0))&"_"&INDEX(Seehäfen!$A$3:$A$502, MATCH(Berechnung!E41,Seehäfen!$B$3:$B$502,0)),Entfernung_Seehäfen!$C$2:$E$10001,2,FALSE)) ->  | I41: =IF(G41="","",SUM(IF(A41=Energieverbrauch!$A$2:$A$41,1,0)*IF(Berechnung!B41=Energieverbrauch!$B$2:$B$41,1,0)*IF(Berechnung!F41=Energieverbrauch!$C$2:$C$41,1,0)*Energieverbrauch!$D$2:$D$41)) ->  | K41: =IF(G41="","",J41/IF($C41="Schweröl (HFO)", Treibhausgas_Kennzahlen!B$7,IF(Berechnung!C41="Dieselöl (MDO)",Treibhausgas_Kennzahlen!B$9,Treibhausgas_Kennzahlen!B$8))) ->  | L41: =IF(G41="","",$K41*IF($C41="Schweröl (HFO)",Treibhausgas_Kennzahlen!B$14,IF(Berechnung!C41="Dieselöl (MDO)", Treibhausgas_Kennzahlen!B$16,Treibhausgas_Kennzahlen!B$15))) ->  | M41: =IF(G41="","",$K41*IF($C41="Schweröl (HFO)",Treibhausgas_Kennzahlen!C$14,IF(Berechnung!D41="Dieselöl (MDO)", Treibhausgas_Kennzahlen!C$16,Treibhausgas_Kennzahlen!C$15))) ->  | N41: =IF(G41="","",$J41*IF($C41="Schweröl (HFO)",Treibhausgas_Kennzahlen!D$14,IF(Berechnung!C41="Dieselöl (MDO)",Treibhausgas_Kennzahlen!D$16,Treibhausgas_Kennzahlen!D$15))) ->  | O41: =IF(G41="","",$J41*IF($C41="Schweröl (HFO)",Treibhausgas_Kennzahlen!E$14,IF(Berechnung!D41="Dieselöl (MDO)",Treibhausgas_Kennzahlen!E$16,Treibhausgas_Kennzahlen!E$15))) ->  | P41: =IF(G41="","",$J41*IF($C41="Schweröl (HFO)",Treibhausgas_Kennzahlen!F$14,IF(Berechnung!E41="Dieselöl (MDO)",Treibhausgas_Kennzahlen!F$16,Treibhausgas_Kennzahlen!F$15))) ->  | Q41: =IF(G41="","",$J41*IF($C41="Schweröl (HFO)",Treibhausgas_Kennzahlen!G$14,IF(Berechnung!F41="Dieselöl (MDO)",Treibhausgas_Kennzahlen!G$16,Treibhausgas_Kennzahlen!G$15))) -> 
H42: =IF(G42="","",VLOOKUP(INDEX(Seehäfen!$A$3:$A$502, MATCH(Berechnung!D42,Seehäfen!$B$3:$B$502,0))&"_"&INDEX(Seehäfen!$A$3:$A$502, MATCH(Berechnung!E42,Seehäfen!$B$3:$B$502,0)),Entfernung_Seehäfen!$C$2:$E$100001,2,FALSE)) ->  | I42: =IF(G42="","",SUM(IF(A42=Energieverbrauch!$A$2:$A$41,1,0)*IF(Berechnung!B42=Energieverbrauch!$B$2:$B$41,1,0)*IF(Berechnung!F42=Energieverbrauch!$C$2:$C$41,1,0)*Energieverbrauch!$D$2:$D$41)) ->  | K42: =IF(G42="","",J42/IF($C42="Schweröl (HFO)", Treibhausgas_Kennzahlen!B$7,IF(Berechnung!C42="Dieselöl (MDO)",Treibhausgas_Kennzahlen!B$9,Treibhausgas_Kennzahlen!B$8))) ->  | L42: =IF(G42="","",$K42*IF($C42="Schweröl (HFO)",Treibhausgas_Kennzahlen!B$14,IF(Berechnung!C42="Dieselöl (MDO)", Treibhausgas_Kennzahlen!B$16,Treibhausgas_Kennzahlen!B$15))) ->  | M42: =IF(G42="","",$K42*IF($C42="Schweröl (HFO)",Treibhausgas_Kennzahlen!C$14,IF(Berechnung!D42="Dieselöl (MDO)", Treibhausgas_Kennzahlen!C$16,Treibhausgas_Kennzahlen!C$15))) ->  | N42: =IF(G42="","",$J42*IF($C42="Schweröl (HFO)",Treibhausgas_Kennzahlen!D$14,IF(Berechnung!C42="Dieselöl (MDO)",Treibhausgas_Kennzahlen!D$16,Treibhausgas_Kennzahlen!D$15))) ->  | O42: =IF(G42="","",$J42*IF($C42="Schweröl (HFO)",Treibhausgas_Kennzahlen!E$14,IF(Berechnung!D42="Dieselöl (MDO)",Treibhausgas_Kennzahlen!E$16,Treibhausgas_Kennzahlen!E$15))) ->  | P42: =IF(G42="","",$J42*IF($C42="Schweröl (HFO)",Treibhausgas_Kennzahlen!F$14,IF(Berechnung!E42="Dieselöl (MDO)",Treibhausgas_Kennzahlen!F$16,Treibhausgas_Kennzahlen!F$15))) ->  | Q42: =IF(G42="","",$J42*IF($C42="Schweröl (HFO)",Treibhausgas_Kennzahlen!G$14,IF(Berechnung!F42="Dieselöl (MDO)",Treibhausgas_Kennzahlen!G$16,Treibhausgas_Kennzahlen!G$15))) -> 
H43: =IF(G43="","",VLOOKUP(INDEX(Seehäfen!$A$3:$A$502, MATCH(Berechnung!D43,Seehäfen!$B$3:$B$502,0))&"_"&INDEX(Seehäfen!$A$3:$A$502, MATCH(Berechnung!E43,Seehäfen!$B$3:$B$502,0)),Entfernung_Seehäfen!$C$2:$E$10001,2,FALSE)) ->  | I43: =IF(G43="","",SUM(IF(A43=Energieverbrauch!$A$2:$A$41,1,0)*IF(Berechnung!B43=Energieverbrauch!$B$2:$B$41,1,0)*IF(Berechnung!F43=Energieverbrauch!$C$2:$C$41,1,0)*Energieverbrauch!$D$2:$D$41)) ->  | K43: =IF(G43="","",J43/IF($C43="Schweröl (HFO)", Treibhausgas_Kennzahlen!B$7,IF(Berechnung!C43="Dieselöl (MDO)",Treibhausgas_Kennzahlen!B$9,Treibhausgas_Kennzahlen!B$8))) ->  | L43: =IF(G43="","",$K43*IF($C43="Schweröl (HFO)",Treibhausgas_Kennzahlen!B$14,IF(Berechnung!C43="Dieselöl (MDO)", Treibhausgas_Kennzahlen!B$16,Treibhausgas_Kennzahlen!B$15))) ->  | M43: =IF(G43="","",$K43*IF($C43="Schweröl (HFO)",Treibhausgas_Kennzahlen!C$14,IF(Berechnung!D43="Dieselöl (MDO)", Treibhausgas_Kennzahlen!C$16,Treibhausgas_Kennzahlen!C$15))) ->  | N43: =IF(G43="","",$J43*IF($C43="Schweröl (HFO)",Treibhausgas_Kennzahlen!D$14,IF(Berechnung!C43="Dieselöl (MDO)",Treibhausgas_Kennzahlen!D$16,Treibhausgas_Kennzahlen!D$15))) ->  | O43: =IF(G43="","",$J43*IF($C43="Schweröl (HFO)",Treibhausgas_Kennzahlen!E$14,IF(Berechnung!D43="Dieselöl (MDO)",Treibhausgas_Kennzahlen!E$16,Treibhausgas_Kennzahlen!E$15))) ->  | P43: =IF(G43="","",$J43*IF($C43="Schweröl (HFO)",Treibhausgas_Kennzahlen!F$14,IF(Berechnung!E43="Dieselöl (MDO)",Treibhausgas_Kennzahlen!F$16,Treibhausgas_Kennzahlen!F$15))) ->  | Q43: =IF(G43="","",$J43*IF($C43="Schweröl (HFO)",Treibhausgas_Kennzahlen!G$14,IF(Berechnung!F43="Dieselöl (MDO)",Treibhausgas_Kennzahlen!G$16,Treibhausgas_Kennzahlen!G$15))) -> 
H44: =IF(G44="","",VLOOKUP(INDEX(Seehäfen!$A$3:$A$502, MATCH(Berechnung!D44,Seehäfen!$B$3:$B$502,0))&"_"&INDEX(Seehäfen!$A$3:$A$502, MATCH(Berechnung!E44,Seehäfen!$B$3:$B$502,0)),Entfernung_Seehäfen!$C$2:$E$100001,2,FALSE)) ->  | I44: =IF(G44="","",SUM(IF(A44=Energieverbrauch!$A$2:$A$41,1,0)*IF(Berechnung!B44=Energieverbrauch!$B$2:$B$41,1,0)*IF(Berechnung!F44=Energieverbrauch!$C$2:$C$41,1,0)*Energieverbrauch!$D$2:$D$41)) ->  | K44: =IF(G44="","",J44/IF($C44="Schweröl (HFO)", Treibhausgas_Kennzahlen!B$7,IF(Berechnung!C44="Dieselöl (MDO)",Treibhausgas_Kennzahlen!B$9,Treibhausgas_Kennzahlen!B$8))) ->  | L44: =IF(G44="","",$K44*IF($C44="Schweröl (HFO)",Treibhausgas_Kennzahlen!B$14,IF(Berechnung!C44="Dieselöl (MDO)", Treibhausgas_Kennzahlen!B$16,Treibhausgas_Kennzahlen!B$15))) ->  | M44: =IF(G44="","",$K44*IF($C44="Schweröl (HFO)",Treibhausgas_Kennzahlen!C$14,IF(Berechnung!D44="Dieselöl (MDO)", Treibhausgas_Kennzahlen!C$16,Treibhausgas_Kennzahlen!C$15))) ->  | N44: =IF(G44="","",$J44*IF($C44="Schweröl (HFO)",Treibhausgas_Kennzahlen!D$14,IF(Berechnung!C44="Dieselöl (MDO)",Treibhausgas_Kennzahlen!D$16,Treibhausgas_Kennzahlen!D$15))) ->  | O44: =IF(G44="","",$J44*IF($C44="Schweröl (HFO)",Treibhausgas_Kennzahlen!E$14,IF(Berechnung!D44="Dieselöl (MDO)",Treibhausgas_Kennzahlen!E$16,Treibhausgas_Kennzahlen!E$15))) ->  | P44: =IF(G44="","",$J44*IF($C44="Schweröl (HFO)",Treibhausgas_Kennzahlen!F$14,IF(Berechnung!E44="Dieselöl (MDO)",Treibhausgas_Kennzahlen!F$16,Treibhausgas_Kennzahlen!F$15))) ->  | Q44: =IF(G44="","",$J44*IF($C44="Schweröl (HFO)",Treibhausgas_Kennzahlen!G$14,IF(Berechnung!F44="Dieselöl (MDO)",Treibhausgas_Kennzahlen!G$16,Treibhausgas_Kennzahlen!G$15))) -> 
H45: =IF(G45="","",VLOOKUP(INDEX(Seehäfen!$A$3:$A$502, MATCH(Berechnung!D45,Seehäfen!$B$3:$B$502,0))&"_"&INDEX(Seehäfen!$A$3:$A$502, MATCH(Berechnung!E45,Seehäfen!$B$3:$B$502,0)),Entfernung_Seehäfen!$C$2:$E$10001,2,FALSE)) ->  | I45: =IF(G45="","",SUM(IF(A45=Energieverbrauch!$A$2:$A$41,1,0)*IF(Berechnung!B45=Energieverbrauch!$B$2:$B$41,1,0)*IF(Berechnung!F45=Energieverbrauch!$C$2:$C$41,1,0)*Energieverbrauch!$D$2:$D$41)) ->  | K45: =IF(G45="","",J45/IF($C45="Schweröl (HFO)", Treibhausgas_Kennzahlen!B$7,IF(Berechnung!C45="Dieselöl (MDO)",Treibhausgas_Kennzahlen!B$9,Treibhausgas_Kennzahlen!B$8))) ->  | L45: =IF(G45="","",$K45*IF($C45="Schweröl (HFO)",Treibhausgas_Kennzahlen!B$14,IF(Berechnung!C45="Dieselöl (MDO)", Treibhausgas_Kennzahlen!B$16,Treibhausgas_Kennzahlen!B$15))) ->  | M45: =IF(G45="","",$K45*IF($C45="Schweröl (HFO)",Treibhausgas_Kennzahlen!C$14,IF(Berechnung!D45="Dieselöl (MDO)", Treibhausgas_Kennzahlen!C$16,Treibhausgas_Kennzahlen!C$15))) ->  | N45: =IF(G45="","",$J45*IF($C45="Schweröl (HFO)",Treibhausgas_Kennzahlen!D$14,IF(Berechnung!C45="Dieselöl (MDO)",Treibhausgas_Kennzahlen!D$16,Treibhausgas_Kennzahlen!D$15))) ->  | O45: =IF(G45="","",$J45*IF($C45="Schweröl (HFO)",Treibhausgas_Kennzahlen!E$14,IF(Berechnung!D45="Dieselöl (MDO)",Treibhausgas_Kennzahlen!E$16,Treibhausgas_Kennzahlen!E$15))) ->  | P45: =IF(G45="","",$J45*IF($C45="Schweröl (HFO)",Treibhausgas_Kennzahlen!F$14,IF(Berechnung!E45="Dieselöl (MDO)",Treibhausgas_Kennzahlen!F$16,Treibhausgas_Kennzahlen!F$15))) ->  | Q45: =IF(G45="","",$J45*IF($C45="Schweröl (HFO)",Treibhausgas_Kennzahlen!G$14,IF(Berechnung!F45="Dieselöl (MDO)",Treibhausgas_Kennzahlen!G$16,Treibhausgas_Kennzahlen!G$15))) -> 
H46: =IF(G46="","",VLOOKUP(INDEX(Seehäfen!$A$3:$A$502, MATCH(Berechnung!D46,Seehäfen!$B$3:$B$502,0))&"_"&INDEX(Seehäfen!$A$3:$A$502, MATCH(Berechnung!E46,Seehäfen!$B$3:$B$502,0)),Entfernung_Seehäfen!$C$2:$E$100001,2,FALSE)) ->  | I46: =IF(G46="","",SUM(IF(A46=Energieverbrauch!$A$2:$A$41,1,0)*IF(Berechnung!B46=Energieverbrauch!$B$2:$B$41,1,0)*IF(Berechnung!F46=Energieverbrauch!$C$2:$C$41,1,0)*Energieverbrauch!$D$2:$D$41)) ->  | K46: =IF(G46="","",J46/IF($C46="Schweröl (HFO)", Treibhausgas_Kennzahlen!B$7,IF(Berechnung!C46="Dieselöl (MDO)",Treibhausgas_Kennzahlen!B$9,Treibhausgas_Kennzahlen!B$8))) ->  | L46: =IF(G46="","",$K46*IF($C46="Schweröl (HFO)",Treibhausgas_Kennzahlen!B$14,IF(Berechnung!C46="Dieselöl (MDO)", Treibhausgas_Kennzahlen!B$16,Treibhausgas_Kennzahlen!B$15))) ->  | M46: =IF(G46="","",$K46*IF($C46="Schweröl (HFO)",Treibhausgas_Kennzahlen!C$14,IF(Berechnung!D46="Dieselöl (MDO)", Treibhausgas_Kennzahlen!C$16,Treibhausgas_Kennzahlen!C$15))) ->  | N46: =IF(G46="","",$J46*IF($C46="Schweröl (HFO)",Treibhausgas_Kennzahlen!D$14,IF(Berechnung!C46="Dieselöl (MDO)",Treibhausgas_Kennzahlen!D$16,Treibhausgas_Kennzahlen!D$15))) ->  | O46: =IF(G46="","",$J46*IF($C46="Schweröl (HFO)",Treibhausgas_Kennzahlen!E$14,IF(Berechnung!D46="Dieselöl (MDO)",Treibhausgas_Kennzahlen!E$16,Treibhausgas_Kennzahlen!E$15))) ->  | P46: =IF(G46="","",$J46*IF($C46="Schweröl (HFO)",Treibhausgas_Kennzahlen!F$14,IF(Berechnung!E46="Dieselöl (MDO)",Treibhausgas_Kennzahlen!F$16,Treibhausgas_Kennzahlen!F$15))) ->  | Q46: =IF(G46="","",$J46*IF($C46="Schweröl (HFO)",Treibhausgas_Kennzahlen!G$14,IF(Berechnung!F46="Dieselöl (MDO)",Treibhausgas_Kennzahlen!G$16,Treibhausgas_Kennzahlen!G$15))) -> 
H47: =IF(G47="","",VLOOKUP(INDEX(Seehäfen!$A$3:$A$502, MATCH(Berechnung!D47,Seehäfen!$B$3:$B$502,0))&"_"&INDEX(Seehäfen!$A$3:$A$502, MATCH(Berechnung!E47,Seehäfen!$B$3:$B$502,0)),Entfernung_Seehäfen!$C$2:$E$10001,2,FALSE)) ->  | I47: =IF(G47="","",SUM(IF(A47=Energieverbrauch!$A$2:$A$41,1,0)*IF(Berechnung!B47=Energieverbrauch!$B$2:$B$41,1,0)*IF(Berechnung!F47=Energieverbrauch!$C$2:$C$41,1,0)*Energieverbrauch!$D$2:$D$41)) ->  | K47: =IF(G47="","",J47/IF($C47="Schweröl (HFO)", Treibhausgas_Kennzahlen!B$7,IF(Berechnung!C47="Dieselöl (MDO)",Treibhausgas_Kennzahlen!B$9,Treibhausgas_Kennzahlen!B$8))) ->  | L47: =IF(G47="","",$K47*IF($C47="Schweröl (HFO)",Treibhausgas_Kennzahlen!B$14,IF(Berechnung!C47="Dieselöl (MDO)", Treibhausgas_Kennzahlen!B$16,Treibhausgas_Kennzahlen!B$15))) ->  | M47: =IF(G47="","",$K47*IF($C47="Schweröl (HFO)",Treibhausgas_Kennzahlen!C$14,IF(Berechnung!D47="Dieselöl (MDO)", Treibhausgas_Kennzahlen!C$16,Treibhausgas_Kennzahlen!C$15))) ->  | N47: =IF(G47="","",$J47*IF($C47="Schweröl (HFO)",Treibhausgas_Kennzahlen!D$14,IF(Berechnung!C47="Dieselöl (MDO)",Treibhausgas_Kennzahlen!D$16,Treibhausgas_Kennzahlen!D$15))) ->  | O47: =IF(G47="","",$J47*IF($C47="Schweröl (HFO)",Treibhausgas_Kennzahlen!E$14,IF(Berechnung!D47="Dieselöl (MDO)",Treibhausgas_Kennzahlen!E$16,Treibhausgas_Kennzahlen!E$15))) ->  | P47: =IF(G47="","",$J47*IF($C47="Schweröl (HFO)",Treibhausgas_Kennzahlen!F$14,IF(Berechnung!E47="Dieselöl (MDO)",Treibhausgas_Kennzahlen!F$16,Treibhausgas_Kennzahlen!F$15))) ->  | Q47: =IF(G47="","",$J47*IF($C47="Schweröl (HFO)",Treibhausgas_Kennzahlen!G$14,IF(Berechnung!F47="Dieselöl (MDO)",Treibhausgas_Kennzahlen!G$16,Treibhausgas_Kennzahlen!G$15))) -> 
H48: =IF(G48="","",VLOOKUP(INDEX(Seehäfen!$A$3:$A$502, MATCH(Berechnung!D48,Seehäfen!$B$3:$B$502,0))&"_"&INDEX(Seehäfen!$A$3:$A$502, MATCH(Berechnung!E48,Seehäfen!$B$3:$B$502,0)),Entfernung_Seehäfen!$C$2:$E$100001,2,FALSE)) ->  | I48: =IF(G48="","",SUM(IF(A48=Energieverbrauch!$A$2:$A$41,1,0)*IF(Berechnung!B48=Energieverbrauch!$B$2:$B$41,1,0)*IF(Berechnung!F48=Energieverbrauch!$C$2:$C$41,1,0)*Energieverbrauch!$D$2:$D$41)) ->  | K48: =IF(G48="","",J48/IF($C48="Schweröl (HFO)", Treibhausgas_Kennzahlen!B$7,IF(Berechnung!C48="Dieselöl (MDO)",Treibhausgas_Kennzahlen!B$9,Treibhausgas_Kennzahlen!B$8))) ->  | L48: =IF(G48="","",$K48*IF($C48="Schweröl (HFO)",Treibhausgas_Kennzahlen!B$14,IF(Berechnung!C48="Dieselöl (MDO)", Treibhausgas_Kennzahlen!B$16,Treibhausgas_Kennzahlen!B$15))) ->  | M48: =IF(G48="","",$K48*IF($C48="Schweröl (HFO)",Treibhausgas_Kennzahlen!C$14,IF(Berechnung!D48="Dieselöl (MDO)", Treibhausgas_Kennzahlen!C$16,Treibhausgas_Kennzahlen!C$15))) ->  | N48: =IF(G48="","",$J48*IF($C48="Schweröl (HFO)",Treibhausgas_Kennzahlen!D$14,IF(Berechnung!C48="Dieselöl (MDO)",Treibhausgas_Kennzahlen!D$16,Treibhausgas_Kennzahlen!D$15))) ->  | O48: =IF(G48="","",$J48*IF($C48="Schweröl (HFO)",Treibhausgas_Kennzahlen!E$14,IF(Berechnung!D48="Dieselöl (MDO)",Treibhausgas_Kennzahlen!E$16,Treibhausgas_Kennzahlen!E$15))) ->  | P48: =IF(G48="","",$J48*IF($C48="Schweröl (HFO)",Treibhausgas_Kennzahlen!F$14,IF(Berechnung!E48="Dieselöl (MDO)",Treibhausgas_Kennzahlen!F$16,Treibhausgas_Kennzahlen!F$15))) ->  | Q48: =IF(G48="","",$J48*IF($C48="Schweröl (HFO)",Treibhausgas_Kennzahlen!G$14,IF(Berechnung!F48="Dieselöl (MDO)",Treibhausgas_Kennzahlen!G$16,Treibhausgas_Kennzahlen!G$15))) -> 
H49: =IF(G49="","",VLOOKUP(INDEX(Seehäfen!$A$3:$A$502, MATCH(Berechnung!D49,Seehäfen!$B$3:$B$502,0))&"_"&INDEX(Seehäfen!$A$3:$A$502, MATCH(Berechnung!E49,Seehäfen!$B$3:$B$502,0)),Entfernung_Seehäfen!$C$2:$E$10001,2,FALSE)) ->  | I49: =IF(G49="","",SUM(IF(A49=Energieverbrauch!$A$2:$A$41,1,0)*IF(Berechnung!B49=Energieverbrauch!$B$2:$B$41,1,0)*IF(Berechnung!F49=Energieverbrauch!$C$2:$C$41,1,0)*Energieverbrauch!$D$2:$D$41)) ->  | K49: =IF(G49="","",J49/IF($C49="Schweröl (HFO)", Treibhausgas_Kennzahlen!B$7,IF(Berechnung!C49="Dieselöl (MDO)",Treibhausgas_Kennzahlen!B$9,Treibhausgas_Kennzahlen!B$8))) ->  | L49: =IF(G49="","",$K49*IF($C49="Schweröl (HFO)",Treibhausgas_Kennzahlen!B$14,IF(Berechnung!C49="Dieselöl (MDO)", Treibhausgas_Kennzahlen!B$16,Treibhausgas_Kennzahlen!B$15))) ->  | M49: =IF(G49="","",$K49*IF($C49="Schweröl (HFO)",Treibhausgas_Kennzahlen!C$14,IF(Berechnung!D49="Dieselöl (MDO)", Treibhausgas_Kennzahlen!C$16,Treibhausgas_Kennzahlen!C$15))) ->  | N49: =IF(G49="","",$J49*IF($C49="Schweröl (HFO)",Treibhausgas_Kennzahlen!D$14,IF(Berechnung!C49="Dieselöl (MDO)",Treibhausgas_Kennzahlen!D$16,Treibhausgas_Kennzahlen!D$15))) ->  | O49: =IF(G49="","",$J49*IF($C49="Schweröl (HFO)",Treibhausgas_Kennzahlen!E$14,IF(Berechnung!D49="Dieselöl (MDO)",Treibhausgas_Kennzahlen!E$16,Treibhausgas_Kennzahlen!E$15))) ->  | P49: =IF(G49="","",$J49*IF($C49="Schweröl (HFO)",Treibhausgas_Kennzahlen!F$14,IF(Berechnung!E49="Dieselöl (MDO)",Treibhausgas_Kennzahlen!F$16,Treibhausgas_Kennzahlen!F$15))) ->  | Q49: =IF(G49="","",$J49*IF($C49="Schweröl (HFO)",Treibhausgas_Kennzahlen!G$14,IF(Berechnung!F49="Dieselöl (MDO)",Treibhausgas_Kennzahlen!G$16,Treibhausgas_Kennzahlen!G$15))) -> 
H50: =IF(G50="","",VLOOKUP(INDEX(Seehäfen!$A$3:$A$502, MATCH(Berechnung!D50,Seehäfen!$B$3:$B$502,0))&"_"&INDEX(Seehäfen!$A$3:$A$502, MATCH(Berechnung!E50,Seehäfen!$B$3:$B$502,0)),Entfernung_Seehäfen!$C$2:$E$100001,2,FALSE)) ->  | I50: =IF(G50="","",SUM(IF(A50=Energieverbrauch!$A$2:$A$41,1,0)*IF(Berechnung!B50=Energieverbrauch!$B$2:$B$41,1,0)*IF(Berechnung!F50=Energieverbrauch!$C$2:$C$41,1,0)*Energieverbrauch!$D$2:$D$41)) ->  | K50: =IF(G50="","",J50/IF($C50="Schweröl (HFO)", Treibhausgas_Kennzahlen!B$7,IF(Berechnung!C50="Dieselöl (MDO)",Treibhausgas_Kennzahlen!B$9,Treibhausgas_Kennzahlen!B$8))) ->  | L50: =IF(G50="","",$K50*IF($C50="Schweröl (HFO)",Treibhausgas_Kennzahlen!B$14,IF(Berechnung!C50="Dieselöl (MDO)", Treibhausgas_Kennzahlen!B$16,Treibhausgas_Kennzahlen!B$15))) ->  | M50: =IF(G50="","",$K50*IF($C50="Schweröl (HFO)",Treibhausgas_Kennzahlen!C$14,IF(Berechnung!D50="Dieselöl (MDO)", Treibhausgas_Kennzahlen!C$16,Treibhausgas_Kennzahlen!C$15))) ->  | N50: =IF(G50="","",$J50*IF($C50="Schweröl (HFO)",Treibhausgas_Kennzahlen!D$14,IF(Berechnung!C50="Dieselöl (MDO)",Treibhausgas_Kennzahlen!D$16,Treibhausgas_Kennzahlen!D$15))) ->  | O50: =IF(G50="","",$J50*IF($C50="Schweröl (HFO)",Treibhausgas_Kennzahlen!E$14,IF(Berechnung!D50="Dieselöl (MDO)",Treibhausgas_Kennzahlen!E$16,Treibhausgas_Kennzahlen!E$15))) ->  | P50: =IF(G50="","",$J50*IF($C50="Schweröl (HFO)",Treibhausgas_Kennzahlen!F$14,IF(Berechnung!E50="Dieselöl (MDO)",Treibhausgas_Kennzahlen!F$16,Treibhausgas_Kennzahlen!F$15))) ->  | Q50: =IF(G50="","",$J50*IF($C50="Schweröl (HFO)",Treibhausgas_Kennzahlen!G$14,IF(Berechnung!F50="Dieselöl (MDO)",Treibhausgas_Kennzahlen!G$16,Treibhausgas_Kennzahlen!G$15))) -> 
H51: =IF(G51="","",VLOOKUP(INDEX(Seehäfen!$A$3:$A$502, MATCH(Berechnung!D51,Seehäfen!$B$3:$B$502,0))&"_"&INDEX(Seehäfen!$A$3:$A$502, MATCH(Berechnung!E51,Seehäfen!$B$3:$B$502,0)),Entfernung_Seehäfen!$C$2:$E$10001,2,FALSE)) ->  | I51: =IF(G51="","",SUM(IF(A51=Energieverbrauch!$A$2:$A$41,1,0)*IF(Berechnung!B51=Energieverbrauch!$B$2:$B$41,1,0)*IF(Berechnung!F51=Energieverbrauch!$C$2:$C$41,1,0)*Energieverbrauch!$D$2:$D$41)) ->  | K51: =IF(G51="","",J51/IF($C51="Schweröl (HFO)", Treibhausgas_Kennzahlen!B$7,IF(Berechnung!C51="Dieselöl (MDO)",Treibhausgas_Kennzahlen!B$9,Treibhausgas_Kennzahlen!B$8))) ->  | L51: =IF(G51="","",$K51*IF($C51="Schweröl (HFO)",Treibhausgas_Kennzahlen!B$14,IF(Berechnung!C51="Dieselöl (MDO)", Treibhausgas_Kennzahlen!B$16,Treibhausgas_Kennzahlen!B$15))) ->  | M51: =IF(G51="","",$K51*IF($C51="Schweröl (HFO)",Treibhausgas_Kennzahlen!C$14,IF(Berechnung!D51="Dieselöl (MDO)", Treibhausgas_Kennzahlen!C$16,Treibhausgas_Kennzahlen!C$15))) ->  | N51: =IF(G51="","",$J51*IF($C51="Schweröl (HFO)",Treibhausgas_Kennzahlen!D$14,IF(Berechnung!C51="Dieselöl (MDO)",Treibhausgas_Kennzahlen!D$16,Treibhausgas_Kennzahlen!D$15))) ->  | O51: =IF(G51="","",$J51*IF($C51="Schweröl (HFO)",Treibhausgas_Kennzahlen!E$14,IF(Berechnung!D51="Dieselöl (MDO)",Treibhausgas_Kennzahlen!E$16,Treibhausgas_Kennzahlen!E$15))) ->  | P51: =IF(G51="","",$J51*IF($C51="Schweröl (HFO)",Treibhausgas_Kennzahlen!F$14,IF(Berechnung!E51="Dieselöl (MDO)",Treibhausgas_Kennzahlen!F$16,Treibhausgas_Kennzahlen!F$15))) ->  | Q51: =IF(G51="","",$J51*IF($C51="Schweröl (HFO)",Treibhausgas_Kennzahlen!G$14,IF(Berechnung!F51="Dieselöl (MDO)",Treibhausgas_Kennzahlen!G$16,Treibhausgas_Kennzahlen!G$15))) -> 
H52: =IF(G52="","",VLOOKUP(INDEX(Seehäfen!$A$3:$A$502, MATCH(Berechnung!D52,Seehäfen!$B$3:$B$502,0))&"_"&INDEX(Seehäfen!$A$3:$A$502, MATCH(Berechnung!E52,Seehäfen!$B$3:$B$502,0)),Entfernung_Seehäfen!$C$2:$E$100001,2,FALSE)) ->  | I52: =IF(G52="","",SUM(IF(A52=Energieverbrauch!$A$2:$A$41,1,0)*IF(Berechnung!B52=Energieverbrauch!$B$2:$B$41,1,0)*IF(Berechnung!F52=Energieverbrauch!$C$2:$C$41,1,0)*Energieverbrauch!$D$2:$D$41)) ->  | K52: =IF(G52="","",J52/IF($C52="Schweröl (HFO)", Treibhausgas_Kennzahlen!B$7,IF(Berechnung!C52="Dieselöl (MDO)",Treibhausgas_Kennzahlen!B$9,Treibhausgas_Kennzahlen!B$8))) ->  | L52: =IF(G52="","",$K52*IF($C52="Schweröl (HFO)",Treibhausgas_Kennzahlen!B$14,IF(Berechnung!C52="Dieselöl (MDO)", Treibhausgas_Kennzahlen!B$16,Treibhausgas_Kennzahlen!B$15))) ->  | M52: =IF(G52="","",$K52*IF($C52="Schweröl (HFO)",Treibhausgas_Kennzahlen!C$14,IF(Berechnung!D52="Dieselöl (MDO)", Treibhausgas_Kennzahlen!C$16,Treibhausgas_Kennzahlen!C$15))) ->  | N52: =IF(G52="","",$J52*IF($C52="Schweröl (HFO)",Treibhausgas_Kennzahlen!D$14,IF(Berechnung!C52="Dieselöl (MDO)",Treibhausgas_Kennzahlen!D$16,Treibhausgas_Kennzahlen!D$15))) ->  | O52: =IF(G52="","",$J52*IF($C52="Schweröl (HFO)",Treibhausgas_Kennzahlen!E$14,IF(Berechnung!D52="Dieselöl (MDO)",Treibhausgas_Kennzahlen!E$16,Treibhausgas_Kennzahlen!E$15))) ->  | P52: =IF(G52="","",$J52*IF($C52="Schweröl (HFO)",Treibhausgas_Kennzahlen!F$14,IF(Berechnung!E52="Dieselöl (MDO)",Treibhausgas_Kennzahlen!F$16,Treibhausgas_Kennzahlen!F$15))) ->  | Q52: =IF(G52="","",$J52*IF($C52="Schweröl (HFO)",Treibhausgas_Kennzahlen!G$14,IF(Berechnung!F52="Dieselöl (MDO)",Treibhausgas_Kennzahlen!G$16,Treibhausgas_Kennzahlen!G$15))) -> 
H53: =IF(G53="","",VLOOKUP(INDEX(Seehäfen!$A$3:$A$502, MATCH(Berechnung!D53,Seehäfen!$B$3:$B$502,0))&"_"&INDEX(Seehäfen!$A$3:$A$502, MATCH(Berechnung!E53,Seehäfen!$B$3:$B$502,0)),Entfernung_Seehäfen!$C$2:$E$10001,2,FALSE)) ->  | I53: =IF(G53="","",SUM(IF(A53=Energieverbrauch!$A$2:$A$41,1,0)*IF(Berechnung!B53=Energieverbrauch!$B$2:$B$41,1,0)*IF(Berechnung!F53=Energieverbrauch!$C$2:$C$41,1,0)*Energieverbrauch!$D$2:$D$41)) ->  | K53: =IF(G53="","",J53/IF($C53="Schweröl (HFO)", Treibhausgas_Kennzahlen!B$7,IF(Berechnung!C53="Dieselöl (MDO)",Treibhausgas_Kennzahlen!B$9,Treibhausgas_Kennzahlen!B$8))) ->  | L53: =IF(G53="","",$K53*IF($C53="Schweröl (HFO)",Treibhausgas_Kennzahlen!B$14,IF(Berechnung!C53="Dieselöl (MDO)", Treibhausgas_Kennzahlen!B$16,Treibhausgas_Kennzahlen!B$15))) ->  | M53: =IF(G53="","",$K53*IF($C53="Schweröl (HFO)",Treibhausgas_Kennzahlen!C$14,IF(Berechnung!D53="Dieselöl (MDO)", Treibhausgas_Kennzahlen!C$16,Treibhausgas_Kennzahlen!C$15))) ->  | N53: =IF(G53="","",$J53*IF($C53="Schweröl (HFO)",Treibhausgas_Kennzahlen!D$14,IF(Berechnung!C53="Dieselöl (MDO)",Treibhausgas_Kennzahlen!D$16,Treibhausgas_Kennzahlen!D$15))) ->  | O53: =IF(G53="","",$J53*IF($C53="Schweröl (HFO)",Treibhausgas_Kennzahlen!E$14,IF(Berechnung!D53="Dieselöl (MDO)",Treibhausgas_Kennzahlen!E$16,Treibhausgas_Kennzahlen!E$15))) ->  | P53: =IF(G53="","",$J53*IF($C53="Schweröl (HFO)",Treibhausgas_Kennzahlen!F$14,IF(Berechnung!E53="Dieselöl (MDO)",Treibhausgas_Kennzahlen!F$16,Treibhausgas_Kennzahlen!F$15))) ->  | Q53: =IF(G53="","",$J53*IF($C53="Schweröl (HFO)",Treibhausgas_Kennzahlen!G$14,IF(Berechnung!F53="Dieselöl (MDO)",Treibhausgas_Kennzahlen!G$16,Treibhausgas_Kennzahlen!G$15))) -> 
H54: =IF(G54="","",VLOOKUP(INDEX(Seehäfen!$A$3:$A$502, MATCH(Berechnung!D54,Seehäfen!$B$3:$B$502,0))&"_"&INDEX(Seehäfen!$A$3:$A$502, MATCH(Berechnung!E54,Seehäfen!$B$3:$B$502,0)),Entfernung_Seehäfen!$C$2:$E$100001,2,FALSE)) ->  | I54: =IF(G54="","",SUM(IF(A54=Energieverbrauch!$A$2:$A$41,1,0)*IF(Berechnung!B54=Energieverbrauch!$B$2:$B$41,1,0)*IF(Berechnung!F54=Energieverbrauch!$C$2:$C$41,1,0)*Energieverbrauch!$D$2:$D$41)) ->  | K54: =IF(G54="","",J54/IF($C54="Schweröl (HFO)", Treibhausgas_Kennzahlen!B$7,IF(Berechnung!C54="Dieselöl (MDO)",Treibhausgas_Kennzahlen!B$9,Treibhausgas_Kennzahlen!B$8))) ->  | L54: =IF(G54="","",$K54*IF($C54="Schweröl (HFO)",Treibhausgas_Kennzahlen!B$14,IF(Berechnung!C54="Dieselöl (MDO)", Treibhausgas_Kennzahlen!B$16,Treibhausgas_Kennzahlen!B$15))) ->  | M54: =IF(G54="","",$K54*IF($C54="Schweröl (HFO)",Treibhausgas_Kennzahlen!C$14,IF(Berechnung!D54="Dieselöl (MDO)", Treibhausgas_Kennzahlen!C$16,Treibhausgas_Kennzahlen!C$15))) ->  | N54: =IF(G54="","",$J54*IF($C54="Schweröl (HFO)",Treibhausgas_Kennzahlen!D$14,IF(Berechnung!C54="Dieselöl (MDO)",Treibhausgas_Kennzahlen!D$16,Treibhausgas_Kennzahlen!D$15))) ->  | O54: =IF(G54="","",$J54*IF($C54="Schweröl (HFO)",Treibhausgas_Kennzahlen!E$14,IF(Berechnung!D54="Dieselöl (MDO)",Treibhausgas_Kennzahlen!E$16,Treibhausgas_Kennzahlen!E$15))) ->  | P54: =IF(G54="","",$J54*IF($C54="Schweröl (HFO)",Treibhausgas_Kennzahlen!F$14,IF(Berechnung!E54="Dieselöl (MDO)",Treibhausgas_Kennzahlen!F$16,Treibhausgas_Kennzahlen!F$15))) ->  | Q54: =IF(G54="","",$J54*IF($C54="Schweröl (HFO)",Treibhausgas_Kennzahlen!G$14,IF(Berechnung!F54="Dieselöl (MDO)",Treibhausgas_Kennzahlen!G$16,Treibhausgas_Kennzahlen!G$15))) -> 
H55: =IF(G55="","",VLOOKUP(INDEX(Seehäfen!$A$3:$A$502, MATCH(Berechnung!D55,Seehäfen!$B$3:$B$502,0))&"_"&INDEX(Seehäfen!$A$3:$A$502, MATCH(Berechnung!E55,Seehäfen!$B$3:$B$502,0)),Entfernung_Seehäfen!$C$2:$E$10001,2,FALSE)) ->  | I55: =IF(G55="","",SUM(IF(A55=Energieverbrauch!$A$2:$A$41,1,0)*IF(Berechnung!B55=Energieverbrauch!$B$2:$B$41,1,0)*IF(Berechnung!F55=Energieverbrauch!$C$2:$C$41,1,0)*Energieverbrauch!$D$2:$D$41)) ->  | K55: =IF(G55="","",J55/IF($C55="Schweröl (HFO)", Treibhausgas_Kennzahlen!B$7,IF(Berechnung!C55="Dieselöl (MDO)",Treibhausgas_Kennzahlen!B$9,Treibhausgas_Kennzahlen!B$8))) ->  | L55: =IF(G55="","",$K55*IF($C55="Schweröl (HFO)",Treibhausgas_Kennzahlen!B$14,IF(Berechnung!C55="Dieselöl (MDO)", Treibhausgas_Kennzahlen!B$16,Treibhausgas_Kennzahlen!B$15))) ->  | M55: =IF(G55="","",$K55*IF($C55="Schweröl (HFO)",Treibhausgas_Kennzahlen!C$14,IF(Berechnung!D55="Dieselöl (MDO)", Treibhausgas_Kennzahlen!C$16,Treibhausgas_Kennzahlen!C$15))) ->  | N55: =IF(G55="","",$J55*IF($C55="Schweröl (HFO)",Treibhausgas_Kennzahlen!D$14,IF(Berechnung!C55="Dieselöl (MDO)",Treibhausgas_Kennzahlen!D$16,Treibhausgas_Kennzahlen!D$15))) ->  | O55: =IF(G55="","",$J55*IF($C55="Schweröl (HFO)",Treibhausgas_Kennzahlen!E$14,IF(Berechnung!D55="Dieselöl (MDO)",Treibhausgas_Kennzahlen!E$16,Treibhausgas_Kennzahlen!E$15))) ->  | P55: =IF(G55="","",$J55*IF($C55="Schweröl (HFO)",Treibhausgas_Kennzahlen!F$14,IF(Berechnung!E55="Dieselöl (MDO)",Treibhausgas_Kennzahlen!F$16,Treibhausgas_Kennzahlen!F$15))) ->  | Q55: =IF(G55="","",$J55*IF($C55="Schweröl (HFO)",Treibhausgas_Kennzahlen!G$14,IF(Berechnung!F55="Dieselöl (MDO)",Treibhausgas_Kennzahlen!G$16,Treibhausgas_Kennzahlen!G$15))) -> 
H56: =IF(G56="","",VLOOKUP(INDEX(Seehäfen!$A$3:$A$502, MATCH(Berechnung!D56,Seehäfen!$B$3:$B$502,0))&"_"&INDEX(Seehäfen!$A$3:$A$502, MATCH(Berechnung!E56,Seehäfen!$B$3:$B$502,0)),Entfernung_Seehäfen!$C$2:$E$100001,2,FALSE)) ->  | I56: =IF(G56="","",SUM(IF(A56=Energieverbrauch!$A$2:$A$41,1,0)*IF(Berechnung!B56=Energieverbrauch!$B$2:$B$41,1,0)*IF(Berechnung!F56=Energieverbrauch!$C$2:$C$41,1,0)*Energieverbrauch!$D$2:$D$41)) ->  | K56: =IF(G56="","",J56/IF($C56="Schweröl (HFO)", Treibhausgas_Kennzahlen!B$7,IF(Berechnung!C56="Dieselöl (MDO)",Treibhausgas_Kennzahlen!B$9,Treibhausgas_Kennzahlen!B$8))) ->  | L56: =IF(G56="","",$K56*IF($C56="Schweröl (HFO)",Treibhausgas_Kennzahlen!B$14,IF(Berechnung!C56="Dieselöl (MDO)", Treibhausgas_Kennzahlen!B$16,Treibhausgas_Kennzahlen!B$15))) ->  | M56: =IF(G56="","",$K56*IF($C56="Schweröl (HFO)",Treibhausgas_Kennzahlen!C$14,IF(Berechnung!D56="Dieselöl (MDO)", Treibhausgas_Kennzahlen!C$16,Treibhausgas_Kennzahlen!C$15))) ->  | N56: =IF(G56="","",$J56*IF($C56="Schweröl (HFO)",Treibhausgas_Kennzahlen!D$14,IF(Berechnung!C56="Dieselöl (MDO)",Treibhausgas_Kennzahlen!D$16,Treibhausgas_Kennzahlen!D$15))) ->  | O56: =IF(G56="","",$J56*IF($C56="Schweröl (HFO)",Treibhausgas_Kennzahlen!E$14,IF(Berechnung!D56="Dieselöl (MDO)",Treibhausgas_Kennzahlen!E$16,Treibhausgas_Kennzahlen!E$15))) ->  | P56: =IF(G56="","",$J56*IF($C56="Schweröl (HFO)",Treibhausgas_Kennzahlen!F$14,IF(Berechnung!E56="Dieselöl (MDO)",Treibhausgas_Kennzahlen!F$16,Treibhausgas_Kennzahlen!F$15))) ->  | Q56: =IF(G56="","",$J56*IF($C56="Schweröl (HFO)",Treibhausgas_Kennzahlen!G$14,IF(Berechnung!F56="Dieselöl (MDO)",Treibhausgas_Kennzahlen!G$16,Treibhausgas_Kennzahlen!G$15))) -> 
H57: =IF(G57="","",VLOOKUP(INDEX(Seehäfen!$A$3:$A$502, MATCH(Berechnung!D57,Seehäfen!$B$3:$B$502,0))&"_"&INDEX(Seehäfen!$A$3:$A$502, MATCH(Berechnung!E57,Seehäfen!$B$3:$B$502,0)),Entfernung_Seehäfen!$C$2:$E$10001,2,FALSE)) ->  | I57: =IF(G57="","",SUM(IF(A57=Energieverbrauch!$A$2:$A$41,1,0)*IF(Berechnung!B57=Energieverbrauch!$B$2:$B$41,1,0)*IF(Berechnung!F57=Energieverbrauch!$C$2:$C$41,1,0)*Energieverbrauch!$D$2:$D$41)) ->  | K57: =IF(G57="","",J57/IF($C57="Schweröl (HFO)", Treibhausgas_Kennzahlen!B$7,IF(Berechnung!C57="Dieselöl (MDO)",Treibhausgas_Kennzahlen!B$9,Treibhausgas_Kennzahlen!B$8))) ->  | L57: =IF(G57="","",$K57*IF($C57="Schweröl (HFO)",Treibhausgas_Kennzahlen!B$14,IF(Berechnung!C57="Dieselöl (MDO)", Treibhausgas_Kennzahlen!B$16,Treibhausgas_Kennzahlen!B$15))) ->  | M57: =IF(G57="","",$K57*IF($C57="Schweröl (HFO)",Treibhausgas_Kennzahlen!C$14,IF(Berechnung!D57="Dieselöl (MDO)", Treibhausgas_Kennzahlen!C$16,Treibhausgas_Kennzahlen!C$15))) ->  | N57: =IF(G57="","",$J57*IF($C57="Schweröl (HFO)",Treibhausgas_Kennzahlen!D$14,IF(Berechnung!C57="Dieselöl (MDO)",Treibhausgas_Kennzahlen!D$16,Treibhausgas_Kennzahlen!D$15))) ->  | O57: =IF(G57="","",$J57*IF($C57="Schweröl (HFO)",Treibhausgas_Kennzahlen!E$14,IF(Berechnung!D57="Dieselöl (MDO)",Treibhausgas_Kennzahlen!E$16,Treibhausgas_Kennzahlen!E$15))) ->  | P57: =IF(G57="","",$J57*IF($C57="Schweröl (HFO)",Treibhausgas_Kennzahlen!F$14,IF(Berechnung!E57="Dieselöl (MDO)",Treibhausgas_Kennzahlen!F$16,Treibhausgas_Kennzahlen!F$15))) ->  | Q57: =IF(G57="","",$J57*IF($C57="Schweröl (HFO)",Treibhausgas_Kennzahlen!G$14,IF(Berechnung!F57="Dieselöl (MDO)",Treibhausgas_Kennzahlen!G$16,Treibhausgas_Kennzahlen!G$15))) -> 
H58: =IF(G58="","",VLOOKUP(INDEX(Seehäfen!$A$3:$A$502, MATCH(Berechnung!D58,Seehäfen!$B$3:$B$502,0))&"_"&INDEX(Seehäfen!$A$3:$A$502, MATCH(Berechnung!E58,Seehäfen!$B$3:$B$502,0)),Entfernung_Seehäfen!$C$2:$E$100001,2,FALSE)) ->  | I58: =IF(G58="","",SUM(IF(A58=Energieverbrauch!$A$2:$A$41,1,0)*IF(Berechnung!B58=Energieverbrauch!$B$2:$B$41,1,0)*IF(Berechnung!F58=Energieverbrauch!$C$2:$C$41,1,0)*Energieverbrauch!$D$2:$D$41)) ->  | K58: =IF(G58="","",J58/IF($C58="Schweröl (HFO)", Treibhausgas_Kennzahlen!B$7,IF(Berechnung!C58="Dieselöl (MDO)",Treibhausgas_Kennzahlen!B$9,Treibhausgas_Kennzahlen!B$8))) ->  | L58: =IF(G58="","",$K58*IF($C58="Schweröl (HFO)",Treibhausgas_Kennzahlen!B$14,IF(Berechnung!C58="Dieselöl (MDO)", Treibhausgas_Kennzahlen!B$16,Treibhausgas_Kennzahlen!B$15))) ->  | M58: =IF(G58="","",$K58*IF($C58="Schweröl (HFO)",Treibhausgas_Kennzahlen!C$14,IF(Berechnung!D58="Dieselöl (MDO)", Treibhausgas_Kennzahlen!C$16,Treibhausgas_Kennzahlen!C$15))) ->  | N58: =IF(G58="","",$J58*IF($C58="Schweröl (HFO)",Treibhausgas_Kennzahlen!D$14,IF(Berechnung!C58="Dieselöl (MDO)",Treibhausgas_Kennzahlen!D$16,Treibhausgas_Kennzahlen!D$15))) ->  | O58: =IF(G58="","",$J58*IF($C58="Schweröl (HFO)",Treibhausgas_Kennzahlen!E$14,IF(Berechnung!D58="Dieselöl (MDO)",Treibhausgas_Kennzahlen!E$16,Treibhausgas_Kennzahlen!E$15))) ->  | P58: =IF(G58="","",$J58*IF($C58="Schweröl (HFO)",Treibhausgas_Kennzahlen!F$14,IF(Berechnung!E58="Dieselöl (MDO)",Treibhausgas_Kennzahlen!F$16,Treibhausgas_Kennzahlen!F$15))) ->  | Q58: =IF(G58="","",$J58*IF($C58="Schweröl (HFO)",Treibhausgas_Kennzahlen!G$14,IF(Berechnung!F58="Dieselöl (MDO)",Treibhausgas_Kennzahlen!G$16,Treibhausgas_Kennzahlen!G$15))) -> 
H59: =IF(G59="","",VLOOKUP(INDEX(Seehäfen!$A$3:$A$502, MATCH(Berechnung!D59,Seehäfen!$B$3:$B$502,0))&"_"&INDEX(Seehäfen!$A$3:$A$502, MATCH(Berechnung!E59,Seehäfen!$B$3:$B$502,0)),Entfernung_Seehäfen!$C$2:$E$10001,2,FALSE)) ->  | I59: =IF(G59="","",SUM(IF(A59=Energieverbrauch!$A$2:$A$41,1,0)*IF(Berechnung!B59=Energieverbrauch!$B$2:$B$41,1,0)*IF(Berechnung!F59=Energieverbrauch!$C$2:$C$41,1,0)*Energieverbrauch!$D$2:$D$41)) ->  | K59: =IF(G59="","",J59/IF($C59="Schweröl (HFO)", Treibhausgas_Kennzahlen!B$7,IF(Berechnung!C59="Dieselöl (MDO)",Treibhausgas_Kennzahlen!B$9,Treibhausgas_Kennzahlen!B$8))) ->  | L59: =IF(G59="","",$K59*IF($C59="Schweröl (HFO)",Treibhausgas_Kennzahlen!B$14,IF(Berechnung!C59="Dieselöl (MDO)", Treibhausgas_Kennzahlen!B$16,Treibhausgas_Kennzahlen!B$15))) ->  | M59: =IF(G59="","",$K59*IF($C59="Schweröl (HFO)",Treibhausgas_Kennzahlen!C$14,IF(Berechnung!D59="Dieselöl (MDO)", Treibhausgas_Kennzahlen!C$16,Treibhausgas_Kennzahlen!C$15))) ->  | N59: =IF(G59="","",$J59*IF($C59="Schweröl (HFO)",Treibhausgas_Kennzahlen!D$14,IF(Berechnung!C59="Dieselöl (MDO)",Treibhausgas_Kennzahlen!D$16,Treibhausgas_Kennzahlen!D$15))) ->  | O59: =IF(G59="","",$J59*IF($C59="Schweröl (HFO)",Treibhausgas_Kennzahlen!E$14,IF(Berechnung!D59="Dieselöl (MDO)",Treibhausgas_Kennzahlen!E$16,Treibhausgas_Kennzahlen!E$15))) ->  | P59: =IF(G59="","",$J59*IF($C59="Schweröl (HFO)",Treibhausgas_Kennzahlen!F$14,IF(Berechnung!E59="Dieselöl (MDO)",Treibhausgas_Kennzahlen!F$16,Treibhausgas_Kennzahlen!F$15))) ->  | Q59: =IF(G59="","",$J59*IF($C59="Schweröl (HFO)",Treibhausgas_Kennzahlen!G$14,IF(Berechnung!F59="Dieselöl (MDO)",Treibhausgas_Kennzahlen!G$16,Treibhausgas_Kennzahlen!G$15))) -> 
H60: =IF(G60="","",VLOOKUP(INDEX(Seehäfen!$A$3:$A$502, MATCH(Berechnung!D60,Seehäfen!$B$3:$B$502,0))&"_"&INDEX(Seehäfen!$A$3:$A$502, MATCH(Berechnung!E60,Seehäfen!$B$3:$B$502,0)),Entfernung_Seehäfen!$C$2:$E$100001,2,FALSE)) ->  | I60: =IF(G60="","",SUM(IF(A60=Energieverbrauch!$A$2:$A$41,1,0)*IF(Berechnung!B60=Energieverbrauch!$B$2:$B$41,1,0)*IF(Berechnung!F60=Energieverbrauch!$C$2:$C$41,1,0)*Energieverbrauch!$D$2:$D$41)) ->  | K60: =IF(G60="","",J60/IF($C60="Schweröl (HFO)", Treibhausgas_Kennzahlen!B$7,IF(Berechnung!C60="Dieselöl (MDO)",Treibhausgas_Kennzahlen!B$9,Treibhausgas_Kennzahlen!B$8))) ->  | L60: =IF(G60="","",$K60*IF($C60="Schweröl (HFO)",Treibhausgas_Kennzahlen!B$14,IF(Berechnung!C60="Dieselöl (MDO)", Treibhausgas_Kennzahlen!B$16,Treibhausgas_Kennzahlen!B$15))) ->  | M60: =IF(G60="","",$K60*IF($C60="Schweröl (HFO)",Treibhausgas_Kennzahlen!C$14,IF(Berechnung!D60="Dieselöl (MDO)", Treibhausgas_Kennzahlen!C$16,Treibhausgas_Kennzahlen!C$15))) ->  | N60: =IF(G60="","",$J60*IF($C60="Schweröl (HFO)",Treibhausgas_Kennzahlen!D$14,IF(Berechnung!C60="Dieselöl (MDO)",Treibhausgas_Kennzahlen!D$16,Treibhausgas_Kennzahlen!D$15))) ->  | O60: =IF(G60="","",$J60*IF($C60="Schweröl (HFO)",Treibhausgas_Kennzahlen!E$14,IF(Berechnung!D60="Dieselöl (MDO)",Treibhausgas_Kennzahlen!E$16,Treibhausgas_Kennzahlen!E$15))) ->  | P60: =IF(G60="","",$J60*IF($C60="Schweröl (HFO)",Treibhausgas_Kennzahlen!F$14,IF(Berechnung!E60="Dieselöl (MDO)",Treibhausgas_Kennzahlen!F$16,Treibhausgas_Kennzahlen!F$15))) ->  | Q60: =IF(G60="","",$J60*IF($C60="Schweröl (HFO)",Treibhausgas_Kennzahlen!G$14,IF(Berechnung!F60="Dieselöl (MDO)",Treibhausgas_Kennzahlen!G$16,Treibhausgas_Kennzahlen!G$15))) -> 
H61: =IF(G61="","",VLOOKUP(INDEX(Seehäfen!$A$3:$A$502, MATCH(Berechnung!D61,Seehäfen!$B$3:$B$502,0))&"_"&INDEX(Seehäfen!$A$3:$A$502, MATCH(Berechnung!E61,Seehäfen!$B$3:$B$502,0)),Entfernung_Seehäfen!$C$2:$E$10001,2,FALSE)) ->  | I61: =IF(G61="","",SUM(IF(A61=Energieverbrauch!$A$2:$A$41,1,0)*IF(Berechnung!B61=Energieverbrauch!$B$2:$B$41,1,0)*IF(Berechnung!F61=Energieverbrauch!$C$2:$C$41,1,0)*Energieverbrauch!$D$2:$D$41)) ->  | K61: =IF(G61="","",J61/IF($C61="Schweröl (HFO)", Treibhausgas_Kennzahlen!B$7,IF(Berechnung!C61="Dieselöl (MDO)",Treibhausgas_Kennzahlen!B$9,Treibhausgas_Kennzahlen!B$8))) ->  | L61: =IF(G61="","",$K61*IF($C61="Schweröl (HFO)",Treibhausgas_Kennzahlen!B$14,IF(Berechnung!C61="Dieselöl (MDO)", Treibhausgas_Kennzahlen!B$16,Treibhausgas_Kennzahlen!B$15))) ->  | M61: =IF(G61="","",$K61*IF($C61="Schweröl (HFO)",Treibhausgas_Kennzahlen!C$14,IF(Berechnung!D61="Dieselöl (MDO)", Treibhausgas_Kennzahlen!C$16,Treibhausgas_Kennzahlen!C$15))) ->  | N61: =IF(G61="","",$J61*IF($C61="Schweröl (HFO)",Treibhausgas_Kennzahlen!D$14,IF(Berechnung!C61="Dieselöl (MDO)",Treibhausgas_Kennzahlen!D$16,Treibhausgas_Kennzahlen!D$15))) ->  | O61: =IF(G61="","",$J61*IF($C61="Schweröl (HFO)",Treibhausgas_Kennzahlen!E$14,IF(Berechnung!D61="Dieselöl (MDO)",Treibhausgas_Kennzahlen!E$16,Treibhausgas_Kennzahlen!E$15))) ->  | P61: =IF(G61="","",$J61*IF($C61="Schweröl (HFO)",Treibhausgas_Kennzahlen!F$14,IF(Berechnung!E61="Dieselöl (MDO)",Treibhausgas_Kennzahlen!F$16,Treibhausgas_Kennzahlen!F$15))) ->  | Q61: =IF(G61="","",$J61*IF($C61="Schweröl (HFO)",Treibhausgas_Kennzahlen!G$14,IF(Berechnung!F61="Dieselöl (MDO)",Treibhausgas_Kennzahlen!G$16,Treibhausgas_Kennzahlen!G$15))) -> 
H62: =IF(G62="","",VLOOKUP(INDEX(Seehäfen!$A$3:$A$502, MATCH(Berechnung!D62,Seehäfen!$B$3:$B$502,0))&"_"&INDEX(Seehäfen!$A$3:$A$502, MATCH(Berechnung!E62,Seehäfen!$B$3:$B$502,0)),Entfernung_Seehäfen!$C$2:$E$100001,2,FALSE)) ->  | I62: =IF(G62="","",SUM(IF(A62=Energieverbrauch!$A$2:$A$41,1,0)*IF(Berechnung!B62=Energieverbrauch!$B$2:$B$41,1,0)*IF(Berechnung!F62=Energieverbrauch!$C$2:$C$41,1,0)*Energieverbrauch!$D$2:$D$41)) ->  | K62: =IF(G62="","",J62/IF($C62="Schweröl (HFO)", Treibhausgas_Kennzahlen!B$7,IF(Berechnung!C62="Dieselöl (MDO)",Treibhausgas_Kennzahlen!B$9,Treibhausgas_Kennzahlen!B$8))) ->  | L62: =IF(G62="","",$K62*IF($C62="Schweröl (HFO)",Treibhausgas_Kennzahlen!B$14,IF(Berechnung!C62="Dieselöl (MDO)", Treibhausgas_Kennzahlen!B$16,Treibhausgas_Kennzahlen!B$15))) ->  | M62: =IF(G62="","",$K62*IF($C62="Schweröl (HFO)",Treibhausgas_Kennzahlen!C$14,IF(Berechnung!D62="Dieselöl (MDO)", Treibhausgas_Kennzahlen!C$16,Treibhausgas_Kennzahlen!C$15))) ->  | N62: =IF(G62="","",$J62*IF($C62="Schweröl (HFO)",Treibhausgas_Kennzahlen!D$14,IF(Berechnung!C62="Dieselöl (MDO)",Treibhausgas_Kennzahlen!D$16,Treibhausgas_Kennzahlen!D$15))) ->  | O62: =IF(G62="","",$J62*IF($C62="Schweröl (HFO)",Treibhausgas_Kennzahlen!E$14,IF(Berechnung!D62="Dieselöl (MDO)",Treibhausgas_Kennzahlen!E$16,Treibhausgas_Kennzahlen!E$15))) ->  | P62: =IF(G62="","",$J62*IF($C62="Schweröl (HFO)",Treibhausgas_Kennzahlen!F$14,IF(Berechnung!E62="Dieselöl (MDO)",Treibhausgas_Kennzahlen!F$16,Treibhausgas_Kennzahlen!F$15))) ->  | Q62: =IF(G62="","",$J62*IF($C62="Schweröl (HFO)",Treibhausgas_Kennzahlen!G$14,IF(Berechnung!F62="Dieselöl (MDO)",Treibhausgas_Kennzahlen!G$16,Treibhausgas_Kennzahlen!G$15))) -> 
H63: =IF(G63="","",VLOOKUP(INDEX(Seehäfen!$A$3:$A$502, MATCH(Berechnung!D63,Seehäfen!$B$3:$B$502,0))&"_"&INDEX(Seehäfen!$A$3:$A$502, MATCH(Berechnung!E63,Seehäfen!$B$3:$B$502,0)),Entfernung_Seehäfen!$C$2:$E$10001,2,FALSE)) ->  | I63: =IF(G63="","",SUM(IF(A63=Energieverbrauch!$A$2:$A$41,1,0)*IF(Berechnung!B63=Energieverbrauch!$B$2:$B$41,1,0)*IF(Berechnung!F63=Energieverbrauch!$C$2:$C$41,1,0)*Energieverbrauch!$D$2:$D$41)) ->  | K63: =IF(G63="","",J63/IF($C63="Schweröl (HFO)", Treibhausgas_Kennzahlen!B$7,IF(Berechnung!C63="Dieselöl (MDO)",Treibhausgas_Kennzahlen!B$9,Treibhausgas_Kennzahlen!B$8))) ->  | L63: =IF(G63="","",$K63*IF($C63="Schweröl (HFO)",Treibhausgas_Kennzahlen!B$14,IF(Berechnung!C63="Dieselöl (MDO)", Treibhausgas_Kennzahlen!B$16,Treibhausgas_Kennzahlen!B$15))) ->  | M63: =IF(G63="","",$K63*IF($C63="Schweröl (HFO)",Treibhausgas_Kennzahlen!C$14,IF(Berechnung!D63="Dieselöl (MDO)", Treibhausgas_Kennzahlen!C$16,Treibhausgas_Kennzahlen!C$15))) ->  | N63: =IF(G63="","",$J63*IF($C63="Schweröl (HFO)",Treibhausgas_Kennzahlen!D$14,IF(Berechnung!C63="Dieselöl (MDO)",Treibhausgas_Kennzahlen!D$16,Treibhausgas_Kennzahlen!D$15))) ->  | O63: =IF(G63="","",$J63*IF($C63="Schweröl (HFO)",Treibhausgas_Kennzahlen!E$14,IF(Berechnung!D63="Dieselöl (MDO)",Treibhausgas_Kennzahlen!E$16,Treibhausgas_Kennzahlen!E$15))) ->  | P63: =IF(G63="","",$J63*IF($C63="Schweröl (HFO)",Treibhausgas_Kennzahlen!F$14,IF(Berechnung!E63="Dieselöl (MDO)",Treibhausgas_Kennzahlen!F$16,Treibhausgas_Kennzahlen!F$15))) ->  | Q63: =IF(G63="","",$J63*IF($C63="Schweröl (HFO)",Treibhausgas_Kennzahlen!G$14,IF(Berechnung!F63="Dieselöl (MDO)",Treibhausgas_Kennzahlen!G$16,Treibhausgas_Kennzahlen!G$15))) -> 
H64: =IF(G64="","",VLOOKUP(INDEX(Seehäfen!$A$3:$A$502, MATCH(Berechnung!D64,Seehäfen!$B$3:$B$502,0))&"_"&INDEX(Seehäfen!$A$3:$A$502, MATCH(Berechnung!E64,Seehäfen!$B$3:$B$502,0)),Entfernung_Seehäfen!$C$2:$E$100001,2,FALSE)) ->  | I64: =IF(G64="","",SUM(IF(A64=Energieverbrauch!$A$2:$A$41,1,0)*IF(Berechnung!B64=Energieverbrauch!$B$2:$B$41,1,0)*IF(Berechnung!F64=Energieverbrauch!$C$2:$C$41,1,0)*Energieverbrauch!$D$2:$D$41)) ->  | K64: =IF(G64="","",J64/IF($C64="Schweröl (HFO)", Treibhausgas_Kennzahlen!B$7,IF(Berechnung!C64="Dieselöl (MDO)",Treibhausgas_Kennzahlen!B$9,Treibhausgas_Kennzahlen!B$8))) ->  | L64: =IF(G64="","",$K64*IF($C64="Schweröl (HFO)",Treibhausgas_Kennzahlen!B$14,IF(Berechnung!C64="Dieselöl (MDO)", Treibhausgas_Kennzahlen!B$16,Treibhausgas_Kennzahlen!B$15))) ->  | M64: =IF(G64="","",$K64*IF($C64="Schweröl (HFO)",Treibhausgas_Kennzahlen!C$14,IF(Berechnung!D64="Dieselöl (MDO)", Treibhausgas_Kennzahlen!C$16,Treibhausgas_Kennzahlen!C$15))) ->  | N64: =IF(G64="","",$J64*IF($C64="Schweröl (HFO)",Treibhausgas_Kennzahlen!D$14,IF(Berechnung!C64="Dieselöl (MDO)",Treibhausgas_Kennzahlen!D$16,Treibhausgas_Kennzahlen!D$15))) ->  | O64: =IF(G64="","",$J64*IF($C64="Schweröl (HFO)",Treibhausgas_Kennzahlen!E$14,IF(Berechnung!D64="Dieselöl (MDO)",Treibhausgas_Kennzahlen!E$16,Treibhausgas_Kennzahlen!E$15))) ->  | P64: =IF(G64="","",$J64*IF($C64="Schweröl (HFO)",Treibhausgas_Kennzahlen!F$14,IF(Berechnung!E64="Dieselöl (MDO)",Treibhausgas_Kennzahlen!F$16,Treibhausgas_Kennzahlen!F$15))) ->  | Q64: =IF(G64="","",$J64*IF($C64="Schweröl (HFO)",Treibhausgas_Kennzahlen!G$14,IF(Berechnung!F64="Dieselöl (MDO)",Treibhausgas_Kennzahlen!G$16,Treibhausgas_Kennzahlen!G$15))) -> 
H65: =IF(G65="","",VLOOKUP(INDEX(Seehäfen!$A$3:$A$502, MATCH(Berechnung!D65,Seehäfen!$B$3:$B$502,0))&"_"&INDEX(Seehäfen!$A$3:$A$502, MATCH(Berechnung!E65,Seehäfen!$B$3:$B$502,0)),Entfernung_Seehäfen!$C$2:$E$10001,2,FALSE)) ->  | I65: =IF(G65="","",SUM(IF(A65=Energieverbrauch!$A$2:$A$41,1,0)*IF(Berechnung!B65=Energieverbrauch!$B$2:$B$41,1,0)*IF(Berechnung!F65=Energieverbrauch!$C$2:$C$41,1,0)*Energieverbrauch!$D$2:$D$41)) ->  | K65: =IF(G65="","",J65/IF($C65="Schweröl (HFO)", Treibhausgas_Kennzahlen!B$7,IF(Berechnung!C65="Dieselöl (MDO)",Treibhausgas_Kennzahlen!B$9,Treibhausgas_Kennzahlen!B$8))) ->  | L65: =IF(G65="","",$K65*IF($C65="Schweröl (HFO)",Treibhausgas_Kennzahlen!B$14,IF(Berechnung!C65="Dieselöl (MDO)", Treibhausgas_Kennzahlen!B$16,Treibhausgas_Kennzahlen!B$15))) ->  | M65: =IF(G65="","",$K65*IF($C65="Schweröl (HFO)",Treibhausgas_Kennzahlen!C$14,IF(Berechnung!D65="Dieselöl (MDO)", Treibhausgas_Kennzahlen!C$16,Treibhausgas_Kennzahlen!C$15))) ->  | N65: =IF(G65="","",$J65*IF($C65="Schweröl (HFO)",Treibhausgas_Kennzahlen!D$14,IF(Berechnung!C65="Dieselöl (MDO)",Treibhausgas_Kennzahlen!D$16,Treibhausgas_Kennzahlen!D$15))) ->  | O65: =IF(G65="","",$J65*IF($C65="Schweröl (HFO)",Treibhausgas_Kennzahlen!E$14,IF(Berechnung!D65="Dieselöl (MDO)",Treibhausgas_Kennzahlen!E$16,Treibhausgas_Kennzahlen!E$15))) ->  | P65: =IF(G65="","",$J65*IF($C65="Schweröl (HFO)",Treibhausgas_Kennzahlen!F$14,IF(Berechnung!E65="Dieselöl (MDO)",Treibhausgas_Kennzahlen!F$16,Treibhausgas_Kennzahlen!F$15))) ->  | Q65: =IF(G65="","",$J65*IF($C65="Schweröl (HFO)",Treibhausgas_Kennzahlen!G$14,IF(Berechnung!F65="Dieselöl (MDO)",Treibhausgas_Kennzahlen!G$16,Treibhausgas_Kennzahlen!G$15))) -> 
H66: =IF(G66="","",VLOOKUP(INDEX(Seehäfen!$A$3:$A$502, MATCH(Berechnung!D66,Seehäfen!$B$3:$B$502,0))&"_"&INDEX(Seehäfen!$A$3:$A$502, MATCH(Berechnung!E66,Seehäfen!$B$3:$B$502,0)),Entfernung_Seehäfen!$C$2:$E$100001,2,FALSE)) ->  | I66: =IF(G66="","",SUM(IF(A66=Energieverbrauch!$A$2:$A$41,1,0)*IF(Berechnung!B66=Energieverbrauch!$B$2:$B$41,1,0)*IF(Berechnung!F66=Energieverbrauch!$C$2:$C$41,1,0)*Energieverbrauch!$D$2:$D$41)) ->  | K66: =IF(G66="","",J66/IF($C66="Schweröl (HFO)", Treibhausgas_Kennzahlen!B$7,IF(Berechnung!C66="Dieselöl (MDO)",Treibhausgas_Kennzahlen!B$9,Treibhausgas_Kennzahlen!B$8))) ->  | L66: =IF(G66="","",$K66*IF($C66="Schweröl (HFO)",Treibhausgas_Kennzahlen!B$14,IF(Berechnung!C66="Dieselöl (MDO)", Treibhausgas_Kennzahlen!B$16,Treibhausgas_Kennzahlen!B$15))) ->  | M66: =IF(G66="","",$K66*IF($C66="Schweröl (HFO)",Treibhausgas_Kennzahlen!C$14,IF(Berechnung!D66="Dieselöl (MDO)", Treibhausgas_Kennzahlen!C$16,Treibhausgas_Kennzahlen!C$15))) ->  | N66: =IF(G66="","",$J66*IF($C66="Schweröl (HFO)",Treibhausgas_Kennzahlen!D$14,IF(Berechnung!C66="Dieselöl (MDO)",Treibhausgas_Kennzahlen!D$16,Treibhausgas_Kennzahlen!D$15))) ->  | O66: =IF(G66="","",$J66*IF($C66="Schweröl (HFO)",Treibhausgas_Kennzahlen!E$14,IF(Berechnung!D66="Dieselöl (MDO)",Treibhausgas_Kennzahlen!E$16,Treibhausgas_Kennzahlen!E$15))) ->  | P66: =IF(G66="","",$J66*IF($C66="Schweröl (HFO)",Treibhausgas_Kennzahlen!F$14,IF(Berechnung!E66="Dieselöl (MDO)",Treibhausgas_Kennzahlen!F$16,Treibhausgas_Kennzahlen!F$15))) ->  | Q66: =IF(G66="","",$J66*IF($C66="Schweröl (HFO)",Treibhausgas_Kennzahlen!G$14,IF(Berechnung!F66="Dieselöl (MDO)",Treibhausgas_Kennzahlen!G$16,Treibhausgas_Kennzahlen!G$15))) -> 
H67: =IF(G67="","",VLOOKUP(INDEX(Seehäfen!$A$3:$A$502, MATCH(Berechnung!D67,Seehäfen!$B$3:$B$502,0))&"_"&INDEX(Seehäfen!$A$3:$A$502, MATCH(Berechnung!E67,Seehäfen!$B$3:$B$502,0)),Entfernung_Seehäfen!$C$2:$E$10001,2,FALSE)) ->  | I67: =IF(G67="","",SUM(IF(A67=Energieverbrauch!$A$2:$A$41,1,0)*IF(Berechnung!B67=Energieverbrauch!$B$2:$B$41,1,0)*IF(Berechnung!F67=Energieverbrauch!$C$2:$C$41,1,0)*Energieverbrauch!$D$2:$D$41)) ->  | K67: =IF(G67="","",J67/IF($C67="Schweröl (HFO)", Treibhausgas_Kennzahlen!B$7,IF(Berechnung!C67="Dieselöl (MDO)",Treibhausgas_Kennzahlen!B$9,Treibhausgas_Kennzahlen!B$8))) ->  | L67: =IF(G67="","",$K67*IF($C67="Schweröl (HFO)",Treibhausgas_Kennzahlen!B$14,IF(Berechnung!C67="Dieselöl (MDO)", Treibhausgas_Kennzahlen!B$16,Treibhausgas_Kennzahlen!B$15))) ->  | M67: =IF(G67="","",$K67*IF($C67="Schweröl (HFO)",Treibhausgas_Kennzahlen!C$14,IF(Berechnung!D67="Dieselöl (MDO)", Treibhausgas_Kennzahlen!C$16,Treibhausgas_Kennzahlen!C$15))) ->  | N67: =IF(G67="","",$J67*IF($C67="Schweröl (HFO)",Treibhausgas_Kennzahlen!D$14,IF(Berechnung!C67="Dieselöl (MDO)",Treibhausgas_Kennzahlen!D$16,Treibhausgas_Kennzahlen!D$15))) ->  | O67: =IF(G67="","",$J67*IF($C67="Schweröl (HFO)",Treibhausgas_Kennzahlen!E$14,IF(Berechnung!D67="Dieselöl (MDO)",Treibhausgas_Kennzahlen!E$16,Treibhausgas_Kennzahlen!E$15))) ->  | P67: =IF(G67="","",$J67*IF($C67="Schweröl (HFO)",Treibhausgas_Kennzahlen!F$14,IF(Berechnung!E67="Dieselöl (MDO)",Treibhausgas_Kennzahlen!F$16,Treibhausgas_Kennzahlen!F$15))) ->  | Q67: =IF(G67="","",$J67*IF($C67="Schweröl (HFO)",Treibhausgas_Kennzahlen!G$14,IF(Berechnung!F67="Dieselöl (MDO)",Treibhausgas_Kennzahlen!G$16,Treibhausgas_Kennzahlen!G$15))) -> 
H68: =IF(G68="","",VLOOKUP(INDEX(Seehäfen!$A$3:$A$502, MATCH(Berechnung!D68,Seehäfen!$B$3:$B$502,0))&"_"&INDEX(Seehäfen!$A$3:$A$502, MATCH(Berechnung!E68,Seehäfen!$B$3:$B$502,0)),Entfernung_Seehäfen!$C$2:$E$100001,2,FALSE)) ->  | I68: =IF(G68="","",SUM(IF(A68=Energieverbrauch!$A$2:$A$41,1,0)*IF(Berechnung!B68=Energieverbrauch!$B$2:$B$41,1,0)*IF(Berechnung!F68=Energieverbrauch!$C$2:$C$41,1,0)*Energieverbrauch!$D$2:$D$41)) ->  | K68: =IF(G68="","",J68/IF($C68="Schweröl (HFO)", Treibhausgas_Kennzahlen!B$7,IF(Berechnung!C68="Dieselöl (MDO)",Treibhausgas_Kennzahlen!B$9,Treibhausgas_Kennzahlen!B$8))) ->  | L68: =IF(G68="","",$K68*IF($C68="Schweröl (HFO)",Treibhausgas_Kennzahlen!B$14,IF(Berechnung!C68="Dieselöl (MDO)", Treibhausgas_Kennzahlen!B$16,Treibhausgas_Kennzahlen!B$15))) ->  | M68: =IF(G68="","",$K68*IF($C68="Schweröl (HFO)",Treibhausgas_Kennzahlen!C$14,IF(Berechnung!D68="Dieselöl (MDO)", Treibhausgas_Kennzahlen!C$16,Treibhausgas_Kennzahlen!C$15))) ->  | N68: =IF(G68="","",$J68*IF($C68="Schweröl (HFO)",Treibhausgas_Kennzahlen!D$14,IF(Berechnung!C68="Dieselöl (MDO)",Treibhausgas_Kennzahlen!D$16,Treibhausgas_Kennzahlen!D$15))) ->  | O68: =IF(G68="","",$J68*IF($C68="Schweröl (HFO)",Treibhausgas_Kennzahlen!E$14,IF(Berechnung!D68="Dieselöl (MDO)",Treibhausgas_Kennzahlen!E$16,Treibhausgas_Kennzahlen!E$15))) ->  | P68: =IF(G68="","",$J68*IF($C68="Schweröl (HFO)",Treibhausgas_Kennzahlen!F$14,IF(Berechnung!E68="Dieselöl (MDO)",Treibhausgas_Kennzahlen!F$16,Treibhausgas_Kennzahlen!F$15))) ->  | Q68: =IF(G68="","",$J68*IF($C68="Schweröl (HFO)",Treibhausgas_Kennzahlen!G$14,IF(Berechnung!F68="Dieselöl (MDO)",Treibhausgas_Kennzahlen!G$16,Treibhausgas_Kennzahlen!G$15))) -> 
H69: =IF(G69="","",VLOOKUP(INDEX(Seehäfen!$A$3:$A$502, MATCH(Berechnung!D69,Seehäfen!$B$3:$B$502,0))&"_"&INDEX(Seehäfen!$A$3:$A$502, MATCH(Berechnung!E69,Seehäfen!$B$3:$B$502,0)),Entfernung_Seehäfen!$C$2:$E$10001,2,FALSE)) ->  | I69: =IF(G69="","",SUM(IF(A69=Energieverbrauch!$A$2:$A$41,1,0)*IF(Berechnung!B69=Energieverbrauch!$B$2:$B$41,1,0)*IF(Berechnung!F69=Energieverbrauch!$C$2:$C$41,1,0)*Energieverbrauch!$D$2:$D$41)) ->  | K69: =IF(G69="","",J69/IF($C69="Schweröl (HFO)", Treibhausgas_Kennzahlen!B$7,IF(Berechnung!C69="Dieselöl (MDO)",Treibhausgas_Kennzahlen!B$9,Treibhausgas_Kennzahlen!B$8))) ->  | L69: =IF(G69="","",$K69*IF($C69="Schweröl (HFO)",Treibhausgas_Kennzahlen!B$14,IF(Berechnung!C69="Dieselöl (MDO)", Treibhausgas_Kennzahlen!B$16,Treibhausgas_Kennzahlen!B$15))) ->  | M69: =IF(G69="","",$K69*IF($C69="Schweröl (HFO)",Treibhausgas_Kennzahlen!C$14,IF(Berechnung!D69="Dieselöl (MDO)", Treibhausgas_Kennzahlen!C$16,Treibhausgas_Kennzahlen!C$15))) ->  | N69: =IF(G69="","",$J69*IF($C69="Schweröl (HFO)",Treibhausgas_Kennzahlen!D$14,IF(Berechnung!C69="Dieselöl (MDO)",Treibhausgas_Kennzahlen!D$16,Treibhausgas_Kennzahlen!D$15))) ->  | O69: =IF(G69="","",$J69*IF($C69="Schweröl (HFO)",Treibhausgas_Kennzahlen!E$14,IF(Berechnung!D69="Dieselöl (MDO)",Treibhausgas_Kennzahlen!E$16,Treibhausgas_Kennzahlen!E$15))) ->  | P69: =IF(G69="","",$J69*IF($C69="Schweröl (HFO)",Treibhausgas_Kennzahlen!F$14,IF(Berechnung!E69="Dieselöl (MDO)",Treibhausgas_Kennzahlen!F$16,Treibhausgas_Kennzahlen!F$15))) ->  | Q69: =IF(G69="","",$J69*IF($C69="Schweröl (HFO)",Treibhausgas_Kennzahlen!G$14,IF(Berechnung!F69="Dieselöl (MDO)",Treibhausgas_Kennzahlen!G$16,Treibhausgas_Kennzahlen!G$15))) -> 
C70: =IF(B70="","","Schweröl (HFO)") ->  | H70: =IF(G70="","",VLOOKUP(INDEX(Seehäfen!$A$3:$A$502, MATCH(Berechnung!D70,Seehäfen!$B$3:$B$502,0))&"_"&INDEX(Seehäfen!$A$3:$A$502, MATCH(Berechnung!E70,Seehäfen!$B$3:$B$502,0)),Entfernung_Seehäfen!$C$2:$E$100001,2,FALSE)) ->  | I70: =IF(G70="","",SUM(IF(A70=Energieverbrauch!$A$2:$A$41,1,0)*IF(Berechnung!B70=Energieverbrauch!$B$2:$B$41,1,0)*IF(Berechnung!F70=Energieverbrauch!$C$2:$C$41,1,0)*Energieverbrauch!$D$2:$D$41)) ->  | J70: =IF(G70="","",PRODUCT(H70,I70,G70)/1000) ->  | K70: =IF(G70="","",J70/IF($C70="Schweröl (HFO)", Treibhausgas_Kennzahlen!B$7,IF(Berechnung!C70="Dieselöl (MDO)",Treibhausgas_Kennzahlen!B$9,Treibhausgas_Kennzahlen!B$8))) ->  | L70: =IF(G70="","",$K70*IF($C70="Schweröl (HFO)",Treibhausgas_Kennzahlen!B$14,IF(Berechnung!C70="Dieselöl (MDO)", Treibhausgas_Kennzahlen!B$16,Treibhausgas_Kennzahlen!B$15))) ->  | M70: =IF(G70="","",$K70*IF($C70="Schweröl (HFO)",Treibhausgas_Kennzahlen!C$14,IF(Berechnung!D70="Dieselöl (MDO)", Treibhausgas_Kennzahlen!C$16,Treibhausgas_Kennzahlen!C$15))) ->  | N70: =IF(G70="","",$J70*IF($C70="Schweröl (HFO)",Treibhausgas_Kennzahlen!D$14,IF(Berechnung!C70="Dieselöl (MDO)",Treibhausgas_Kennzahlen!D$16,Treibhausgas_Kennzahlen!D$15))) ->  | O70: =IF(G70="","",$J70*IF($C70="Schweröl (HFO)",Treibhausgas_Kennzahlen!E$14,IF(Berechnung!D70="Dieselöl (MDO)",Treibhausgas_Kennzahlen!E$16,Treibhausgas_Kennzahlen!E$15))) ->  | P70: =IF(G70="","",$J70*IF($C70="Schweröl (HFO)",Treibhausgas_Kennzahlen!F$14,IF(Berechnung!E70="Dieselöl (MDO)",Treibhausgas_Kennzahlen!F$16,Treibhausgas_Kennzahlen!F$15))) ->  | Q70: =IF(G70="","",$J70*IF($C70="Schweröl (HFO)",Treibhausgas_Kennzahlen!G$14,IF(Berechnung!F70="Dieselöl (MDO)",Treibhausgas_Kennzahlen!G$16,Treibhausgas_Kennzahlen!G$15))) -> 
H71: =IF(G71="","",VLOOKUP(INDEX(Seehäfen!$A$3:$A$502, MATCH(Berechnung!D71,Seehäfen!$B$3:$B$502,0))&"_"&INDEX(Seehäfen!$A$3:$A$502, MATCH(Berechnung!E71,Seehäfen!$B$3:$B$502,0)),Entfernung_Seehäfen!$C$2:$E$10001,2,FALSE)) ->  | I71: =IF(G71="","",SUM(IF(A71=Energieverbrauch!$A$2:$A$41,1,0)*IF(Berechnung!B71=Energieverbrauch!$B$2:$B$41,1,0)*IF(Berechnung!F71=Energieverbrauch!$C$2:$C$41,1,0)*Energieverbrauch!$D$2:$D$41)) ->  | K71: =IF(G71="","",J71/IF($C71="Schweröl (HFO)", Treibhausgas_Kennzahlen!B$7,IF(Berechnung!C71="Dieselöl (MDO)",Treibhausgas_Kennzahlen!B$9,Treibhausgas_Kennzahlen!B$8))) ->  | L71: =IF(G71="","",$K71*IF($C71="Schweröl (HFO)",Treibhausgas_Kennzahlen!B$14,IF(Berechnung!C71="Dieselöl (MDO)", Treibhausgas_Kennzahlen!B$16,Treibhausgas_Kennzahlen!B$15))) ->  | M71: =IF(G71="","",$K71*IF($C71="Schweröl (HFO)",Treibhausgas_Kennzahlen!C$14,IF(Berechnung!D71="Dieselöl (MDO)", Treibhausgas_Kennzahlen!C$16,Treibhausgas_Kennzahlen!C$15))) ->  | N71: =IF(G71="","",$J71*IF($C71="Schweröl (HFO)",Treibhausgas_Kennzahlen!D$14,IF(Berechnung!C71="Dieselöl (MDO)",Treibhausgas_Kennzahlen!D$16,Treibhausgas_Kennzahlen!D$15))) ->  | O71: =IF(G71="","",$J71*IF($C71="Schweröl (HFO)",Treibhausgas_Kennzahlen!E$14,IF(Berechnung!D71="Dieselöl (MDO)",Treibhausgas_Kennzahlen!E$16,Treibhausgas_Kennzahlen!E$15))) ->  | P71: =IF(G71="","",$J71*IF($C71="Schweröl (HFO)",Treibhausgas_Kennzahlen!F$14,IF(Berechnung!E71="Dieselöl (MDO)",Treibhausgas_Kennzahlen!F$16,Treibhausgas_Kennzahlen!F$15))) ->  | Q71: =IF(G71="","",$J71*IF($C71="Schweröl (HFO)",Treibhausgas_Kennzahlen!G$14,IF(Berechnung!F71="Dieselöl (MDO)",Treibhausgas_Kennzahlen!G$16,Treibhausgas_Kennzahlen!G$15))) -> 
H72: =IF(G72="","",VLOOKUP(INDEX(Seehäfen!$A$3:$A$502, MATCH(Berechnung!D72,Seehäfen!$B$3:$B$502,0))&"_"&INDEX(Seehäfen!$A$3:$A$502, MATCH(Berechnung!E72,Seehäfen!$B$3:$B$502,0)),Entfernung_Seehäfen!$C$2:$E$100001,2,FALSE)) ->  | I72: =IF(G72="","",SUM(IF(A72=Energieverbrauch!$A$2:$A$41,1,0)*IF(Berechnung!B72=Energieverbrauch!$B$2:$B$41,1,0)*IF(Berechnung!F72=Energieverbrauch!$C$2:$C$41,1,0)*Energieverbrauch!$D$2:$D$41)) ->  | K72: =IF(G72="","",J72/IF($C72="Schweröl (HFO)", Treibhausgas_Kennzahlen!B$7,IF(Berechnung!C72="Dieselöl (MDO)",Treibhausgas_Kennzahlen!B$9,Treibhausgas_Kennzahlen!B$8))) ->  | L72: =IF(G72="","",$K72*IF($C72="Schweröl (HFO)",Treibhausgas_Kennzahlen!B$14,IF(Berechnung!C72="Dieselöl (MDO)", Treibhausgas_Kennzahlen!B$16,Treibhausgas_Kennzahlen!B$15))) ->  | M72: =IF(G72="","",$K72*IF($C72="Schweröl (HFO)",Treibhausgas_Kennzahlen!C$14,IF(Berechnung!D72="Dieselöl (MDO)", Treibhausgas_Kennzahlen!C$16,Treibhausgas_Kennzahlen!C$15))) ->  | N72: =IF(G72="","",$J72*IF($C72="Schweröl (HFO)",Treibhausgas_Kennzahlen!D$14,IF(Berechnung!C72="Dieselöl (MDO)",Treibhausgas_Kennzahlen!D$16,Treibhausgas_Kennzahlen!D$15))) ->  | O72: =IF(G72="","",$J72*IF($C72="Schweröl (HFO)",Treibhausgas_Kennzahlen!E$14,IF(Berechnung!D72="Dieselöl (MDO)",Treibhausgas_Kennzahlen!E$16,Treibhausgas_Kennzahlen!E$15))) ->  | P72: =IF(G72="","",$J72*IF($C72="Schweröl (HFO)",Treibhausgas_Kennzahlen!F$14,IF(Berechnung!E72="Dieselöl (MDO)",Treibhausgas_Kennzahlen!F$16,Treibhausgas_Kennzahlen!F$15))) ->  | Q72: =IF(G72="","",$J72*IF($C72="Schweröl (HFO)",Treibhausgas_Kennzahlen!G$14,IF(Berechnung!F72="Dieselöl (MDO)",Treibhausgas_Kennzahlen!G$16,Treibhausgas_Kennzahlen!G$15))) -> 
H73: =IF(G73="","",VLOOKUP(INDEX(Seehäfen!$A$3:$A$502, MATCH(Berechnung!D73,Seehäfen!$B$3:$B$502,0))&"_"&INDEX(Seehäfen!$A$3:$A$502, MATCH(Berechnung!E73,Seehäfen!$B$3:$B$502,0)),Entfernung_Seehäfen!$C$2:$E$10001,2,FALSE)) ->  | I73: =IF(G73="","",SUM(IF(A73=Energieverbrauch!$A$2:$A$41,1,0)*IF(Berechnung!B73=Energieverbrauch!$B$2:$B$41,1,0)*IF(Berechnung!F73=Energieverbrauch!$C$2:$C$41,1,0)*Energieverbrauch!$D$2:$D$41)) ->  | K73: =IF(G73="","",J73/IF($C73="Schweröl (HFO)", Treibhausgas_Kennzahlen!B$7,IF(Berechnung!C73="Dieselöl (MDO)",Treibhausgas_Kennzahlen!B$9,Treibhausgas_Kennzahlen!B$8))) ->  | L73: =IF(G73="","",$K73*IF($C73="Schweröl (HFO)",Treibhausgas_Kennzahlen!B$14,IF(Berechnung!C73="Dieselöl (MDO)", Treibhausgas_Kennzahlen!B$16,Treibhausgas_Kennzahlen!B$15))) ->  | M73: =IF(G73="","",$K73*IF($C73="Schweröl (HFO)",Treibhausgas_Kennzahlen!C$14,IF(Berechnung!D73="Dieselöl (MDO)", Treibhausgas_Kennzahlen!C$16,Treibhausgas_Kennzahlen!C$15))) ->  | N73: =IF(G73="","",$J73*IF($C73="Schweröl (HFO)",Treibhausgas_Kennzahlen!D$14,IF(Berechnung!C73="Dieselöl (MDO)",Treibhausgas_Kennzahlen!D$16,Treibhausgas_Kennzahlen!D$15))) ->  | O73: =IF(G73="","",$J73*IF($C73="Schweröl (HFO)",Treibhausgas_Kennzahlen!E$14,IF(Berechnung!D73="Dieselöl (MDO)",Treibhausgas_Kennzahlen!E$16,Treibhausgas_Kennzahlen!E$15))) ->  | P73: =IF(G73="","",$J73*IF($C73="Schweröl (HFO)",Treibhausgas_Kennzahlen!F$14,IF(Berechnung!E73="Dieselöl (MDO)",Treibhausgas_Kennzahlen!F$16,Treibhausgas_Kennzahlen!F$15))) ->  | Q73: =IF(G73="","",$J73*IF($C73="Schweröl (HFO)",Treibhausgas_Kennzahlen!G$14,IF(Berechnung!F73="Dieselöl (MDO)",Treibhausgas_Kennzahlen!G$16,Treibhausgas_Kennzahlen!G$15))) -> 
H74: =IF(G74="","",VLOOKUP(INDEX(Seehäfen!$A$3:$A$502, MATCH(Berechnung!D74,Seehäfen!$B$3:$B$502,0))&"_"&INDEX(Seehäfen!$A$3:$A$502, MATCH(Berechnung!E74,Seehäfen!$B$3:$B$502,0)),Entfernung_Seehäfen!$C$2:$E$100001,2,FALSE)) ->  | I74: =IF(G74="","",SUM(IF(A74=Energieverbrauch!$A$2:$A$41,1,0)*IF(Berechnung!B74=Energieverbrauch!$B$2:$B$41,1,0)*IF(Berechnung!F74=Energieverbrauch!$C$2:$C$41,1,0)*Energieverbrauch!$D$2:$D$41)) ->  | K74: =IF(G74="","",J74/IF($C74="Schweröl (HFO)", Treibhausgas_Kennzahlen!B$7,IF(Berechnung!C74="Dieselöl (MDO)",Treibhausgas_Kennzahlen!B$9,Treibhausgas_Kennzahlen!B$8))) ->  | L74: =IF(G74="","",$K74*IF($C74="Schweröl (HFO)",Treibhausgas_Kennzahlen!B$14,IF(Berechnung!C74="Dieselöl (MDO)", Treibhausgas_Kennzahlen!B$16,Treibhausgas_Kennzahlen!B$15))) ->  | M74: =IF(G74="","",$K74*IF($C74="Schweröl (HFO)",Treibhausgas_Kennzahlen!C$14,IF(Berechnung!D74="Dieselöl (MDO)", Treibhausgas_Kennzahlen!C$16,Treibhausgas_Kennzahlen!C$15))) ->  | N74: =IF(G74="","",$J74*IF($C74="Schweröl (HFO)",Treibhausgas_Kennzahlen!D$14,IF(Berechnung!C74="Dieselöl (MDO)",Treibhausgas_Kennzahlen!D$16,Treibhausgas_Kennzahlen!D$15))) ->  | O74: =IF(G74="","",$J74*IF($C74="Schweröl (HFO)",Treibhausgas_Kennzahlen!E$14,IF(Berechnung!D74="Dieselöl (MDO)",Treibhausgas_Kennzahlen!E$16,Treibhausgas_Kennzahlen!E$15))) ->  | P74: =IF(G74="","",$J74*IF($C74="Schweröl (HFO)",Treibhausgas_Kennzahlen!F$14,IF(Berechnung!E74="Dieselöl (MDO)",Treibhausgas_Kennzahlen!F$16,Treibhausgas_Kennzahlen!F$15))) ->  | Q74: =IF(G74="","",$J74*IF($C74="Schweröl (HFO)",Treibhausgas_Kennzahlen!G$14,IF(Berechnung!F74="Dieselöl (MDO)",Treibhausgas_Kennzahlen!G$16,Treibhausgas_Kennzahlen!G$15))) -> 
H75: =IF(G75="","",VLOOKUP(INDEX(Seehäfen!$A$3:$A$502, MATCH(Berechnung!D75,Seehäfen!$B$3:$B$502,0))&"_"&INDEX(Seehäfen!$A$3:$A$502, MATCH(Berechnung!E75,Seehäfen!$B$3:$B$502,0)),Entfernung_Seehäfen!$C$2:$E$10001,2,FALSE)) ->  | I75: =IF(G75="","",SUM(IF(A75=Energieverbrauch!$A$2:$A$41,1,0)*IF(Berechnung!B75=Energieverbrauch!$B$2:$B$41,1,0)*IF(Berechnung!F75=Energieverbrauch!$C$2:$C$41,1,0)*Energieverbrauch!$D$2:$D$41)) ->  | K75: =IF(G75="","",J75/IF($C75="Schweröl (HFO)", Treibhausgas_Kennzahlen!B$7,IF(Berechnung!C75="Dieselöl (MDO)",Treibhausgas_Kennzahlen!B$9,Treibhausgas_Kennzahlen!B$8))) ->  | L75: =IF(G75="","",$K75*IF($C75="Schweröl (HFO)",Treibhausgas_Kennzahlen!B$14,IF(Berechnung!C75="Dieselöl (MDO)", Treibhausgas_Kennzahlen!B$16,Treibhausgas_Kennzahlen!B$15))) ->  | M75: =IF(G75="","",$K75*IF($C75="Schweröl (HFO)",Treibhausgas_Kennzahlen!C$14,IF(Berechnung!D75="Dieselöl (MDO)", Treibhausgas_Kennzahlen!C$16,Treibhausgas_Kennzahlen!C$15))) ->  | N75: =IF(G75="","",$J75*IF($C75="Schweröl (HFO)",Treibhausgas_Kennzahlen!D$14,IF(Berechnung!C75="Dieselöl (MDO)",Treibhausgas_Kennzahlen!D$16,Treibhausgas_Kennzahlen!D$15))) ->  | O75: =IF(G75="","",$J75*IF($C75="Schweröl (HFO)",Treibhausgas_Kennzahlen!E$14,IF(Berechnung!D75="Dieselöl (MDO)",Treibhausgas_Kennzahlen!E$16,Treibhausgas_Kennzahlen!E$15))) ->  | P75: =IF(G75="","",$J75*IF($C75="Schweröl (HFO)",Treibhausgas_Kennzahlen!F$14,IF(Berechnung!E75="Dieselöl (MDO)",Treibhausgas_Kennzahlen!F$16,Treibhausgas_Kennzahlen!F$15))) ->  | Q75: =IF(G75="","",$J75*IF($C75="Schweröl (HFO)",Treibhausgas_Kennzahlen!G$14,IF(Berechnung!F75="Dieselöl (MDO)",Treibhausgas_Kennzahlen!G$16,Treibhausgas_Kennzahlen!G$15))) -> 
H76: =IF(G76="","",VLOOKUP(INDEX(Seehäfen!$A$3:$A$502, MATCH(Berechnung!D76,Seehäfen!$B$3:$B$502,0))&"_"&INDEX(Seehäfen!$A$3:$A$502, MATCH(Berechnung!E76,Seehäfen!$B$3:$B$502,0)),Entfernung_Seehäfen!$C$2:$E$100001,2,FALSE)) ->  | I76: =IF(G76="","",SUM(IF(A76=Energieverbrauch!$A$2:$A$41,1,0)*IF(Berechnung!B76=Energieverbrauch!$B$2:$B$41,1,0)*IF(Berechnung!F76=Energieverbrauch!$C$2:$C$41,1,0)*Energieverbrauch!$D$2:$D$41)) ->  | K76: =IF(G76="","",J76/IF($C76="Schweröl (HFO)", Treibhausgas_Kennzahlen!B$7,IF(Berechnung!C76="Dieselöl (MDO)",Treibhausgas_Kennzahlen!B$9,Treibhausgas_Kennzahlen!B$8))) ->  | L76: =IF(G76="","",$K76*IF($C76="Schweröl (HFO)",Treibhausgas_Kennzahlen!B$14,IF(Berechnung!C76="Dieselöl (MDO)", Treibhausgas_Kennzahlen!B$16,Treibhausgas_Kennzahlen!B$15))) ->  | M76: =IF(G76="","",$K76*IF($C76="Schweröl (HFO)",Treibhausgas_Kennzahlen!C$14,IF(Berechnung!D76="Dieselöl (MDO)", Treibhausgas_Kennzahlen!C$16,Treibhausgas_Kennzahlen!C$15))) ->  | N76: =IF(G76="","",$J76*IF($C76="Schweröl (HFO)",Treibhausgas_Kennzahlen!D$14,IF(Berechnung!C76="Dieselöl (MDO)",Treibhausgas_Kennzahlen!D$16,Treibhausgas_Kennzahlen!D$15))) ->  | O76: =IF(G76="","",$J76*IF($C76="Schweröl (HFO)",Treibhausgas_Kennzahlen!E$14,IF(Berechnung!D76="Dieselöl (MDO)",Treibhausgas_Kennzahlen!E$16,Treibhausgas_Kennzahlen!E$15))) ->  | P76: =IF(G76="","",$J76*IF($C76="Schweröl (HFO)",Treibhausgas_Kennzahlen!F$14,IF(Berechnung!E76="Dieselöl (MDO)",Treibhausgas_Kennzahlen!F$16,Treibhausgas_Kennzahlen!F$15))) ->  | Q76: =IF(G76="","",$J76*IF($C76="Schweröl (HFO)",Treibhausgas_Kennzahlen!G$14,IF(Berechnung!F76="Dieselöl (MDO)",Treibhausgas_Kennzahlen!G$16,Treibhausgas_Kennzahlen!G$15))) -> 
H77: =IF(G77="","",VLOOKUP(INDEX(Seehäfen!$A$3:$A$502, MATCH(Berechnung!D77,Seehäfen!$B$3:$B$502,0))&"_"&INDEX(Seehäfen!$A$3:$A$502, MATCH(Berechnung!E77,Seehäfen!$B$3:$B$502,0)),Entfernung_Seehäfen!$C$2:$E$10001,2,FALSE)) ->  | I77: =IF(G77="","",SUM(IF(A77=Energieverbrauch!$A$2:$A$41,1,0)*IF(Berechnung!B77=Energieverbrauch!$B$2:$B$41,1,0)*IF(Berechnung!F77=Energieverbrauch!$C$2:$C$41,1,0)*Energieverbrauch!$D$2:$D$41)) ->  | K77: =IF(G77="","",J77/IF($C77="Schweröl (HFO)", Treibhausgas_Kennzahlen!B$7,IF(Berechnung!C77="Dieselöl (MDO)",Treibhausgas_Kennzahlen!B$9,Treibhausgas_Kennzahlen!B$8))) ->  | L77: =IF(G77="","",$K77*IF($C77="Schweröl (HFO)",Treibhausgas_Kennzahlen!B$14,IF(Berechnung!C77="Dieselöl (MDO)", Treibhausgas_Kennzahlen!B$16,Treibhausgas_Kennzahlen!B$15))) ->  | M77: =IF(G77="","",$K77*IF($C77="Schweröl (HFO)",Treibhausgas_Kennzahlen!C$14,IF(Berechnung!D77="Dieselöl (MDO)", Treibhausgas_Kennzahlen!C$16,Treibhausgas_Kennzahlen!C$15))) ->  | N77: =IF(G77="","",$J77*IF($C77="Schweröl (HFO)",Treibhausgas_Kennzahlen!D$14,IF(Berechnung!C77="Dieselöl (MDO)",Treibhausgas_Kennzahlen!D$16,Treibhausgas_Kennzahlen!D$15))) ->  | O77: =IF(G77="","",$J77*IF($C77="Schweröl (HFO)",Treibhausgas_Kennzahlen!E$14,IF(Berechnung!D77="Dieselöl (MDO)",Treibhausgas_Kennzahlen!E$16,Treibhausgas_Kennzahlen!E$15))) ->  | P77: =IF(G77="","",$J77*IF($C77="Schweröl (HFO)",Treibhausgas_Kennzahlen!F$14,IF(Berechnung!E77="Dieselöl (MDO)",Treibhausgas_Kennzahlen!F$16,Treibhausgas_Kennzahlen!F$15))) ->  | Q77: =IF(G77="","",$J77*IF($C77="Schweröl (HFO)",Treibhausgas_Kennzahlen!G$14,IF(Berechnung!F77="Dieselöl (MDO)",Treibhausgas_Kennzahlen!G$16,Treibhausgas_Kennzahlen!G$15))) -> 
H78: =IF(G78="","",VLOOKUP(INDEX(Seehäfen!$A$3:$A$502, MATCH(Berechnung!D78,Seehäfen!$B$3:$B$502,0))&"_"&INDEX(Seehäfen!$A$3:$A$502, MATCH(Berechnung!E78,Seehäfen!$B$3:$B$502,0)),Entfernung_Seehäfen!$C$2:$E$100001,2,FALSE)) ->  | I78: =IF(G78="","",SUM(IF(A78=Energieverbrauch!$A$2:$A$41,1,0)*IF(Berechnung!B78=Energieverbrauch!$B$2:$B$41,1,0)*IF(Berechnung!F78=Energieverbrauch!$C$2:$C$41,1,0)*Energieverbrauch!$D$2:$D$41)) ->  | K78: =IF(G78="","",J78/IF($C78="Schweröl (HFO)", Treibhausgas_Kennzahlen!B$7,IF(Berechnung!C78="Dieselöl (MDO)",Treibhausgas_Kennzahlen!B$9,Treibhausgas_Kennzahlen!B$8))) ->  | L78: =IF(G78="","",$K78*IF($C78="Schweröl (HFO)",Treibhausgas_Kennzahlen!B$14,IF(Berechnung!C78="Dieselöl (MDO)", Treibhausgas_Kennzahlen!B$16,Treibhausgas_Kennzahlen!B$15))) ->  | M78: =IF(G78="","",$K78*IF($C78="Schweröl (HFO)",Treibhausgas_Kennzahlen!C$14,IF(Berechnung!D78="Dieselöl (MDO)", Treibhausgas_Kennzahlen!C$16,Treibhausgas_Kennzahlen!C$15))) ->  | N78: =IF(G78="","",$J78*IF($C78="Schweröl (HFO)",Treibhausgas_Kennzahlen!D$14,IF(Berechnung!C78="Dieselöl (MDO)",Treibhausgas_Kennzahlen!D$16,Treibhausgas_Kennzahlen!D$15))) ->  | O78: =IF(G78="","",$J78*IF($C78="Schweröl (HFO)",Treibhausgas_Kennzahlen!E$14,IF(Berechnung!D78="Dieselöl (MDO)",Treibhausgas_Kennzahlen!E$16,Treibhausgas_Kennzahlen!E$15))) ->  | P78: =IF(G78="","",$J78*IF($C78="Schweröl (HFO)",Treibhausgas_Kennzahlen!F$14,IF(Berechnung!E78="Dieselöl (MDO)",Treibhausgas_Kennzahlen!F$16,Treibhausgas_Kennzahlen!F$15))) ->  | Q78: =IF(G78="","",$J78*IF($C78="Schweröl (HFO)",Treibhausgas_Kennzahlen!G$14,IF(Berechnung!F78="Dieselöl (MDO)",Treibhausgas_Kennzahlen!G$16,Treibhausgas_Kennzahlen!G$15))) -> 
H79: =IF(G79="","",VLOOKUP(INDEX(Seehäfen!$A$3:$A$502, MATCH(Berechnung!D79,Seehäfen!$B$3:$B$502,0))&"_"&INDEX(Seehäfen!$A$3:$A$502, MATCH(Berechnung!E79,Seehäfen!$B$3:$B$502,0)),Entfernung_Seehäfen!$C$2:$E$10001,2,FALSE)) ->  | I79: =IF(G79="","",SUM(IF(A79=Energieverbrauch!$A$2:$A$41,1,0)*IF(Berechnung!B79=Energieverbrauch!$B$2:$B$41,1,0)*IF(Berechnung!F79=Energieverbrauch!$C$2:$C$41,1,0)*Energieverbrauch!$D$2:$D$41)) ->  | K79: =IF(G79="","",J79/IF($C79="Schweröl (HFO)", Treibhausgas_Kennzahlen!B$7,IF(Berechnung!C79="Dieselöl (MDO)",Treibhausgas_Kennzahlen!B$9,Treibhausgas_Kennzahlen!B$8))) ->  | L79: =IF(G79="","",$K79*IF($C79="Schweröl (HFO)",Treibhausgas_Kennzahlen!B$14,IF(Berechnung!C79="Dieselöl (MDO)", Treibhausgas_Kennzahlen!B$16,Treibhausgas_Kennzahlen!B$15))) ->  | M79: =IF(G79="","",$K79*IF($C79="Schweröl (HFO)",Treibhausgas_Kennzahlen!C$14,IF(Berechnung!D79="Dieselöl (MDO)", Treibhausgas_Kennzahlen!C$16,Treibhausgas_Kennzahlen!C$15))) ->  | N79: =IF(G79="","",$J79*IF($C79="Schweröl (HFO)",Treibhausgas_Kennzahlen!D$14,IF(Berechnung!C79="Dieselöl (MDO)",Treibhausgas_Kennzahlen!D$16,Treibhausgas_Kennzahlen!D$15))) ->  | O79: =IF(G79="","",$J79*IF($C79="Schweröl (HFO)",Treibhausgas_Kennzahlen!E$14,IF(Berechnung!D79="Dieselöl (MDO)",Treibhausgas_Kennzahlen!E$16,Treibhausgas_Kennzahlen!E$15))) ->  | P79: =IF(G79="","",$J79*IF($C79="Schweröl (HFO)",Treibhausgas_Kennzahlen!F$14,IF(Berechnung!E79="Dieselöl (MDO)",Treibhausgas_Kennzahlen!F$16,Treibhausgas_Kennzahlen!F$15))) ->  | Q79: =IF(G79="","",$J79*IF($C79="Schweröl (HFO)",Treibhausgas_Kennzahlen!G$14,IF(Berechnung!F79="Dieselöl (MDO)",Treibhausgas_Kennzahlen!G$16,Treibhausgas_Kennzahlen!G$15))) -> 
H80: =IF(G80="","",VLOOKUP(INDEX(Seehäfen!$A$3:$A$502, MATCH(Berechnung!D80,Seehäfen!$B$3:$B$502,0))&"_"&INDEX(Seehäfen!$A$3:$A$502, MATCH(Berechnung!E80,Seehäfen!$B$3:$B$502,0)),Entfernung_Seehäfen!$C$2:$E$100001,2,FALSE)) ->  | I80: =IF(G80="","",SUM(IF(A80=Energieverbrauch!$A$2:$A$41,1,0)*IF(Berechnung!B80=Energieverbrauch!$B$2:$B$41,1,0)*IF(Berechnung!F80=Energieverbrauch!$C$2:$C$41,1,0)*Energieverbrauch!$D$2:$D$41)) ->  | K80: =IF(G80="","",J80/IF($C80="Schweröl (HFO)", Treibhausgas_Kennzahlen!B$7,IF(Berechnung!C80="Dieselöl (MDO)",Treibhausgas_Kennzahlen!B$9,Treibhausgas_Kennzahlen!B$8))) ->  | L80: =IF(G80="","",$K80*IF($C80="Schweröl (HFO)",Treibhausgas_Kennzahlen!B$14,IF(Berechnung!C80="Dieselöl (MDO)", Treibhausgas_Kennzahlen!B$16,Treibhausgas_Kennzahlen!B$15))) ->  | M80: =IF(G80="","",$K80*IF($C80="Schweröl (HFO)",Treibhausgas_Kennzahlen!C$14,IF(Berechnung!D80="Dieselöl (MDO)", Treibhausgas_Kennzahlen!C$16,Treibhausgas_Kennzahlen!C$15))) ->  | N80: =IF(G80="","",$J80*IF($C80="Schweröl (HFO)",Treibhausgas_Kennzahlen!D$14,IF(Berechnung!C80="Dieselöl (MDO)",Treibhausgas_Kennzahlen!D$16,Treibhausgas_Kennzahlen!D$15))) ->  | O80: =IF(G80="","",$J80*IF($C80="Schweröl (HFO)",Treibhausgas_Kennzahlen!E$14,IF(Berechnung!D80="Dieselöl (MDO)",Treibhausgas_Kennzahlen!E$16,Treibhausgas_Kennzahlen!E$15))) ->  | P80: =IF(G80="","",$J80*IF($C80="Schweröl (HFO)",Treibhausgas_Kennzahlen!F$14,IF(Berechnung!E80="Dieselöl (MDO)",Treibhausgas_Kennzahlen!F$16,Treibhausgas_Kennzahlen!F$15))) ->  | Q80: =IF(G80="","",$J80*IF($C80="Schweröl (HFO)",Treibhausgas_Kennzahlen!G$14,IF(Berechnung!F80="Dieselöl (MDO)",Treibhausgas_Kennzahlen!G$16,Treibhausgas_Kennzahlen!G$15))) -> 
H81: =IF(G81="","",VLOOKUP(INDEX(Seehäfen!$A$3:$A$502, MATCH(Berechnung!D81,Seehäfen!$B$3:$B$502,0))&"_"&INDEX(Seehäfen!$A$3:$A$502, MATCH(Berechnung!E81,Seehäfen!$B$3:$B$502,0)),Entfernung_Seehäfen!$C$2:$E$10001,2,FALSE)) ->  | I81: =IF(G81="","",SUM(IF(A81=Energieverbrauch!$A$2:$A$41,1,0)*IF(Berechnung!B81=Energieverbrauch!$B$2:$B$41,1,0)*IF(Berechnung!F81=Energieverbrauch!$C$2:$C$41,1,0)*Energieverbrauch!$D$2:$D$41)) ->  | K81: =IF(G81="","",J81/IF($C81="Schweröl (HFO)", Treibhausgas_Kennzahlen!B$7,IF(Berechnung!C81="Dieselöl (MDO)",Treibhausgas_Kennzahlen!B$9,Treibhausgas_Kennzahlen!B$8))) ->  | L81: =IF(G81="","",$K81*IF($C81="Schweröl (HFO)",Treibhausgas_Kennzahlen!B$14,IF(Berechnung!C81="Dieselöl (MDO)", Treibhausgas_Kennzahlen!B$16,Treibhausgas_Kennzahlen!B$15))) ->  | M81: =IF(G81="","",$K81*IF($C81="Schweröl (HFO)",Treibhausgas_Kennzahlen!C$14,IF(Berechnung!D81="Dieselöl (MDO)", Treibhausgas_Kennzahlen!C$16,Treibhausgas_Kennzahlen!C$15))) ->  | N81: =IF(G81="","",$J81*IF($C81="Schweröl (HFO)",Treibhausgas_Kennzahlen!D$14,IF(Berechnung!C81="Dieselöl (MDO)",Treibhausgas_Kennzahlen!D$16,Treibhausgas_Kennzahlen!D$15))) ->  | O81: =IF(G81="","",$J81*IF($C81="Schweröl (HFO)",Treibhausgas_Kennzahlen!E$14,IF(Berechnung!D81="Dieselöl (MDO)",Treibhausgas_Kennzahlen!E$16,Treibhausgas_Kennzahlen!E$15))) ->  | P81: =IF(G81="","",$J81*IF($C81="Schweröl (HFO)",Treibhausgas_Kennzahlen!F$14,IF(Berechnung!E81="Dieselöl (MDO)",Treibhausgas_Kennzahlen!F$16,Treibhausgas_Kennzahlen!F$15))) ->  | Q81: =IF(G81="","",$J81*IF($C81="Schweröl (HFO)",Treibhausgas_Kennzahlen!G$14,IF(Berechnung!F81="Dieselöl (MDO)",Treibhausgas_Kennzahlen!G$16,Treibhausgas_Kennzahlen!G$15))) -> 
H82: =IF(G82="","",VLOOKUP(INDEX(Seehäfen!$A$3:$A$502, MATCH(Berechnung!D82,Seehäfen!$B$3:$B$502,0))&"_"&INDEX(Seehäfen!$A$3:$A$502, MATCH(Berechnung!E82,Seehäfen!$B$3:$B$502,0)),Entfernung_Seehäfen!$C$2:$E$100001,2,FALSE)) ->  | I82: =IF(G82="","",SUM(IF(A82=Energieverbrauch!$A$2:$A$41,1,0)*IF(Berechnung!B82=Energieverbrauch!$B$2:$B$41,1,0)*IF(Berechnung!F82=Energieverbrauch!$C$2:$C$41,1,0)*Energieverbrauch!$D$2:$D$41)) ->  | K82: =IF(G82="","",J82/IF($C82="Schweröl (HFO)", Treibhausgas_Kennzahlen!B$7,IF(Berechnung!C82="Dieselöl (MDO)",Treibhausgas_Kennzahlen!B$9,Treibhausgas_Kennzahlen!B$8))) ->  | L82: =IF(G82="","",$K82*IF($C82="Schweröl (HFO)",Treibhausgas_Kennzahlen!B$14,IF(Berechnung!C82="Dieselöl (MDO)", Treibhausgas_Kennzahlen!B$16,Treibhausgas_Kennzahlen!B$15))) ->  | M82: =IF(G82="","",$K82*IF($C82="Schweröl (HFO)",Treibhausgas_Kennzahlen!C$14,IF(Berechnung!D82="Dieselöl (MDO)", Treibhausgas_Kennzahlen!C$16,Treibhausgas_Kennzahlen!C$15))) ->  | N82: =IF(G82="","",$J82*IF($C82="Schweröl (HFO)",Treibhausgas_Kennzahlen!D$14,IF(Berechnung!C82="Dieselöl (MDO)",Treibhausgas_Kennzahlen!D$16,Treibhausgas_Kennzahlen!D$15))) ->  | O82: =IF(G82="","",$J82*IF($C82="Schweröl (HFO)",Treibhausgas_Kennzahlen!E$14,IF(Berechnung!D82="Dieselöl (MDO)",Treibhausgas_Kennzahlen!E$16,Treibhausgas_Kennzahlen!E$15))) ->  | P82: =IF(G82="","",$J82*IF($C82="Schweröl (HFO)",Treibhausgas_Kennzahlen!F$14,IF(Berechnung!E82="Dieselöl (MDO)",Treibhausgas_Kennzahlen!F$16,Treibhausgas_Kennzahlen!F$15))) ->  | Q82: =IF(G82="","",$J82*IF($C82="Schweröl (HFO)",Treibhausgas_Kennzahlen!G$14,IF(Berechnung!F82="Dieselöl (MDO)",Treibhausgas_Kennzahlen!G$16,Treibhausgas_Kennzahlen!G$15))) -> 
H83: =IF(G83="","",VLOOKUP(INDEX(Seehäfen!$A$3:$A$502, MATCH(Berechnung!D83,Seehäfen!$B$3:$B$502,0))&"_"&INDEX(Seehäfen!$A$3:$A$502, MATCH(Berechnung!E83,Seehäfen!$B$3:$B$502,0)),Entfernung_Seehäfen!$C$2:$E$10001,2,FALSE)) ->  | I83: =IF(G83="","",SUM(IF(A83=Energieverbrauch!$A$2:$A$41,1,0)*IF(Berechnung!B83=Energieverbrauch!$B$2:$B$41,1,0)*IF(Berechnung!F83=Energieverbrauch!$C$2:$C$41,1,0)*Energieverbrauch!$D$2:$D$41)) ->  | K83: =IF(G83="","",J83/IF($C83="Schweröl (HFO)", Treibhausgas_Kennzahlen!B$7,IF(Berechnung!C83="Dieselöl (MDO)",Treibhausgas_Kennzahlen!B$9,Treibhausgas_Kennzahlen!B$8))) ->  | L83: =IF(G83="","",$K83*IF($C83="Schweröl (HFO)",Treibhausgas_Kennzahlen!B$14,IF(Berechnung!C83="Dieselöl (MDO)", Treibhausgas_Kennzahlen!B$16,Treibhausgas_Kennzahlen!B$15))) ->  | M83: =IF(G83="","",$K83*IF($C83="Schweröl (HFO)",Treibhausgas_Kennzahlen!C$14,IF(Berechnung!D83="Dieselöl (MDO)", Treibhausgas_Kennzahlen!C$16,Treibhausgas_Kennzahlen!C$15))) ->  | N83: =IF(G83="","",$J83*IF($C83="Schweröl (HFO)",Treibhausgas_Kennzahlen!D$14,IF(Berechnung!C83="Dieselöl (MDO)",Treibhausgas_Kennzahlen!D$16,Treibhausgas_Kennzahlen!D$15))) ->  | O83: =IF(G83="","",$J83*IF($C83="Schweröl (HFO)",Treibhausgas_Kennzahlen!E$14,IF(Berechnung!D83="Dieselöl (MDO)",Treibhausgas_Kennzahlen!E$16,Treibhausgas_Kennzahlen!E$15))) ->  | P83: =IF(G83="","",$J83*IF($C83="Schweröl (HFO)",Treibhausgas_Kennzahlen!F$14,IF(Berechnung!E83="Dieselöl (MDO)",Treibhausgas_Kennzahlen!F$16,Treibhausgas_Kennzahlen!F$15))) ->  | Q83: =IF(G83="","",$J83*IF($C83="Schweröl (HFO)",Treibhausgas_Kennzahlen!G$14,IF(Berechnung!F83="Dieselöl (MDO)",Treibhausgas_Kennzahlen!G$16,Treibhausgas_Kennzahlen!G$15))) -> 
H84: =IF(G84="","",VLOOKUP(INDEX(Seehäfen!$A$3:$A$502, MATCH(Berechnung!D84,Seehäfen!$B$3:$B$502,0))&"_"&INDEX(Seehäfen!$A$3:$A$502, MATCH(Berechnung!E84,Seehäfen!$B$3:$B$502,0)),Entfernung_Seehäfen!$C$2:$E$100001,2,FALSE)) ->  | I84: =IF(G84="","",SUM(IF(A84=Energieverbrauch!$A$2:$A$41,1,0)*IF(Berechnung!B84=Energieverbrauch!$B$2:$B$41,1,0)*IF(Berechnung!F84=Energieverbrauch!$C$2:$C$41,1,0)*Energieverbrauch!$D$2:$D$41)) ->  | K84: =IF(G84="","",J84/IF($C84="Schweröl (HFO)", Treibhausgas_Kennzahlen!B$7,IF(Berechnung!C84="Dieselöl (MDO)",Treibhausgas_Kennzahlen!B$9,Treibhausgas_Kennzahlen!B$8))) ->  | L84: =IF(G84="","",$K84*IF($C84="Schweröl (HFO)",Treibhausgas_Kennzahlen!B$14,IF(Berechnung!C84="Dieselöl (MDO)", Treibhausgas_Kennzahlen!B$16,Treibhausgas_Kennzahlen!B$15))) ->  | M84: =IF(G84="","",$K84*IF($C84="Schweröl (HFO)",Treibhausgas_Kennzahlen!C$14,IF(Berechnung!D84="Dieselöl (MDO)", Treibhausgas_Kennzahlen!C$16,Treibhausgas_Kennzahlen!C$15))) ->  | N84: =IF(G84="","",$J84*IF($C84="Schweröl (HFO)",Treibhausgas_Kennzahlen!D$14,IF(Berechnung!C84="Dieselöl (MDO)",Treibhausgas_Kennzahlen!D$16,Treibhausgas_Kennzahlen!D$15))) ->  | O84: =IF(G84="","",$J84*IF($C84="Schweröl (HFO)",Treibhausgas_Kennzahlen!E$14,IF(Berechnung!D84="Dieselöl (MDO)",Treibhausgas_Kennzahlen!E$16,Treibhausgas_Kennzahlen!E$15))) ->  | P84: =IF(G84="","",$J84*IF($C84="Schweröl (HFO)",Treibhausgas_Kennzahlen!F$14,IF(Berechnung!E84="Dieselöl (MDO)",Treibhausgas_Kennzahlen!F$16,Treibhausgas_Kennzahlen!F$15))) ->  | Q84: =IF(G84="","",$J84*IF($C84="Schweröl (HFO)",Treibhausgas_Kennzahlen!G$14,IF(Berechnung!F84="Dieselöl (MDO)",Treibhausgas_Kennzahlen!G$16,Treibhausgas_Kennzahlen!G$15))) -> 
H85: =IF(G85="","",VLOOKUP(INDEX(Seehäfen!$A$3:$A$502, MATCH(Berechnung!D85,Seehäfen!$B$3:$B$502,0))&"_"&INDEX(Seehäfen!$A$3:$A$502, MATCH(Berechnung!E85,Seehäfen!$B$3:$B$502,0)),Entfernung_Seehäfen!$C$2:$E$10001,2,FALSE)) ->  | I85: =IF(G85="","",SUM(IF(A85=Energieverbrauch!$A$2:$A$41,1,0)*IF(Berechnung!B85=Energieverbrauch!$B$2:$B$41,1,0)*IF(Berechnung!F85=Energieverbrauch!$C$2:$C$41,1,0)*Energieverbrauch!$D$2:$D$41)) ->  | K85: =IF(G85="","",J85/IF($C85="Schweröl (HFO)", Treibhausgas_Kennzahlen!B$7,IF(Berechnung!C85="Dieselöl (MDO)",Treibhausgas_Kennzahlen!B$9,Treibhausgas_Kennzahlen!B$8))) ->  | L85: =IF(G85="","",$K85*IF($C85="Schweröl (HFO)",Treibhausgas_Kennzahlen!B$14,IF(Berechnung!C85="Dieselöl (MDO)", Treibhausgas_Kennzahlen!B$16,Treibhausgas_Kennzahlen!B$15))) ->  | M85: =IF(G85="","",$K85*IF($C85="Schweröl (HFO)",Treibhausgas_Kennzahlen!C$14,IF(Berechnung!D85="Dieselöl (MDO)", Treibhausgas_Kennzahlen!C$16,Treibhausgas_Kennzahlen!C$15))) ->  | N85: =IF(G85="","",$J85*IF($C85="Schweröl (HFO)",Treibhausgas_Kennzahlen!D$14,IF(Berechnung!C85="Dieselöl (MDO)",Treibhausgas_Kennzahlen!D$16,Treibhausgas_Kennzahlen!D$15))) ->  | O85: =IF(G85="","",$J85*IF($C85="Schweröl (HFO)",Treibhausgas_Kennzahlen!E$14,IF(Berechnung!D85="Dieselöl (MDO)",Treibhausgas_Kennzahlen!E$16,Treibhausgas_Kennzahlen!E$15))) ->  | P85: =IF(G85="","",$J85*IF($C85="Schweröl (HFO)",Treibhausgas_Kennzahlen!F$14,IF(Berechnung!E85="Dieselöl (MDO)",Treibhausgas_Kennzahlen!F$16,Treibhausgas_Kennzahlen!F$15))) ->  | Q85: =IF(G85="","",$J85*IF($C85="Schweröl (HFO)",Treibhausgas_Kennzahlen!G$14,IF(Berechnung!F85="Dieselöl (MDO)",Treibhausgas_Kennzahlen!G$16,Treibhausgas_Kennzahlen!G$15))) -> 
H86: =IF(G86="","",VLOOKUP(INDEX(Seehäfen!$A$3:$A$502, MATCH(Berechnung!D86,Seehäfen!$B$3:$B$502,0))&"_"&INDEX(Seehäfen!$A$3:$A$502, MATCH(Berechnung!E86,Seehäfen!$B$3:$B$502,0)),Entfernung_Seehäfen!$C$2:$E$100001,2,FALSE)) ->  | I86: =IF(G86="","",SUM(IF(A86=Energieverbrauch!$A$2:$A$41,1,0)*IF(Berechnung!B86=Energieverbrauch!$B$2:$B$41,1,0)*IF(Berechnung!F86=Energieverbrauch!$C$2:$C$41,1,0)*Energieverbrauch!$D$2:$D$41)) ->  | K86: =IF(G86="","",J86/IF($C86="Schweröl (HFO)", Treibhausgas_Kennzahlen!B$7,IF(Berechnung!C86="Dieselöl (MDO)",Treibhausgas_Kennzahlen!B$9,Treibhausgas_Kennzahlen!B$8))) ->  | L86: =IF(G86="","",$K86*IF($C86="Schweröl (HFO)",Treibhausgas_Kennzahlen!B$14,IF(Berechnung!C86="Dieselöl (MDO)", Treibhausgas_Kennzahlen!B$16,Treibhausgas_Kennzahlen!B$15))) ->  | M86: =IF(G86="","",$K86*IF($C86="Schweröl (HFO)",Treibhausgas_Kennzahlen!C$14,IF(Berechnung!D86="Dieselöl (MDO)", Treibhausgas_Kennzahlen!C$16,Treibhausgas_Kennzahlen!C$15))) ->  | N86: =IF(G86="","",$J86*IF($C86="Schweröl (HFO)",Treibhausgas_Kennzahlen!D$14,IF(Berechnung!C86="Dieselöl (MDO)",Treibhausgas_Kennzahlen!D$16,Treibhausgas_Kennzahlen!D$15))) ->  | O86: =IF(G86="","",$J86*IF($C86="Schweröl (HFO)",Treibhausgas_Kennzahlen!E$14,IF(Berechnung!D86="Dieselöl (MDO)",Treibhausgas_Kennzahlen!E$16,Treibhausgas_Kennzahlen!E$15))) ->  | P86: =IF(G86="","",$J86*IF($C86="Schweröl (HFO)",Treibhausgas_Kennzahlen!F$14,IF(Berechnung!E86="Dieselöl (MDO)",Treibhausgas_Kennzahlen!F$16,Treibhausgas_Kennzahlen!F$15))) ->  | Q86: =IF(G86="","",$J86*IF($C86="Schweröl (HFO)",Treibhausgas_Kennzahlen!G$14,IF(Berechnung!F86="Dieselöl (MDO)",Treibhausgas_Kennzahlen!G$16,Treibhausgas_Kennzahlen!G$15))) -> 
H87: =IF(G87="","",VLOOKUP(INDEX(Seehäfen!$A$3:$A$502, MATCH(Berechnung!D87,Seehäfen!$B$3:$B$502,0))&"_"&INDEX(Seehäfen!$A$3:$A$502, MATCH(Berechnung!E87,Seehäfen!$B$3:$B$502,0)),Entfernung_Seehäfen!$C$2:$E$10001,2,FALSE)) ->  | I87: =IF(G87="","",SUM(IF(A87=Energieverbrauch!$A$2:$A$41,1,0)*IF(Berechnung!B87=Energieverbrauch!$B$2:$B$41,1,0)*IF(Berechnung!F87=Energieverbrauch!$C$2:$C$41,1,0)*Energieverbrauch!$D$2:$D$41)) ->  | K87: =IF(G87="","",J87/IF($C87="Schweröl (HFO)", Treibhausgas_Kennzahlen!B$7,IF(Berechnung!C87="Dieselöl (MDO)",Treibhausgas_Kennzahlen!B$9,Treibhausgas_Kennzahlen!B$8))) ->  | L87: =IF(G87="","",$K87*IF($C87="Schweröl (HFO)",Treibhausgas_Kennzahlen!B$14,IF(Berechnung!C87="Dieselöl (MDO)", Treibhausgas_Kennzahlen!B$16,Treibhausgas_Kennzahlen!B$15))) ->  | M87: =IF(G87="","",$K87*IF($C87="Schweröl (HFO)",Treibhausgas_Kennzahlen!C$14,IF(Berechnung!D87="Dieselöl (MDO)", Treibhausgas_Kennzahlen!C$16,Treibhausgas_Kennzahlen!C$15))) ->  | N87: =IF(G87="","",$J87*IF($C87="Schweröl (HFO)",Treibhausgas_Kennzahlen!D$14,IF(Berechnung!C87="Dieselöl (MDO)",Treibhausgas_Kennzahlen!D$16,Treibhausgas_Kennzahlen!D$15))) ->  | O87: =IF(G87="","",$J87*IF($C87="Schweröl (HFO)",Treibhausgas_Kennzahlen!E$14,IF(Berechnung!D87="Dieselöl (MDO)",Treibhausgas_Kennzahlen!E$16,Treibhausgas_Kennzahlen!E$15))) ->  | P87: =IF(G87="","",$J87*IF($C87="Schweröl (HFO)",Treibhausgas_Kennzahlen!F$14,IF(Berechnung!E87="Dieselöl (MDO)",Treibhausgas_Kennzahlen!F$16,Treibhausgas_Kennzahlen!F$15))) ->  | Q87: =IF(G87="","",$J87*IF($C87="Schweröl (HFO)",Treibhausgas_Kennzahlen!G$14,IF(Berechnung!F87="Dieselöl (MDO)",Treibhausgas_Kennzahlen!G$16,Treibhausgas_Kennzahlen!G$15))) -> 
H88: =IF(G88="","",VLOOKUP(INDEX(Seehäfen!$A$3:$A$502, MATCH(Berechnung!D88,Seehäfen!$B$3:$B$502,0))&"_"&INDEX(Seehäfen!$A$3:$A$502, MATCH(Berechnung!E88,Seehäfen!$B$3:$B$502,0)),Entfernung_Seehäfen!$C$2:$E$100001,2,FALSE)) ->  | I88: =IF(G88="","",SUM(IF(A88=Energieverbrauch!$A$2:$A$41,1,0)*IF(Berechnung!B88=Energieverbrauch!$B$2:$B$41,1,0)*IF(Berechnung!F88=Energieverbrauch!$C$2:$C$41,1,0)*Energieverbrauch!$D$2:$D$41)) ->  | K88: =IF(G88="","",J88/IF($C88="Schweröl (HFO)", Treibhausgas_Kennzahlen!B$7,IF(Berechnung!C88="Dieselöl (MDO)",Treibhausgas_Kennzahlen!B$9,Treibhausgas_Kennzahlen!B$8))) ->  | L88: =IF(G88="","",$K88*IF($C88="Schweröl (HFO)",Treibhausgas_Kennzahlen!B$14,IF(Berechnung!C88="Dieselöl (MDO)", Treibhausgas_Kennzahlen!B$16,Treibhausgas_Kennzahlen!B$15))) ->  | M88: =IF(G88="","",$K88*IF($C88="Schweröl (HFO)",Treibhausgas_Kennzahlen!C$14,IF(Berechnung!D88="Dieselöl (MDO)", Treibhausgas_Kennzahlen!C$16,Treibhausgas_Kennzahlen!C$15))) ->  | N88: =IF(G88="","",$J88*IF($C88="Schweröl (HFO)",Treibhausgas_Kennzahlen!D$14,IF(Berechnung!C88="Dieselöl (MDO)",Treibhausgas_Kennzahlen!D$16,Treibhausgas_Kennzahlen!D$15))) ->  | O88: =IF(G88="","",$J88*IF($C88="Schweröl (HFO)",Treibhausgas_Kennzahlen!E$14,IF(Berechnung!D88="Dieselöl (MDO)",Treibhausgas_Kennzahlen!E$16,Treibhausgas_Kennzahlen!E$15))) ->  | P88: =IF(G88="","",$J88*IF($C88="Schweröl (HFO)",Treibhausgas_Kennzahlen!F$14,IF(Berechnung!E88="Dieselöl (MDO)",Treibhausgas_Kennzahlen!F$16,Treibhausgas_Kennzahlen!F$15))) ->  | Q88: =IF(G88="","",$J88*IF($C88="Schweröl (HFO)",Treibhausgas_Kennzahlen!G$14,IF(Berechnung!F88="Dieselöl (MDO)",Treibhausgas_Kennzahlen!G$16,Treibhausgas_Kennzahlen!G$15))) -> 
H89: =IF(G89="","",VLOOKUP(INDEX(Seehäfen!$A$3:$A$502, MATCH(Berechnung!D89,Seehäfen!$B$3:$B$502,0))&"_"&INDEX(Seehäfen!$A$3:$A$502, MATCH(Berechnung!E89,Seehäfen!$B$3:$B$502,0)),Entfernung_Seehäfen!$C$2:$E$10001,2,FALSE)) ->  | I89: =IF(G89="","",SUM(IF(A89=Energieverbrauch!$A$2:$A$41,1,0)*IF(Berechnung!B89=Energieverbrauch!$B$2:$B$41,1,0)*IF(Berechnung!F89=Energieverbrauch!$C$2:$C$41,1,0)*Energieverbrauch!$D$2:$D$41)) ->  | K89: =IF(G89="","",J89/IF($C89="Schweröl (HFO)", Treibhausgas_Kennzahlen!B$7,IF(Berechnung!C89="Dieselöl (MDO)",Treibhausgas_Kennzahlen!B$9,Treibhausgas_Kennzahlen!B$8))) ->  | L89: =IF(G89="","",$K89*IF($C89="Schweröl (HFO)",Treibhausgas_Kennzahlen!B$14,IF(Berechnung!C89="Dieselöl (MDO)", Treibhausgas_Kennzahlen!B$16,Treibhausgas_Kennzahlen!B$15))) ->  | M89: =IF(G89="","",$K89*IF($C89="Schweröl (HFO)",Treibhausgas_Kennzahlen!C$14,IF(Berechnung!D89="Dieselöl (MDO)", Treibhausgas_Kennzahlen!C$16,Treibhausgas_Kennzahlen!C$15))) ->  | N89: =IF(G89="","",$J89*IF($C89="Schweröl (HFO)",Treibhausgas_Kennzahlen!D$14,IF(Berechnung!C89="Dieselöl (MDO)",Treibhausgas_Kennzahlen!D$16,Treibhausgas_Kennzahlen!D$15))) ->  | O89: =IF(G89="","",$J89*IF($C89="Schweröl (HFO)",Treibhausgas_Kennzahlen!E$14,IF(Berechnung!D89="Dieselöl (MDO)",Treibhausgas_Kennzahlen!E$16,Treibhausgas_Kennzahlen!E$15))) ->  | P89: =IF(G89="","",$J89*IF($C89="Schweröl (HFO)",Treibhausgas_Kennzahlen!F$14,IF(Berechnung!E89="Dieselöl (MDO)",Treibhausgas_Kennzahlen!F$16,Treibhausgas_Kennzahlen!F$15))) ->  | Q89: =IF(G89="","",$J89*IF($C89="Schweröl (HFO)",Treibhausgas_Kennzahlen!G$14,IF(Berechnung!F89="Dieselöl (MDO)",Treibhausgas_Kennzahlen!G$16,Treibhausgas_Kennzahlen!G$15))) -> 
H90: =IF(G90="","",VLOOKUP(INDEX(Seehäfen!$A$3:$A$502, MATCH(Berechnung!D90,Seehäfen!$B$3:$B$502,0))&"_"&INDEX(Seehäfen!$A$3:$A$502, MATCH(Berechnung!E90,Seehäfen!$B$3:$B$502,0)),Entfernung_Seehäfen!$C$2:$E$100001,2,FALSE)) ->  | I90: =IF(G90="","",SUM(IF(A90=Energieverbrauch!$A$2:$A$41,1,0)*IF(Berechnung!B90=Energieverbrauch!$B$2:$B$41,1,0)*IF(Berechnung!F90=Energieverbrauch!$C$2:$C$41,1,0)*Energieverbrauch!$D$2:$D$41)) ->  | K90: =IF(G90="","",J90/IF($C90="Schweröl (HFO)", Treibhausgas_Kennzahlen!B$7,IF(Berechnung!C90="Dieselöl (MDO)",Treibhausgas_Kennzahlen!B$9,Treibhausgas_Kennzahlen!B$8))) ->  | L90: =IF(G90="","",$K90*IF($C90="Schweröl (HFO)",Treibhausgas_Kennzahlen!B$14,IF(Berechnung!C90="Dieselöl (MDO)", Treibhausgas_Kennzahlen!B$16,Treibhausgas_Kennzahlen!B$15))) ->  | M90: =IF(G90="","",$K90*IF($C90="Schweröl (HFO)",Treibhausgas_Kennzahlen!C$14,IF(Berechnung!D90="Dieselöl (MDO)", Treibhausgas_Kennzahlen!C$16,Treibhausgas_Kennzahlen!C$15))) ->  | N90: =IF(G90="","",$J90*IF($C90="Schweröl (HFO)",Treibhausgas_Kennzahlen!D$14,IF(Berechnung!C90="Dieselöl (MDO)",Treibhausgas_Kennzahlen!D$16,Treibhausgas_Kennzahlen!D$15))) ->  | O90: =IF(G90="","",$J90*IF($C90="Schweröl (HFO)",Treibhausgas_Kennzahlen!E$14,IF(Berechnung!D90="Dieselöl (MDO)",Treibhausgas_Kennzahlen!E$16,Treibhausgas_Kennzahlen!E$15))) ->  | P90: =IF(G90="","",$J90*IF($C90="Schweröl (HFO)",Treibhausgas_Kennzahlen!F$14,IF(Berechnung!E90="Dieselöl (MDO)",Treibhausgas_Kennzahlen!F$16,Treibhausgas_Kennzahlen!F$15))) ->  | Q90: =IF(G90="","",$J90*IF($C90="Schweröl (HFO)",Treibhausgas_Kennzahlen!G$14,IF(Berechnung!F90="Dieselöl (MDO)",Treibhausgas_Kennzahlen!G$16,Treibhausgas_Kennzahlen!G$15))) -> 
H91: =IF(G91="","",VLOOKUP(INDEX(Seehäfen!$A$3:$A$502, MATCH(Berechnung!D91,Seehäfen!$B$3:$B$502,0))&"_"&INDEX(Seehäfen!$A$3:$A$502, MATCH(Berechnung!E91,Seehäfen!$B$3:$B$502,0)),Entfernung_Seehäfen!$C$2:$E$10001,2,FALSE)) ->  | I91: =IF(G91="","",SUM(IF(A91=Energieverbrauch!$A$2:$A$41,1,0)*IF(Berechnung!B91=Energieverbrauch!$B$2:$B$41,1,0)*IF(Berechnung!F91=Energieverbrauch!$C$2:$C$41,1,0)*Energieverbrauch!$D$2:$D$41)) ->  | K91: =IF(G91="","",J91/IF($C91="Schweröl (HFO)", Treibhausgas_Kennzahlen!B$7,IF(Berechnung!C91="Dieselöl (MDO)",Treibhausgas_Kennzahlen!B$9,Treibhausgas_Kennzahlen!B$8))) ->  | L91: =IF(G91="","",$K91*IF($C91="Schweröl (HFO)",Treibhausgas_Kennzahlen!B$14,IF(Berechnung!C91="Dieselöl (MDO)", Treibhausgas_Kennzahlen!B$16,Treibhausgas_Kennzahlen!B$15))) ->  | M91: =IF(G91="","",$K91*IF($C91="Schweröl (HFO)",Treibhausgas_Kennzahlen!C$14,IF(Berechnung!D91="Dieselöl (MDO)", Treibhausgas_Kennzahlen!C$16,Treibhausgas_Kennzahlen!C$15))) ->  | N91: =IF(G91="","",$J91*IF($C91="Schweröl (HFO)",Treibhausgas_Kennzahlen!D$14,IF(Berechnung!C91="Dieselöl (MDO)",Treibhausgas_Kennzahlen!D$16,Treibhausgas_Kennzahlen!D$15))) ->  | O91: =IF(G91="","",$J91*IF($C91="Schweröl (HFO)",Treibhausgas_Kennzahlen!E$14,IF(Berechnung!D91="Dieselöl (MDO)",Treibhausgas_Kennzahlen!E$16,Treibhausgas_Kennzahlen!E$15))) ->  | P91: =IF(G91="","",$J91*IF($C91="Schweröl (HFO)",Treibhausgas_Kennzahlen!F$14,IF(Berechnung!E91="Dieselöl (MDO)",Treibhausgas_Kennzahlen!F$16,Treibhausgas_Kennzahlen!F$15))) ->  | Q91: =IF(G91="","",$J91*IF($C91="Schweröl (HFO)",Treibhausgas_Kennzahlen!G$14,IF(Berechnung!F91="Dieselöl (MDO)",Treibhausgas_Kennzahlen!G$16,Treibhausgas_Kennzahlen!G$15))) -> 
H92: =IF(G92="","",VLOOKUP(INDEX(Seehäfen!$A$3:$A$502, MATCH(Berechnung!D92,Seehäfen!$B$3:$B$502,0))&"_"&INDEX(Seehäfen!$A$3:$A$502, MATCH(Berechnung!E92,Seehäfen!$B$3:$B$502,0)),Entfernung_Seehäfen!$C$2:$E$100001,2,FALSE)) ->  | I92: =IF(G92="","",SUM(IF(A92=Energieverbrauch!$A$2:$A$41,1,0)*IF(Berechnung!B92=Energieverbrauch!$B$2:$B$41,1,0)*IF(Berechnung!F92=Energieverbrauch!$C$2:$C$41,1,0)*Energieverbrauch!$D$2:$D$41)) ->  | K92: =IF(G92="","",J92/IF($C92="Schweröl (HFO)", Treibhausgas_Kennzahlen!B$7,IF(Berechnung!C92="Dieselöl (MDO)",Treibhausgas_Kennzahlen!B$9,Treibhausgas_Kennzahlen!B$8))) ->  | L92: =IF(G92="","",$K92*IF($C92="Schweröl (HFO)",Treibhausgas_Kennzahlen!B$14,IF(Berechnung!C92="Dieselöl (MDO)", Treibhausgas_Kennzahlen!B$16,Treibhausgas_Kennzahlen!B$15))) ->  | M92: =IF(G92="","",$K92*IF($C92="Schweröl (HFO)",Treibhausgas_Kennzahlen!C$14,IF(Berechnung!D92="Dieselöl (MDO)", Treibhausgas_Kennzahlen!C$16,Treibhausgas_Kennzahlen!C$15))) ->  | N92: =IF(G92="","",$J92*IF($C92="Schweröl (HFO)",Treibhausgas_Kennzahlen!D$14,IF(Berechnung!C92="Dieselöl (MDO)",Treibhausgas_Kennzahlen!D$16,Treibhausgas_Kennzahlen!D$15))) ->  | O92: =IF(G92="","",$J92*IF($C92="Schweröl (HFO)",Treibhausgas_Kennzahlen!E$14,IF(Berechnung!D92="Dieselöl (MDO)",Treibhausgas_Kennzahlen!E$16,Treibhausgas_Kennzahlen!E$15))) ->  | P92: =IF(G92="","",$J92*IF($C92="Schweröl (HFO)",Treibhausgas_Kennzahlen!F$14,IF(Berechnung!E92="Dieselöl (MDO)",Treibhausgas_Kennzahlen!F$16,Treibhausgas_Kennzahlen!F$15))) ->  | Q92: =IF(G92="","",$J92*IF($C92="Schweröl (HFO)",Treibhausgas_Kennzahlen!G$14,IF(Berechnung!F92="Dieselöl (MDO)",Treibhausgas_Kennzahlen!G$16,Treibhausgas_Kennzahlen!G$15))) -> 
H93: =IF(G93="","",VLOOKUP(INDEX(Seehäfen!$A$3:$A$502, MATCH(Berechnung!D93,Seehäfen!$B$3:$B$502,0))&"_"&INDEX(Seehäfen!$A$3:$A$502, MATCH(Berechnung!E93,Seehäfen!$B$3:$B$502,0)),Entfernung_Seehäfen!$C$2:$E$10001,2,FALSE)) ->  | I93: =IF(G93="","",SUM(IF(A93=Energieverbrauch!$A$2:$A$41,1,0)*IF(Berechnung!B93=Energieverbrauch!$B$2:$B$41,1,0)*IF(Berechnung!F93=Energieverbrauch!$C$2:$C$41,1,0)*Energieverbrauch!$D$2:$D$41)) ->  | K93: =IF(G93="","",J93/IF($C93="Schweröl (HFO)", Treibhausgas_Kennzahlen!B$7,IF(Berechnung!C93="Dieselöl (MDO)",Treibhausgas_Kennzahlen!B$9,Treibhausgas_Kennzahlen!B$8))) ->  | L93: =IF(G93="","",$K93*IF($C93="Schweröl (HFO)",Treibhausgas_Kennzahlen!B$14,IF(Berechnung!C93="Dieselöl (MDO)", Treibhausgas_Kennzahlen!B$16,Treibhausgas_Kennzahlen!B$15))) ->  | M93: =IF(G93="","",$K93*IF($C93="Schweröl (HFO)",Treibhausgas_Kennzahlen!C$14,IF(Berechnung!D93="Dieselöl (MDO)", Treibhausgas_Kennzahlen!C$16,Treibhausgas_Kennzahlen!C$15))) ->  | N93: =IF(G93="","",$J93*IF($C93="Schweröl (HFO)",Treibhausgas_Kennzahlen!D$14,IF(Berechnung!C93="Dieselöl (MDO)",Treibhausgas_Kennzahlen!D$16,Treibhausgas_Kennzahlen!D$15))) ->  | O93: =IF(G93="","",$J93*IF($C93="Schweröl (HFO)",Treibhausgas_Kennzahlen!E$14,IF(Berechnung!D93="Dieselöl (MDO)",Treibhausgas_Kennzahlen!E$16,Treibhausgas_Kennzahlen!E$15))) ->  | P93: =IF(G93="","",$J93*IF($C93="Schweröl (HFO)",Treibhausgas_Kennzahlen!F$14,IF(Berechnung!E93="Dieselöl (MDO)",Treibhausgas_Kennzahlen!F$16,Treibhausgas_Kennzahlen!F$15))) ->  | Q93: =IF(G93="","",$J93*IF($C93="Schweröl (HFO)",Treibhausgas_Kennzahlen!G$14,IF(Berechnung!F93="Dieselöl (MDO)",Treibhausgas_Kennzahlen!G$16,Treibhausgas_Kennzahlen!G$15))) -> 
H94: =IF(G94="","",VLOOKUP(INDEX(Seehäfen!$A$3:$A$502, MATCH(Berechnung!D94,Seehäfen!$B$3:$B$502,0))&"_"&INDEX(Seehäfen!$A$3:$A$502, MATCH(Berechnung!E94,Seehäfen!$B$3:$B$502,0)),Entfernung_Seehäfen!$C$2:$E$100001,2,FALSE)) ->  | I94: =IF(G94="","",SUM(IF(A94=Energieverbrauch!$A$2:$A$41,1,0)*IF(Berechnung!B94=Energieverbrauch!$B$2:$B$41,1,0)*IF(Berechnung!F94=Energieverbrauch!$C$2:$C$41,1,0)*Energieverbrauch!$D$2:$D$41)) ->  | K94: =IF(G94="","",J94/IF($C94="Schweröl (HFO)", Treibhausgas_Kennzahlen!B$7,IF(Berechnung!C94="Dieselöl (MDO)",Treibhausgas_Kennzahlen!B$9,Treibhausgas_Kennzahlen!B$8))) ->  | L94: =IF(G94="","",$K94*IF($C94="Schweröl (HFO)",Treibhausgas_Kennzahlen!B$14,IF(Berechnung!C94="Dieselöl (MDO)", Treibhausgas_Kennzahlen!B$16,Treibhausgas_Kennzahlen!B$15))) ->  | M94: =IF(G94="","",$K94*IF($C94="Schweröl (HFO)",Treibhausgas_Kennzahlen!C$14,IF(Berechnung!D94="Dieselöl (MDO)", Treibhausgas_Kennzahlen!C$16,Treibhausgas_Kennzahlen!C$15))) ->  | N94: =IF(G94="","",$J94*IF($C94="Schweröl (HFO)",Treibhausgas_Kennzahlen!D$14,IF(Berechnung!C94="Dieselöl (MDO)",Treibhausgas_Kennzahlen!D$16,Treibhausgas_Kennzahlen!D$15))) ->  | O94: =IF(G94="","",$J94*IF($C94="Schweröl (HFO)",Treibhausgas_Kennzahlen!E$14,IF(Berechnung!D94="Dieselöl (MDO)",Treibhausgas_Kennzahlen!E$16,Treibhausgas_Kennzahlen!E$15))) ->  | P94: =IF(G94="","",$J94*IF($C94="Schweröl (HFO)",Treibhausgas_Kennzahlen!F$14,IF(Berechnung!E94="Dieselöl (MDO)",Treibhausgas_Kennzahlen!F$16,Treibhausgas_Kennzahlen!F$15))) ->  | Q94: =IF(G94="","",$J94*IF($C94="Schweröl (HFO)",Treibhausgas_Kennzahlen!G$14,IF(Berechnung!F94="Dieselöl (MDO)",Treibhausgas_Kennzahlen!G$16,Treibhausgas_Kennzahlen!G$15))) -> 
H95: =IF(G95="","",VLOOKUP(INDEX(Seehäfen!$A$3:$A$502, MATCH(Berechnung!D95,Seehäfen!$B$3:$B$502,0))&"_"&INDEX(Seehäfen!$A$3:$A$502, MATCH(Berechnung!E95,Seehäfen!$B$3:$B$502,0)),Entfernung_Seehäfen!$C$2:$E$10001,2,FALSE)) ->  | I95: =IF(G95="","",SUM(IF(A95=Energieverbrauch!$A$2:$A$41,1,0)*IF(Berechnung!B95=Energieverbrauch!$B$2:$B$41,1,0)*IF(Berechnung!F95=Energieverbrauch!$C$2:$C$41,1,0)*Energieverbrauch!$D$2:$D$41)) ->  | K95: =IF(G95="","",J95/IF($C95="Schweröl (HFO)", Treibhausgas_Kennzahlen!B$7,IF(Berechnung!C95="Dieselöl (MDO)",Treibhausgas_Kennzahlen!B$9,Treibhausgas_Kennzahlen!B$8))) ->  | L95: =IF(G95="","",$K95*IF($C95="Schweröl (HFO)",Treibhausgas_Kennzahlen!B$14,IF(Berechnung!C95="Dieselöl (MDO)", Treibhausgas_Kennzahlen!B$16,Treibhausgas_Kennzahlen!B$15))) ->  | M95: =IF(G95="","",$K95*IF($C95="Schweröl (HFO)",Treibhausgas_Kennzahlen!C$14,IF(Berechnung!D95="Dieselöl (MDO)", Treibhausgas_Kennzahlen!C$16,Treibhausgas_Kennzahlen!C$15))) ->  | N95: =IF(G95="","",$J95*IF($C95="Schweröl (HFO)",Treibhausgas_Kennzahlen!D$14,IF(Berechnung!C95="Dieselöl (MDO)",Treibhausgas_Kennzahlen!D$16,Treibhausgas_Kennzahlen!D$15))) ->  | O95: =IF(G95="","",$J95*IF($C95="Schweröl (HFO)",Treibhausgas_Kennzahlen!E$14,IF(Berechnung!D95="Dieselöl (MDO)",Treibhausgas_Kennzahlen!E$16,Treibhausgas_Kennzahlen!E$15))) ->  | P95: =IF(G95="","",$J95*IF($C95="Schweröl (HFO)",Treibhausgas_Kennzahlen!F$14,IF(Berechnung!E95="Dieselöl (MDO)",Treibhausgas_Kennzahlen!F$16,Treibhausgas_Kennzahlen!F$15))) ->  | Q95: =IF(G95="","",$J95*IF($C95="Schweröl (HFO)",Treibhausgas_Kennzahlen!G$14,IF(Berechnung!F95="Dieselöl (MDO)",Treibhausgas_Kennzahlen!G$16,Treibhausgas_Kennzahlen!G$15))) -> 
H96: =IF(G96="","",VLOOKUP(INDEX(Seehäfen!$A$3:$A$502, MATCH(Berechnung!D96,Seehäfen!$B$3:$B$502,0))&"_"&INDEX(Seehäfen!$A$3:$A$502, MATCH(Berechnung!E96,Seehäfen!$B$3:$B$502,0)),Entfernung_Seehäfen!$C$2:$E$100001,2,FALSE)) ->  | I96: =IF(G96="","",SUM(IF(A96=Energieverbrauch!$A$2:$A$41,1,0)*IF(Berechnung!B96=Energieverbrauch!$B$2:$B$41,1,0)*IF(Berechnung!F96=Energieverbrauch!$C$2:$C$41,1,0)*Energieverbrauch!$D$2:$D$41)) ->  | K96: =IF(G96="","",J96/IF($C96="Schweröl (HFO)", Treibhausgas_Kennzahlen!B$7,IF(Berechnung!C96="Dieselöl (MDO)",Treibhausgas_Kennzahlen!B$9,Treibhausgas_Kennzahlen!B$8))) ->  | L96: =IF(G96="","",$K96*IF($C96="Schweröl (HFO)",Treibhausgas_Kennzahlen!B$14,IF(Berechnung!C96="Dieselöl (MDO)", Treibhausgas_Kennzahlen!B$16,Treibhausgas_Kennzahlen!B$15))) ->  | M96: =IF(G96="","",$K96*IF($C96="Schweröl (HFO)",Treibhausgas_Kennzahlen!C$14,IF(Berechnung!D96="Dieselöl (MDO)", Treibhausgas_Kennzahlen!C$16,Treibhausgas_Kennzahlen!C$15))) ->  | N96: =IF(G96="","",$J96*IF($C96="Schweröl (HFO)",Treibhausgas_Kennzahlen!D$14,IF(Berechnung!C96="Dieselöl (MDO)",Treibhausgas_Kennzahlen!D$16,Treibhausgas_Kennzahlen!D$15))) ->  | O96: =IF(G96="","",$J96*IF($C96="Schweröl (HFO)",Treibhausgas_Kennzahlen!E$14,IF(Berechnung!D96="Dieselöl (MDO)",Treibhausgas_Kennzahlen!E$16,Treibhausgas_Kennzahlen!E$15))) ->  | P96: =IF(G96="","",$J96*IF($C96="Schweröl (HFO)",Treibhausgas_Kennzahlen!F$14,IF(Berechnung!E96="Dieselöl (MDO)",Treibhausgas_Kennzahlen!F$16,Treibhausgas_Kennzahlen!F$15))) ->  | Q96: =IF(G96="","",$J96*IF($C96="Schweröl (HFO)",Treibhausgas_Kennzahlen!G$14,IF(Berechnung!F96="Dieselöl (MDO)",Treibhausgas_Kennzahlen!G$16,Treibhausgas_Kennzahlen!G$15))) -> 
H97: =IF(G97="","",VLOOKUP(INDEX(Seehäfen!$A$3:$A$502, MATCH(Berechnung!D97,Seehäfen!$B$3:$B$502,0))&"_"&INDEX(Seehäfen!$A$3:$A$502, MATCH(Berechnung!E97,Seehäfen!$B$3:$B$502,0)),Entfernung_Seehäfen!$C$2:$E$10001,2,FALSE)) ->  | I97: =IF(G97="","",SUM(IF(A97=Energieverbrauch!$A$2:$A$41,1,0)*IF(Berechnung!B97=Energieverbrauch!$B$2:$B$41,1,0)*IF(Berechnung!F97=Energieverbrauch!$C$2:$C$41,1,0)*Energieverbrauch!$D$2:$D$41)) ->  | K97: =IF(G97="","",J97/IF($C97="Schweröl (HFO)", Treibhausgas_Kennzahlen!B$7,IF(Berechnung!C97="Dieselöl (MDO)",Treibhausgas_Kennzahlen!B$9,Treibhausgas_Kennzahlen!B$8))) ->  | L97: =IF(G97="","",$K97*IF($C97="Schweröl (HFO)",Treibhausgas_Kennzahlen!B$14,IF(Berechnung!C97="Dieselöl (MDO)", Treibhausgas_Kennzahlen!B$16,Treibhausgas_Kennzahlen!B$15))) ->  | M97: =IF(G97="","",$K97*IF($C97="Schweröl (HFO)",Treibhausgas_Kennzahlen!C$14,IF(Berechnung!D97="Dieselöl (MDO)", Treibhausgas_Kennzahlen!C$16,Treibhausgas_Kennzahlen!C$15))) ->  | N97: =IF(G97="","",$J97*IF($C97="Schweröl (HFO)",Treibhausgas_Kennzahlen!D$14,IF(Berechnung!C97="Dieselöl (MDO)",Treibhausgas_Kennzahlen!D$16,Treibhausgas_Kennzahlen!D$15))) ->  | O97: =IF(G97="","",$J97*IF($C97="Schweröl (HFO)",Treibhausgas_Kennzahlen!E$14,IF(Berechnung!D97="Dieselöl (MDO)",Treibhausgas_Kennzahlen!E$16,Treibhausgas_Kennzahlen!E$15))) ->  | P97: =IF(G97="","",$J97*IF($C97="Schweröl (HFO)",Treibhausgas_Kennzahlen!F$14,IF(Berechnung!E97="Dieselöl (MDO)",Treibhausgas_Kennzahlen!F$16,Treibhausgas_Kennzahlen!F$15))) ->  | Q97: =IF(G97="","",$J97*IF($C97="Schweröl (HFO)",Treibhausgas_Kennzahlen!G$14,IF(Berechnung!F97="Dieselöl (MDO)",Treibhausgas_Kennzahlen!G$16,Treibhausgas_Kennzahlen!G$15))) -> 
H98: =IF(G98="","",VLOOKUP(INDEX(Seehäfen!$A$3:$A$502, MATCH(Berechnung!D98,Seehäfen!$B$3:$B$502,0))&"_"&INDEX(Seehäfen!$A$3:$A$502, MATCH(Berechnung!E98,Seehäfen!$B$3:$B$502,0)),Entfernung_Seehäfen!$C$2:$E$100001,2,FALSE)) ->  | I98: =IF(G98="","",SUM(IF(A98=Energieverbrauch!$A$2:$A$41,1,0)*IF(Berechnung!B98=Energieverbrauch!$B$2:$B$41,1,0)*IF(Berechnung!F98=Energieverbrauch!$C$2:$C$41,1,0)*Energieverbrauch!$D$2:$D$41)) ->  | K98: =IF(G98="","",J98/IF($C98="Schweröl (HFO)", Treibhausgas_Kennzahlen!B$7,IF(Berechnung!C98="Dieselöl (MDO)",Treibhausgas_Kennzahlen!B$9,Treibhausgas_Kennzahlen!B$8))) ->  | L98: =IF(G98="","",$K98*IF($C98="Schweröl (HFO)",Treibhausgas_Kennzahlen!B$14,IF(Berechnung!C98="Dieselöl (MDO)", Treibhausgas_Kennzahlen!B$16,Treibhausgas_Kennzahlen!B$15))) ->  | M98: =IF(G98="","",$K98*IF($C98="Schweröl (HFO)",Treibhausgas_Kennzahlen!C$14,IF(Berechnung!D98="Dieselöl (MDO)", Treibhausgas_Kennzahlen!C$16,Treibhausgas_Kennzahlen!C$15))) ->  | N98: =IF(G98="","",$J98*IF($C98="Schweröl (HFO)",Treibhausgas_Kennzahlen!D$14,IF(Berechnung!C98="Dieselöl (MDO)",Treibhausgas_Kennzahlen!D$16,Treibhausgas_Kennzahlen!D$15))) ->  | O98: =IF(G98="","",$J98*IF($C98="Schweröl (HFO)",Treibhausgas_Kennzahlen!E$14,IF(Berechnung!D98="Dieselöl (MDO)",Treibhausgas_Kennzahlen!E$16,Treibhausgas_Kennzahlen!E$15))) ->  | P98: =IF(G98="","",$J98*IF($C98="Schweröl (HFO)",Treibhausgas_Kennzahlen!F$14,IF(Berechnung!E98="Dieselöl (MDO)",Treibhausgas_Kennzahlen!F$16,Treibhausgas_Kennzahlen!F$15))) ->  | Q98: =IF(G98="","",$J98*IF($C98="Schweröl (HFO)",Treibhausgas_Kennzahlen!G$14,IF(Berechnung!F98="Dieselöl (MDO)",Treibhausgas_Kennzahlen!G$16,Treibhausgas_Kennzahlen!G$15))) -> 
H99: =IF(G99="","",VLOOKUP(INDEX(Seehäfen!$A$3:$A$502, MATCH(Berechnung!D99,Seehäfen!$B$3:$B$502,0))&"_"&INDEX(Seehäfen!$A$3:$A$502, MATCH(Berechnung!E99,Seehäfen!$B$3:$B$502,0)),Entfernung_Seehäfen!$C$2:$E$10001,2,FALSE)) ->  | I99: =IF(G99="","",SUM(IF(A99=Energieverbrauch!$A$2:$A$41,1,0)*IF(Berechnung!B99=Energieverbrauch!$B$2:$B$41,1,0)*IF(Berechnung!F99=Energieverbrauch!$C$2:$C$41,1,0)*Energieverbrauch!$D$2:$D$41)) ->  | K99: =IF(G99="","",J99/IF($C99="Schweröl (HFO)", Treibhausgas_Kennzahlen!B$7,IF(Berechnung!C99="Dieselöl (MDO)",Treibhausgas_Kennzahlen!B$9,Treibhausgas_Kennzahlen!B$8))) ->  | L99: =IF(G99="","",$K99*IF($C99="Schweröl (HFO)",Treibhausgas_Kennzahlen!B$14,IF(Berechnung!C99="Dieselöl (MDO)", Treibhausgas_Kennzahlen!B$16,Treibhausgas_Kennzahlen!B$15))) ->  | M99: =IF(G99="","",$K99*IF($C99="Schweröl (HFO)",Treibhausgas_Kennzahlen!C$14,IF(Berechnung!D99="Dieselöl (MDO)", Treibhausgas_Kennzahlen!C$16,Treibhausgas_Kennzahlen!C$15))) ->  | N99: =IF(G99="","",$J99*IF($C99="Schweröl (HFO)",Treibhausgas_Kennzahlen!D$14,IF(Berechnung!C99="Dieselöl (MDO)",Treibhausgas_Kennzahlen!D$16,Treibhausgas_Kennzahlen!D$15))) ->  | O99: =IF(G99="","",$J99*IF($C99="Schweröl (HFO)",Treibhausgas_Kennzahlen!E$14,IF(Berechnung!D99="Dieselöl (MDO)",Treibhausgas_Kennzahlen!E$16,Treibhausgas_Kennzahlen!E$15))) ->  | P99: =IF(G99="","",$J99*IF($C99="Schweröl (HFO)",Treibhausgas_Kennzahlen!F$14,IF(Berechnung!E99="Dieselöl (MDO)",Treibhausgas_Kennzahlen!F$16,Treibhausgas_Kennzahlen!F$15))) ->  | Q99: =IF(G99="","",$J99*IF($C99="Schweröl (HFO)",Treibhausgas_Kennzahlen!G$14,IF(Berechnung!F99="Dieselöl (MDO)",Treibhausgas_Kennzahlen!G$16,Treibhausgas_Kennzahlen!G$15))) -> 
H100: =IF(G100="","",VLOOKUP(INDEX(Seehäfen!$A$3:$A$502, MATCH(Berechnung!D100,Seehäfen!$B$3:$B$502,0))&"_"&INDEX(Seehäfen!$A$3:$A$502, MATCH(Berechnung!E100,Seehäfen!$B$3:$B$502,0)),Entfernung_Seehäfen!$C$2:$E$100001,2,FALSE)) ->  | I100: =IF(G100="","",SUM(IF(A100=Energieverbrauch!$A$2:$A$41,1,0)*IF(Berechnung!B100=Energieverbrauch!$B$2:$B$41,1,0)*IF(Berechnung!F100=Energieverbrauch!$C$2:$C$41,1,0)*Energieverbrauch!$D$2:$D$41)) ->  | K100: =IF(G100="","",J100/IF($C100="Schweröl (HFO)", Treibhausgas_Kennzahlen!B$7,IF(Berechnung!C100="Dieselöl (MDO)",Treibhausgas_Kennzahlen!B$9,Treibhausgas_Kennzahlen!B$8))) ->  | L100: =IF(G100="","",$K100*IF($C100="Schweröl (HFO)",Treibhausgas_Kennzahlen!B$14,IF(Berechnung!C100="Dieselöl (MDO)", Treibhausgas_Kennzahlen!B$16,Treibhausgas_Kennzahlen!B$15))) ->  | M100: =IF(G100="","",$K100*IF($C100="Schweröl (HFO)",Treibhausgas_Kennzahlen!C$14,IF(Berechnung!D100="Dieselöl (MDO)", Treibhausgas_Kennzahlen!C$16,Treibhausgas_Kennzahlen!C$15))) ->  | N100: =IF(G100="","",$J100*IF($C100="Schweröl (HFO)",Treibhausgas_Kennzahlen!D$14,IF(Berechnung!C100="Dieselöl (MDO)",Treibhausgas_Kennzahlen!D$16,Treibhausgas_Kennzahlen!D$15))) ->  | O100: =IF(G100="","",$J100*IF($C100="Schweröl (HFO)",Treibhausgas_Kennzahlen!E$14,IF(Berechnung!D100="Dieselöl (MDO)",Treibhausgas_Kennzahlen!E$16,Treibhausgas_Kennzahlen!E$15))) ->  | P100: =IF(G100="","",$J100*IF($C100="Schweröl (HFO)",Treibhausgas_Kennzahlen!F$14,IF(Berechnung!E100="Dieselöl (MDO)",Treibhausgas_Kennzahlen!F$16,Treibhausgas_Kennzahlen!F$15))) ->  | Q100: =IF(G100="","",$J100*IF($C100="Schweröl (HFO)",Treibhausgas_Kennzahlen!G$14,IF(Berechnung!F100="Dieselöl (MDO)",Treibhausgas_Kennzahlen!G$16,Treibhausgas_Kennzahlen!G$15))) -> 
H101: =IF(G101="","",VLOOKUP(INDEX(Seehäfen!$A$3:$A$502, MATCH(Berechnung!D101,Seehäfen!$B$3:$B$502,0))&"_"&INDEX(Seehäfen!$A$3:$A$502, MATCH(Berechnung!E101,Seehäfen!$B$3:$B$502,0)),Entfernung_Seehäfen!$C$2:$E$10001,2,FALSE)) ->  | I101: =IF(G101="","",SUM(IF(A101=Energieverbrauch!$A$2:$A$41,1,0)*IF(Berechnung!B101=Energieverbrauch!$B$2:$B$41,1,0)*IF(Berechnung!F101=Energieverbrauch!$C$2:$C$41,1,0)*Energieverbrauch!$D$2:$D$41)) ->  | K101: =IF(G101="","",J101/IF($C101="Schweröl (HFO)", Treibhausgas_Kennzahlen!B$7,IF(Berechnung!C101="Dieselöl (MDO)",Treibhausgas_Kennzahlen!B$9,Treibhausgas_Kennzahlen!B$8))) ->  | L101: =IF(G101="","",$K101*IF($C101="Schweröl (HFO)",Treibhausgas_Kennzahlen!B$14,IF(Berechnung!C101="Dieselöl (MDO)", Treibhausgas_Kennzahlen!B$16,Treibhausgas_Kennzahlen!B$15))) ->  | M101: =IF(G101="","",$K101*IF($C101="Schweröl (HFO)",Treibhausgas_Kennzahlen!C$14,IF(Berechnung!D101="Dieselöl (MDO)", Treibhausgas_Kennzahlen!C$16,Treibhausgas_Kennzahlen!C$15))) ->  | N101: =IF(G101="","",$J101*IF($C101="Schweröl (HFO)",Treibhausgas_Kennzahlen!D$14,IF(Berechnung!C101="Dieselöl (MDO)",Treibhausgas_Kennzahlen!D$16,Treibhausgas_Kennzahlen!D$15))) ->  | O101: =IF(G101="","",$J101*IF($C101="Schweröl (HFO)",Treibhausgas_Kennzahlen!E$14,IF(Berechnung!D101="Dieselöl (MDO)",Treibhausgas_Kennzahlen!E$16,Treibhausgas_Kennzahlen!E$15))) ->  | P101: =IF(G101="","",$J101*IF($C101="Schweröl (HFO)",Treibhausgas_Kennzahlen!F$14,IF(Berechnung!E101="Dieselöl (MDO)",Treibhausgas_Kennzahlen!F$16,Treibhausgas_Kennzahlen!F$15))) ->  | Q101: =IF(G101="","",$J101*IF($C101="Schweröl (HFO)",Treibhausgas_Kennzahlen!G$14,IF(Berechnung!F101="Dieselöl (MDO)",Treibhausgas_Kennzahlen!G$16,Treibhausgas_Kennzahlen!G$15))) -> 
H102: =IF(G102="","",VLOOKUP(INDEX(Seehäfen!$A$3:$A$502, MATCH(Berechnung!D102,Seehäfen!$B$3:$B$502,0))&"_"&INDEX(Seehäfen!$A$3:$A$502, MATCH(Berechnung!E102,Seehäfen!$B$3:$B$502,0)),Entfernung_Seehäfen!$C$2:$E$100001,2,FALSE)) ->  | I102: =IF(G102="","",SUM(IF(A102=Energieverbrauch!$A$2:$A$41,1,0)*IF(Berechnung!B102=Energieverbrauch!$B$2:$B$41,1,0)*IF(Berechnung!F102=Energieverbrauch!$C$2:$C$41,1,0)*Energieverbrauch!$D$2:$D$41)) ->  | K102: =IF(G102="","",J102/IF($C102="Schweröl (HFO)", Treibhausgas_Kennzahlen!B$7,IF(Berechnung!C102="Dieselöl (MDO)",Treibhausgas_Kennzahlen!B$9,Treibhausgas_Kennzahlen!B$8))) ->  | L102: =IF(G102="","",$K102*IF($C102="Schweröl (HFO)",Treibhausgas_Kennzahlen!B$14,IF(Berechnung!C102="Dieselöl (MDO)", Treibhausgas_Kennzahlen!B$16,Treibhausgas_Kennzahlen!B$15))) ->  | M102: =IF(G102="","",$K102*IF($C102="Schweröl (HFO)",Treibhausgas_Kennzahlen!C$14,IF(Berechnung!D102="Dieselöl (MDO)", Treibhausgas_Kennzahlen!C$16,Treibhausgas_Kennzahlen!C$15))) ->  | N102: =IF(G102="","",$J102*IF($C102="Schweröl (HFO)",Treibhausgas_Kennzahlen!D$14,IF(Berechnung!C102="Dieselöl (MDO)",Treibhausgas_Kennzahlen!D$16,Treibhausgas_Kennzahlen!D$15))) ->  | O102: =IF(G102="","",$J102*IF($C102="Schweröl (HFO)",Treibhausgas_Kennzahlen!E$14,IF(Berechnung!D102="Dieselöl (MDO)",Treibhausgas_Kennzahlen!E$16,Treibhausgas_Kennzahlen!E$15))) ->  | P102: =IF(G102="","",$J102*IF($C102="Schweröl (HFO)",Treibhausgas_Kennzahlen!F$14,IF(Berechnung!E102="Dieselöl (MDO)",Treibhausgas_Kennzahlen!F$16,Treibhausgas_Kennzahlen!F$15))) ->  | Q102: =IF(G102="","",$J102*IF($C102="Schweröl (HFO)",Treibhausgas_Kennzahlen!G$14,IF(Berechnung!F102="Dieselöl (MDO)",Treibhausgas_Kennzahlen!G$16,Treibhausgas_Kennzahlen!G$15))) -> 
H103: =IF(G103="","",VLOOKUP(INDEX(Seehäfen!$A$3:$A$502, MATCH(Berechnung!D103,Seehäfen!$B$3:$B$502,0))&"_"&INDEX(Seehäfen!$A$3:$A$502, MATCH(Berechnung!E103,Seehäfen!$B$3:$B$502,0)),Entfernung_Seehäfen!$C$2:$E$10001,2,FALSE)) ->  | I103: =IF(G103="","",SUM(IF(A103=Energieverbrauch!$A$2:$A$41,1,0)*IF(Berechnung!B103=Energieverbrauch!$B$2:$B$41,1,0)*IF(Berechnung!F103=Energieverbrauch!$C$2:$C$41,1,0)*Energieverbrauch!$D$2:$D$41)) ->  | K103: =IF(G103="","",J103/IF($C103="Schweröl (HFO)", Treibhausgas_Kennzahlen!B$7,IF(Berechnung!C103="Dieselöl (MDO)",Treibhausgas_Kennzahlen!B$9,Treibhausgas_Kennzahlen!B$8))) ->  | L103: =IF(G103="","",$K103*IF($C103="Schweröl (HFO)",Treibhausgas_Kennzahlen!B$14,IF(Berechnung!C103="Dieselöl (MDO)", Treibhausgas_Kennzahlen!B$16,Treibhausgas_Kennzahlen!B$15))) ->  | M103: =IF(G103="","",$K103*IF($C103="Schweröl (HFO)",Treibhausgas_Kennzahlen!C$14,IF(Berechnung!D103="Dieselöl (MDO)", Treibhausgas_Kennzahlen!C$16,Treibhausgas_Kennzahlen!C$15))) ->  | N103: =IF(G103="","",$J103*IF($C103="Schweröl (HFO)",Treibhausgas_Kennzahlen!D$14,IF(Berechnung!C103="Dieselöl (MDO)",Treibhausgas_Kennzahlen!D$16,Treibhausgas_Kennzahlen!D$15))) ->  | O103: =IF(G103="","",$J103*IF($C103="Schweröl (HFO)",Treibhausgas_Kennzahlen!E$14,IF(Berechnung!D103="Dieselöl (MDO)",Treibhausgas_Kennzahlen!E$16,Treibhausgas_Kennzahlen!E$15))) ->  | P103: =IF(G103="","",$J103*IF($C103="Schweröl (HFO)",Treibhausgas_Kennzahlen!F$14,IF(Berechnung!E103="Dieselöl (MDO)",Treibhausgas_Kennzahlen!F$16,Treibhausgas_Kennzahlen!F$15))) ->  | Q103: =IF(G103="","",$J103*IF($C103="Schweröl (HFO)",Treibhausgas_Kennzahlen!G$14,IF(Berechnung!F103="Dieselöl (MDO)",Treibhausgas_Kennzahlen!G$16,Treibhausgas_Kennzahlen!G$15))) -> 
H104: =IF(G104="","",VLOOKUP(INDEX(Seehäfen!$A$3:$A$502, MATCH(Berechnung!D104,Seehäfen!$B$3:$B$502,0))&"_"&INDEX(Seehäfen!$A$3:$A$502, MATCH(Berechnung!E104,Seehäfen!$B$3:$B$502,0)),Entfernung_Seehäfen!$C$2:$E$100001,2,FALSE)) ->  | I104: =IF(G104="","",SUM(IF(A104=Energieverbrauch!$A$2:$A$41,1,0)*IF(Berechnung!B104=Energieverbrauch!$B$2:$B$41,1,0)*IF(Berechnung!F104=Energieverbrauch!$C$2:$C$41,1,0)*Energieverbrauch!$D$2:$D$41)) ->  | K104: =IF(G104="","",J104/IF($C104="Schweröl (HFO)", Treibhausgas_Kennzahlen!B$7,IF(Berechnung!C104="Dieselöl (MDO)",Treibhausgas_Kennzahlen!B$9,Treibhausgas_Kennzahlen!B$8))) ->  | L104: =IF(G104="","",$K104*IF($C104="Schweröl (HFO)",Treibhausgas_Kennzahlen!B$14,IF(Berechnung!C104="Dieselöl (MDO)", Treibhausgas_Kennzahlen!B$16,Treibhausgas_Kennzahlen!B$15))) ->  | M104: =IF(G104="","",$K104*IF($C104="Schweröl (HFO)",Treibhausgas_Kennzahlen!C$14,IF(Berechnung!D104="Dieselöl (MDO)", Treibhausgas_Kennzahlen!C$16,Treibhausgas_Kennzahlen!C$15))) ->  | N104: =IF(G104="","",$J104*IF($C104="Schweröl (HFO)",Treibhausgas_Kennzahlen!D$14,IF(Berechnung!C104="Dieselöl (MDO)",Treibhausgas_Kennzahlen!D$16,Treibhausgas_Kennzahlen!D$15))) ->  | O104: =IF(G104="","",$J104*IF($C104="Schweröl (HFO)",Treibhausgas_Kennzahlen!E$14,IF(Berechnung!D104="Dieselöl (MDO)",Treibhausgas_Kennzahlen!E$16,Treibhausgas_Kennzahlen!E$15))) ->  | P104: =IF(G104="","",$J104*IF($C104="Schweröl (HFO)",Treibhausgas_Kennzahlen!F$14,IF(Berechnung!E104="Dieselöl (MDO)",Treibhausgas_Kennzahlen!F$16,Treibhausgas_Kennzahlen!F$15))) ->  | Q104: =IF(G104="","",$J104*IF($C104="Schweröl (HFO)",Treibhausgas_Kennzahlen!G$14,IF(Berechnung!F104="Dieselöl (MDO)",Treibhausgas_Kennzahlen!G$16,Treibhausgas_Kennzahlen!G$15))) -> 
H105: =IF(G105="","",VLOOKUP(INDEX(Seehäfen!$A$3:$A$502, MATCH(Berechnung!D105,Seehäfen!$B$3:$B$502,0))&"_"&INDEX(Seehäfen!$A$3:$A$502, MATCH(Berechnung!E105,Seehäfen!$B$3:$B$502,0)),Entfernung_Seehäfen!$C$2:$E$10001,2,FALSE)) ->  | I105: =IF(G105="","",SUM(IF(A105=Energieverbrauch!$A$2:$A$41,1,0)*IF(Berechnung!B105=Energieverbrauch!$B$2:$B$41,1,0)*IF(Berechnung!F105=Energieverbrauch!$C$2:$C$41,1,0)*Energieverbrauch!$D$2:$D$41)) ->  | K105: =IF(G105="","",J105/IF($C105="Schweröl (HFO)", Treibhausgas_Kennzahlen!B$7,IF(Berechnung!C105="Dieselöl (MDO)",Treibhausgas_Kennzahlen!B$9,Treibhausgas_Kennzahlen!B$8))) ->  | L105: =IF(G105="","",$K105*IF($C105="Schweröl (HFO)",Treibhausgas_Kennzahlen!B$14,IF(Berechnung!C105="Dieselöl (MDO)", Treibhausgas_Kennzahlen!B$16,Treibhausgas_Kennzahlen!B$15))) ->  | M105: =IF(G105="","",$K105*IF($C105="Schweröl (HFO)",Treibhausgas_Kennzahlen!C$14,IF(Berechnung!D105="Dieselöl (MDO)", Treibhausgas_Kennzahlen!C$16,Treibhausgas_Kennzahlen!C$15))) ->  | N105: =IF(G105="","",$J105*IF($C105="Schweröl (HFO)",Treibhausgas_Kennzahlen!D$14,IF(Berechnung!C105="Dieselöl (MDO)",Treibhausgas_Kennzahlen!D$16,Treibhausgas_Kennzahlen!D$15))) ->  | O105: =IF(G105="","",$J105*IF($C105="Schweröl (HFO)",Treibhausgas_Kennzahlen!E$14,IF(Berechnung!D105="Dieselöl (MDO)",Treibhausgas_Kennzahlen!E$16,Treibhausgas_Kennzahlen!E$15))) ->  | P105: =IF(G105="","",$J105*IF($C105="Schweröl (HFO)",Treibhausgas_Kennzahlen!F$14,IF(Berechnung!E105="Dieselöl (MDO)",Treibhausgas_Kennzahlen!F$16,Treibhausgas_Kennzahlen!F$15))) ->  | Q105: =IF(G105="","",$J105*IF($C105="Schweröl (HFO)",Treibhausgas_Kennzahlen!G$14,IF(Berechnung!F105="Dieselöl (MDO)",Treibhausgas_Kennzahlen!G$16,Treibhausgas_Kennzahlen!G$15))) -> 
H106: =IF(G106="","",VLOOKUP(INDEX(Seehäfen!$A$3:$A$502, MATCH(Berechnung!D106,Seehäfen!$B$3:$B$502,0))&"_"&INDEX(Seehäfen!$A$3:$A$502, MATCH(Berechnung!E106,Seehäfen!$B$3:$B$502,0)),Entfernung_Seehäfen!$C$2:$E$100001,2,FALSE)) ->  | I106: =IF(G106="","",SUM(IF(A106=Energieverbrauch!$A$2:$A$41,1,0)*IF(Berechnung!B106=Energieverbrauch!$B$2:$B$41,1,0)*IF(Berechnung!F106=Energieverbrauch!$C$2:$C$41,1,0)*Energieverbrauch!$D$2:$D$41)) ->  | K106: =IF(G106="","",J106/IF($C106="Schweröl (HFO)", Treibhausgas_Kennzahlen!B$7,IF(Berechnung!C106="Dieselöl (MDO)",Treibhausgas_Kennzahlen!B$9,Treibhausgas_Kennzahlen!B$8))) ->  | L106: =IF(G106="","",$K106*IF($C106="Schweröl (HFO)",Treibhausgas_Kennzahlen!B$14,IF(Berechnung!C106="Dieselöl (MDO)", Treibhausgas_Kennzahlen!B$16,Treibhausgas_Kennzahlen!B$15))) ->  | M106: =IF(G106="","",$K106*IF($C106="Schweröl (HFO)",Treibhausgas_Kennzahlen!C$14,IF(Berechnung!D106="Dieselöl (MDO)", Treibhausgas_Kennzahlen!C$16,Treibhausgas_Kennzahlen!C$15))) ->  | N106: =IF(G106="","",$J106*IF($C106="Schweröl (HFO)",Treibhausgas_Kennzahlen!D$14,IF(Berechnung!C106="Dieselöl (MDO)",Treibhausgas_Kennzahlen!D$16,Treibhausgas_Kennzahlen!D$15))) ->  | O106: =IF(G106="","",$J106*IF($C106="Schweröl (HFO)",Treibhausgas_Kennzahlen!E$14,IF(Berechnung!D106="Dieselöl (MDO)",Treibhausgas_Kennzahlen!E$16,Treibhausgas_Kennzahlen!E$15))) ->  | P106: =IF(G106="","",$J106*IF($C106="Schweröl (HFO)",Treibhausgas_Kennzahlen!F$14,IF(Berechnung!E106="Dieselöl (MDO)",Treibhausgas_Kennzahlen!F$16,Treibhausgas_Kennzahlen!F$15))) ->  | Q106: =IF(G106="","",$J106*IF($C106="Schweröl (HFO)",Treibhausgas_Kennzahlen!G$14,IF(Berechnung!F106="Dieselöl (MDO)",Treibhausgas_Kennzahlen!G$16,Treibhausgas_Kennzahlen!G$15))) -> 
H107: =IF(G107="","",VLOOKUP(INDEX(Seehäfen!$A$3:$A$502, MATCH(Berechnung!D107,Seehäfen!$B$3:$B$502,0))&"_"&INDEX(Seehäfen!$A$3:$A$502, MATCH(Berechnung!E107,Seehäfen!$B$3:$B$502,0)),Entfernung_Seehäfen!$C$2:$E$10001,2,FALSE)) ->  | I107: =IF(G107="","",SUM(IF(A107=Energieverbrauch!$A$2:$A$41,1,0)*IF(Berechnung!B107=Energieverbrauch!$B$2:$B$41,1,0)*IF(Berechnung!F107=Energieverbrauch!$C$2:$C$41,1,0)*Energieverbrauch!$D$2:$D$41)) ->  | K107: =IF(G107="","",J107/IF($C107="Schweröl (HFO)", Treibhausgas_Kennzahlen!B$7,IF(Berechnung!C107="Dieselöl (MDO)",Treibhausgas_Kennzahlen!B$9,Treibhausgas_Kennzahlen!B$8))) ->  | L107: =IF(G107="","",$K107*IF($C107="Schweröl (HFO)",Treibhausgas_Kennzahlen!B$14,IF(Berechnung!C107="Dieselöl (MDO)", Treibhausgas_Kennzahlen!B$16,Treibhausgas_Kennzahlen!B$15))) ->  | M107: =IF(G107="","",$K107*IF($C107="Schweröl (HFO)",Treibhausgas_Kennzahlen!C$14,IF(Berechnung!D107="Dieselöl (MDO)", Treibhausgas_Kennzahlen!C$16,Treibhausgas_Kennzahlen!C$15))) ->  | N107: =IF(G107="","",$J107*IF($C107="Schweröl (HFO)",Treibhausgas_Kennzahlen!D$14,IF(Berechnung!C107="Dieselöl (MDO)",Treibhausgas_Kennzahlen!D$16,Treibhausgas_Kennzahlen!D$15))) ->  | O107: =IF(G107="","",$J107*IF($C107="Schweröl (HFO)",Treibhausgas_Kennzahlen!E$14,IF(Berechnung!D107="Dieselöl (MDO)",Treibhausgas_Kennzahlen!E$16,Treibhausgas_Kennzahlen!E$15))) ->  | P107: =IF(G107="","",$J107*IF($C107="Schweröl (HFO)",Treibhausgas_Kennzahlen!F$14,IF(Berechnung!E107="Dieselöl (MDO)",Treibhausgas_Kennzahlen!F$16,Treibhausgas_Kennzahlen!F$15))) ->  | Q107: =IF(G107="","",$J107*IF($C107="Schweröl (HFO)",Treibhausgas_Kennzahlen!G$14,IF(Berechnung!F107="Dieselöl (MDO)",Treibhausgas_Kennzahlen!G$16,Treibhausgas_Kennzahlen!G$15))) -> 
H108: =IF(G108="","",VLOOKUP(INDEX(Seehäfen!$A$3:$A$502, MATCH(Berechnung!D108,Seehäfen!$B$3:$B$502,0))&"_"&INDEX(Seehäfen!$A$3:$A$502, MATCH(Berechnung!E108,Seehäfen!$B$3:$B$502,0)),Entfernung_Seehäfen!$C$2:$E$100001,2,FALSE)) ->  | I108: =IF(G108="","",SUM(IF(A108=Energieverbrauch!$A$2:$A$41,1,0)*IF(Berechnung!B108=Energieverbrauch!$B$2:$B$41,1,0)*IF(Berechnung!F108=Energieverbrauch!$C$2:$C$41,1,0)*Energieverbrauch!$D$2:$D$41)) ->  | K108: =IF(G108="","",J108/IF($C108="Schweröl (HFO)", Treibhausgas_Kennzahlen!B$7,IF(Berechnung!C108="Dieselöl (MDO)",Treibhausgas_Kennzahlen!B$9,Treibhausgas_Kennzahlen!B$8))) ->  | L108: =IF(G108="","",$K108*IF($C108="Schweröl (HFO)",Treibhausgas_Kennzahlen!B$14,IF(Berechnung!C108="Dieselöl (MDO)", Treibhausgas_Kennzahlen!B$16,Treibhausgas_Kennzahlen!B$15))) ->  | M108: =IF(G108="","",$K108*IF($C108="Schweröl (HFO)",Treibhausgas_Kennzahlen!C$14,IF(Berechnung!D108="Dieselöl (MDO)", Treibhausgas_Kennzahlen!C$16,Treibhausgas_Kennzahlen!C$15))) ->  | N108: =IF(G108="","",$J108*IF($C108="Schweröl (HFO)",Treibhausgas_Kennzahlen!D$14,IF(Berechnung!C108="Dieselöl (MDO)",Treibhausgas_Kennzahlen!D$16,Treibhausgas_Kennzahlen!D$15))) ->  | O108: =IF(G108="","",$J108*IF($C108="Schweröl (HFO)",Treibhausgas_Kennzahlen!E$14,IF(Berechnung!D108="Dieselöl (MDO)",Treibhausgas_Kennzahlen!E$16,Treibhausgas_Kennzahlen!E$15))) ->  | P108: =IF(G108="","",$J108*IF($C108="Schweröl (HFO)",Treibhausgas_Kennzahlen!F$14,IF(Berechnung!E108="Dieselöl (MDO)",Treibhausgas_Kennzahlen!F$16,Treibhausgas_Kennzahlen!F$15))) ->  | Q108: =IF(G108="","",$J108*IF($C108="Schweröl (HFO)",Treibhausgas_Kennzahlen!G$14,IF(Berechnung!F108="Dieselöl (MDO)",Treibhausgas_Kennzahlen!G$16,Treibhausgas_Kennzahlen!G$15))) -> 
H109: =IF(G109="","",VLOOKUP(INDEX(Seehäfen!$A$3:$A$502, MATCH(Berechnung!D109,Seehäfen!$B$3:$B$502,0))&"_"&INDEX(Seehäfen!$A$3:$A$502, MATCH(Berechnung!E109,Seehäfen!$B$3:$B$502,0)),Entfernung_Seehäfen!$C$2:$E$10001,2,FALSE)) ->  | I109: =IF(G109="","",SUM(IF(A109=Energieverbrauch!$A$2:$A$41,1,0)*IF(Berechnung!B109=Energieverbrauch!$B$2:$B$41,1,0)*IF(Berechnung!F109=Energieverbrauch!$C$2:$C$41,1,0)*Energieverbrauch!$D$2:$D$41)) ->  | K109: =IF(G109="","",J109/IF($C109="Schweröl (HFO)", Treibhausgas_Kennzahlen!B$7,IF(Berechnung!C109="Dieselöl (MDO)",Treibhausgas_Kennzahlen!B$9,Treibhausgas_Kennzahlen!B$8))) ->  | L109: =IF(G109="","",$K109*IF($C109="Schweröl (HFO)",Treibhausgas_Kennzahlen!B$14,IF(Berechnung!C109="Dieselöl (MDO)", Treibhausgas_Kennzahlen!B$16,Treibhausgas_Kennzahlen!B$15))) ->  | M109: =IF(G109="","",$K109*IF($C109="Schweröl (HFO)",Treibhausgas_Kennzahlen!C$14,IF(Berechnung!D109="Dieselöl (MDO)", Treibhausgas_Kennzahlen!C$16,Treibhausgas_Kennzahlen!C$15))) ->  | N109: =IF(G109="","",$J109*IF($C109="Schweröl (HFO)",Treibhausgas_Kennzahlen!D$14,IF(Berechnung!C109="Dieselöl (MDO)",Treibhausgas_Kennzahlen!D$16,Treibhausgas_Kennzahlen!D$15))) ->  | O109: =IF(G109="","",$J109*IF($C109="Schweröl (HFO)",Treibhausgas_Kennzahlen!E$14,IF(Berechnung!D109="Dieselöl (MDO)",Treibhausgas_Kennzahlen!E$16,Treibhausgas_Kennzahlen!E$15))) ->  | P109: =IF(G109="","",$J109*IF($C109="Schweröl (HFO)",Treibhausgas_Kennzahlen!F$14,IF(Berechnung!E109="Dieselöl (MDO)",Treibhausgas_Kennzahlen!F$16,Treibhausgas_Kennzahlen!F$15))) ->  | Q109: =IF(G109="","",$J109*IF($C109="Schweröl (HFO)",Treibhausgas_Kennzahlen!G$14,IF(Berechnung!F109="Dieselöl (MDO)",Treibhausgas_Kennzahlen!G$16,Treibhausgas_Kennzahlen!G$15))) -> 
H110: =IF(G110="","",VLOOKUP(INDEX(Seehäfen!$A$3:$A$502, MATCH(Berechnung!D110,Seehäfen!$B$3:$B$502,0))&"_"&INDEX(Seehäfen!$A$3:$A$502, MATCH(Berechnung!E110,Seehäfen!$B$3:$B$502,0)),Entfernung_Seehäfen!$C$2:$E$100001,2,FALSE)) ->  | I110: =IF(G110="","",SUM(IF(A110=Energieverbrauch!$A$2:$A$41,1,0)*IF(Berechnung!B110=Energieverbrauch!$B$2:$B$41,1,0)*IF(Berechnung!F110=Energieverbrauch!$C$2:$C$41,1,0)*Energieverbrauch!$D$2:$D$41)) ->  | K110: =IF(G110="","",J110/IF($C110="Schweröl (HFO)", Treibhausgas_Kennzahlen!B$7,IF(Berechnung!C110="Dieselöl (MDO)",Treibhausgas_Kennzahlen!B$9,Treibhausgas_Kennzahlen!B$8))) ->  | L110: =IF(G110="","",$K110*IF($C110="Schweröl (HFO)",Treibhausgas_Kennzahlen!B$14,IF(Berechnung!C110="Dieselöl (MDO)", Treibhausgas_Kennzahlen!B$16,Treibhausgas_Kennzahlen!B$15))) ->  | M110: =IF(G110="","",$K110*IF($C110="Schweröl (HFO)",Treibhausgas_Kennzahlen!C$14,IF(Berechnung!D110="Dieselöl (MDO)", Treibhausgas_Kennzahlen!C$16,Treibhausgas_Kennzahlen!C$15))) ->  | N110: =IF(G110="","",$J110*IF($C110="Schweröl (HFO)",Treibhausgas_Kennzahlen!D$14,IF(Berechnung!C110="Dieselöl (MDO)",Treibhausgas_Kennzahlen!D$16,Treibhausgas_Kennzahlen!D$15))) ->  | O110: =IF(G110="","",$J110*IF($C110="Schweröl (HFO)",Treibhausgas_Kennzahlen!E$14,IF(Berechnung!D110="Dieselöl (MDO)",Treibhausgas_Kennzahlen!E$16,Treibhausgas_Kennzahlen!E$15))) ->  | P110: =IF(G110="","",$J110*IF($C110="Schweröl (HFO)",Treibhausgas_Kennzahlen!F$14,IF(Berechnung!E110="Dieselöl (MDO)",Treibhausgas_Kennzahlen!F$16,Treibhausgas_Kennzahlen!F$15))) ->  | Q110: =IF(G110="","",$J110*IF($C110="Schweröl (HFO)",Treibhausgas_Kennzahlen!G$14,IF(Berechnung!F110="Dieselöl (MDO)",Treibhausgas_Kennzahlen!G$16,Treibhausgas_Kennzahlen!G$15))) -> 
H111: =IF(G111="","",VLOOKUP(INDEX(Seehäfen!$A$3:$A$502, MATCH(Berechnung!D111,Seehäfen!$B$3:$B$502,0))&"_"&INDEX(Seehäfen!$A$3:$A$502, MATCH(Berechnung!E111,Seehäfen!$B$3:$B$502,0)),Entfernung_Seehäfen!$C$2:$E$10001,2,FALSE)) ->  | I111: =IF(G111="","",SUM(IF(A111=Energieverbrauch!$A$2:$A$41,1,0)*IF(Berechnung!B111=Energieverbrauch!$B$2:$B$41,1,0)*IF(Berechnung!F111=Energieverbrauch!$C$2:$C$41,1,0)*Energieverbrauch!$D$2:$D$41)) ->  | K111: =IF(G111="","",J111/IF($C111="Schweröl (HFO)", Treibhausgas_Kennzahlen!B$7,IF(Berechnung!C111="Dieselöl (MDO)",Treibhausgas_Kennzahlen!B$9,Treibhausgas_Kennzahlen!B$8))) ->  | L111: =IF(G111="","",$K111*IF($C111="Schweröl (HFO)",Treibhausgas_Kennzahlen!B$14,IF(Berechnung!C111="Dieselöl (MDO)", Treibhausgas_Kennzahlen!B$16,Treibhausgas_Kennzahlen!B$15))) ->  | M111: =IF(G111="","",$K111*IF($C111="Schweröl (HFO)",Treibhausgas_Kennzahlen!C$14,IF(Berechnung!D111="Dieselöl (MDO)", Treibhausgas_Kennzahlen!C$16,Treibhausgas_Kennzahlen!C$15))) ->  | N111: =IF(G111="","",$J111*IF($C111="Schweröl (HFO)",Treibhausgas_Kennzahlen!D$14,IF(Berechnung!C111="Dieselöl (MDO)",Treibhausgas_Kennzahlen!D$16,Treibhausgas_Kennzahlen!D$15))) ->  | O111: =IF(G111="","",$J111*IF($C111="Schweröl (HFO)",Treibhausgas_Kennzahlen!E$14,IF(Berechnung!D111="Dieselöl (MDO)",Treibhausgas_Kennzahlen!E$16,Treibhausgas_Kennzahlen!E$15))) ->  | P111: =IF(G111="","",$J111*IF($C111="Schweröl (HFO)",Treibhausgas_Kennzahlen!F$14,IF(Berechnung!E111="Dieselöl (MDO)",Treibhausgas_Kennzahlen!F$16,Treibhausgas_Kennzahlen!F$15))) ->  | Q111: =IF(G111="","",$J111*IF($C111="Schweröl (HFO)",Treibhausgas_Kennzahlen!G$14,IF(Berechnung!F111="Dieselöl (MDO)",Treibhausgas_Kennzahlen!G$16,Treibhausgas_Kennzahlen!G$15))) -> 
H112: =IF(G112="","",VLOOKUP(INDEX(Seehäfen!$A$3:$A$502, MATCH(Berechnung!D112,Seehäfen!$B$3:$B$502,0))&"_"&INDEX(Seehäfen!$A$3:$A$502, MATCH(Berechnung!E112,Seehäfen!$B$3:$B$502,0)),Entfernung_Seehäfen!$C$2:$E$100001,2,FALSE)) ->  | I112: =IF(G112="","",SUM(IF(A112=Energieverbrauch!$A$2:$A$41,1,0)*IF(Berechnung!B112=Energieverbrauch!$B$2:$B$41,1,0)*IF(Berechnung!F112=Energieverbrauch!$C$2:$C$41,1,0)*Energieverbrauch!$D$2:$D$41)) ->  | K112: =IF(G112="","",J112/IF($C112="Schweröl (HFO)", Treibhausgas_Kennzahlen!B$7,IF(Berechnung!C112="Dieselöl (MDO)",Treibhausgas_Kennzahlen!B$9,Treibhausgas_Kennzahlen!B$8))) ->  | L112: =IF(G112="","",$K112*IF($C112="Schweröl (HFO)",Treibhausgas_Kennzahlen!B$14,IF(Berechnung!C112="Dieselöl (MDO)", Treibhausgas_Kennzahlen!B$16,Treibhausgas_Kennzahlen!B$15))) ->  | M112: =IF(G112="","",$K112*IF($C112="Schweröl (HFO)",Treibhausgas_Kennzahlen!C$14,IF(Berechnung!D112="Dieselöl (MDO)", Treibhausgas_Kennzahlen!C$16,Treibhausgas_Kennzahlen!C$15))) ->  | N112: =IF(G112="","",$J112*IF($C112="Schweröl (HFO)",Treibhausgas_Kennzahlen!D$14,IF(Berechnung!C112="Dieselöl (MDO)",Treibhausgas_Kennzahlen!D$16,Treibhausgas_Kennzahlen!D$15))) ->  | O112: =IF(G112="","",$J112*IF($C112="Schweröl (HFO)",Treibhausgas_Kennzahlen!E$14,IF(Berechnung!D112="Dieselöl (MDO)",Treibhausgas_Kennzahlen!E$16,Treibhausgas_Kennzahlen!E$15))) ->  | P112: =IF(G112="","",$J112*IF($C112="Schweröl (HFO)",Treibhausgas_Kennzahlen!F$14,IF(Berechnung!E112="Dieselöl (MDO)",Treibhausgas_Kennzahlen!F$16,Treibhausgas_Kennzahlen!F$15))) ->  | Q112: =IF(G112="","",$J112*IF($C112="Schweröl (HFO)",Treibhausgas_Kennzahlen!G$14,IF(Berechnung!F112="Dieselöl (MDO)",Treibhausgas_Kennzahlen!G$16,Treibhausgas_Kennzahlen!G$15))) -> 
H113: =IF(G113="","",VLOOKUP(INDEX(Seehäfen!$A$3:$A$502, MATCH(Berechnung!D113,Seehäfen!$B$3:$B$502,0))&"_"&INDEX(Seehäfen!$A$3:$A$502, MATCH(Berechnung!E113,Seehäfen!$B$3:$B$502,0)),Entfernung_Seehäfen!$C$2:$E$10001,2,FALSE)) ->  | I113: =IF(G113="","",SUM(IF(A113=Energieverbrauch!$A$2:$A$41,1,0)*IF(Berechnung!B113=Energieverbrauch!$B$2:$B$41,1,0)*IF(Berechnung!F113=Energieverbrauch!$C$2:$C$41,1,0)*Energieverbrauch!$D$2:$D$41)) ->  | K113: =IF(G113="","",J113/IF($C113="Schweröl (HFO)", Treibhausgas_Kennzahlen!B$7,IF(Berechnung!C113="Dieselöl (MDO)",Treibhausgas_Kennzahlen!B$9,Treibhausgas_Kennzahlen!B$8))) ->  | L113: =IF(G113="","",$K113*IF($C113="Schweröl (HFO)",Treibhausgas_Kennzahlen!B$14,IF(Berechnung!C113="Dieselöl (MDO)", Treibhausgas_Kennzahlen!B$16,Treibhausgas_Kennzahlen!B$15))) ->  | M113: =IF(G113="","",$K113*IF($C113="Schweröl (HFO)",Treibhausgas_Kennzahlen!C$14,IF(Berechnung!D113="Dieselöl (MDO)", Treibhausgas_Kennzahlen!C$16,Treibhausgas_Kennzahlen!C$15))) ->  | N113: =IF(G113="","",$J113*IF($C113="Schweröl (HFO)",Treibhausgas_Kennzahlen!D$14,IF(Berechnung!C113="Dieselöl (MDO)",Treibhausgas_Kennzahlen!D$16,Treibhausgas_Kennzahlen!D$15))) ->  | O113: =IF(G113="","",$J113*IF($C113="Schweröl (HFO)",Treibhausgas_Kennzahlen!E$14,IF(Berechnung!D113="Dieselöl (MDO)",Treibhausgas_Kennzahlen!E$16,Treibhausgas_Kennzahlen!E$15))) ->  | P113: =IF(G113="","",$J113*IF($C113="Schweröl (HFO)",Treibhausgas_Kennzahlen!F$14,IF(Berechnung!E113="Dieselöl (MDO)",Treibhausgas_Kennzahlen!F$16,Treibhausgas_Kennzahlen!F$15))) ->  | Q113: =IF(G113="","",$J113*IF($C113="Schweröl (HFO)",Treibhausgas_Kennzahlen!G$14,IF(Berechnung!F113="Dieselöl (MDO)",Treibhausgas_Kennzahlen!G$16,Treibhausgas_Kennzahlen!G$15))) -> 
H114: =IF(G114="","",VLOOKUP(INDEX(Seehäfen!$A$3:$A$502, MATCH(Berechnung!D114,Seehäfen!$B$3:$B$502,0))&"_"&INDEX(Seehäfen!$A$3:$A$502, MATCH(Berechnung!E114,Seehäfen!$B$3:$B$502,0)),Entfernung_Seehäfen!$C$2:$E$100001,2,FALSE)) ->  | I114: =IF(G114="","",SUM(IF(A114=Energieverbrauch!$A$2:$A$41,1,0)*IF(Berechnung!B114=Energieverbrauch!$B$2:$B$41,1,0)*IF(Berechnung!F114=Energieverbrauch!$C$2:$C$41,1,0)*Energieverbrauch!$D$2:$D$41)) ->  | K114: =IF(G114="","",J114/IF($C114="Schweröl (HFO)", Treibhausgas_Kennzahlen!B$7,IF(Berechnung!C114="Dieselöl (MDO)",Treibhausgas_Kennzahlen!B$9,Treibhausgas_Kennzahlen!B$8))) ->  | L114: =IF(G114="","",$K114*IF($C114="Schweröl (HFO)",Treibhausgas_Kennzahlen!B$14,IF(Berechnung!C114="Dieselöl (MDO)", Treibhausgas_Kennzahlen!B$16,Treibhausgas_Kennzahlen!B$15))) ->  | M114: =IF(G114="","",$K114*IF($C114="Schweröl (HFO)",Treibhausgas_Kennzahlen!C$14,IF(Berechnung!D114="Dieselöl (MDO)", Treibhausgas_Kennzahlen!C$16,Treibhausgas_Kennzahlen!C$15))) ->  | N114: =IF(G114="","",$J114*IF($C114="Schweröl (HFO)",Treibhausgas_Kennzahlen!D$14,IF(Berechnung!C114="Dieselöl (MDO)",Treibhausgas_Kennzahlen!D$16,Treibhausgas_Kennzahlen!D$15))) ->  | O114: =IF(G114="","",$J114*IF($C114="Schweröl (HFO)",Treibhausgas_Kennzahlen!E$14,IF(Berechnung!D114="Dieselöl (MDO)",Treibhausgas_Kennzahlen!E$16,Treibhausgas_Kennzahlen!E$15))) ->  | P114: =IF(G114="","",$J114*IF($C114="Schweröl (HFO)",Treibhausgas_Kennzahlen!F$14,IF(Berechnung!E114="Dieselöl (MDO)",Treibhausgas_Kennzahlen!F$16,Treibhausgas_Kennzahlen!F$15))) ->  | Q114: =IF(G114="","",$J114*IF($C114="Schweröl (HFO)",Treibhausgas_Kennzahlen!G$14,IF(Berechnung!F114="Dieselöl (MDO)",Treibhausgas_Kennzahlen!G$16,Treibhausgas_Kennzahlen!G$15))) -> 
H115: =IF(G115="","",VLOOKUP(INDEX(Seehäfen!$A$3:$A$502, MATCH(Berechnung!D115,Seehäfen!$B$3:$B$502,0))&"_"&INDEX(Seehäfen!$A$3:$A$502, MATCH(Berechnung!E115,Seehäfen!$B$3:$B$502,0)),Entfernung_Seehäfen!$C$2:$E$10001,2,FALSE)) ->  | I115: =IF(G115="","",SUM(IF(A115=Energieverbrauch!$A$2:$A$41,1,0)*IF(Berechnung!B115=Energieverbrauch!$B$2:$B$41,1,0)*IF(Berechnung!F115=Energieverbrauch!$C$2:$C$41,1,0)*Energieverbrauch!$D$2:$D$41)) ->  | K115: =IF(G115="","",J115/IF($C115="Schweröl (HFO)", Treibhausgas_Kennzahlen!B$7,IF(Berechnung!C115="Dieselöl (MDO)",Treibhausgas_Kennzahlen!B$9,Treibhausgas_Kennzahlen!B$8))) ->  | L115: =IF(G115="","",$K115*IF($C115="Schweröl (HFO)",Treibhausgas_Kennzahlen!B$14,IF(Berechnung!C115="Dieselöl (MDO)", Treibhausgas_Kennzahlen!B$16,Treibhausgas_Kennzahlen!B$15))) ->  | M115: =IF(G115="","",$K115*IF($C115="Schweröl (HFO)",Treibhausgas_Kennzahlen!C$14,IF(Berechnung!D115="Dieselöl (MDO)", Treibhausgas_Kennzahlen!C$16,Treibhausgas_Kennzahlen!C$15))) ->  | N115: =IF(G115="","",$J115*IF($C115="Schweröl (HFO)",Treibhausgas_Kennzahlen!D$14,IF(Berechnung!C115="Dieselöl (MDO)",Treibhausgas_Kennzahlen!D$16,Treibhausgas_Kennzahlen!D$15))) ->  | O115: =IF(G115="","",$J115*IF($C115="Schweröl (HFO)",Treibhausgas_Kennzahlen!E$14,IF(Berechnung!D115="Dieselöl (MDO)",Treibhausgas_Kennzahlen!E$16,Treibhausgas_Kennzahlen!E$15))) ->  | P115: =IF(G115="","",$J115*IF($C115="Schweröl (HFO)",Treibhausgas_Kennzahlen!F$14,IF(Berechnung!E115="Dieselöl (MDO)",Treibhausgas_Kennzahlen!F$16,Treibhausgas_Kennzahlen!F$15))) ->  | Q115: =IF(G115="","",$J115*IF($C115="Schweröl (HFO)",Treibhausgas_Kennzahlen!G$14,IF(Berechnung!F115="Dieselöl (MDO)",Treibhausgas_Kennzahlen!G$16,Treibhausgas_Kennzahlen!G$15))) -> 
H116: =IF(G116="","",VLOOKUP(INDEX(Seehäfen!$A$3:$A$502, MATCH(Berechnung!D116,Seehäfen!$B$3:$B$502,0))&"_"&INDEX(Seehäfen!$A$3:$A$502, MATCH(Berechnung!E116,Seehäfen!$B$3:$B$502,0)),Entfernung_Seehäfen!$C$2:$E$100001,2,FALSE)) ->  | I116: =IF(G116="","",SUM(IF(A116=Energieverbrauch!$A$2:$A$41,1,0)*IF(Berechnung!B116=Energieverbrauch!$B$2:$B$41,1,0)*IF(Berechnung!F116=Energieverbrauch!$C$2:$C$41,1,0)*Energieverbrauch!$D$2:$D$41)) ->  | K116: =IF(G116="","",J116/IF($C116="Schweröl (HFO)", Treibhausgas_Kennzahlen!B$7,IF(Berechnung!C116="Dieselöl (MDO)",Treibhausgas_Kennzahlen!B$9,Treibhausgas_Kennzahlen!B$8))) ->  | L116: =IF(G116="","",$K116*IF($C116="Schweröl (HFO)",Treibhausgas_Kennzahlen!B$14,IF(Berechnung!C116="Dieselöl (MDO)", Treibhausgas_Kennzahlen!B$16,Treibhausgas_Kennzahlen!B$15))) ->  | M116: =IF(G116="","",$K116*IF($C116="Schweröl (HFO)",Treibhausgas_Kennzahlen!C$14,IF(Berechnung!D116="Dieselöl (MDO)", Treibhausgas_Kennzahlen!C$16,Treibhausgas_Kennzahlen!C$15))) ->  | N116: =IF(G116="","",$J116*IF($C116="Schweröl (HFO)",Treibhausgas_Kennzahlen!D$14,IF(Berechnung!C116="Dieselöl (MDO)",Treibhausgas_Kennzahlen!D$16,Treibhausgas_Kennzahlen!D$15))) ->  | O116: =IF(G116="","",$J116*IF($C116="Schweröl (HFO)",Treibhausgas_Kennzahlen!E$14,IF(Berechnung!D116="Dieselöl (MDO)",Treibhausgas_Kennzahlen!E$16,Treibhausgas_Kennzahlen!E$15))) ->  | P116: =IF(G116="","",$J116*IF($C116="Schweröl (HFO)",Treibhausgas_Kennzahlen!F$14,IF(Berechnung!E116="Dieselöl (MDO)",Treibhausgas_Kennzahlen!F$16,Treibhausgas_Kennzahlen!F$15))) ->  | Q116: =IF(G116="","",$J116*IF($C116="Schweröl (HFO)",Treibhausgas_Kennzahlen!G$14,IF(Berechnung!F116="Dieselöl (MDO)",Treibhausgas_Kennzahlen!G$16,Treibhausgas_Kennzahlen!G$15))) -> 
H117: =IF(G117="","",VLOOKUP(INDEX(Seehäfen!$A$3:$A$502, MATCH(Berechnung!D117,Seehäfen!$B$3:$B$502,0))&"_"&INDEX(Seehäfen!$A$3:$A$502, MATCH(Berechnung!E117,Seehäfen!$B$3:$B$502,0)),Entfernung_Seehäfen!$C$2:$E$10001,2,FALSE)) ->  | I117: =IF(G117="","",SUM(IF(A117=Energieverbrauch!$A$2:$A$41,1,0)*IF(Berechnung!B117=Energieverbrauch!$B$2:$B$41,1,0)*IF(Berechnung!F117=Energieverbrauch!$C$2:$C$41,1,0)*Energieverbrauch!$D$2:$D$41)) ->  | K117: =IF(G117="","",J117/IF($C117="Schweröl (HFO)", Treibhausgas_Kennzahlen!B$7,IF(Berechnung!C117="Dieselöl (MDO)",Treibhausgas_Kennzahlen!B$9,Treibhausgas_Kennzahlen!B$8))) ->  | L117: =IF(G117="","",$K117*IF($C117="Schweröl (HFO)",Treibhausgas_Kennzahlen!B$14,IF(Berechnung!C117="Dieselöl (MDO)", Treibhausgas_Kennzahlen!B$16,Treibhausgas_Kennzahlen!B$15))) ->  | M117: =IF(G117="","",$K117*IF($C117="Schweröl (HFO)",Treibhausgas_Kennzahlen!C$14,IF(Berechnung!D117="Dieselöl (MDO)", Treibhausgas_Kennzahlen!C$16,Treibhausgas_Kennzahlen!C$15))) ->  | N117: =IF(G117="","",$J117*IF($C117="Schweröl (HFO)",Treibhausgas_Kennzahlen!D$14,IF(Berechnung!C117="Dieselöl (MDO)",Treibhausgas_Kennzahlen!D$16,Treibhausgas_Kennzahlen!D$15))) ->  | O117: =IF(G117="","",$J117*IF($C117="Schweröl (HFO)",Treibhausgas_Kennzahlen!E$14,IF(Berechnung!D117="Dieselöl (MDO)",Treibhausgas_Kennzahlen!E$16,Treibhausgas_Kennzahlen!E$15))) ->  | P117: =IF(G117="","",$J117*IF($C117="Schweröl (HFO)",Treibhausgas_Kennzahlen!F$14,IF(Berechnung!E117="Dieselöl (MDO)",Treibhausgas_Kennzahlen!F$16,Treibhausgas_Kennzahlen!F$15))) ->  | Q117: =IF(G117="","",$J117*IF($C117="Schweröl (HFO)",Treibhausgas_Kennzahlen!G$14,IF(Berechnung!F117="Dieselöl (MDO)",Treibhausgas_Kennzahlen!G$16,Treibhausgas_Kennzahlen!G$15))) -> 
H118: =IF(G118="","",VLOOKUP(INDEX(Seehäfen!$A$3:$A$502, MATCH(Berechnung!D118,Seehäfen!$B$3:$B$502,0))&"_"&INDEX(Seehäfen!$A$3:$A$502, MATCH(Berechnung!E118,Seehäfen!$B$3:$B$502,0)),Entfernung_Seehäfen!$C$2:$E$100001,2,FALSE)) ->  | I118: =IF(G118="","",SUM(IF(A118=Energieverbrauch!$A$2:$A$41,1,0)*IF(Berechnung!B118=Energieverbrauch!$B$2:$B$41,1,0)*IF(Berechnung!F118=Energieverbrauch!$C$2:$C$41,1,0)*Energieverbrauch!$D$2:$D$41)) ->  | K118: =IF(G118="","",J118/IF($C118="Schweröl (HFO)", Treibhausgas_Kennzahlen!B$7,IF(Berechnung!C118="Dieselöl (MDO)",Treibhausgas_Kennzahlen!B$9,Treibhausgas_Kennzahlen!B$8))) ->  | L118: =IF(G118="","",$K118*IF($C118="Schweröl (HFO)",Treibhausgas_Kennzahlen!B$14,IF(Berechnung!C118="Dieselöl (MDO)", Treibhausgas_Kennzahlen!B$16,Treibhausgas_Kennzahlen!B$15))) ->  | M118: =IF(G118="","",$K118*IF($C118="Schweröl (HFO)",Treibhausgas_Kennzahlen!C$14,IF(Berechnung!D118="Dieselöl (MDO)", Treibhausgas_Kennzahlen!C$16,Treibhausgas_Kennzahlen!C$15))) ->  | N118: =IF(G118="","",$J118*IF($C118="Schweröl (HFO)",Treibhausgas_Kennzahlen!D$14,IF(Berechnung!C118="Dieselöl (MDO)",Treibhausgas_Kennzahlen!D$16,Treibhausgas_Kennzahlen!D$15))) ->  | O118: =IF(G118="","",$J118*IF($C118="Schweröl (HFO)",Treibhausgas_Kennzahlen!E$14,IF(Berechnung!D118="Dieselöl (MDO)",Treibhausgas_Kennzahlen!E$16,Treibhausgas_Kennzahlen!E$15))) ->  | P118: =IF(G118="","",$J118*IF($C118="Schweröl (HFO)",Treibhausgas_Kennzahlen!F$14,IF(Berechnung!E118="Dieselöl (MDO)",Treibhausgas_Kennzahlen!F$16,Treibhausgas_Kennzahlen!F$15))) ->  | Q118: =IF(G118="","",$J118*IF($C118="Schweröl (HFO)",Treibhausgas_Kennzahlen!G$14,IF(Berechnung!F118="Dieselöl (MDO)",Treibhausgas_Kennzahlen!G$16,Treibhausgas_Kennzahlen!G$15))) -> 
H119: =IF(G119="","",VLOOKUP(INDEX(Seehäfen!$A$3:$A$502, MATCH(Berechnung!D119,Seehäfen!$B$3:$B$502,0))&"_"&INDEX(Seehäfen!$A$3:$A$502, MATCH(Berechnung!E119,Seehäfen!$B$3:$B$502,0)),Entfernung_Seehäfen!$C$2:$E$10001,2,FALSE)) ->  | I119: =IF(G119="","",SUM(IF(A119=Energieverbrauch!$A$2:$A$41,1,0)*IF(Berechnung!B119=Energieverbrauch!$B$2:$B$41,1,0)*IF(Berechnung!F119=Energieverbrauch!$C$2:$C$41,1,0)*Energieverbrauch!$D$2:$D$41)) ->  | K119: =IF(G119="","",J119/IF($C119="Schweröl (HFO)", Treibhausgas_Kennzahlen!B$7,IF(Berechnung!C119="Dieselöl (MDO)",Treibhausgas_Kennzahlen!B$9,Treibhausgas_Kennzahlen!B$8))) ->  | L119: =IF(G119="","",$K119*IF($C119="Schweröl (HFO)",Treibhausgas_Kennzahlen!B$14,IF(Berechnung!C119="Dieselöl (MDO)", Treibhausgas_Kennzahlen!B$16,Treibhausgas_Kennzahlen!B$15))) ->  | M119: =IF(G119="","",$K119*IF($C119="Schweröl (HFO)",Treibhausgas_Kennzahlen!C$14,IF(Berechnung!D119="Dieselöl (MDO)", Treibhausgas_Kennzahlen!C$16,Treibhausgas_Kennzahlen!C$15))) ->  | N119: =IF(G119="","",$J119*IF($C119="Schweröl (HFO)",Treibhausgas_Kennzahlen!D$14,IF(Berechnung!C119="Dieselöl (MDO)",Treibhausgas_Kennzahlen!D$16,Treibhausgas_Kennzahlen!D$15))) ->  | O119: =IF(G119="","",$J119*IF($C119="Schweröl (HFO)",Treibhausgas_Kennzahlen!E$14,IF(Berechnung!D119="Dieselöl (MDO)",Treibhausgas_Kennzahlen!E$16,Treibhausgas_Kennzahlen!E$15))) ->  | P119: =IF(G119="","",$J119*IF($C119="Schweröl (HFO)",Treibhausgas_Kennzahlen!F$14,IF(Berechnung!E119="Dieselöl (MDO)",Treibhausgas_Kennzahlen!F$16,Treibhausgas_Kennzahlen!F$15))) ->  | Q119: =IF(G119="","",$J119*IF($C119="Schweröl (HFO)",Treibhausgas_Kennzahlen!G$14,IF(Berechnung!F119="Dieselöl (MDO)",Treibhausgas_Kennzahlen!G$16,Treibhausgas_Kennzahlen!G$15))) -> 
H120: =IF(G120="","",VLOOKUP(INDEX(Seehäfen!$A$3:$A$502, MATCH(Berechnung!D120,Seehäfen!$B$3:$B$502,0))&"_"&INDEX(Seehäfen!$A$3:$A$502, MATCH(Berechnung!E120,Seehäfen!$B$3:$B$502,0)),Entfernung_Seehäfen!$C$2:$E$100001,2,FALSE)) ->  | I120: =IF(G120="","",SUM(IF(A120=Energieverbrauch!$A$2:$A$41,1,0)*IF(Berechnung!B120=Energieverbrauch!$B$2:$B$41,1,0)*IF(Berechnung!F120=Energieverbrauch!$C$2:$C$41,1,0)*Energieverbrauch!$D$2:$D$41)) ->  | K120: =IF(G120="","",J120/IF($C120="Schweröl (HFO)", Treibhausgas_Kennzahlen!B$7,IF(Berechnung!C120="Dieselöl (MDO)",Treibhausgas_Kennzahlen!B$9,Treibhausgas_Kennzahlen!B$8))) ->  | L120: =IF(G120="","",$K120*IF($C120="Schweröl (HFO)",Treibhausgas_Kennzahlen!B$14,IF(Berechnung!C120="Dieselöl (MDO)", Treibhausgas_Kennzahlen!B$16,Treibhausgas_Kennzahlen!B$15))) ->  | M120: =IF(G120="","",$K120*IF($C120="Schweröl (HFO)",Treibhausgas_Kennzahlen!C$14,IF(Berechnung!D120="Dieselöl (MDO)", Treibhausgas_Kennzahlen!C$16,Treibhausgas_Kennzahlen!C$15))) ->  | N120: =IF(G120="","",$J120*IF($C120="Schweröl (HFO)",Treibhausgas_Kennzahlen!D$14,IF(Berechnung!C120="Dieselöl (MDO)",Treibhausgas_Kennzahlen!D$16,Treibhausgas_Kennzahlen!D$15))) ->  | O120: =IF(G120="","",$J120*IF($C120="Schweröl (HFO)",Treibhausgas_Kennzahlen!E$14,IF(Berechnung!D120="Dieselöl (MDO)",Treibhausgas_Kennzahlen!E$16,Treibhausgas_Kennzahlen!E$15))) ->  | P120: =IF(G120="","",$J120*IF($C120="Schweröl (HFO)",Treibhausgas_Kennzahlen!F$14,IF(Berechnung!E120="Dieselöl (MDO)",Treibhausgas_Kennzahlen!F$16,Treibhausgas_Kennzahlen!F$15))) ->  | Q120: =IF(G120="","",$J120*IF($C120="Schweröl (HFO)",Treibhausgas_Kennzahlen!G$14,IF(Berechnung!F120="Dieselöl (MDO)",Treibhausgas_Kennzahlen!G$16,Treibhausgas_Kennzahlen!G$15))) -> 
H121: =IF(G121="","",VLOOKUP(INDEX(Seehäfen!$A$3:$A$502, MATCH(Berechnung!D121,Seehäfen!$B$3:$B$502,0))&"_"&INDEX(Seehäfen!$A$3:$A$502, MATCH(Berechnung!E121,Seehäfen!$B$3:$B$502,0)),Entfernung_Seehäfen!$C$2:$E$10001,2,FALSE)) ->  | I121: =IF(G121="","",SUM(IF(A121=Energieverbrauch!$A$2:$A$41,1,0)*IF(Berechnung!B121=Energieverbrauch!$B$2:$B$41,1,0)*IF(Berechnung!F121=Energieverbrauch!$C$2:$C$41,1,0)*Energieverbrauch!$D$2:$D$41)) ->  | K121: =IF(G121="","",J121/IF($C121="Schweröl (HFO)", Treibhausgas_Kennzahlen!B$7,IF(Berechnung!C121="Dieselöl (MDO)",Treibhausgas_Kennzahlen!B$9,Treibhausgas_Kennzahlen!B$8))) ->  | L121: =IF(G121="","",$K121*IF($C121="Schweröl (HFO)",Treibhausgas_Kennzahlen!B$14,IF(Berechnung!C121="Dieselöl (MDO)", Treibhausgas_Kennzahlen!B$16,Treibhausgas_Kennzahlen!B$15))) ->  | M121: =IF(G121="","",$K121*IF($C121="Schweröl (HFO)",Treibhausgas_Kennzahlen!C$14,IF(Berechnung!D121="Dieselöl (MDO)", Treibhausgas_Kennzahlen!C$16,Treibhausgas_Kennzahlen!C$15))) ->  | N121: =IF(G121="","",$J121*IF($C121="Schweröl (HFO)",Treibhausgas_Kennzahlen!D$14,IF(Berechnung!C121="Dieselöl (MDO)",Treibhausgas_Kennzahlen!D$16,Treibhausgas_Kennzahlen!D$15))) ->  | O121: =IF(G121="","",$J121*IF($C121="Schweröl (HFO)",Treibhausgas_Kennzahlen!E$14,IF(Berechnung!D121="Dieselöl (MDO)",Treibhausgas_Kennzahlen!E$16,Treibhausgas_Kennzahlen!E$15))) ->  | P121: =IF(G121="","",$J121*IF($C121="Schweröl (HFO)",Treibhausgas_Kennzahlen!F$14,IF(Berechnung!E121="Dieselöl (MDO)",Treibhausgas_Kennzahlen!F$16,Treibhausgas_Kennzahlen!F$15))) ->  | Q121: =IF(G121="","",$J121*IF($C121="Schweröl (HFO)",Treibhausgas_Kennzahlen!G$14,IF(Berechnung!F121="Dieselöl (MDO)",Treibhausgas_Kennzahlen!G$16,Treibhausgas_Kennzahlen!G$15))) -> 
H122: =IF(G122="","",VLOOKUP(INDEX(Seehäfen!$A$3:$A$502, MATCH(Berechnung!D122,Seehäfen!$B$3:$B$502,0))&"_"&INDEX(Seehäfen!$A$3:$A$502, MATCH(Berechnung!E122,Seehäfen!$B$3:$B$502,0)),Entfernung_Seehäfen!$C$2:$E$100001,2,FALSE)) ->  | I122: =IF(G122="","",SUM(IF(A122=Energieverbrauch!$A$2:$A$41,1,0)*IF(Berechnung!B122=Energieverbrauch!$B$2:$B$41,1,0)*IF(Berechnung!F122=Energieverbrauch!$C$2:$C$41,1,0)*Energieverbrauch!$D$2:$D$41)) ->  | K122: =IF(G122="","",J122/IF($C122="Schweröl (HFO)", Treibhausgas_Kennzahlen!B$7,IF(Berechnung!C122="Dieselöl (MDO)",Treibhausgas_Kennzahlen!B$9,Treibhausgas_Kennzahlen!B$8))) ->  | L122: =IF(G122="","",$K122*IF($C122="Schweröl (HFO)",Treibhausgas_Kennzahlen!B$14,IF(Berechnung!C122="Dieselöl (MDO)", Treibhausgas_Kennzahlen!B$16,Treibhausgas_Kennzahlen!B$15))) ->  | M122: =IF(G122="","",$K122*IF($C122="Schweröl (HFO)",Treibhausgas_Kennzahlen!C$14,IF(Berechnung!D122="Dieselöl (MDO)", Treibhausgas_Kennzahlen!C$16,Treibhausgas_Kennzahlen!C$15))) ->  | N122: =IF(G122="","",$J122*IF($C122="Schweröl (HFO)",Treibhausgas_Kennzahlen!D$14,IF(Berechnung!C122="Dieselöl (MDO)",Treibhausgas_Kennzahlen!D$16,Treibhausgas_Kennzahlen!D$15))) ->  | O122: =IF(G122="","",$J122*IF($C122="Schweröl (HFO)",Treibhausgas_Kennzahlen!E$14,IF(Berechnung!D122="Dieselöl (MDO)",Treibhausgas_Kennzahlen!E$16,Treibhausgas_Kennzahlen!E$15))) ->  | P122: =IF(G122="","",$J122*IF($C122="Schweröl (HFO)",Treibhausgas_Kennzahlen!F$14,IF(Berechnung!E122="Dieselöl (MDO)",Treibhausgas_Kennzahlen!F$16,Treibhausgas_Kennzahlen!F$15))) ->  | Q122: =IF(G122="","",$J122*IF($C122="Schweröl (HFO)",Treibhausgas_Kennzahlen!G$14,IF(Berechnung!F122="Dieselöl (MDO)",Treibhausgas_Kennzahlen!G$16,Treibhausgas_Kennzahlen!G$15))) -> 
H123: =IF(G123="","",VLOOKUP(INDEX(Seehäfen!$A$3:$A$502, MATCH(Berechnung!D123,Seehäfen!$B$3:$B$502,0))&"_"&INDEX(Seehäfen!$A$3:$A$502, MATCH(Berechnung!E123,Seehäfen!$B$3:$B$502,0)),Entfernung_Seehäfen!$C$2:$E$10001,2,FALSE)) ->  | I123: =IF(G123="","",SUM(IF(A123=Energieverbrauch!$A$2:$A$41,1,0)*IF(Berechnung!B123=Energieverbrauch!$B$2:$B$41,1,0)*IF(Berechnung!F123=Energieverbrauch!$C$2:$C$41,1,0)*Energieverbrauch!$D$2:$D$41)) ->  | K123: =IF(G123="","",J123/IF($C123="Schweröl (HFO)", Treibhausgas_Kennzahlen!B$7,IF(Berechnung!C123="Dieselöl (MDO)",Treibhausgas_Kennzahlen!B$9,Treibhausgas_Kennzahlen!B$8))) ->  | L123: =IF(G123="","",$K123*IF($C123="Schweröl (HFO)",Treibhausgas_Kennzahlen!B$14,IF(Berechnung!C123="Dieselöl (MDO)", Treibhausgas_Kennzahlen!B$16,Treibhausgas_Kennzahlen!B$15))) ->  | M123: =IF(G123="","",$K123*IF($C123="Schweröl (HFO)",Treibhausgas_Kennzahlen!C$14,IF(Berechnung!D123="Dieselöl (MDO)", Treibhausgas_Kennzahlen!C$16,Treibhausgas_Kennzahlen!C$15))) ->  | N123: =IF(G123="","",$J123*IF($C123="Schweröl (HFO)",Treibhausgas_Kennzahlen!D$14,IF(Berechnung!C123="Dieselöl (MDO)",Treibhausgas_Kennzahlen!D$16,Treibhausgas_Kennzahlen!D$15))) ->  | O123: =IF(G123="","",$J123*IF($C123="Schweröl (HFO)",Treibhausgas_Kennzahlen!E$14,IF(Berechnung!D123="Dieselöl (MDO)",Treibhausgas_Kennzahlen!E$16,Treibhausgas_Kennzahlen!E$15))) ->  | P123: =IF(G123="","",$J123*IF($C123="Schweröl (HFO)",Treibhausgas_Kennzahlen!F$14,IF(Berechnung!E123="Dieselöl (MDO)",Treibhausgas_Kennzahlen!F$16,Treibhausgas_Kennzahlen!F$15))) ->  | Q123: =IF(G123="","",$J123*IF($C123="Schweröl (HFO)",Treibhausgas_Kennzahlen!G$14,IF(Berechnung!F123="Dieselöl (MDO)",Treibhausgas_Kennzahlen!G$16,Treibhausgas_Kennzahlen!G$15))) -> 
H124: =IF(G124="","",VLOOKUP(INDEX(Seehäfen!$A$3:$A$502, MATCH(Berechnung!D124,Seehäfen!$B$3:$B$502,0))&"_"&INDEX(Seehäfen!$A$3:$A$502, MATCH(Berechnung!E124,Seehäfen!$B$3:$B$502,0)),Entfernung_Seehäfen!$C$2:$E$100001,2,FALSE)) ->  | I124: =IF(G124="","",SUM(IF(A124=Energieverbrauch!$A$2:$A$41,1,0)*IF(Berechnung!B124=Energieverbrauch!$B$2:$B$41,1,0)*IF(Berechnung!F124=Energieverbrauch!$C$2:$C$41,1,0)*Energieverbrauch!$D$2:$D$41)) ->  | K124: =IF(G124="","",J124/IF($C124="Schweröl (HFO)", Treibhausgas_Kennzahlen!B$7,IF(Berechnung!C124="Dieselöl (MDO)",Treibhausgas_Kennzahlen!B$9,Treibhausgas_Kennzahlen!B$8))) ->  | L124: =IF(G124="","",$K124*IF($C124="Schweröl (HFO)",Treibhausgas_Kennzahlen!B$14,IF(Berechnung!C124="Dieselöl (MDO)", Treibhausgas_Kennzahlen!B$16,Treibhausgas_Kennzahlen!B$15))) ->  | M124: =IF(G124="","",$K124*IF($C124="Schweröl (HFO)",Treibhausgas_Kennzahlen!C$14,IF(Berechnung!D124="Dieselöl (MDO)", Treibhausgas_Kennzahlen!C$16,Treibhausgas_Kennzahlen!C$15))) ->  | N124: =IF(G124="","",$J124*IF($C124="Schweröl (HFO)",Treibhausgas_Kennzahlen!D$14,IF(Berechnung!C124="Dieselöl (MDO)",Treibhausgas_Kennzahlen!D$16,Treibhausgas_Kennzahlen!D$15))) ->  | O124: =IF(G124="","",$J124*IF($C124="Schweröl (HFO)",Treibhausgas_Kennzahlen!E$14,IF(Berechnung!D124="Dieselöl (MDO)",Treibhausgas_Kennzahlen!E$16,Treibhausgas_Kennzahlen!E$15))) ->  | P124: =IF(G124="","",$J124*IF($C124="Schweröl (HFO)",Treibhausgas_Kennzahlen!F$14,IF(Berechnung!E124="Dieselöl (MDO)",Treibhausgas_Kennzahlen!F$16,Treibhausgas_Kennzahlen!F$15))) ->  | Q124: =IF(G124="","",$J124*IF($C124="Schweröl (HFO)",Treibhausgas_Kennzahlen!G$14,IF(Berechnung!F124="Dieselöl (MDO)",Treibhausgas_Kennzahlen!G$16,Treibhausgas_Kennzahlen!G$15))) -> 
H125: =IF(G125="","",VLOOKUP(INDEX(Seehäfen!$A$3:$A$502, MATCH(Berechnung!D125,Seehäfen!$B$3:$B$502,0))&"_"&INDEX(Seehäfen!$A$3:$A$502, MATCH(Berechnung!E125,Seehäfen!$B$3:$B$502,0)),Entfernung_Seehäfen!$C$2:$E$10001,2,FALSE)) ->  | I125: =IF(G125="","",SUM(IF(A125=Energieverbrauch!$A$2:$A$41,1,0)*IF(Berechnung!B125=Energieverbrauch!$B$2:$B$41,1,0)*IF(Berechnung!F125=Energieverbrauch!$C$2:$C$41,1,0)*Energieverbrauch!$D$2:$D$41)) ->  | K125: =IF(G125="","",J125/IF($C125="Schweröl (HFO)", Treibhausgas_Kennzahlen!B$7,IF(Berechnung!C125="Dieselöl (MDO)",Treibhausgas_Kennzahlen!B$9,Treibhausgas_Kennzahlen!B$8))) ->  | L125: =IF(G125="","",$K125*IF($C125="Schweröl (HFO)",Treibhausgas_Kennzahlen!B$14,IF(Berechnung!C125="Dieselöl (MDO)", Treibhausgas_Kennzahlen!B$16,Treibhausgas_Kennzahlen!B$15))) ->  | M125: =IF(G125="","",$K125*IF($C125="Schweröl (HFO)",Treibhausgas_Kennzahlen!C$14,IF(Berechnung!D125="Dieselöl (MDO)", Treibhausgas_Kennzahlen!C$16,Treibhausgas_Kennzahlen!C$15))) ->  | N125: =IF(G125="","",$J125*IF($C125="Schweröl (HFO)",Treibhausgas_Kennzahlen!D$14,IF(Berechnung!C125="Dieselöl (MDO)",Treibhausgas_Kennzahlen!D$16,Treibhausgas_Kennzahlen!D$15))) ->  | O125: =IF(G125="","",$J125*IF($C125="Schweröl (HFO)",Treibhausgas_Kennzahlen!E$14,IF(Berechnung!D125="Dieselöl (MDO)",Treibhausgas_Kennzahlen!E$16,Treibhausgas_Kennzahlen!E$15))) ->  | P125: =IF(G125="","",$J125*IF($C125="Schweröl (HFO)",Treibhausgas_Kennzahlen!F$14,IF(Berechnung!E125="Dieselöl (MDO)",Treibhausgas_Kennzahlen!F$16,Treibhausgas_Kennzahlen!F$15))) ->  | Q125: =IF(G125="","",$J125*IF($C125="Schweröl (HFO)",Treibhausgas_Kennzahlen!G$14,IF(Berechnung!F125="Dieselöl (MDO)",Treibhausgas_Kennzahlen!G$16,Treibhausgas_Kennzahlen!G$15))) -> 
H126: =IF(G126="","",VLOOKUP(INDEX(Seehäfen!$A$3:$A$502, MATCH(Berechnung!D126,Seehäfen!$B$3:$B$502,0))&"_"&INDEX(Seehäfen!$A$3:$A$502, MATCH(Berechnung!E126,Seehäfen!$B$3:$B$502,0)),Entfernung_Seehäfen!$C$2:$E$100001,2,FALSE)) ->  | I126: =IF(G126="","",SUM(IF(A126=Energieverbrauch!$A$2:$A$41,1,0)*IF(Berechnung!B126=Energieverbrauch!$B$2:$B$41,1,0)*IF(Berechnung!F126=Energieverbrauch!$C$2:$C$41,1,0)*Energieverbrauch!$D$2:$D$41)) ->  | K126: =IF(G126="","",J126/IF($C126="Schweröl (HFO)", Treibhausgas_Kennzahlen!B$7,IF(Berechnung!C126="Dieselöl (MDO)",Treibhausgas_Kennzahlen!B$9,Treibhausgas_Kennzahlen!B$8))) ->  | L126: =IF(G126="","",$K126*IF($C126="Schweröl (HFO)",Treibhausgas_Kennzahlen!B$14,IF(Berechnung!C126="Dieselöl (MDO)", Treibhausgas_Kennzahlen!B$16,Treibhausgas_Kennzahlen!B$15))) ->  | M126: =IF(G126="","",$K126*IF($C126="Schweröl (HFO)",Treibhausgas_Kennzahlen!C$14,IF(Berechnung!D126="Dieselöl (MDO)", Treibhausgas_Kennzahlen!C$16,Treibhausgas_Kennzahlen!C$15))) ->  | N126: =IF(G126="","",$J126*IF($C126="Schweröl (HFO)",Treibhausgas_Kennzahlen!D$14,IF(Berechnung!C126="Dieselöl (MDO)",Treibhausgas_Kennzahlen!D$16,Treibhausgas_Kennzahlen!D$15))) ->  | O126: =IF(G126="","",$J126*IF($C126="Schweröl (HFO)",Treibhausgas_Kennzahlen!E$14,IF(Berechnung!D126="Dieselöl (MDO)",Treibhausgas_Kennzahlen!E$16,Treibhausgas_Kennzahlen!E$15))) ->  | P126: =IF(G126="","",$J126*IF($C126="Schweröl (HFO)",Treibhausgas_Kennzahlen!F$14,IF(Berechnung!E126="Dieselöl (MDO)",Treibhausgas_Kennzahlen!F$16,Treibhausgas_Kennzahlen!F$15))) ->  | Q126: =IF(G126="","",$J126*IF($C126="Schweröl (HFO)",Treibhausgas_Kennzahlen!G$14,IF(Berechnung!F126="Dieselöl (MDO)",Treibhausgas_Kennzahlen!G$16,Treibhausgas_Kennzahlen!G$15))) -> 
H127: =IF(G127="","",VLOOKUP(INDEX(Seehäfen!$A$3:$A$502, MATCH(Berechnung!D127,Seehäfen!$B$3:$B$502,0))&"_"&INDEX(Seehäfen!$A$3:$A$502, MATCH(Berechnung!E127,Seehäfen!$B$3:$B$502,0)),Entfernung_Seehäfen!$C$2:$E$10001,2,FALSE)) ->  | I127: =IF(G127="","",SUM(IF(A127=Energieverbrauch!$A$2:$A$41,1,0)*IF(Berechnung!B127=Energieverbrauch!$B$2:$B$41,1,0)*IF(Berechnung!F127=Energieverbrauch!$C$2:$C$41,1,0)*Energieverbrauch!$D$2:$D$41)) ->  | K127: =IF(G127="","",J127/IF($C127="Schweröl (HFO)", Treibhausgas_Kennzahlen!B$7,IF(Berechnung!C127="Dieselöl (MDO)",Treibhausgas_Kennzahlen!B$9,Treibhausgas_Kennzahlen!B$8))) ->  | L127: =IF(G127="","",$K127*IF($C127="Schweröl (HFO)",Treibhausgas_Kennzahlen!B$14,IF(Berechnung!C127="Dieselöl (MDO)", Treibhausgas_Kennzahlen!B$16,Treibhausgas_Kennzahlen!B$15))) ->  | M127: =IF(G127="","",$K127*IF($C127="Schweröl (HFO)",Treibhausgas_Kennzahlen!C$14,IF(Berechnung!D127="Dieselöl (MDO)", Treibhausgas_Kennzahlen!C$16,Treibhausgas_Kennzahlen!C$15))) ->  | N127: =IF(G127="","",$J127*IF($C127="Schweröl (HFO)",Treibhausgas_Kennzahlen!D$14,IF(Berechnung!C127="Dieselöl (MDO)",Treibhausgas_Kennzahlen!D$16,Treibhausgas_Kennzahlen!D$15))) ->  | O127: =IF(G127="","",$J127*IF($C127="Schweröl (HFO)",Treibhausgas_Kennzahlen!E$14,IF(Berechnung!D127="Dieselöl (MDO)",Treibhausgas_Kennzahlen!E$16,Treibhausgas_Kennzahlen!E$15))) ->  | P127: =IF(G127="","",$J127*IF($C127="Schweröl (HFO)",Treibhausgas_Kennzahlen!F$14,IF(Berechnung!E127="Dieselöl (MDO)",Treibhausgas_Kennzahlen!F$16,Treibhausgas_Kennzahlen!F$15))) ->  | Q127: =IF(G127="","",$J127*IF($C127="Schweröl (HFO)",Treibhausgas_Kennzahlen!G$14,IF(Berechnung!F127="Dieselöl (MDO)",Treibhausgas_Kennzahlen!G$16,Treibhausgas_Kennzahlen!G$15))) -> 
H128: =IF(G128="","",VLOOKUP(INDEX(Seehäfen!$A$3:$A$502, MATCH(Berechnung!D128,Seehäfen!$B$3:$B$502,0))&"_"&INDEX(Seehäfen!$A$3:$A$502, MATCH(Berechnung!E128,Seehäfen!$B$3:$B$502,0)),Entfernung_Seehäfen!$C$2:$E$100001,2,FALSE)) ->  | I128: =IF(G128="","",SUM(IF(A128=Energieverbrauch!$A$2:$A$41,1,0)*IF(Berechnung!B128=Energieverbrauch!$B$2:$B$41,1,0)*IF(Berechnung!F128=Energieverbrauch!$C$2:$C$41,1,0)*Energieverbrauch!$D$2:$D$41)) ->  | K128: =IF(G128="","",J128/IF($C128="Schweröl (HFO)", Treibhausgas_Kennzahlen!B$7,IF(Berechnung!C128="Dieselöl (MDO)",Treibhausgas_Kennzahlen!B$9,Treibhausgas_Kennzahlen!B$8))) ->  | L128: =IF(G128="","",$K128*IF($C128="Schweröl (HFO)",Treibhausgas_Kennzahlen!B$14,IF(Berechnung!C128="Dieselöl (MDO)", Treibhausgas_Kennzahlen!B$16,Treibhausgas_Kennzahlen!B$15))) ->  | M128: =IF(G128="","",$K128*IF($C128="Schweröl (HFO)",Treibhausgas_Kennzahlen!C$14,IF(Berechnung!D128="Dieselöl (MDO)", Treibhausgas_Kennzahlen!C$16,Treibhausgas_Kennzahlen!C$15))) ->  | N128: =IF(G128="","",$J128*IF($C128="Schweröl (HFO)",Treibhausgas_Kennzahlen!D$14,IF(Berechnung!C128="Dieselöl (MDO)",Treibhausgas_Kennzahlen!D$16,Treibhausgas_Kennzahlen!D$15))) ->  | O128: =IF(G128="","",$J128*IF($C128="Schweröl (HFO)",Treibhausgas_Kennzahlen!E$14,IF(Berechnung!D128="Dieselöl (MDO)",Treibhausgas_Kennzahlen!E$16,Treibhausgas_Kennzahlen!E$15))) ->  | P128: =IF(G128="","",$J128*IF($C128="Schweröl (HFO)",Treibhausgas_Kennzahlen!F$14,IF(Berechnung!E128="Dieselöl (MDO)",Treibhausgas_Kennzahlen!F$16,Treibhausgas_Kennzahlen!F$15))) ->  | Q128: =IF(G128="","",$J128*IF($C128="Schweröl (HFO)",Treibhausgas_Kennzahlen!G$14,IF(Berechnung!F128="Dieselöl (MDO)",Treibhausgas_Kennzahlen!G$16,Treibhausgas_Kennzahlen!G$15))) -> 
H129: =IF(G129="","",VLOOKUP(INDEX(Seehäfen!$A$3:$A$502, MATCH(Berechnung!D129,Seehäfen!$B$3:$B$502,0))&"_"&INDEX(Seehäfen!$A$3:$A$502, MATCH(Berechnung!E129,Seehäfen!$B$3:$B$502,0)),Entfernung_Seehäfen!$C$2:$E$10001,2,FALSE)) ->  | I129: =IF(G129="","",SUM(IF(A129=Energieverbrauch!$A$2:$A$41,1,0)*IF(Berechnung!B129=Energieverbrauch!$B$2:$B$41,1,0)*IF(Berechnung!F129=Energieverbrauch!$C$2:$C$41,1,0)*Energieverbrauch!$D$2:$D$41)) ->  | K129: =IF(G129="","",J129/IF($C129="Schweröl (HFO)", Treibhausgas_Kennzahlen!B$7,IF(Berechnung!C129="Dieselöl (MDO)",Treibhausgas_Kennzahlen!B$9,Treibhausgas_Kennzahlen!B$8))) ->  | L129: =IF(G129="","",$K129*IF($C129="Schweröl (HFO)",Treibhausgas_Kennzahlen!B$14,IF(Berechnung!C129="Dieselöl (MDO)", Treibhausgas_Kennzahlen!B$16,Treibhausgas_Kennzahlen!B$15))) ->  | M129: =IF(G129="","",$K129*IF($C129="Schweröl (HFO)",Treibhausgas_Kennzahlen!C$14,IF(Berechnung!D129="Dieselöl (MDO)", Treibhausgas_Kennzahlen!C$16,Treibhausgas_Kennzahlen!C$15))) ->  | N129: =IF(G129="","",$J129*IF($C129="Schweröl (HFO)",Treibhausgas_Kennzahlen!D$14,IF(Berechnung!C129="Dieselöl (MDO)",Treibhausgas_Kennzahlen!D$16,Treibhausgas_Kennzahlen!D$15))) ->  | O129: =IF(G129="","",$J129*IF($C129="Schweröl (HFO)",Treibhausgas_Kennzahlen!E$14,IF(Berechnung!D129="Dieselöl (MDO)",Treibhausgas_Kennzahlen!E$16,Treibhausgas_Kennzahlen!E$15))) ->  | P129: =IF(G129="","",$J129*IF($C129="Schweröl (HFO)",Treibhausgas_Kennzahlen!F$14,IF(Berechnung!E129="Dieselöl (MDO)",Treibhausgas_Kennzahlen!F$16,Treibhausgas_Kennzahlen!F$15))) ->  | Q129: =IF(G129="","",$J129*IF($C129="Schweröl (HFO)",Treibhausgas_Kennzahlen!G$14,IF(Berechnung!F129="Dieselöl (MDO)",Treibhausgas_Kennzahlen!G$16,Treibhausgas_Kennzahlen!G$15))) -> 
H130: =IF(G130="","",VLOOKUP(INDEX(Seehäfen!$A$3:$A$502, MATCH(Berechnung!D130,Seehäfen!$B$3:$B$502,0))&"_"&INDEX(Seehäfen!$A$3:$A$502, MATCH(Berechnung!E130,Seehäfen!$B$3:$B$502,0)),Entfernung_Seehäfen!$C$2:$E$100001,2,FALSE)) ->  | I130: =IF(G130="","",SUM(IF(A130=Energieverbrauch!$A$2:$A$41,1,0)*IF(Berechnung!B130=Energieverbrauch!$B$2:$B$41,1,0)*IF(Berechnung!F130=Energieverbrauch!$C$2:$C$41,1,0)*Energieverbrauch!$D$2:$D$41)) ->  | K130: =IF(G130="","",J130/IF($C130="Schweröl (HFO)", Treibhausgas_Kennzahlen!B$7,IF(Berechnung!C130="Dieselöl (MDO)",Treibhausgas_Kennzahlen!B$9,Treibhausgas_Kennzahlen!B$8))) ->  | L130: =IF(G130="","",$K130*IF($C130="Schweröl (HFO)",Treibhausgas_Kennzahlen!B$14,IF(Berechnung!C130="Dieselöl (MDO)", Treibhausgas_Kennzahlen!B$16,Treibhausgas_Kennzahlen!B$15))) ->  | M130: =IF(G130="","",$K130*IF($C130="Schweröl (HFO)",Treibhausgas_Kennzahlen!C$14,IF(Berechnung!D130="Dieselöl (MDO)", Treibhausgas_Kennzahlen!C$16,Treibhausgas_Kennzahlen!C$15))) ->  | N130: =IF(G130="","",$J130*IF($C130="Schweröl (HFO)",Treibhausgas_Kennzahlen!D$14,IF(Berechnung!C130="Dieselöl (MDO)",Treibhausgas_Kennzahlen!D$16,Treibhausgas_Kennzahlen!D$15))) ->  | O130: =IF(G130="","",$J130*IF($C130="Schweröl (HFO)",Treibhausgas_Kennzahlen!E$14,IF(Berechnung!D130="Dieselöl (MDO)",Treibhausgas_Kennzahlen!E$16,Treibhausgas_Kennzahlen!E$15))) ->  | P130: =IF(G130="","",$J130*IF($C130="Schweröl (HFO)",Treibhausgas_Kennzahlen!F$14,IF(Berechnung!E130="Dieselöl (MDO)",Treibhausgas_Kennzahlen!F$16,Treibhausgas_Kennzahlen!F$15))) ->  | Q130: =IF(G130="","",$J130*IF($C130="Schweröl (HFO)",Treibhausgas_Kennzahlen!G$14,IF(Berechnung!F130="Dieselöl (MDO)",Treibhausgas_Kennzahlen!G$16,Treibhausgas_Kennzahlen!G$15))) -> 
H131: =IF(G131="","",VLOOKUP(INDEX(Seehäfen!$A$3:$A$502, MATCH(Berechnung!D131,Seehäfen!$B$3:$B$502,0))&"_"&INDEX(Seehäfen!$A$3:$A$502, MATCH(Berechnung!E131,Seehäfen!$B$3:$B$502,0)),Entfernung_Seehäfen!$C$2:$E$10001,2,FALSE)) ->  | I131: =IF(G131="","",SUM(IF(A131=Energieverbrauch!$A$2:$A$41,1,0)*IF(Berechnung!B131=Energieverbrauch!$B$2:$B$41,1,0)*IF(Berechnung!F131=Energieverbrauch!$C$2:$C$41,1,0)*Energieverbrauch!$D$2:$D$41)) ->  | K131: =IF(G131="","",J131/IF($C131="Schweröl (HFO)", Treibhausgas_Kennzahlen!B$7,IF(Berechnung!C131="Dieselöl (MDO)",Treibhausgas_Kennzahlen!B$9,Treibhausgas_Kennzahlen!B$8))) ->  | L131: =IF(G131="","",$K131*IF($C131="Schweröl (HFO)",Treibhausgas_Kennzahlen!B$14,IF(Berechnung!C131="Dieselöl (MDO)", Treibhausgas_Kennzahlen!B$16,Treibhausgas_Kennzahlen!B$15))) ->  | M131: =IF(G131="","",$K131*IF($C131="Schweröl (HFO)",Treibhausgas_Kennzahlen!C$14,IF(Berechnung!D131="Dieselöl (MDO)", Treibhausgas_Kennzahlen!C$16,Treibhausgas_Kennzahlen!C$15))) ->  | N131: =IF(G131="","",$J131*IF($C131="Schweröl (HFO)",Treibhausgas_Kennzahlen!D$14,IF(Berechnung!C131="Dieselöl (MDO)",Treibhausgas_Kennzahlen!D$16,Treibhausgas_Kennzahlen!D$15))) ->  | O131: =IF(G131="","",$J131*IF($C131="Schweröl (HFO)",Treibhausgas_Kennzahlen!E$14,IF(Berechnung!D131="Dieselöl (MDO)",Treibhausgas_Kennzahlen!E$16,Treibhausgas_Kennzahlen!E$15))) ->  | P131: =IF(G131="","",$J131*IF($C131="Schweröl (HFO)",Treibhausgas_Kennzahlen!F$14,IF(Berechnung!E131="Dieselöl (MDO)",Treibhausgas_Kennzahlen!F$16,Treibhausgas_Kennzahlen!F$15))) ->  | Q131: =IF(G131="","",$J131*IF($C131="Schweröl (HFO)",Treibhausgas_Kennzahlen!G$14,IF(Berechnung!F131="Dieselöl (MDO)",Treibhausgas_Kennzahlen!G$16,Treibhausgas_Kennzahlen!G$15))) -> 
H132: =IF(G132="","",VLOOKUP(INDEX(Seehäfen!$A$3:$A$502, MATCH(Berechnung!D132,Seehäfen!$B$3:$B$502,0))&"_"&INDEX(Seehäfen!$A$3:$A$502, MATCH(Berechnung!E132,Seehäfen!$B$3:$B$502,0)),Entfernung_Seehäfen!$C$2:$E$100001,2,FALSE)) ->  | I132: =IF(G132="","",SUM(IF(A132=Energieverbrauch!$A$2:$A$41,1,0)*IF(Berechnung!B132=Energieverbrauch!$B$2:$B$41,1,0)*IF(Berechnung!F132=Energieverbrauch!$C$2:$C$41,1,0)*Energieverbrauch!$D$2:$D$41)) ->  | K132: =IF(G132="","",J132/IF($C132="Schweröl (HFO)", Treibhausgas_Kennzahlen!B$7,IF(Berechnung!C132="Dieselöl (MDO)",Treibhausgas_Kennzahlen!B$9,Treibhausgas_Kennzahlen!B$8))) ->  | L132: =IF(G132="","",$K132*IF($C132="Schweröl (HFO)",Treibhausgas_Kennzahlen!B$14,IF(Berechnung!C132="Dieselöl (MDO)", Treibhausgas_Kennzahlen!B$16,Treibhausgas_Kennzahlen!B$15))) ->  | M132: =IF(G132="","",$K132*IF($C132="Schweröl (HFO)",Treibhausgas_Kennzahlen!C$14,IF(Berechnung!D132="Dieselöl (MDO)", Treibhausgas_Kennzahlen!C$16,Treibhausgas_Kennzahlen!C$15))) ->  | N132: =IF(G132="","",$J132*IF($C132="Schweröl (HFO)",Treibhausgas_Kennzahlen!D$14,IF(Berechnung!C132="Dieselöl (MDO)",Treibhausgas_Kennzahlen!D$16,Treibhausgas_Kennzahlen!D$15))) ->  | O132: =IF(G132="","",$J132*IF($C132="Schweröl (HFO)",Treibhausgas_Kennzahlen!E$14,IF(Berechnung!D132="Dieselöl (MDO)",Treibhausgas_Kennzahlen!E$16,Treibhausgas_Kennzahlen!E$15))) ->  | P132: =IF(G132="","",$J132*IF($C132="Schweröl (HFO)",Treibhausgas_Kennzahlen!F$14,IF(Berechnung!E132="Dieselöl (MDO)",Treibhausgas_Kennzahlen!F$16,Treibhausgas_Kennzahlen!F$15))) ->  | Q132: =IF(G132="","",$J132*IF($C132="Schweröl (HFO)",Treibhausgas_Kennzahlen!G$14,IF(Berechnung!F132="Dieselöl (MDO)",Treibhausgas_Kennzahlen!G$16,Treibhausgas_Kennzahlen!G$15))) -> 
H133: =IF(G133="","",VLOOKUP(INDEX(Seehäfen!$A$3:$A$502, MATCH(Berechnung!D133,Seehäfen!$B$3:$B$502,0))&"_"&INDEX(Seehäfen!$A$3:$A$502, MATCH(Berechnung!E133,Seehäfen!$B$3:$B$502,0)),Entfernung_Seehäfen!$C$2:$E$10001,2,FALSE)) ->  | I133: =IF(G133="","",SUM(IF(A133=Energieverbrauch!$A$2:$A$41,1,0)*IF(Berechnung!B133=Energieverbrauch!$B$2:$B$41,1,0)*IF(Berechnung!F133=Energieverbrauch!$C$2:$C$41,1,0)*Energieverbrauch!$D$2:$D$41)) ->  | K133: =IF(G133="","",J133/IF($C133="Schweröl (HFO)", Treibhausgas_Kennzahlen!B$7,IF(Berechnung!C133="Dieselöl (MDO)",Treibhausgas_Kennzahlen!B$9,Treibhausgas_Kennzahlen!B$8))) ->  | L133: =IF(G133="","",$K133*IF($C133="Schweröl (HFO)",Treibhausgas_Kennzahlen!B$14,IF(Berechnung!C133="Dieselöl (MDO)", Treibhausgas_Kennzahlen!B$16,Treibhausgas_Kennzahlen!B$15))) ->  | M133: =IF(G133="","",$K133*IF($C133="Schweröl (HFO)",Treibhausgas_Kennzahlen!C$14,IF(Berechnung!D133="Dieselöl (MDO)", Treibhausgas_Kennzahlen!C$16,Treibhausgas_Kennzahlen!C$15))) ->  | N133: =IF(G133="","",$J133*IF($C133="Schweröl (HFO)",Treibhausgas_Kennzahlen!D$14,IF(Berechnung!C133="Dieselöl (MDO)",Treibhausgas_Kennzahlen!D$16,Treibhausgas_Kennzahlen!D$15))) ->  | O133: =IF(G133="","",$J133*IF($C133="Schweröl (HFO)",Treibhausgas_Kennzahlen!E$14,IF(Berechnung!D133="Dieselöl (MDO)",Treibhausgas_Kennzahlen!E$16,Treibhausgas_Kennzahlen!E$15))) ->  | P133: =IF(G133="","",$J133*IF($C133="Schweröl (HFO)",Treibhausgas_Kennzahlen!F$14,IF(Berechnung!E133="Dieselöl (MDO)",Treibhausgas_Kennzahlen!F$16,Treibhausgas_Kennzahlen!F$15))) ->  | Q133: =IF(G133="","",$J133*IF($C133="Schweröl (HFO)",Treibhausgas_Kennzahlen!G$14,IF(Berechnung!F133="Dieselöl (MDO)",Treibhausgas_Kennzahlen!G$16,Treibhausgas_Kennzahlen!G$15))) -> 
C134: =IF(B134="","","Schweröl (HFO)") ->  | H134: =IF(G134="","",VLOOKUP(INDEX(Seehäfen!$A$3:$A$502, MATCH(Berechnung!D134,Seehäfen!$B$3:$B$502,0))&"_"&INDEX(Seehäfen!$A$3:$A$502, MATCH(Berechnung!E134,Seehäfen!$B$3:$B$502,0)),Entfernung_Seehäfen!$C$2:$E$100001,2,FALSE)) ->  | I134: =IF(G134="","",SUM(IF(A134=Energieverbrauch!$A$2:$A$41,1,0)*IF(Berechnung!B134=Energieverbrauch!$B$2:$B$41,1,0)*IF(Berechnung!F134=Energieverbrauch!$C$2:$C$41,1,0)*Energieverbrauch!$D$2:$D$41)) ->  | J134: =IF(G134="","",PRODUCT(H134,I134,G134)/1000) ->  | K134: =IF(G134="","",J134/IF($C134="Schweröl (HFO)", Treibhausgas_Kennzahlen!B$7,IF(Berechnung!C134="Dieselöl (MDO)",Treibhausgas_Kennzahlen!B$9,Treibhausgas_Kennzahlen!B$8))) ->  | L134: =IF(G134="","",$K134*IF($C134="Schweröl (HFO)",Treibhausgas_Kennzahlen!B$14,IF(Berechnung!C134="Dieselöl (MDO)", Treibhausgas_Kennzahlen!B$16,Treibhausgas_Kennzahlen!B$15))) ->  | M134: =IF(G134="","",$K134*IF($C134="Schweröl (HFO)",Treibhausgas_Kennzahlen!C$14,IF(Berechnung!D134="Dieselöl (MDO)", Treibhausgas_Kennzahlen!C$16,Treibhausgas_Kennzahlen!C$15))) ->  | N134: =IF(G134="","",$J134*IF($C134="Schweröl (HFO)",Treibhausgas_Kennzahlen!D$14,IF(Berechnung!C134="Dieselöl (MDO)",Treibhausgas_Kennzahlen!D$16,Treibhausgas_Kennzahlen!D$15))) ->  | O134: =IF(G134="","",$J134*IF($C134="Schweröl (HFO)",Treibhausgas_Kennzahlen!E$14,IF(Berechnung!D134="Dieselöl (MDO)",Treibhausgas_Kennzahlen!E$16,Treibhausgas_Kennzahlen!E$15))) ->  | P134: =IF(G134="","",$J134*IF($C134="Schweröl (HFO)",Treibhausgas_Kennzahlen!F$14,IF(Berechnung!E134="Dieselöl (MDO)",Treibhausgas_Kennzahlen!F$16,Treibhausgas_Kennzahlen!F$15))) ->  | Q134: =IF(G134="","",$J134*IF($C134="Schweröl (HFO)",Treibhausgas_Kennzahlen!G$14,IF(Berechnung!F134="Dieselöl (MDO)",Treibhausgas_Kennzahlen!G$16,Treibhausgas_Kennzahlen!G$15))) -> 
H135: =IF(G135="","",VLOOKUP(INDEX(Seehäfen!$A$3:$A$502, MATCH(Berechnung!D135,Seehäfen!$B$3:$B$502,0))&"_"&INDEX(Seehäfen!$A$3:$A$502, MATCH(Berechnung!E135,Seehäfen!$B$3:$B$502,0)),Entfernung_Seehäfen!$C$2:$E$10001,2,FALSE)) ->  | I135: =IF(G135="","",SUM(IF(A135=Energieverbrauch!$A$2:$A$41,1,0)*IF(Berechnung!B135=Energieverbrauch!$B$2:$B$41,1,0)*IF(Berechnung!F135=Energieverbrauch!$C$2:$C$41,1,0)*Energieverbrauch!$D$2:$D$41)) ->  | K135: =IF(G135="","",J135/IF($C135="Schweröl (HFO)", Treibhausgas_Kennzahlen!B$7,IF(Berechnung!C135="Dieselöl (MDO)",Treibhausgas_Kennzahlen!B$9,Treibhausgas_Kennzahlen!B$8))) ->  | L135: =IF(G135="","",$K135*IF($C135="Schweröl (HFO)",Treibhausgas_Kennzahlen!B$14,IF(Berechnung!C135="Dieselöl (MDO)", Treibhausgas_Kennzahlen!B$16,Treibhausgas_Kennzahlen!B$15))) ->  | M135: =IF(G135="","",$K135*IF($C135="Schweröl (HFO)",Treibhausgas_Kennzahlen!C$14,IF(Berechnung!D135="Dieselöl (MDO)", Treibhausgas_Kennzahlen!C$16,Treibhausgas_Kennzahlen!C$15))) ->  | N135: =IF(G135="","",$J135*IF($C135="Schweröl (HFO)",Treibhausgas_Kennzahlen!D$14,IF(Berechnung!C135="Dieselöl (MDO)",Treibhausgas_Kennzahlen!D$16,Treibhausgas_Kennzahlen!D$15))) ->  | O135: =IF(G135="","",$J135*IF($C135="Schweröl (HFO)",Treibhausgas_Kennzahlen!E$14,IF(Berechnung!D135="Dieselöl (MDO)",Treibhausgas_Kennzahlen!E$16,Treibhausgas_Kennzahlen!E$15))) ->  | P135: =IF(G135="","",$J135*IF($C135="Schweröl (HFO)",Treibhausgas_Kennzahlen!F$14,IF(Berechnung!E135="Dieselöl (MDO)",Treibhausgas_Kennzahlen!F$16,Treibhausgas_Kennzahlen!F$15))) ->  | Q135: =IF(G135="","",$J135*IF($C135="Schweröl (HFO)",Treibhausgas_Kennzahlen!G$14,IF(Berechnung!F135="Dieselöl (MDO)",Treibhausgas_Kennzahlen!G$16,Treibhausgas_Kennzahlen!G$15))) -> 
H136: =IF(G136="","",VLOOKUP(INDEX(Seehäfen!$A$3:$A$502, MATCH(Berechnung!D136,Seehäfen!$B$3:$B$502,0))&"_"&INDEX(Seehäfen!$A$3:$A$502, MATCH(Berechnung!E136,Seehäfen!$B$3:$B$502,0)),Entfernung_Seehäfen!$C$2:$E$100001,2,FALSE)) ->  | I136: =IF(G136="","",SUM(IF(A136=Energieverbrauch!$A$2:$A$41,1,0)*IF(Berechnung!B136=Energieverbrauch!$B$2:$B$41,1,0)*IF(Berechnung!F136=Energieverbrauch!$C$2:$C$41,1,0)*Energieverbrauch!$D$2:$D$41)) ->  | K136: =IF(G136="","",J136/IF($C136="Schweröl (HFO)", Treibhausgas_Kennzahlen!B$7,IF(Berechnung!C136="Dieselöl (MDO)",Treibhausgas_Kennzahlen!B$9,Treibhausgas_Kennzahlen!B$8))) ->  | L136: =IF(G136="","",$K136*IF($C136="Schweröl (HFO)",Treibhausgas_Kennzahlen!B$14,IF(Berechnung!C136="Dieselöl (MDO)", Treibhausgas_Kennzahlen!B$16,Treibhausgas_Kennzahlen!B$15))) ->  | M136: =IF(G136="","",$K136*IF($C136="Schweröl (HFO)",Treibhausgas_Kennzahlen!C$14,IF(Berechnung!D136="Dieselöl (MDO)", Treibhausgas_Kennzahlen!C$16,Treibhausgas_Kennzahlen!C$15))) ->  | N136: =IF(G136="","",$J136*IF($C136="Schweröl (HFO)",Treibhausgas_Kennzahlen!D$14,IF(Berechnung!C136="Dieselöl (MDO)",Treibhausgas_Kennzahlen!D$16,Treibhausgas_Kennzahlen!D$15))) ->  | O136: =IF(G136="","",$J136*IF($C136="Schweröl (HFO)",Treibhausgas_Kennzahlen!E$14,IF(Berechnung!D136="Dieselöl (MDO)",Treibhausgas_Kennzahlen!E$16,Treibhausgas_Kennzahlen!E$15))) ->  | P136: =IF(G136="","",$J136*IF($C136="Schweröl (HFO)",Treibhausgas_Kennzahlen!F$14,IF(Berechnung!E136="Dieselöl (MDO)",Treibhausgas_Kennzahlen!F$16,Treibhausgas_Kennzahlen!F$15))) ->  | Q136: =IF(G136="","",$J136*IF($C136="Schweröl (HFO)",Treibhausgas_Kennzahlen!G$14,IF(Berechnung!F136="Dieselöl (MDO)",Treibhausgas_Kennzahlen!G$16,Treibhausgas_Kennzahlen!G$15))) -> 
H137: =IF(G137="","",VLOOKUP(INDEX(Seehäfen!$A$3:$A$502, MATCH(Berechnung!D137,Seehäfen!$B$3:$B$502,0))&"_"&INDEX(Seehäfen!$A$3:$A$502, MATCH(Berechnung!E137,Seehäfen!$B$3:$B$502,0)),Entfernung_Seehäfen!$C$2:$E$10001,2,FALSE)) ->  | I137: =IF(G137="","",SUM(IF(A137=Energieverbrauch!$A$2:$A$41,1,0)*IF(Berechnung!B137=Energieverbrauch!$B$2:$B$41,1,0)*IF(Berechnung!F137=Energieverbrauch!$C$2:$C$41,1,0)*Energieverbrauch!$D$2:$D$41)) ->  | K137: =IF(G137="","",J137/IF($C137="Schweröl (HFO)", Treibhausgas_Kennzahlen!B$7,IF(Berechnung!C137="Dieselöl (MDO)",Treibhausgas_Kennzahlen!B$9,Treibhausgas_Kennzahlen!B$8))) ->  | L137: =IF(G137="","",$K137*IF($C137="Schweröl (HFO)",Treibhausgas_Kennzahlen!B$14,IF(Berechnung!C137="Dieselöl (MDO)", Treibhausgas_Kennzahlen!B$16,Treibhausgas_Kennzahlen!B$15))) ->  | M137: =IF(G137="","",$K137*IF($C137="Schweröl (HFO)",Treibhausgas_Kennzahlen!C$14,IF(Berechnung!D137="Dieselöl (MDO)", Treibhausgas_Kennzahlen!C$16,Treibhausgas_Kennzahlen!C$15))) ->  | N137: =IF(G137="","",$J137*IF($C137="Schweröl (HFO)",Treibhausgas_Kennzahlen!D$14,IF(Berechnung!C137="Dieselöl (MDO)",Treibhausgas_Kennzahlen!D$16,Treibhausgas_Kennzahlen!D$15))) ->  | O137: =IF(G137="","",$J137*IF($C137="Schweröl (HFO)",Treibhausgas_Kennzahlen!E$14,IF(Berechnung!D137="Dieselöl (MDO)",Treibhausgas_Kennzahlen!E$16,Treibhausgas_Kennzahlen!E$15))) ->  | P137: =IF(G137="","",$J137*IF($C137="Schweröl (HFO)",Treibhausgas_Kennzahlen!F$14,IF(Berechnung!E137="Dieselöl (MDO)",Treibhausgas_Kennzahlen!F$16,Treibhausgas_Kennzahlen!F$15))) ->  | Q137: =IF(G137="","",$J137*IF($C137="Schweröl (HFO)",Treibhausgas_Kennzahlen!G$14,IF(Berechnung!F137="Dieselöl (MDO)",Treibhausgas_Kennzahlen!G$16,Treibhausgas_Kennzahlen!G$15))) -> 
H138: =IF(G138="","",VLOOKUP(INDEX(Seehäfen!$A$3:$A$502, MATCH(Berechnung!D138,Seehäfen!$B$3:$B$502,0))&"_"&INDEX(Seehäfen!$A$3:$A$502, MATCH(Berechnung!E138,Seehäfen!$B$3:$B$502,0)),Entfernung_Seehäfen!$C$2:$E$100001,2,FALSE)) ->  | I138: =IF(G138="","",SUM(IF(A138=Energieverbrauch!$A$2:$A$41,1,0)*IF(Berechnung!B138=Energieverbrauch!$B$2:$B$41,1,0)*IF(Berechnung!F138=Energieverbrauch!$C$2:$C$41,1,0)*Energieverbrauch!$D$2:$D$41)) ->  | K138: =IF(G138="","",J138/IF($C138="Schweröl (HFO)", Treibhausgas_Kennzahlen!B$7,IF(Berechnung!C138="Dieselöl (MDO)",Treibhausgas_Kennzahlen!B$9,Treibhausgas_Kennzahlen!B$8))) ->  | L138: =IF(G138="","",$K138*IF($C138="Schweröl (HFO)",Treibhausgas_Kennzahlen!B$14,IF(Berechnung!C138="Dieselöl (MDO)", Treibhausgas_Kennzahlen!B$16,Treibhausgas_Kennzahlen!B$15))) ->  | M138: =IF(G138="","",$K138*IF($C138="Schweröl (HFO)",Treibhausgas_Kennzahlen!C$14,IF(Berechnung!D138="Dieselöl (MDO)", Treibhausgas_Kennzahlen!C$16,Treibhausgas_Kennzahlen!C$15))) ->  | N138: =IF(G138="","",$J138*IF($C138="Schweröl (HFO)",Treibhausgas_Kennzahlen!D$14,IF(Berechnung!C138="Dieselöl (MDO)",Treibhausgas_Kennzahlen!D$16,Treibhausgas_Kennzahlen!D$15))) ->  | O138: =IF(G138="","",$J138*IF($C138="Schweröl (HFO)",Treibhausgas_Kennzahlen!E$14,IF(Berechnung!D138="Dieselöl (MDO)",Treibhausgas_Kennzahlen!E$16,Treibhausgas_Kennzahlen!E$15))) ->  | P138: =IF(G138="","",$J138*IF($C138="Schweröl (HFO)",Treibhausgas_Kennzahlen!F$14,IF(Berechnung!E138="Dieselöl (MDO)",Treibhausgas_Kennzahlen!F$16,Treibhausgas_Kennzahlen!F$15))) ->  | Q138: =IF(G138="","",$J138*IF($C138="Schweröl (HFO)",Treibhausgas_Kennzahlen!G$14,IF(Berechnung!F138="Dieselöl (MDO)",Treibhausgas_Kennzahlen!G$16,Treibhausgas_Kennzahlen!G$15))) -> 
H139: =IF(G139="","",VLOOKUP(INDEX(Seehäfen!$A$3:$A$502, MATCH(Berechnung!D139,Seehäfen!$B$3:$B$502,0))&"_"&INDEX(Seehäfen!$A$3:$A$502, MATCH(Berechnung!E139,Seehäfen!$B$3:$B$502,0)),Entfernung_Seehäfen!$C$2:$E$10001,2,FALSE)) ->  | I139: =IF(G139="","",SUM(IF(A139=Energieverbrauch!$A$2:$A$41,1,0)*IF(Berechnung!B139=Energieverbrauch!$B$2:$B$41,1,0)*IF(Berechnung!F139=Energieverbrauch!$C$2:$C$41,1,0)*Energieverbrauch!$D$2:$D$41)) ->  | K139: =IF(G139="","",J139/IF($C139="Schweröl (HFO)", Treibhausgas_Kennzahlen!B$7,IF(Berechnung!C139="Dieselöl (MDO)",Treibhausgas_Kennzahlen!B$9,Treibhausgas_Kennzahlen!B$8))) ->  | L139: =IF(G139="","",$K139*IF($C139="Schweröl (HFO)",Treibhausgas_Kennzahlen!B$14,IF(Berechnung!C139="Dieselöl (MDO)", Treibhausgas_Kennzahlen!B$16,Treibhausgas_Kennzahlen!B$15))) ->  | M139: =IF(G139="","",$K139*IF($C139="Schweröl (HFO)",Treibhausgas_Kennzahlen!C$14,IF(Berechnung!D139="Dieselöl (MDO)", Treibhausgas_Kennzahlen!C$16,Treibhausgas_Kennzahlen!C$15))) ->  | N139: =IF(G139="","",$J139*IF($C139="Schweröl (HFO)",Treibhausgas_Kennzahlen!D$14,IF(Berechnung!C139="Dieselöl (MDO)",Treibhausgas_Kennzahlen!D$16,Treibhausgas_Kennzahlen!D$15))) ->  | O139: =IF(G139="","",$J139*IF($C139="Schweröl (HFO)",Treibhausgas_Kennzahlen!E$14,IF(Berechnung!D139="Dieselöl (MDO)",Treibhausgas_Kennzahlen!E$16,Treibhausgas_Kennzahlen!E$15))) ->  | P139: =IF(G139="","",$J139*IF($C139="Schweröl (HFO)",Treibhausgas_Kennzahlen!F$14,IF(Berechnung!E139="Dieselöl (MDO)",Treibhausgas_Kennzahlen!F$16,Treibhausgas_Kennzahlen!F$15))) ->  | Q139: =IF(G139="","",$J139*IF($C139="Schweröl (HFO)",Treibhausgas_Kennzahlen!G$14,IF(Berechnung!F139="Dieselöl (MDO)",Treibhausgas_Kennzahlen!G$16,Treibhausgas_Kennzahlen!G$15))) -> 
H140: =IF(G140="","",VLOOKUP(INDEX(Seehäfen!$A$3:$A$502, MATCH(Berechnung!D140,Seehäfen!$B$3:$B$502,0))&"_"&INDEX(Seehäfen!$A$3:$A$502, MATCH(Berechnung!E140,Seehäfen!$B$3:$B$502,0)),Entfernung_Seehäfen!$C$2:$E$100001,2,FALSE)) ->  | I140: =IF(G140="","",SUM(IF(A140=Energieverbrauch!$A$2:$A$41,1,0)*IF(Berechnung!B140=Energieverbrauch!$B$2:$B$41,1,0)*IF(Berechnung!F140=Energieverbrauch!$C$2:$C$41,1,0)*Energieverbrauch!$D$2:$D$41)) ->  | K140: =IF(G140="","",J140/IF($C140="Schweröl (HFO)", Treibhausgas_Kennzahlen!B$7,IF(Berechnung!C140="Dieselöl (MDO)",Treibhausgas_Kennzahlen!B$9,Treibhausgas_Kennzahlen!B$8))) ->  | L140: =IF(G140="","",$K140*IF($C140="Schweröl (HFO)",Treibhausgas_Kennzahlen!B$14,IF(Berechnung!C140="Dieselöl (MDO)", Treibhausgas_Kennzahlen!B$16,Treibhausgas_Kennzahlen!B$15))) ->  | M140: =IF(G140="","",$K140*IF($C140="Schweröl (HFO)",Treibhausgas_Kennzahlen!C$14,IF(Berechnung!D140="Dieselöl (MDO)", Treibhausgas_Kennzahlen!C$16,Treibhausgas_Kennzahlen!C$15))) ->  | N140: =IF(G140="","",$J140*IF($C140="Schweröl (HFO)",Treibhausgas_Kennzahlen!D$14,IF(Berechnung!C140="Dieselöl (MDO)",Treibhausgas_Kennzahlen!D$16,Treibhausgas_Kennzahlen!D$15))) ->  | O140: =IF(G140="","",$J140*IF($C140="Schweröl (HFO)",Treibhausgas_Kennzahlen!E$14,IF(Berechnung!D140="Dieselöl (MDO)",Treibhausgas_Kennzahlen!E$16,Treibhausgas_Kennzahlen!E$15))) ->  | P140: =IF(G140="","",$J140*IF($C140="Schweröl (HFO)",Treibhausgas_Kennzahlen!F$14,IF(Berechnung!E140="Dieselöl (MDO)",Treibhausgas_Kennzahlen!F$16,Treibhausgas_Kennzahlen!F$15))) ->  | Q140: =IF(G140="","",$J140*IF($C140="Schweröl (HFO)",Treibhausgas_Kennzahlen!G$14,IF(Berechnung!F140="Dieselöl (MDO)",Treibhausgas_Kennzahlen!G$16,Treibhausgas_Kennzahlen!G$15))) -> 
H141: =IF(G141="","",VLOOKUP(INDEX(Seehäfen!$A$3:$A$502, MATCH(Berechnung!D141,Seehäfen!$B$3:$B$502,0))&"_"&INDEX(Seehäfen!$A$3:$A$502, MATCH(Berechnung!E141,Seehäfen!$B$3:$B$502,0)),Entfernung_Seehäfen!$C$2:$E$10001,2,FALSE)) ->  | I141: =IF(G141="","",SUM(IF(A141=Energieverbrauch!$A$2:$A$41,1,0)*IF(Berechnung!B141=Energieverbrauch!$B$2:$B$41,1,0)*IF(Berechnung!F141=Energieverbrauch!$C$2:$C$41,1,0)*Energieverbrauch!$D$2:$D$41)) ->  | K141: =IF(G141="","",J141/IF($C141="Schweröl (HFO)", Treibhausgas_Kennzahlen!B$7,IF(Berechnung!C141="Dieselöl (MDO)",Treibhausgas_Kennzahlen!B$9,Treibhausgas_Kennzahlen!B$8))) ->  | L141: =IF(G141="","",$K141*IF($C141="Schweröl (HFO)",Treibhausgas_Kennzahlen!B$14,IF(Berechnung!C141="Dieselöl (MDO)", Treibhausgas_Kennzahlen!B$16,Treibhausgas_Kennzahlen!B$15))) ->  | M141: =IF(G141="","",$K141*IF($C141="Schweröl (HFO)",Treibhausgas_Kennzahlen!C$14,IF(Berechnung!D141="Dieselöl (MDO)", Treibhausgas_Kennzahlen!C$16,Treibhausgas_Kennzahlen!C$15))) ->  | N141: =IF(G141="","",$J141*IF($C141="Schweröl (HFO)",Treibhausgas_Kennzahlen!D$14,IF(Berechnung!C141="Dieselöl (MDO)",Treibhausgas_Kennzahlen!D$16,Treibhausgas_Kennzahlen!D$15))) ->  | O141: =IF(G141="","",$J141*IF($C141="Schweröl (HFO)",Treibhausgas_Kennzahlen!E$14,IF(Berechnung!D141="Dieselöl (MDO)",Treibhausgas_Kennzahlen!E$16,Treibhausgas_Kennzahlen!E$15))) ->  | P141: =IF(G141="","",$J141*IF($C141="Schweröl (HFO)",Treibhausgas_Kennzahlen!F$14,IF(Berechnung!E141="Dieselöl (MDO)",Treibhausgas_Kennzahlen!F$16,Treibhausgas_Kennzahlen!F$15))) ->  | Q141: =IF(G141="","",$J141*IF($C141="Schweröl (HFO)",Treibhausgas_Kennzahlen!G$14,IF(Berechnung!F141="Dieselöl (MDO)",Treibhausgas_Kennzahlen!G$16,Treibhausgas_Kennzahlen!G$15))) -> 
H142: =IF(G142="","",VLOOKUP(INDEX(Seehäfen!$A$3:$A$502, MATCH(Berechnung!D142,Seehäfen!$B$3:$B$502,0))&"_"&INDEX(Seehäfen!$A$3:$A$502, MATCH(Berechnung!E142,Seehäfen!$B$3:$B$502,0)),Entfernung_Seehäfen!$C$2:$E$100001,2,FALSE)) ->  | I142: =IF(G142="","",SUM(IF(A142=Energieverbrauch!$A$2:$A$41,1,0)*IF(Berechnung!B142=Energieverbrauch!$B$2:$B$41,1,0)*IF(Berechnung!F142=Energieverbrauch!$C$2:$C$41,1,0)*Energieverbrauch!$D$2:$D$41)) ->  | K142: =IF(G142="","",J142/IF($C142="Schweröl (HFO)", Treibhausgas_Kennzahlen!B$7,IF(Berechnung!C142="Dieselöl (MDO)",Treibhausgas_Kennzahlen!B$9,Treibhausgas_Kennzahlen!B$8))) ->  | L142: =IF(G142="","",$K142*IF($C142="Schweröl (HFO)",Treibhausgas_Kennzahlen!B$14,IF(Berechnung!C142="Dieselöl (MDO)", Treibhausgas_Kennzahlen!B$16,Treibhausgas_Kennzahlen!B$15))) ->  | M142: =IF(G142="","",$K142*IF($C142="Schweröl (HFO)",Treibhausgas_Kennzahlen!C$14,IF(Berechnung!D142="Dieselöl (MDO)", Treibhausgas_Kennzahlen!C$16,Treibhausgas_Kennzahlen!C$15))) ->  | N142: =IF(G142="","",$J142*IF($C142="Schweröl (HFO)",Treibhausgas_Kennzahlen!D$14,IF(Berechnung!C142="Dieselöl (MDO)",Treibhausgas_Kennzahlen!D$16,Treibhausgas_Kennzahlen!D$15))) ->  | O142: =IF(G142="","",$J142*IF($C142="Schweröl (HFO)",Treibhausgas_Kennzahlen!E$14,IF(Berechnung!D142="Dieselöl (MDO)",Treibhausgas_Kennzahlen!E$16,Treibhausgas_Kennzahlen!E$15))) ->  | P142: =IF(G142="","",$J142*IF($C142="Schweröl (HFO)",Treibhausgas_Kennzahlen!F$14,IF(Berechnung!E142="Dieselöl (MDO)",Treibhausgas_Kennzahlen!F$16,Treibhausgas_Kennzahlen!F$15))) ->  | Q142: =IF(G142="","",$J142*IF($C142="Schweröl (HFO)",Treibhausgas_Kennzahlen!G$14,IF(Berechnung!F142="Dieselöl (MDO)",Treibhausgas_Kennzahlen!G$16,Treibhausgas_Kennzahlen!G$15))) -> 
H143: =IF(G143="","",VLOOKUP(INDEX(Seehäfen!$A$3:$A$502, MATCH(Berechnung!D143,Seehäfen!$B$3:$B$502,0))&"_"&INDEX(Seehäfen!$A$3:$A$502, MATCH(Berechnung!E143,Seehäfen!$B$3:$B$502,0)),Entfernung_Seehäfen!$C$2:$E$10001,2,FALSE)) ->  | I143: =IF(G143="","",SUM(IF(A143=Energieverbrauch!$A$2:$A$41,1,0)*IF(Berechnung!B143=Energieverbrauch!$B$2:$B$41,1,0)*IF(Berechnung!F143=Energieverbrauch!$C$2:$C$41,1,0)*Energieverbrauch!$D$2:$D$41)) ->  | K143: =IF(G143="","",J143/IF($C143="Schweröl (HFO)", Treibhausgas_Kennzahlen!B$7,IF(Berechnung!C143="Dieselöl (MDO)",Treibhausgas_Kennzahlen!B$9,Treibhausgas_Kennzahlen!B$8))) ->  | L143: =IF(G143="","",$K143*IF($C143="Schweröl (HFO)",Treibhausgas_Kennzahlen!B$14,IF(Berechnung!C143="Dieselöl (MDO)", Treibhausgas_Kennzahlen!B$16,Treibhausgas_Kennzahlen!B$15))) ->  | M143: =IF(G143="","",$K143*IF($C143="Schweröl (HFO)",Treibhausgas_Kennzahlen!C$14,IF(Berechnung!D143="Dieselöl (MDO)", Treibhausgas_Kennzahlen!C$16,Treibhausgas_Kennzahlen!C$15))) ->  | N143: =IF(G143="","",$J143*IF($C143="Schweröl (HFO)",Treibhausgas_Kennzahlen!D$14,IF(Berechnung!C143="Dieselöl (MDO)",Treibhausgas_Kennzahlen!D$16,Treibhausgas_Kennzahlen!D$15))) ->  | O143: =IF(G143="","",$J143*IF($C143="Schweröl (HFO)",Treibhausgas_Kennzahlen!E$14,IF(Berechnung!D143="Dieselöl (MDO)",Treibhausgas_Kennzahlen!E$16,Treibhausgas_Kennzahlen!E$15))) ->  | P143: =IF(G143="","",$J143*IF($C143="Schweröl (HFO)",Treibhausgas_Kennzahlen!F$14,IF(Berechnung!E143="Dieselöl (MDO)",Treibhausgas_Kennzahlen!F$16,Treibhausgas_Kennzahlen!F$15))) ->  | Q143: =IF(G143="","",$J143*IF($C143="Schweröl (HFO)",Treibhausgas_Kennzahlen!G$14,IF(Berechnung!F143="Dieselöl (MDO)",Treibhausgas_Kennzahlen!G$16,Treibhausgas_Kennzahlen!G$15))) -> 
H144: =IF(G144="","",VLOOKUP(INDEX(Seehäfen!$A$3:$A$502, MATCH(Berechnung!D144,Seehäfen!$B$3:$B$502,0))&"_"&INDEX(Seehäfen!$A$3:$A$502, MATCH(Berechnung!E144,Seehäfen!$B$3:$B$502,0)),Entfernung_Seehäfen!$C$2:$E$100001,2,FALSE)) ->  | I144: =IF(G144="","",SUM(IF(A144=Energieverbrauch!$A$2:$A$41,1,0)*IF(Berechnung!B144=Energieverbrauch!$B$2:$B$41,1,0)*IF(Berechnung!F144=Energieverbrauch!$C$2:$C$41,1,0)*Energieverbrauch!$D$2:$D$41)) ->  | K144: =IF(G144="","",J144/IF($C144="Schweröl (HFO)", Treibhausgas_Kennzahlen!B$7,IF(Berechnung!C144="Dieselöl (MDO)",Treibhausgas_Kennzahlen!B$9,Treibhausgas_Kennzahlen!B$8))) ->  | L144: =IF(G144="","",$K144*IF($C144="Schweröl (HFO)",Treibhausgas_Kennzahlen!B$14,IF(Berechnung!C144="Dieselöl (MDO)", Treibhausgas_Kennzahlen!B$16,Treibhausgas_Kennzahlen!B$15))) ->  | M144: =IF(G144="","",$K144*IF($C144="Schweröl (HFO)",Treibhausgas_Kennzahlen!C$14,IF(Berechnung!D144="Dieselöl (MDO)", Treibhausgas_Kennzahlen!C$16,Treibhausgas_Kennzahlen!C$15))) ->  | N144: =IF(G144="","",$J144*IF($C144="Schweröl (HFO)",Treibhausgas_Kennzahlen!D$14,IF(Berechnung!C144="Dieselöl (MDO)",Treibhausgas_Kennzahlen!D$16,Treibhausgas_Kennzahlen!D$15))) ->  | O144: =IF(G144="","",$J144*IF($C144="Schweröl (HFO)",Treibhausgas_Kennzahlen!E$14,IF(Berechnung!D144="Dieselöl (MDO)",Treibhausgas_Kennzahlen!E$16,Treibhausgas_Kennzahlen!E$15))) ->  | P144: =IF(G144="","",$J144*IF($C144="Schweröl (HFO)",Treibhausgas_Kennzahlen!F$14,IF(Berechnung!E144="Dieselöl (MDO)",Treibhausgas_Kennzahlen!F$16,Treibhausgas_Kennzahlen!F$15))) ->  | Q144: =IF(G144="","",$J144*IF($C144="Schweröl (HFO)",Treibhausgas_Kennzahlen!G$14,IF(Berechnung!F144="Dieselöl (MDO)",Treibhausgas_Kennzahlen!G$16,Treibhausgas_Kennzahlen!G$15))) -> 
H145: =IF(G145="","",VLOOKUP(INDEX(Seehäfen!$A$3:$A$502, MATCH(Berechnung!D145,Seehäfen!$B$3:$B$502,0))&"_"&INDEX(Seehäfen!$A$3:$A$502, MATCH(Berechnung!E145,Seehäfen!$B$3:$B$502,0)),Entfernung_Seehäfen!$C$2:$E$10001,2,FALSE)) ->  | I145: =IF(G145="","",SUM(IF(A145=Energieverbrauch!$A$2:$A$41,1,0)*IF(Berechnung!B145=Energieverbrauch!$B$2:$B$41,1,0)*IF(Berechnung!F145=Energieverbrauch!$C$2:$C$41,1,0)*Energieverbrauch!$D$2:$D$41)) ->  | K145: =IF(G145="","",J145/IF($C145="Schweröl (HFO)", Treibhausgas_Kennzahlen!B$7,IF(Berechnung!C145="Dieselöl (MDO)",Treibhausgas_Kennzahlen!B$9,Treibhausgas_Kennzahlen!B$8))) ->  | L145: =IF(G145="","",$K145*IF($C145="Schweröl (HFO)",Treibhausgas_Kennzahlen!B$14,IF(Berechnung!C145="Dieselöl (MDO)", Treibhausgas_Kennzahlen!B$16,Treibhausgas_Kennzahlen!B$15))) ->  | M145: =IF(G145="","",$K145*IF($C145="Schweröl (HFO)",Treibhausgas_Kennzahlen!C$14,IF(Berechnung!D145="Dieselöl (MDO)", Treibhausgas_Kennzahlen!C$16,Treibhausgas_Kennzahlen!C$15))) ->  | N145: =IF(G145="","",$J145*IF($C145="Schweröl (HFO)",Treibhausgas_Kennzahlen!D$14,IF(Berechnung!C145="Dieselöl (MDO)",Treibhausgas_Kennzahlen!D$16,Treibhausgas_Kennzahlen!D$15))) ->  | O145: =IF(G145="","",$J145*IF($C145="Schweröl (HFO)",Treibhausgas_Kennzahlen!E$14,IF(Berechnung!D145="Dieselöl (MDO)",Treibhausgas_Kennzahlen!E$16,Treibhausgas_Kennzahlen!E$15))) ->  | P145: =IF(G145="","",$J145*IF($C145="Schweröl (HFO)",Treibhausgas_Kennzahlen!F$14,IF(Berechnung!E145="Dieselöl (MDO)",Treibhausgas_Kennzahlen!F$16,Treibhausgas_Kennzahlen!F$15))) ->  | Q145: =IF(G145="","",$J145*IF($C145="Schweröl (HFO)",Treibhausgas_Kennzahlen!G$14,IF(Berechnung!F145="Dieselöl (MDO)",Treibhausgas_Kennzahlen!G$16,Treibhausgas_Kennzahlen!G$15))) -> 
H146: =IF(G146="","",VLOOKUP(INDEX(Seehäfen!$A$3:$A$502, MATCH(Berechnung!D146,Seehäfen!$B$3:$B$502,0))&"_"&INDEX(Seehäfen!$A$3:$A$502, MATCH(Berechnung!E146,Seehäfen!$B$3:$B$502,0)),Entfernung_Seehäfen!$C$2:$E$100001,2,FALSE)) ->  | I146: =IF(G146="","",SUM(IF(A146=Energieverbrauch!$A$2:$A$41,1,0)*IF(Berechnung!B146=Energieverbrauch!$B$2:$B$41,1,0)*IF(Berechnung!F146=Energieverbrauch!$C$2:$C$41,1,0)*Energieverbrauch!$D$2:$D$41)) ->  | K146: =IF(G146="","",J146/IF($C146="Schweröl (HFO)", Treibhausgas_Kennzahlen!B$7,IF(Berechnung!C146="Dieselöl (MDO)",Treibhausgas_Kennzahlen!B$9,Treibhausgas_Kennzahlen!B$8))) ->  | L146: =IF(G146="","",$K146*IF($C146="Schweröl (HFO)",Treibhausgas_Kennzahlen!B$14,IF(Berechnung!C146="Dieselöl (MDO)", Treibhausgas_Kennzahlen!B$16,Treibhausgas_Kennzahlen!B$15))) ->  | M146: =IF(G146="","",$K146*IF($C146="Schweröl (HFO)",Treibhausgas_Kennzahlen!C$14,IF(Berechnung!D146="Dieselöl (MDO)", Treibhausgas_Kennzahlen!C$16,Treibhausgas_Kennzahlen!C$15))) ->  | N146: =IF(G146="","",$J146*IF($C146="Schweröl (HFO)",Treibhausgas_Kennzahlen!D$14,IF(Berechnung!C146="Dieselöl (MDO)",Treibhausgas_Kennzahlen!D$16,Treibhausgas_Kennzahlen!D$15))) ->  | O146: =IF(G146="","",$J146*IF($C146="Schweröl (HFO)",Treibhausgas_Kennzahlen!E$14,IF(Berechnung!D146="Dieselöl (MDO)",Treibhausgas_Kennzahlen!E$16,Treibhausgas_Kennzahlen!E$15))) ->  | P146: =IF(G146="","",$J146*IF($C146="Schweröl (HFO)",Treibhausgas_Kennzahlen!F$14,IF(Berechnung!E146="Dieselöl (MDO)",Treibhausgas_Kennzahlen!F$16,Treibhausgas_Kennzahlen!F$15))) ->  | Q146: =IF(G146="","",$J146*IF($C146="Schweröl (HFO)",Treibhausgas_Kennzahlen!G$14,IF(Berechnung!F146="Dieselöl (MDO)",Treibhausgas_Kennzahlen!G$16,Treibhausgas_Kennzahlen!G$15))) -> 
H147: =IF(G147="","",VLOOKUP(INDEX(Seehäfen!$A$3:$A$502, MATCH(Berechnung!D147,Seehäfen!$B$3:$B$502,0))&"_"&INDEX(Seehäfen!$A$3:$A$502, MATCH(Berechnung!E147,Seehäfen!$B$3:$B$502,0)),Entfernung_Seehäfen!$C$2:$E$10001,2,FALSE)) ->  | I147: =IF(G147="","",SUM(IF(A147=Energieverbrauch!$A$2:$A$41,1,0)*IF(Berechnung!B147=Energieverbrauch!$B$2:$B$41,1,0)*IF(Berechnung!F147=Energieverbrauch!$C$2:$C$41,1,0)*Energieverbrauch!$D$2:$D$41)) ->  | K147: =IF(G147="","",J147/IF($C147="Schweröl (HFO)", Treibhausgas_Kennzahlen!B$7,IF(Berechnung!C147="Dieselöl (MDO)",Treibhausgas_Kennzahlen!B$9,Treibhausgas_Kennzahlen!B$8))) ->  | L147: =IF(G147="","",$K147*IF($C147="Schweröl (HFO)",Treibhausgas_Kennzahlen!B$14,IF(Berechnung!C147="Dieselöl (MDO)", Treibhausgas_Kennzahlen!B$16,Treibhausgas_Kennzahlen!B$15))) ->  | M147: =IF(G147="","",$K147*IF($C147="Schweröl (HFO)",Treibhausgas_Kennzahlen!C$14,IF(Berechnung!D147="Dieselöl (MDO)", Treibhausgas_Kennzahlen!C$16,Treibhausgas_Kennzahlen!C$15))) ->  | N147: =IF(G147="","",$J147*IF($C147="Schweröl (HFO)",Treibhausgas_Kennzahlen!D$14,IF(Berechnung!C147="Dieselöl (MDO)",Treibhausgas_Kennzahlen!D$16,Treibhausgas_Kennzahlen!D$15))) ->  | O147: =IF(G147="","",$J147*IF($C147="Schweröl (HFO)",Treibhausgas_Kennzahlen!E$14,IF(Berechnung!D147="Dieselöl (MDO)",Treibhausgas_Kennzahlen!E$16,Treibhausgas_Kennzahlen!E$15))) ->  | P147: =IF(G147="","",$J147*IF($C147="Schweröl (HFO)",Treibhausgas_Kennzahlen!F$14,IF(Berechnung!E147="Dieselöl (MDO)",Treibhausgas_Kennzahlen!F$16,Treibhausgas_Kennzahlen!F$15))) ->  | Q147: =IF(G147="","",$J147*IF($C147="Schweröl (HFO)",Treibhausgas_Kennzahlen!G$14,IF(Berechnung!F147="Dieselöl (MDO)",Treibhausgas_Kennzahlen!G$16,Treibhausgas_Kennzahlen!G$15))) -> 
H148: =IF(G148="","",VLOOKUP(INDEX(Seehäfen!$A$3:$A$502, MATCH(Berechnung!D148,Seehäfen!$B$3:$B$502,0))&"_"&INDEX(Seehäfen!$A$3:$A$502, MATCH(Berechnung!E148,Seehäfen!$B$3:$B$502,0)),Entfernung_Seehäfen!$C$2:$E$100001,2,FALSE)) ->  | I148: =IF(G148="","",SUM(IF(A148=Energieverbrauch!$A$2:$A$41,1,0)*IF(Berechnung!B148=Energieverbrauch!$B$2:$B$41,1,0)*IF(Berechnung!F148=Energieverbrauch!$C$2:$C$41,1,0)*Energieverbrauch!$D$2:$D$41)) ->  | K148: =IF(G148="","",J148/IF($C148="Schweröl (HFO)", Treibhausgas_Kennzahlen!B$7,IF(Berechnung!C148="Dieselöl (MDO)",Treibhausgas_Kennzahlen!B$9,Treibhausgas_Kennzahlen!B$8))) ->  | L148: =IF(G148="","",$K148*IF($C148="Schweröl (HFO)",Treibhausgas_Kennzahlen!B$14,IF(Berechnung!C148="Dieselöl (MDO)", Treibhausgas_Kennzahlen!B$16,Treibhausgas_Kennzahlen!B$15))) ->  | M148: =IF(G148="","",$K148*IF($C148="Schweröl (HFO)",Treibhausgas_Kennzahlen!C$14,IF(Berechnung!D148="Dieselöl (MDO)", Treibhausgas_Kennzahlen!C$16,Treibhausgas_Kennzahlen!C$15))) ->  | N148: =IF(G148="","",$J148*IF($C148="Schweröl (HFO)",Treibhausgas_Kennzahlen!D$14,IF(Berechnung!C148="Dieselöl (MDO)",Treibhausgas_Kennzahlen!D$16,Treibhausgas_Kennzahlen!D$15))) ->  | O148: =IF(G148="","",$J148*IF($C148="Schweröl (HFO)",Treibhausgas_Kennzahlen!E$14,IF(Berechnung!D148="Dieselöl (MDO)",Treibhausgas_Kennzahlen!E$16,Treibhausgas_Kennzahlen!E$15))) ->  | P148: =IF(G148="","",$J148*IF($C148="Schweröl (HFO)",Treibhausgas_Kennzahlen!F$14,IF(Berechnung!E148="Dieselöl (MDO)",Treibhausgas_Kennzahlen!F$16,Treibhausgas_Kennzahlen!F$15))) ->  | Q148: =IF(G148="","",$J148*IF($C148="Schweröl (HFO)",Treibhausgas_Kennzahlen!G$14,IF(Berechnung!F148="Dieselöl (MDO)",Treibhausgas_Kennzahlen!G$16,Treibhausgas_Kennzahlen!G$15))) -> 
H149: =IF(G149="","",VLOOKUP(INDEX(Seehäfen!$A$3:$A$502, MATCH(Berechnung!D149,Seehäfen!$B$3:$B$502,0))&"_"&INDEX(Seehäfen!$A$3:$A$502, MATCH(Berechnung!E149,Seehäfen!$B$3:$B$502,0)),Entfernung_Seehäfen!$C$2:$E$10001,2,FALSE)) ->  | I149: =IF(G149="","",SUM(IF(A149=Energieverbrauch!$A$2:$A$41,1,0)*IF(Berechnung!B149=Energieverbrauch!$B$2:$B$41,1,0)*IF(Berechnung!F149=Energieverbrauch!$C$2:$C$41,1,0)*Energieverbrauch!$D$2:$D$41)) ->  | K149: =IF(G149="","",J149/IF($C149="Schweröl (HFO)", Treibhausgas_Kennzahlen!B$7,IF(Berechnung!C149="Dieselöl (MDO)",Treibhausgas_Kennzahlen!B$9,Treibhausgas_Kennzahlen!B$8))) ->  | L149: =IF(G149="","",$K149*IF($C149="Schweröl (HFO)",Treibhausgas_Kennzahlen!B$14,IF(Berechnung!C149="Dieselöl (MDO)", Treibhausgas_Kennzahlen!B$16,Treibhausgas_Kennzahlen!B$15))) ->  | M149: =IF(G149="","",$K149*IF($C149="Schweröl (HFO)",Treibhausgas_Kennzahlen!C$14,IF(Berechnung!D149="Dieselöl (MDO)", Treibhausgas_Kennzahlen!C$16,Treibhausgas_Kennzahlen!C$15))) ->  | N149: =IF(G149="","",$J149*IF($C149="Schweröl (HFO)",Treibhausgas_Kennzahlen!D$14,IF(Berechnung!C149="Dieselöl (MDO)",Treibhausgas_Kennzahlen!D$16,Treibhausgas_Kennzahlen!D$15))) ->  | O149: =IF(G149="","",$J149*IF($C149="Schweröl (HFO)",Treibhausgas_Kennzahlen!E$14,IF(Berechnung!D149="Dieselöl (MDO)",Treibhausgas_Kennzahlen!E$16,Treibhausgas_Kennzahlen!E$15))) ->  | P149: =IF(G149="","",$J149*IF($C149="Schweröl (HFO)",Treibhausgas_Kennzahlen!F$14,IF(Berechnung!E149="Dieselöl (MDO)",Treibhausgas_Kennzahlen!F$16,Treibhausgas_Kennzahlen!F$15))) ->  | Q149: =IF(G149="","",$J149*IF($C149="Schweröl (HFO)",Treibhausgas_Kennzahlen!G$14,IF(Berechnung!F149="Dieselöl (MDO)",Treibhausgas_Kennzahlen!G$16,Treibhausgas_Kennzahlen!G$15))) -> 
H150: =IF(G150="","",VLOOKUP(INDEX(Seehäfen!$A$3:$A$502, MATCH(Berechnung!D150,Seehäfen!$B$3:$B$502,0))&"_"&INDEX(Seehäfen!$A$3:$A$502, MATCH(Berechnung!E150,Seehäfen!$B$3:$B$502,0)),Entfernung_Seehäfen!$C$2:$E$100001,2,FALSE)) ->  | I150: =IF(G150="","",SUM(IF(A150=Energieverbrauch!$A$2:$A$41,1,0)*IF(Berechnung!B150=Energieverbrauch!$B$2:$B$41,1,0)*IF(Berechnung!F150=Energieverbrauch!$C$2:$C$41,1,0)*Energieverbrauch!$D$2:$D$41)) ->  | K150: =IF(G150="","",J150/IF($C150="Schweröl (HFO)", Treibhausgas_Kennzahlen!B$7,IF(Berechnung!C150="Dieselöl (MDO)",Treibhausgas_Kennzahlen!B$9,Treibhausgas_Kennzahlen!B$8))) ->  | L150: =IF(G150="","",$K150*IF($C150="Schweröl (HFO)",Treibhausgas_Kennzahlen!B$14,IF(Berechnung!C150="Dieselöl (MDO)", Treibhausgas_Kennzahlen!B$16,Treibhausgas_Kennzahlen!B$15))) ->  | M150: =IF(G150="","",$K150*IF($C150="Schweröl (HFO)",Treibhausgas_Kennzahlen!C$14,IF(Berechnung!D150="Dieselöl (MDO)", Treibhausgas_Kennzahlen!C$16,Treibhausgas_Kennzahlen!C$15))) ->  | N150: =IF(G150="","",$J150*IF($C150="Schweröl (HFO)",Treibhausgas_Kennzahlen!D$14,IF(Berechnung!C150="Dieselöl (MDO)",Treibhausgas_Kennzahlen!D$16,Treibhausgas_Kennzahlen!D$15))) ->  | O150: =IF(G150="","",$J150*IF($C150="Schweröl (HFO)",Treibhausgas_Kennzahlen!E$14,IF(Berechnung!D150="Dieselöl (MDO)",Treibhausgas_Kennzahlen!E$16,Treibhausgas_Kennzahlen!E$15))) ->  | P150: =IF(G150="","",$J150*IF($C150="Schweröl (HFO)",Treibhausgas_Kennzahlen!F$14,IF(Berechnung!E150="Dieselöl (MDO)",Treibhausgas_Kennzahlen!F$16,Treibhausgas_Kennzahlen!F$15))) ->  | Q150: =IF(G150="","",$J150*IF($C150="Schweröl (HFO)",Treibhausgas_Kennzahlen!G$14,IF(Berechnung!F150="Dieselöl (MDO)",Treibhausgas_Kennzahlen!G$16,Treibhausgas_Kennzahlen!G$15))) -> 
H151: =IF(G151="","",VLOOKUP(INDEX(Seehäfen!$A$3:$A$502, MATCH(Berechnung!D151,Seehäfen!$B$3:$B$502,0))&"_"&INDEX(Seehäfen!$A$3:$A$502, MATCH(Berechnung!E151,Seehäfen!$B$3:$B$502,0)),Entfernung_Seehäfen!$C$2:$E$10001,2,FALSE)) ->  | I151: =IF(G151="","",SUM(IF(A151=Energieverbrauch!$A$2:$A$41,1,0)*IF(Berechnung!B151=Energieverbrauch!$B$2:$B$41,1,0)*IF(Berechnung!F151=Energieverbrauch!$C$2:$C$41,1,0)*Energieverbrauch!$D$2:$D$41)) ->  | K151: =IF(G151="","",J151/IF($C151="Schweröl (HFO)", Treibhausgas_Kennzahlen!B$7,IF(Berechnung!C151="Dieselöl (MDO)",Treibhausgas_Kennzahlen!B$9,Treibhausgas_Kennzahlen!B$8))) ->  | L151: =IF(G151="","",$K151*IF($C151="Schweröl (HFO)",Treibhausgas_Kennzahlen!B$14,IF(Berechnung!C151="Dieselöl (MDO)", Treibhausgas_Kennzahlen!B$16,Treibhausgas_Kennzahlen!B$15))) ->  | M151: =IF(G151="","",$K151*IF($C151="Schweröl (HFO)",Treibhausgas_Kennzahlen!C$14,IF(Berechnung!D151="Dieselöl (MDO)", Treibhausgas_Kennzahlen!C$16,Treibhausgas_Kennzahlen!C$15))) ->  | N151: =IF(G151="","",$J151*IF($C151="Schweröl (HFO)",Treibhausgas_Kennzahlen!D$14,IF(Berechnung!C151="Dieselöl (MDO)",Treibhausgas_Kennzahlen!D$16,Treibhausgas_Kennzahlen!D$15))) ->  | O151: =IF(G151="","",$J151*IF($C151="Schweröl (HFO)",Treibhausgas_Kennzahlen!E$14,IF(Berechnung!D151="Dieselöl (MDO)",Treibhausgas_Kennzahlen!E$16,Treibhausgas_Kennzahlen!E$15))) ->  | P151: =IF(G151="","",$J151*IF($C151="Schweröl (HFO)",Treibhausgas_Kennzahlen!F$14,IF(Berechnung!E151="Dieselöl (MDO)",Treibhausgas_Kennzahlen!F$16,Treibhausgas_Kennzahlen!F$15))) ->  | Q151: =IF(G151="","",$J151*IF($C151="Schweröl (HFO)",Treibhausgas_Kennzahlen!G$14,IF(Berechnung!F151="Dieselöl (MDO)",Treibhausgas_Kennzahlen!G$16,Treibhausgas_Kennzahlen!G$15))) -> 
H152: =IF(G152="","",VLOOKUP(INDEX(Seehäfen!$A$3:$A$502, MATCH(Berechnung!D152,Seehäfen!$B$3:$B$502,0))&"_"&INDEX(Seehäfen!$A$3:$A$502, MATCH(Berechnung!E152,Seehäfen!$B$3:$B$502,0)),Entfernung_Seehäfen!$C$2:$E$100001,2,FALSE)) ->  | I152: =IF(G152="","",SUM(IF(A152=Energieverbrauch!$A$2:$A$41,1,0)*IF(Berechnung!B152=Energieverbrauch!$B$2:$B$41,1,0)*IF(Berechnung!F152=Energieverbrauch!$C$2:$C$41,1,0)*Energieverbrauch!$D$2:$D$41)) ->  | K152: =IF(G152="","",J152/IF($C152="Schweröl (HFO)", Treibhausgas_Kennzahlen!B$7,IF(Berechnung!C152="Dieselöl (MDO)",Treibhausgas_Kennzahlen!B$9,Treibhausgas_Kennzahlen!B$8))) ->  | L152: =IF(G152="","",$K152*IF($C152="Schweröl (HFO)",Treibhausgas_Kennzahlen!B$14,IF(Berechnung!C152="Dieselöl (MDO)", Treibhausgas_Kennzahlen!B$16,Treibhausgas_Kennzahlen!B$15))) ->  | M152: =IF(G152="","",$K152*IF($C152="Schweröl (HFO)",Treibhausgas_Kennzahlen!C$14,IF(Berechnung!D152="Dieselöl (MDO)", Treibhausgas_Kennzahlen!C$16,Treibhausgas_Kennzahlen!C$15))) ->  | N152: =IF(G152="","",$J152*IF($C152="Schweröl (HFO)",Treibhausgas_Kennzahlen!D$14,IF(Berechnung!C152="Dieselöl (MDO)",Treibhausgas_Kennzahlen!D$16,Treibhausgas_Kennzahlen!D$15))) ->  | O152: =IF(G152="","",$J152*IF($C152="Schweröl (HFO)",Treibhausgas_Kennzahlen!E$14,IF(Berechnung!D152="Dieselöl (MDO)",Treibhausgas_Kennzahlen!E$16,Treibhausgas_Kennzahlen!E$15))) ->  | P152: =IF(G152="","",$J152*IF($C152="Schweröl (HFO)",Treibhausgas_Kennzahlen!F$14,IF(Berechnung!E152="Dieselöl (MDO)",Treibhausgas_Kennzahlen!F$16,Treibhausgas_Kennzahlen!F$15))) ->  | Q152: =IF(G152="","",$J152*IF($C152="Schweröl (HFO)",Treibhausgas_Kennzahlen!G$14,IF(Berechnung!F152="Dieselöl (MDO)",Treibhausgas_Kennzahlen!G$16,Treibhausgas_Kennzahlen!G$15))) -> 
H153: =IF(G153="","",VLOOKUP(INDEX(Seehäfen!$A$3:$A$502, MATCH(Berechnung!D153,Seehäfen!$B$3:$B$502,0))&"_"&INDEX(Seehäfen!$A$3:$A$502, MATCH(Berechnung!E153,Seehäfen!$B$3:$B$502,0)),Entfernung_Seehäfen!$C$2:$E$10001,2,FALSE)) ->  | I153: =IF(G153="","",SUM(IF(A153=Energieverbrauch!$A$2:$A$41,1,0)*IF(Berechnung!B153=Energieverbrauch!$B$2:$B$41,1,0)*IF(Berechnung!F153=Energieverbrauch!$C$2:$C$41,1,0)*Energieverbrauch!$D$2:$D$41)) ->  | K153: =IF(G153="","",J153/IF($C153="Schweröl (HFO)", Treibhausgas_Kennzahlen!B$7,IF(Berechnung!C153="Dieselöl (MDO)",Treibhausgas_Kennzahlen!B$9,Treibhausgas_Kennzahlen!B$8))) ->  | L153: =IF(G153="","",$K153*IF($C153="Schweröl (HFO)",Treibhausgas_Kennzahlen!B$14,IF(Berechnung!C153="Dieselöl (MDO)", Treibhausgas_Kennzahlen!B$16,Treibhausgas_Kennzahlen!B$15))) ->  | M153: =IF(G153="","",$K153*IF($C153="Schweröl (HFO)",Treibhausgas_Kennzahlen!C$14,IF(Berechnung!D153="Dieselöl (MDO)", Treibhausgas_Kennzahlen!C$16,Treibhausgas_Kennzahlen!C$15))) ->  | N153: =IF(G153="","",$J153*IF($C153="Schweröl (HFO)",Treibhausgas_Kennzahlen!D$14,IF(Berechnung!C153="Dieselöl (MDO)",Treibhausgas_Kennzahlen!D$16,Treibhausgas_Kennzahlen!D$15))) ->  | O153: =IF(G153="","",$J153*IF($C153="Schweröl (HFO)",Treibhausgas_Kennzahlen!E$14,IF(Berechnung!D153="Dieselöl (MDO)",Treibhausgas_Kennzahlen!E$16,Treibhausgas_Kennzahlen!E$15))) ->  | P153: =IF(G153="","",$J153*IF($C153="Schweröl (HFO)",Treibhausgas_Kennzahlen!F$14,IF(Berechnung!E153="Dieselöl (MDO)",Treibhausgas_Kennzahlen!F$16,Treibhausgas_Kennzahlen!F$15))) ->  | Q153: =IF(G153="","",$J153*IF($C153="Schweröl (HFO)",Treibhausgas_Kennzahlen!G$14,IF(Berechnung!F153="Dieselöl (MDO)",Treibhausgas_Kennzahlen!G$16,Treibhausgas_Kennzahlen!G$15))) -> 
H154: =IF(G154="","",VLOOKUP(INDEX(Seehäfen!$A$3:$A$502, MATCH(Berechnung!D154,Seehäfen!$B$3:$B$502,0))&"_"&INDEX(Seehäfen!$A$3:$A$502, MATCH(Berechnung!E154,Seehäfen!$B$3:$B$502,0)),Entfernung_Seehäfen!$C$2:$E$100001,2,FALSE)) ->  | I154: =IF(G154="","",SUM(IF(A154=Energieverbrauch!$A$2:$A$41,1,0)*IF(Berechnung!B154=Energieverbrauch!$B$2:$B$41,1,0)*IF(Berechnung!F154=Energieverbrauch!$C$2:$C$41,1,0)*Energieverbrauch!$D$2:$D$41)) ->  | K154: =IF(G154="","",J154/IF($C154="Schweröl (HFO)", Treibhausgas_Kennzahlen!B$7,IF(Berechnung!C154="Dieselöl (MDO)",Treibhausgas_Kennzahlen!B$9,Treibhausgas_Kennzahlen!B$8))) ->  | L154: =IF(G154="","",$K154*IF($C154="Schweröl (HFO)",Treibhausgas_Kennzahlen!B$14,IF(Berechnung!C154="Dieselöl (MDO)", Treibhausgas_Kennzahlen!B$16,Treibhausgas_Kennzahlen!B$15))) ->  | M154: =IF(G154="","",$K154*IF($C154="Schweröl (HFO)",Treibhausgas_Kennzahlen!C$14,IF(Berechnung!D154="Dieselöl (MDO)", Treibhausgas_Kennzahlen!C$16,Treibhausgas_Kennzahlen!C$15))) ->  | N154: =IF(G154="","",$J154*IF($C154="Schweröl (HFO)",Treibhausgas_Kennzahlen!D$14,IF(Berechnung!C154="Dieselöl (MDO)",Treibhausgas_Kennzahlen!D$16,Treibhausgas_Kennzahlen!D$15))) ->  | O154: =IF(G154="","",$J154*IF($C154="Schweröl (HFO)",Treibhausgas_Kennzahlen!E$14,IF(Berechnung!D154="Dieselöl (MDO)",Treibhausgas_Kennzahlen!E$16,Treibhausgas_Kennzahlen!E$15))) ->  | P154: =IF(G154="","",$J154*IF($C154="Schweröl (HFO)",Treibhausgas_Kennzahlen!F$14,IF(Berechnung!E154="Dieselöl (MDO)",Treibhausgas_Kennzahlen!F$16,Treibhausgas_Kennzahlen!F$15))) ->  | Q154: =IF(G154="","",$J154*IF($C154="Schweröl (HFO)",Treibhausgas_Kennzahlen!G$14,IF(Berechnung!F154="Dieselöl (MDO)",Treibhausgas_Kennzahlen!G$16,Treibhausgas_Kennzahlen!G$15))) -> 
H155: =IF(G155="","",VLOOKUP(INDEX(Seehäfen!$A$3:$A$502, MATCH(Berechnung!D155,Seehäfen!$B$3:$B$502,0))&"_"&INDEX(Seehäfen!$A$3:$A$502, MATCH(Berechnung!E155,Seehäfen!$B$3:$B$502,0)),Entfernung_Seehäfen!$C$2:$E$10001,2,FALSE)) ->  | I155: =IF(G155="","",SUM(IF(A155=Energieverbrauch!$A$2:$A$41,1,0)*IF(Berechnung!B155=Energieverbrauch!$B$2:$B$41,1,0)*IF(Berechnung!F155=Energieverbrauch!$C$2:$C$41,1,0)*Energieverbrauch!$D$2:$D$41)) ->  | K155: =IF(G155="","",J155/IF($C155="Schweröl (HFO)", Treibhausgas_Kennzahlen!B$7,IF(Berechnung!C155="Dieselöl (MDO)",Treibhausgas_Kennzahlen!B$9,Treibhausgas_Kennzahlen!B$8))) ->  | L155: =IF(G155="","",$K155*IF($C155="Schweröl (HFO)",Treibhausgas_Kennzahlen!B$14,IF(Berechnung!C155="Dieselöl (MDO)", Treibhausgas_Kennzahlen!B$16,Treibhausgas_Kennzahlen!B$15))) ->  | M155: =IF(G155="","",$K155*IF($C155="Schweröl (HFO)",Treibhausgas_Kennzahlen!C$14,IF(Berechnung!D155="Dieselöl (MDO)", Treibhausgas_Kennzahlen!C$16,Treibhausgas_Kennzahlen!C$15))) ->  | N155: =IF(G155="","",$J155*IF($C155="Schweröl (HFO)",Treibhausgas_Kennzahlen!D$14,IF(Berechnung!C155="Dieselöl (MDO)",Treibhausgas_Kennzahlen!D$16,Treibhausgas_Kennzahlen!D$15))) ->  | O155: =IF(G155="","",$J155*IF($C155="Schweröl (HFO)",Treibhausgas_Kennzahlen!E$14,IF(Berechnung!D155="Dieselöl (MDO)",Treibhausgas_Kennzahlen!E$16,Treibhausgas_Kennzahlen!E$15))) ->  | P155: =IF(G155="","",$J155*IF($C155="Schweröl (HFO)",Treibhausgas_Kennzahlen!F$14,IF(Berechnung!E155="Dieselöl (MDO)",Treibhausgas_Kennzahlen!F$16,Treibhausgas_Kennzahlen!F$15))) ->  | Q155: =IF(G155="","",$J155*IF($C155="Schweröl (HFO)",Treibhausgas_Kennzahlen!G$14,IF(Berechnung!F155="Dieselöl (MDO)",Treibhausgas_Kennzahlen!G$16,Treibhausgas_Kennzahlen!G$15))) -> 
H156: =IF(G156="","",VLOOKUP(INDEX(Seehäfen!$A$3:$A$502, MATCH(Berechnung!D156,Seehäfen!$B$3:$B$502,0))&"_"&INDEX(Seehäfen!$A$3:$A$502, MATCH(Berechnung!E156,Seehäfen!$B$3:$B$502,0)),Entfernung_Seehäfen!$C$2:$E$100001,2,FALSE)) ->  | I156: =IF(G156="","",SUM(IF(A156=Energieverbrauch!$A$2:$A$41,1,0)*IF(Berechnung!B156=Energieverbrauch!$B$2:$B$41,1,0)*IF(Berechnung!F156=Energieverbrauch!$C$2:$C$41,1,0)*Energieverbrauch!$D$2:$D$41)) ->  | K156: =IF(G156="","",J156/IF($C156="Schweröl (HFO)", Treibhausgas_Kennzahlen!B$7,IF(Berechnung!C156="Dieselöl (MDO)",Treibhausgas_Kennzahlen!B$9,Treibhausgas_Kennzahlen!B$8))) ->  | L156: =IF(G156="","",$K156*IF($C156="Schweröl (HFO)",Treibhausgas_Kennzahlen!B$14,IF(Berechnung!C156="Dieselöl (MDO)", Treibhausgas_Kennzahlen!B$16,Treibhausgas_Kennzahlen!B$15))) ->  | M156: =IF(G156="","",$K156*IF($C156="Schweröl (HFO)",Treibhausgas_Kennzahlen!C$14,IF(Berechnung!D156="Dieselöl (MDO)", Treibhausgas_Kennzahlen!C$16,Treibhausgas_Kennzahlen!C$15))) ->  | N156: =IF(G156="","",$J156*IF($C156="Schweröl (HFO)",Treibhausgas_Kennzahlen!D$14,IF(Berechnung!C156="Dieselöl (MDO)",Treibhausgas_Kennzahlen!D$16,Treibhausgas_Kennzahlen!D$15))) ->  | O156: =IF(G156="","",$J156*IF($C156="Schweröl (HFO)",Treibhausgas_Kennzahlen!E$14,IF(Berechnung!D156="Dieselöl (MDO)",Treibhausgas_Kennzahlen!E$16,Treibhausgas_Kennzahlen!E$15))) ->  | P156: =IF(G156="","",$J156*IF($C156="Schweröl (HFO)",Treibhausgas_Kennzahlen!F$14,IF(Berechnung!E156="Dieselöl (MDO)",Treibhausgas_Kennzahlen!F$16,Treibhausgas_Kennzahlen!F$15))) ->  | Q156: =IF(G156="","",$J156*IF($C156="Schweröl (HFO)",Treibhausgas_Kennzahlen!G$14,IF(Berechnung!F156="Dieselöl (MDO)",Treibhausgas_Kennzahlen!G$16,Treibhausgas_Kennzahlen!G$15))) -> 
H157: =IF(G157="","",VLOOKUP(INDEX(Seehäfen!$A$3:$A$502, MATCH(Berechnung!D157,Seehäfen!$B$3:$B$502,0))&"_"&INDEX(Seehäfen!$A$3:$A$502, MATCH(Berechnung!E157,Seehäfen!$B$3:$B$502,0)),Entfernung_Seehäfen!$C$2:$E$10001,2,FALSE)) ->  | I157: =IF(G157="","",SUM(IF(A157=Energieverbrauch!$A$2:$A$41,1,0)*IF(Berechnung!B157=Energieverbrauch!$B$2:$B$41,1,0)*IF(Berechnung!F157=Energieverbrauch!$C$2:$C$41,1,0)*Energieverbrauch!$D$2:$D$41)) ->  | K157: =IF(G157="","",J157/IF($C157="Schweröl (HFO)", Treibhausgas_Kennzahlen!B$7,IF(Berechnung!C157="Dieselöl (MDO)",Treibhausgas_Kennzahlen!B$9,Treibhausgas_Kennzahlen!B$8))) ->  | L157: =IF(G157="","",$K157*IF($C157="Schweröl (HFO)",Treibhausgas_Kennzahlen!B$14,IF(Berechnung!C157="Dieselöl (MDO)", Treibhausgas_Kennzahlen!B$16,Treibhausgas_Kennzahlen!B$15))) ->  | M157: =IF(G157="","",$K157*IF($C157="Schweröl (HFO)",Treibhausgas_Kennzahlen!C$14,IF(Berechnung!D157="Dieselöl (MDO)", Treibhausgas_Kennzahlen!C$16,Treibhausgas_Kennzahlen!C$15))) ->  | N157: =IF(G157="","",$J157*IF($C157="Schweröl (HFO)",Treibhausgas_Kennzahlen!D$14,IF(Berechnung!C157="Dieselöl (MDO)",Treibhausgas_Kennzahlen!D$16,Treibhausgas_Kennzahlen!D$15))) ->  | O157: =IF(G157="","",$J157*IF($C157="Schweröl (HFO)",Treibhausgas_Kennzahlen!E$14,IF(Berechnung!D157="Dieselöl (MDO)",Treibhausgas_Kennzahlen!E$16,Treibhausgas_Kennzahlen!E$15))) ->  | P157: =IF(G157="","",$J157*IF($C157="Schweröl (HFO)",Treibhausgas_Kennzahlen!F$14,IF(Berechnung!E157="Dieselöl (MDO)",Treibhausgas_Kennzahlen!F$16,Treibhausgas_Kennzahlen!F$15))) ->  | Q157: =IF(G157="","",$J157*IF($C157="Schweröl (HFO)",Treibhausgas_Kennzahlen!G$14,IF(Berechnung!F157="Dieselöl (MDO)",Treibhausgas_Kennzahlen!G$16,Treibhausgas_Kennzahlen!G$15))) -> 
H158: =IF(G158="","",VLOOKUP(INDEX(Seehäfen!$A$3:$A$502, MATCH(Berechnung!D158,Seehäfen!$B$3:$B$502,0))&"_"&INDEX(Seehäfen!$A$3:$A$502, MATCH(Berechnung!E158,Seehäfen!$B$3:$B$502,0)),Entfernung_Seehäfen!$C$2:$E$100001,2,FALSE)) ->  | I158: =IF(G158="","",SUM(IF(A158=Energieverbrauch!$A$2:$A$41,1,0)*IF(Berechnung!B158=Energieverbrauch!$B$2:$B$41,1,0)*IF(Berechnung!F158=Energieverbrauch!$C$2:$C$41,1,0)*Energieverbrauch!$D$2:$D$41)) ->  | K158: =IF(G158="","",J158/IF($C158="Schweröl (HFO)", Treibhausgas_Kennzahlen!B$7,IF(Berechnung!C158="Dieselöl (MDO)",Treibhausgas_Kennzahlen!B$9,Treibhausgas_Kennzahlen!B$8))) ->  | L158: =IF(G158="","",$K158*IF($C158="Schweröl (HFO)",Treibhausgas_Kennzahlen!B$14,IF(Berechnung!C158="Dieselöl (MDO)", Treibhausgas_Kennzahlen!B$16,Treibhausgas_Kennzahlen!B$15))) ->  | M158: =IF(G158="","",$K158*IF($C158="Schweröl (HFO)",Treibhausgas_Kennzahlen!C$14,IF(Berechnung!D158="Dieselöl (MDO)", Treibhausgas_Kennzahlen!C$16,Treibhausgas_Kennzahlen!C$15))) ->  | N158: =IF(G158="","",$J158*IF($C158="Schweröl (HFO)",Treibhausgas_Kennzahlen!D$14,IF(Berechnung!C158="Dieselöl (MDO)",Treibhausgas_Kennzahlen!D$16,Treibhausgas_Kennzahlen!D$15))) ->  | O158: =IF(G158="","",$J158*IF($C158="Schweröl (HFO)",Treibhausgas_Kennzahlen!E$14,IF(Berechnung!D158="Dieselöl (MDO)",Treibhausgas_Kennzahlen!E$16,Treibhausgas_Kennzahlen!E$15))) ->  | P158: =IF(G158="","",$J158*IF($C158="Schweröl (HFO)",Treibhausgas_Kennzahlen!F$14,IF(Berechnung!E158="Dieselöl (MDO)",Treibhausgas_Kennzahlen!F$16,Treibhausgas_Kennzahlen!F$15))) ->  | Q158: =IF(G158="","",$J158*IF($C158="Schweröl (HFO)",Treibhausgas_Kennzahlen!G$14,IF(Berechnung!F158="Dieselöl (MDO)",Treibhausgas_Kennzahlen!G$16,Treibhausgas_Kennzahlen!G$15))) -> 
H159: =IF(G159="","",VLOOKUP(INDEX(Seehäfen!$A$3:$A$502, MATCH(Berechnung!D159,Seehäfen!$B$3:$B$502,0))&"_"&INDEX(Seehäfen!$A$3:$A$502, MATCH(Berechnung!E159,Seehäfen!$B$3:$B$502,0)),Entfernung_Seehäfen!$C$2:$E$10001,2,FALSE)) ->  | I159: =IF(G159="","",SUM(IF(A159=Energieverbrauch!$A$2:$A$41,1,0)*IF(Berechnung!B159=Energieverbrauch!$B$2:$B$41,1,0)*IF(Berechnung!F159=Energieverbrauch!$C$2:$C$41,1,0)*Energieverbrauch!$D$2:$D$41)) ->  | K159: =IF(G159="","",J159/IF($C159="Schweröl (HFO)", Treibhausgas_Kennzahlen!B$7,IF(Berechnung!C159="Dieselöl (MDO)",Treibhausgas_Kennzahlen!B$9,Treibhausgas_Kennzahlen!B$8))) ->  | L159: =IF(G159="","",$K159*IF($C159="Schweröl (HFO)",Treibhausgas_Kennzahlen!B$14,IF(Berechnung!C159="Dieselöl (MDO)", Treibhausgas_Kennzahlen!B$16,Treibhausgas_Kennzahlen!B$15))) ->  | M159: =IF(G159="","",$K159*IF($C159="Schweröl (HFO)",Treibhausgas_Kennzahlen!C$14,IF(Berechnung!D159="Dieselöl (MDO)", Treibhausgas_Kennzahlen!C$16,Treibhausgas_Kennzahlen!C$15))) ->  | N159: =IF(G159="","",$J159*IF($C159="Schweröl (HFO)",Treibhausgas_Kennzahlen!D$14,IF(Berechnung!C159="Dieselöl (MDO)",Treibhausgas_Kennzahlen!D$16,Treibhausgas_Kennzahlen!D$15))) ->  | O159: =IF(G159="","",$J159*IF($C159="Schweröl (HFO)",Treibhausgas_Kennzahlen!E$14,IF(Berechnung!D159="Dieselöl (MDO)",Treibhausgas_Kennzahlen!E$16,Treibhausgas_Kennzahlen!E$15))) ->  | P159: =IF(G159="","",$J159*IF($C159="Schweröl (HFO)",Treibhausgas_Kennzahlen!F$14,IF(Berechnung!E159="Dieselöl (MDO)",Treibhausgas_Kennzahlen!F$16,Treibhausgas_Kennzahlen!F$15))) ->  | Q159: =IF(G159="","",$J159*IF($C159="Schweröl (HFO)",Treibhausgas_Kennzahlen!G$14,IF(Berechnung!F159="Dieselöl (MDO)",Treibhausgas_Kennzahlen!G$16,Treibhausgas_Kennzahlen!G$15))) -> 
H160: =IF(G160="","",VLOOKUP(INDEX(Seehäfen!$A$3:$A$502, MATCH(Berechnung!D160,Seehäfen!$B$3:$B$502,0))&"_"&INDEX(Seehäfen!$A$3:$A$502, MATCH(Berechnung!E160,Seehäfen!$B$3:$B$502,0)),Entfernung_Seehäfen!$C$2:$E$100001,2,FALSE)) ->  | I160: =IF(G160="","",SUM(IF(A160=Energieverbrauch!$A$2:$A$41,1,0)*IF(Berechnung!B160=Energieverbrauch!$B$2:$B$41,1,0)*IF(Berechnung!F160=Energieverbrauch!$C$2:$C$41,1,0)*Energieverbrauch!$D$2:$D$41)) ->  | K160: =IF(G160="","",J160/IF($C160="Schweröl (HFO)", Treibhausgas_Kennzahlen!B$7,IF(Berechnung!C160="Dieselöl (MDO)",Treibhausgas_Kennzahlen!B$9,Treibhausgas_Kennzahlen!B$8))) ->  | L160: =IF(G160="","",$K160*IF($C160="Schweröl (HFO)",Treibhausgas_Kennzahlen!B$14,IF(Berechnung!C160="Dieselöl (MDO)", Treibhausgas_Kennzahlen!B$16,Treibhausgas_Kennzahlen!B$15))) ->  | M160: =IF(G160="","",$K160*IF($C160="Schweröl (HFO)",Treibhausgas_Kennzahlen!C$14,IF(Berechnung!D160="Dieselöl (MDO)", Treibhausgas_Kennzahlen!C$16,Treibhausgas_Kennzahlen!C$15))) ->  | N160: =IF(G160="","",$J160*IF($C160="Schweröl (HFO)",Treibhausgas_Kennzahlen!D$14,IF(Berechnung!C160="Dieselöl (MDO)",Treibhausgas_Kennzahlen!D$16,Treibhausgas_Kennzahlen!D$15))) ->  | O160: =IF(G160="","",$J160*IF($C160="Schweröl (HFO)",Treibhausgas_Kennzahlen!E$14,IF(Berechnung!D160="Dieselöl (MDO)",Treibhausgas_Kennzahlen!E$16,Treibhausgas_Kennzahlen!E$15))) ->  | P160: =IF(G160="","",$J160*IF($C160="Schweröl (HFO)",Treibhausgas_Kennzahlen!F$14,IF(Berechnung!E160="Dieselöl (MDO)",Treibhausgas_Kennzahlen!F$16,Treibhausgas_Kennzahlen!F$15))) ->  | Q160: =IF(G160="","",$J160*IF($C160="Schweröl (HFO)",Treibhausgas_Kennzahlen!G$14,IF(Berechnung!F160="Dieselöl (MDO)",Treibhausgas_Kennzahlen!G$16,Treibhausgas_Kennzahlen!G$15))) -> 
H161: =IF(G161="","",VLOOKUP(INDEX(Seehäfen!$A$3:$A$502, MATCH(Berechnung!D161,Seehäfen!$B$3:$B$502,0))&"_"&INDEX(Seehäfen!$A$3:$A$502, MATCH(Berechnung!E161,Seehäfen!$B$3:$B$502,0)),Entfernung_Seehäfen!$C$2:$E$10001,2,FALSE)) ->  | I161: =IF(G161="","",SUM(IF(A161=Energieverbrauch!$A$2:$A$41,1,0)*IF(Berechnung!B161=Energieverbrauch!$B$2:$B$41,1,0)*IF(Berechnung!F161=Energieverbrauch!$C$2:$C$41,1,0)*Energieverbrauch!$D$2:$D$41)) ->  | K161: =IF(G161="","",J161/IF($C161="Schweröl (HFO)", Treibhausgas_Kennzahlen!B$7,IF(Berechnung!C161="Dieselöl (MDO)",Treibhausgas_Kennzahlen!B$9,Treibhausgas_Kennzahlen!B$8))) ->  | L161: =IF(G161="","",$K161*IF($C161="Schweröl (HFO)",Treibhausgas_Kennzahlen!B$14,IF(Berechnung!C161="Dieselöl (MDO)", Treibhausgas_Kennzahlen!B$16,Treibhausgas_Kennzahlen!B$15))) ->  | M161: =IF(G161="","",$K161*IF($C161="Schweröl (HFO)",Treibhausgas_Kennzahlen!C$14,IF(Berechnung!D161="Dieselöl (MDO)", Treibhausgas_Kennzahlen!C$16,Treibhausgas_Kennzahlen!C$15))) ->  | N161: =IF(G161="","",$J161*IF($C161="Schweröl (HFO)",Treibhausgas_Kennzahlen!D$14,IF(Berechnung!C161="Dieselöl (MDO)",Treibhausgas_Kennzahlen!D$16,Treibhausgas_Kennzahlen!D$15))) ->  | O161: =IF(G161="","",$J161*IF($C161="Schweröl (HFO)",Treibhausgas_Kennzahlen!E$14,IF(Berechnung!D161="Dieselöl (MDO)",Treibhausgas_Kennzahlen!E$16,Treibhausgas_Kennzahlen!E$15))) ->  | P161: =IF(G161="","",$J161*IF($C161="Schweröl (HFO)",Treibhausgas_Kennzahlen!F$14,IF(Berechnung!E161="Dieselöl (MDO)",Treibhausgas_Kennzahlen!F$16,Treibhausgas_Kennzahlen!F$15))) ->  | Q161: =IF(G161="","",$J161*IF($C161="Schweröl (HFO)",Treibhausgas_Kennzahlen!G$14,IF(Berechnung!F161="Dieselöl (MDO)",Treibhausgas_Kennzahlen!G$16,Treibhausgas_Kennzahlen!G$15))) -> 
H162: =IF(G162="","",VLOOKUP(INDEX(Seehäfen!$A$3:$A$502, MATCH(Berechnung!D162,Seehäfen!$B$3:$B$502,0))&"_"&INDEX(Seehäfen!$A$3:$A$502, MATCH(Berechnung!E162,Seehäfen!$B$3:$B$502,0)),Entfernung_Seehäfen!$C$2:$E$100001,2,FALSE)) ->  | I162: =IF(G162="","",SUM(IF(A162=Energieverbrauch!$A$2:$A$41,1,0)*IF(Berechnung!B162=Energieverbrauch!$B$2:$B$41,1,0)*IF(Berechnung!F162=Energieverbrauch!$C$2:$C$41,1,0)*Energieverbrauch!$D$2:$D$41)) ->  | K162: =IF(G162="","",J162/IF($C162="Schweröl (HFO)", Treibhausgas_Kennzahlen!B$7,IF(Berechnung!C162="Dieselöl (MDO)",Treibhausgas_Kennzahlen!B$9,Treibhausgas_Kennzahlen!B$8))) ->  | L162: =IF(G162="","",$K162*IF($C162="Schweröl (HFO)",Treibhausgas_Kennzahlen!B$14,IF(Berechnung!C162="Dieselöl (MDO)", Treibhausgas_Kennzahlen!B$16,Treibhausgas_Kennzahlen!B$15))) ->  | M162: =IF(G162="","",$K162*IF($C162="Schweröl (HFO)",Treibhausgas_Kennzahlen!C$14,IF(Berechnung!D162="Dieselöl (MDO)", Treibhausgas_Kennzahlen!C$16,Treibhausgas_Kennzahlen!C$15))) ->  | N162: =IF(G162="","",$J162*IF($C162="Schweröl (HFO)",Treibhausgas_Kennzahlen!D$14,IF(Berechnung!C162="Dieselöl (MDO)",Treibhausgas_Kennzahlen!D$16,Treibhausgas_Kennzahlen!D$15))) ->  | O162: =IF(G162="","",$J162*IF($C162="Schweröl (HFO)",Treibhausgas_Kennzahlen!E$14,IF(Berechnung!D162="Dieselöl (MDO)",Treibhausgas_Kennzahlen!E$16,Treibhausgas_Kennzahlen!E$15))) ->  | P162: =IF(G162="","",$J162*IF($C162="Schweröl (HFO)",Treibhausgas_Kennzahlen!F$14,IF(Berechnung!E162="Dieselöl (MDO)",Treibhausgas_Kennzahlen!F$16,Treibhausgas_Kennzahlen!F$15))) ->  | Q162: =IF(G162="","",$J162*IF($C162="Schweröl (HFO)",Treibhausgas_Kennzahlen!G$14,IF(Berechnung!F162="Dieselöl (MDO)",Treibhausgas_Kennzahlen!G$16,Treibhausgas_Kennzahlen!G$15))) -> 
H163: =IF(G163="","",VLOOKUP(INDEX(Seehäfen!$A$3:$A$502, MATCH(Berechnung!D163,Seehäfen!$B$3:$B$502,0))&"_"&INDEX(Seehäfen!$A$3:$A$502, MATCH(Berechnung!E163,Seehäfen!$B$3:$B$502,0)),Entfernung_Seehäfen!$C$2:$E$10001,2,FALSE)) ->  | I163: =IF(G163="","",SUM(IF(A163=Energieverbrauch!$A$2:$A$41,1,0)*IF(Berechnung!B163=Energieverbrauch!$B$2:$B$41,1,0)*IF(Berechnung!F163=Energieverbrauch!$C$2:$C$41,1,0)*Energieverbrauch!$D$2:$D$41)) ->  | K163: =IF(G163="","",J163/IF($C163="Schweröl (HFO)", Treibhausgas_Kennzahlen!B$7,IF(Berechnung!C163="Dieselöl (MDO)",Treibhausgas_Kennzahlen!B$9,Treibhausgas_Kennzahlen!B$8))) ->  | L163: =IF(G163="","",$K163*IF($C163="Schweröl (HFO)",Treibhausgas_Kennzahlen!B$14,IF(Berechnung!C163="Dieselöl (MDO)", Treibhausgas_Kennzahlen!B$16,Treibhausgas_Kennzahlen!B$15))) ->  | M163: =IF(G163="","",$K163*IF($C163="Schweröl (HFO)",Treibhausgas_Kennzahlen!C$14,IF(Berechnung!D163="Dieselöl (MDO)", Treibhausgas_Kennzahlen!C$16,Treibhausgas_Kennzahlen!C$15))) ->  | N163: =IF(G163="","",$J163*IF($C163="Schweröl (HFO)",Treibhausgas_Kennzahlen!D$14,IF(Berechnung!C163="Dieselöl (MDO)",Treibhausgas_Kennzahlen!D$16,Treibhausgas_Kennzahlen!D$15))) ->  | O163: =IF(G163="","",$J163*IF($C163="Schweröl (HFO)",Treibhausgas_Kennzahlen!E$14,IF(Berechnung!D163="Dieselöl (MDO)",Treibhausgas_Kennzahlen!E$16,Treibhausgas_Kennzahlen!E$15))) ->  | P163: =IF(G163="","",$J163*IF($C163="Schweröl (HFO)",Treibhausgas_Kennzahlen!F$14,IF(Berechnung!E163="Dieselöl (MDO)",Treibhausgas_Kennzahlen!F$16,Treibhausgas_Kennzahlen!F$15))) ->  | Q163: =IF(G163="","",$J163*IF($C163="Schweröl (HFO)",Treibhausgas_Kennzahlen!G$14,IF(Berechnung!F163="Dieselöl (MDO)",Treibhausgas_Kennzahlen!G$16,Treibhausgas_Kennzahlen!G$15))) -> 
H164: =IF(G164="","",VLOOKUP(INDEX(Seehäfen!$A$3:$A$502, MATCH(Berechnung!D164,Seehäfen!$B$3:$B$502,0))&"_"&INDEX(Seehäfen!$A$3:$A$502, MATCH(Berechnung!E164,Seehäfen!$B$3:$B$502,0)),Entfernung_Seehäfen!$C$2:$E$100001,2,FALSE)) ->  | I164: =IF(G164="","",SUM(IF(A164=Energieverbrauch!$A$2:$A$41,1,0)*IF(Berechnung!B164=Energieverbrauch!$B$2:$B$41,1,0)*IF(Berechnung!F164=Energieverbrauch!$C$2:$C$41,1,0)*Energieverbrauch!$D$2:$D$41)) ->  | K164: =IF(G164="","",J164/IF($C164="Schweröl (HFO)", Treibhausgas_Kennzahlen!B$7,IF(Berechnung!C164="Dieselöl (MDO)",Treibhausgas_Kennzahlen!B$9,Treibhausgas_Kennzahlen!B$8))) ->  | L164: =IF(G164="","",$K164*IF($C164="Schweröl (HFO)",Treibhausgas_Kennzahlen!B$14,IF(Berechnung!C164="Dieselöl (MDO)", Treibhausgas_Kennzahlen!B$16,Treibhausgas_Kennzahlen!B$15))) ->  | M164: =IF(G164="","",$K164*IF($C164="Schweröl (HFO)",Treibhausgas_Kennzahlen!C$14,IF(Berechnung!D164="Dieselöl (MDO)", Treibhausgas_Kennzahlen!C$16,Treibhausgas_Kennzahlen!C$15))) ->  | N164: =IF(G164="","",$J164*IF($C164="Schweröl (HFO)",Treibhausgas_Kennzahlen!D$14,IF(Berechnung!C164="Dieselöl (MDO)",Treibhausgas_Kennzahlen!D$16,Treibhausgas_Kennzahlen!D$15))) ->  | O164: =IF(G164="","",$J164*IF($C164="Schweröl (HFO)",Treibhausgas_Kennzahlen!E$14,IF(Berechnung!D164="Dieselöl (MDO)",Treibhausgas_Kennzahlen!E$16,Treibhausgas_Kennzahlen!E$15))) ->  | P164: =IF(G164="","",$J164*IF($C164="Schweröl (HFO)",Treibhausgas_Kennzahlen!F$14,IF(Berechnung!E164="Dieselöl (MDO)",Treibhausgas_Kennzahlen!F$16,Treibhausgas_Kennzahlen!F$15))) ->  | Q164: =IF(G164="","",$J164*IF($C164="Schweröl (HFO)",Treibhausgas_Kennzahlen!G$14,IF(Berechnung!F164="Dieselöl (MDO)",Treibhausgas_Kennzahlen!G$16,Treibhausgas_Kennzahlen!G$15))) -> 
H165: =IF(G165="","",VLOOKUP(INDEX(Seehäfen!$A$3:$A$502, MATCH(Berechnung!D165,Seehäfen!$B$3:$B$502,0))&"_"&INDEX(Seehäfen!$A$3:$A$502, MATCH(Berechnung!E165,Seehäfen!$B$3:$B$502,0)),Entfernung_Seehäfen!$C$2:$E$10001,2,FALSE)) ->  | I165: =IF(G165="","",SUM(IF(A165=Energieverbrauch!$A$2:$A$41,1,0)*IF(Berechnung!B165=Energieverbrauch!$B$2:$B$41,1,0)*IF(Berechnung!F165=Energieverbrauch!$C$2:$C$41,1,0)*Energieverbrauch!$D$2:$D$41)) ->  | K165: =IF(G165="","",J165/IF($C165="Schweröl (HFO)", Treibhausgas_Kennzahlen!B$7,IF(Berechnung!C165="Dieselöl (MDO)",Treibhausgas_Kennzahlen!B$9,Treibhausgas_Kennzahlen!B$8))) ->  | L165: =IF(G165="","",$K165*IF($C165="Schweröl (HFO)",Treibhausgas_Kennzahlen!B$14,IF(Berechnung!C165="Dieselöl (MDO)", Treibhausgas_Kennzahlen!B$16,Treibhausgas_Kennzahlen!B$15))) ->  | M165: =IF(G165="","",$K165*IF($C165="Schweröl (HFO)",Treibhausgas_Kennzahlen!C$14,IF(Berechnung!D165="Dieselöl (MDO)", Treibhausgas_Kennzahlen!C$16,Treibhausgas_Kennzahlen!C$15))) ->  | N165: =IF(G165="","",$J165*IF($C165="Schweröl (HFO)",Treibhausgas_Kennzahlen!D$14,IF(Berechnung!C165="Dieselöl (MDO)",Treibhausgas_Kennzahlen!D$16,Treibhausgas_Kennzahlen!D$15))) ->  | O165: =IF(G165="","",$J165*IF($C165="Schweröl (HFO)",Treibhausgas_Kennzahlen!E$14,IF(Berechnung!D165="Dieselöl (MDO)",Treibhausgas_Kennzahlen!E$16,Treibhausgas_Kennzahlen!E$15))) ->  | P165: =IF(G165="","",$J165*IF($C165="Schweröl (HFO)",Treibhausgas_Kennzahlen!F$14,IF(Berechnung!E165="Dieselöl (MDO)",Treibhausgas_Kennzahlen!F$16,Treibhausgas_Kennzahlen!F$15))) ->  | Q165: =IF(G165="","",$J165*IF($C165="Schweröl (HFO)",Treibhausgas_Kennzahlen!G$14,IF(Berechnung!F165="Dieselöl (MDO)",Treibhausgas_Kennzahlen!G$16,Treibhausgas_Kennzahlen!G$15))) -> 
H166: =IF(G166="","",VLOOKUP(INDEX(Seehäfen!$A$3:$A$502, MATCH(Berechnung!D166,Seehäfen!$B$3:$B$502,0))&"_"&INDEX(Seehäfen!$A$3:$A$502, MATCH(Berechnung!E166,Seehäfen!$B$3:$B$502,0)),Entfernung_Seehäfen!$C$2:$E$100001,2,FALSE)) ->  | I166: =IF(G166="","",SUM(IF(A166=Energieverbrauch!$A$2:$A$41,1,0)*IF(Berechnung!B166=Energieverbrauch!$B$2:$B$41,1,0)*IF(Berechnung!F166=Energieverbrauch!$C$2:$C$41,1,0)*Energieverbrauch!$D$2:$D$41)) ->  | K166: =IF(G166="","",J166/IF($C166="Schweröl (HFO)", Treibhausgas_Kennzahlen!B$7,IF(Berechnung!C166="Dieselöl (MDO)",Treibhausgas_Kennzahlen!B$9,Treibhausgas_Kennzahlen!B$8))) ->  | L166: =IF(G166="","",$K166*IF($C166="Schweröl (HFO)",Treibhausgas_Kennzahlen!B$14,IF(Berechnung!C166="Dieselöl (MDO)", Treibhausgas_Kennzahlen!B$16,Treibhausgas_Kennzahlen!B$15))) ->  | M166: =IF(G166="","",$K166*IF($C166="Schweröl (HFO)",Treibhausgas_Kennzahlen!C$14,IF(Berechnung!D166="Dieselöl (MDO)", Treibhausgas_Kennzahlen!C$16,Treibhausgas_Kennzahlen!C$15))) ->  | N166: =IF(G166="","",$J166*IF($C166="Schweröl (HFO)",Treibhausgas_Kennzahlen!D$14,IF(Berechnung!C166="Dieselöl (MDO)",Treibhausgas_Kennzahlen!D$16,Treibhausgas_Kennzahlen!D$15))) ->  | O166: =IF(G166="","",$J166*IF($C166="Schweröl (HFO)",Treibhausgas_Kennzahlen!E$14,IF(Berechnung!D166="Dieselöl (MDO)",Treibhausgas_Kennzahlen!E$16,Treibhausgas_Kennzahlen!E$15))) ->  | P166: =IF(G166="","",$J166*IF($C166="Schweröl (HFO)",Treibhausgas_Kennzahlen!F$14,IF(Berechnung!E166="Dieselöl (MDO)",Treibhausgas_Kennzahlen!F$16,Treibhausgas_Kennzahlen!F$15))) ->  | Q166: =IF(G166="","",$J166*IF($C166="Schweröl (HFO)",Treibhausgas_Kennzahlen!G$14,IF(Berechnung!F166="Dieselöl (MDO)",Treibhausgas_Kennzahlen!G$16,Treibhausgas_Kennzahlen!G$15))) -> 
H167: =IF(G167="","",VLOOKUP(INDEX(Seehäfen!$A$3:$A$502, MATCH(Berechnung!D167,Seehäfen!$B$3:$B$502,0))&"_"&INDEX(Seehäfen!$A$3:$A$502, MATCH(Berechnung!E167,Seehäfen!$B$3:$B$502,0)),Entfernung_Seehäfen!$C$2:$E$10001,2,FALSE)) ->  | I167: =IF(G167="","",SUM(IF(A167=Energieverbrauch!$A$2:$A$41,1,0)*IF(Berechnung!B167=Energieverbrauch!$B$2:$B$41,1,0)*IF(Berechnung!F167=Energieverbrauch!$C$2:$C$41,1,0)*Energieverbrauch!$D$2:$D$41)) ->  | K167: =IF(G167="","",J167/IF($C167="Schweröl (HFO)", Treibhausgas_Kennzahlen!B$7,IF(Berechnung!C167="Dieselöl (MDO)",Treibhausgas_Kennzahlen!B$9,Treibhausgas_Kennzahlen!B$8))) ->  | L167: =IF(G167="","",$K167*IF($C167="Schweröl (HFO)",Treibhausgas_Kennzahlen!B$14,IF(Berechnung!C167="Dieselöl (MDO)", Treibhausgas_Kennzahlen!B$16,Treibhausgas_Kennzahlen!B$15))) ->  | M167: =IF(G167="","",$K167*IF($C167="Schweröl (HFO)",Treibhausgas_Kennzahlen!C$14,IF(Berechnung!D167="Dieselöl (MDO)", Treibhausgas_Kennzahlen!C$16,Treibhausgas_Kennzahlen!C$15))) ->  | N167: =IF(G167="","",$J167*IF($C167="Schweröl (HFO)",Treibhausgas_Kennzahlen!D$14,IF(Berechnung!C167="Dieselöl (MDO)",Treibhausgas_Kennzahlen!D$16,Treibhausgas_Kennzahlen!D$15))) ->  | O167: =IF(G167="","",$J167*IF($C167="Schweröl (HFO)",Treibhausgas_Kennzahlen!E$14,IF(Berechnung!D167="Dieselöl (MDO)",Treibhausgas_Kennzahlen!E$16,Treibhausgas_Kennzahlen!E$15))) ->  | P167: =IF(G167="","",$J167*IF($C167="Schweröl (HFO)",Treibhausgas_Kennzahlen!F$14,IF(Berechnung!E167="Dieselöl (MDO)",Treibhausgas_Kennzahlen!F$16,Treibhausgas_Kennzahlen!F$15))) ->  | Q167: =IF(G167="","",$J167*IF($C167="Schweröl (HFO)",Treibhausgas_Kennzahlen!G$14,IF(Berechnung!F167="Dieselöl (MDO)",Treibhausgas_Kennzahlen!G$16,Treibhausgas_Kennzahlen!G$15))) -> 
H168: =IF(G168="","",VLOOKUP(INDEX(Seehäfen!$A$3:$A$502, MATCH(Berechnung!D168,Seehäfen!$B$3:$B$502,0))&"_"&INDEX(Seehäfen!$A$3:$A$502, MATCH(Berechnung!E168,Seehäfen!$B$3:$B$502,0)),Entfernung_Seehäfen!$C$2:$E$100001,2,FALSE)) ->  | I168: =IF(G168="","",SUM(IF(A168=Energieverbrauch!$A$2:$A$41,1,0)*IF(Berechnung!B168=Energieverbrauch!$B$2:$B$41,1,0)*IF(Berechnung!F168=Energieverbrauch!$C$2:$C$41,1,0)*Energieverbrauch!$D$2:$D$41)) ->  | K168: =IF(G168="","",J168/IF($C168="Schweröl (HFO)", Treibhausgas_Kennzahlen!B$7,IF(Berechnung!C168="Dieselöl (MDO)",Treibhausgas_Kennzahlen!B$9,Treibhausgas_Kennzahlen!B$8))) ->  | L168: =IF(G168="","",$K168*IF($C168="Schweröl (HFO)",Treibhausgas_Kennzahlen!B$14,IF(Berechnung!C168="Dieselöl (MDO)", Treibhausgas_Kennzahlen!B$16,Treibhausgas_Kennzahlen!B$15))) ->  | M168: =IF(G168="","",$K168*IF($C168="Schweröl (HFO)",Treibhausgas_Kennzahlen!C$14,IF(Berechnung!D168="Dieselöl (MDO)", Treibhausgas_Kennzahlen!C$16,Treibhausgas_Kennzahlen!C$15))) ->  | N168: =IF(G168="","",$J168*IF($C168="Schweröl (HFO)",Treibhausgas_Kennzahlen!D$14,IF(Berechnung!C168="Dieselöl (MDO)",Treibhausgas_Kennzahlen!D$16,Treibhausgas_Kennzahlen!D$15))) ->  | O168: =IF(G168="","",$J168*IF($C168="Schweröl (HFO)",Treibhausgas_Kennzahlen!E$14,IF(Berechnung!D168="Dieselöl (MDO)",Treibhausgas_Kennzahlen!E$16,Treibhausgas_Kennzahlen!E$15))) ->  | P168: =IF(G168="","",$J168*IF($C168="Schweröl (HFO)",Treibhausgas_Kennzahlen!F$14,IF(Berechnung!E168="Dieselöl (MDO)",Treibhausgas_Kennzahlen!F$16,Treibhausgas_Kennzahlen!F$15))) ->  | Q168: =IF(G168="","",$J168*IF($C168="Schweröl (HFO)",Treibhausgas_Kennzahlen!G$14,IF(Berechnung!F168="Dieselöl (MDO)",Treibhausgas_Kennzahlen!G$16,Treibhausgas_Kennzahlen!G$15))) -> 
H169: =IF(G169="","",VLOOKUP(INDEX(Seehäfen!$A$3:$A$502, MATCH(Berechnung!D169,Seehäfen!$B$3:$B$502,0))&"_"&INDEX(Seehäfen!$A$3:$A$502, MATCH(Berechnung!E169,Seehäfen!$B$3:$B$502,0)),Entfernung_Seehäfen!$C$2:$E$10001,2,FALSE)) ->  | I169: =IF(G169="","",SUM(IF(A169=Energieverbrauch!$A$2:$A$41,1,0)*IF(Berechnung!B169=Energieverbrauch!$B$2:$B$41,1,0)*IF(Berechnung!F169=Energieverbrauch!$C$2:$C$41,1,0)*Energieverbrauch!$D$2:$D$41)) ->  | K169: =IF(G169="","",J169/IF($C169="Schweröl (HFO)", Treibhausgas_Kennzahlen!B$7,IF(Berechnung!C169="Dieselöl (MDO)",Treibhausgas_Kennzahlen!B$9,Treibhausgas_Kennzahlen!B$8))) ->  | L169: =IF(G169="","",$K169*IF($C169="Schweröl (HFO)",Treibhausgas_Kennzahlen!B$14,IF(Berechnung!C169="Dieselöl (MDO)", Treibhausgas_Kennzahlen!B$16,Treibhausgas_Kennzahlen!B$15))) ->  | M169: =IF(G169="","",$K169*IF($C169="Schweröl (HFO)",Treibhausgas_Kennzahlen!C$14,IF(Berechnung!D169="Dieselöl (MDO)", Treibhausgas_Kennzahlen!C$16,Treibhausgas_Kennzahlen!C$15))) ->  | N169: =IF(G169="","",$J169*IF($C169="Schweröl (HFO)",Treibhausgas_Kennzahlen!D$14,IF(Berechnung!C169="Dieselöl (MDO)",Treibhausgas_Kennzahlen!D$16,Treibhausgas_Kennzahlen!D$15))) ->  | O169: =IF(G169="","",$J169*IF($C169="Schweröl (HFO)",Treibhausgas_Kennzahlen!E$14,IF(Berechnung!D169="Dieselöl (MDO)",Treibhausgas_Kennzahlen!E$16,Treibhausgas_Kennzahlen!E$15))) ->  | P169: =IF(G169="","",$J169*IF($C169="Schweröl (HFO)",Treibhausgas_Kennzahlen!F$14,IF(Berechnung!E169="Dieselöl (MDO)",Treibhausgas_Kennzahlen!F$16,Treibhausgas_Kennzahlen!F$15))) ->  | Q169: =IF(G169="","",$J169*IF($C169="Schweröl (HFO)",Treibhausgas_Kennzahlen!G$14,IF(Berechnung!F169="Dieselöl (MDO)",Treibhausgas_Kennzahlen!G$16,Treibhausgas_Kennzahlen!G$15))) -> 
H170: =IF(G170="","",VLOOKUP(INDEX(Seehäfen!$A$3:$A$502, MATCH(Berechnung!D170,Seehäfen!$B$3:$B$502,0))&"_"&INDEX(Seehäfen!$A$3:$A$502, MATCH(Berechnung!E170,Seehäfen!$B$3:$B$502,0)),Entfernung_Seehäfen!$C$2:$E$100001,2,FALSE)) ->  | I170: =IF(G170="","",SUM(IF(A170=Energieverbrauch!$A$2:$A$41,1,0)*IF(Berechnung!B170=Energieverbrauch!$B$2:$B$41,1,0)*IF(Berechnung!F170=Energieverbrauch!$C$2:$C$41,1,0)*Energieverbrauch!$D$2:$D$41)) ->  | K170: =IF(G170="","",J170/IF($C170="Schweröl (HFO)", Treibhausgas_Kennzahlen!B$7,IF(Berechnung!C170="Dieselöl (MDO)",Treibhausgas_Kennzahlen!B$9,Treibhausgas_Kennzahlen!B$8))) ->  | L170: =IF(G170="","",$K170*IF($C170="Schweröl (HFO)",Treibhausgas_Kennzahlen!B$14,IF(Berechnung!C170="Dieselöl (MDO)", Treibhausgas_Kennzahlen!B$16,Treibhausgas_Kennzahlen!B$15))) ->  | M170: =IF(G170="","",$K170*IF($C170="Schweröl (HFO)",Treibhausgas_Kennzahlen!C$14,IF(Berechnung!D170="Dieselöl (MDO)", Treibhausgas_Kennzahlen!C$16,Treibhausgas_Kennzahlen!C$15))) ->  | N170: =IF(G170="","",$J170*IF($C170="Schweröl (HFO)",Treibhausgas_Kennzahlen!D$14,IF(Berechnung!C170="Dieselöl (MDO)",Treibhausgas_Kennzahlen!D$16,Treibhausgas_Kennzahlen!D$15))) ->  | O170: =IF(G170="","",$J170*IF($C170="Schweröl (HFO)",Treibhausgas_Kennzahlen!E$14,IF(Berechnung!D170="Dieselöl (MDO)",Treibhausgas_Kennzahlen!E$16,Treibhausgas_Kennzahlen!E$15))) ->  | P170: =IF(G170="","",$J170*IF($C170="Schweröl (HFO)",Treibhausgas_Kennzahlen!F$14,IF(Berechnung!E170="Dieselöl (MDO)",Treibhausgas_Kennzahlen!F$16,Treibhausgas_Kennzahlen!F$15))) ->  | Q170: =IF(G170="","",$J170*IF($C170="Schweröl (HFO)",Treibhausgas_Kennzahlen!G$14,IF(Berechnung!F170="Dieselöl (MDO)",Treibhausgas_Kennzahlen!G$16,Treibhausgas_Kennzahlen!G$15))) -> 
H171: =IF(G171="","",VLOOKUP(INDEX(Seehäfen!$A$3:$A$502, MATCH(Berechnung!D171,Seehäfen!$B$3:$B$502,0))&"_"&INDEX(Seehäfen!$A$3:$A$502, MATCH(Berechnung!E171,Seehäfen!$B$3:$B$502,0)),Entfernung_Seehäfen!$C$2:$E$10001,2,FALSE)) ->  | I171: =IF(G171="","",SUM(IF(A171=Energieverbrauch!$A$2:$A$41,1,0)*IF(Berechnung!B171=Energieverbrauch!$B$2:$B$41,1,0)*IF(Berechnung!F171=Energieverbrauch!$C$2:$C$41,1,0)*Energieverbrauch!$D$2:$D$41)) ->  | K171: =IF(G171="","",J171/IF($C171="Schweröl (HFO)", Treibhausgas_Kennzahlen!B$7,IF(Berechnung!C171="Dieselöl (MDO)",Treibhausgas_Kennzahlen!B$9,Treibhausgas_Kennzahlen!B$8))) ->  | L171: =IF(G171="","",$K171*IF($C171="Schweröl (HFO)",Treibhausgas_Kennzahlen!B$14,IF(Berechnung!C171="Dieselöl (MDO)", Treibhausgas_Kennzahlen!B$16,Treibhausgas_Kennzahlen!B$15))) ->  | M171: =IF(G171="","",$K171*IF($C171="Schweröl (HFO)",Treibhausgas_Kennzahlen!C$14,IF(Berechnung!D171="Dieselöl (MDO)", Treibhausgas_Kennzahlen!C$16,Treibhausgas_Kennzahlen!C$15))) ->  | N171: =IF(G171="","",$J171*IF($C171="Schweröl (HFO)",Treibhausgas_Kennzahlen!D$14,IF(Berechnung!C171="Dieselöl (MDO)",Treibhausgas_Kennzahlen!D$16,Treibhausgas_Kennzahlen!D$15))) ->  | O171: =IF(G171="","",$J171*IF($C171="Schweröl (HFO)",Treibhausgas_Kennzahlen!E$14,IF(Berechnung!D171="Dieselöl (MDO)",Treibhausgas_Kennzahlen!E$16,Treibhausgas_Kennzahlen!E$15))) ->  | P171: =IF(G171="","",$J171*IF($C171="Schweröl (HFO)",Treibhausgas_Kennzahlen!F$14,IF(Berechnung!E171="Dieselöl (MDO)",Treibhausgas_Kennzahlen!F$16,Treibhausgas_Kennzahlen!F$15))) ->  | Q171: =IF(G171="","",$J171*IF($C171="Schweröl (HFO)",Treibhausgas_Kennzahlen!G$14,IF(Berechnung!F171="Dieselöl (MDO)",Treibhausgas_Kennzahlen!G$16,Treibhausgas_Kennzahlen!G$15))) -> 
H172: =IF(G172="","",VLOOKUP(INDEX(Seehäfen!$A$3:$A$502, MATCH(Berechnung!D172,Seehäfen!$B$3:$B$502,0))&"_"&INDEX(Seehäfen!$A$3:$A$502, MATCH(Berechnung!E172,Seehäfen!$B$3:$B$502,0)),Entfernung_Seehäfen!$C$2:$E$100001,2,FALSE)) ->  | I172: =IF(G172="","",SUM(IF(A172=Energieverbrauch!$A$2:$A$41,1,0)*IF(Berechnung!B172=Energieverbrauch!$B$2:$B$41,1,0)*IF(Berechnung!F172=Energieverbrauch!$C$2:$C$41,1,0)*Energieverbrauch!$D$2:$D$41)) ->  | K172: =IF(G172="","",J172/IF($C172="Schweröl (HFO)", Treibhausgas_Kennzahlen!B$7,IF(Berechnung!C172="Dieselöl (MDO)",Treibhausgas_Kennzahlen!B$9,Treibhausgas_Kennzahlen!B$8))) ->  | L172: =IF(G172="","",$K172*IF($C172="Schweröl (HFO)",Treibhausgas_Kennzahlen!B$14,IF(Berechnung!C172="Dieselöl (MDO)", Treibhausgas_Kennzahlen!B$16,Treibhausgas_Kennzahlen!B$15))) ->  | M172: =IF(G172="","",$K172*IF($C172="Schweröl (HFO)",Treibhausgas_Kennzahlen!C$14,IF(Berechnung!D172="Dieselöl (MDO)", Treibhausgas_Kennzahlen!C$16,Treibhausgas_Kennzahlen!C$15))) ->  | N172: =IF(G172="","",$J172*IF($C172="Schweröl (HFO)",Treibhausgas_Kennzahlen!D$14,IF(Berechnung!C172="Dieselöl (MDO)",Treibhausgas_Kennzahlen!D$16,Treibhausgas_Kennzahlen!D$15))) ->  | O172: =IF(G172="","",$J172*IF($C172="Schweröl (HFO)",Treibhausgas_Kennzahlen!E$14,IF(Berechnung!D172="Dieselöl (MDO)",Treibhausgas_Kennzahlen!E$16,Treibhausgas_Kennzahlen!E$15))) ->  | P172: =IF(G172="","",$J172*IF($C172="Schweröl (HFO)",Treibhausgas_Kennzahlen!F$14,IF(Berechnung!E172="Dieselöl (MDO)",Treibhausgas_Kennzahlen!F$16,Treibhausgas_Kennzahlen!F$15))) ->  | Q172: =IF(G172="","",$J172*IF($C172="Schweröl (HFO)",Treibhausgas_Kennzahlen!G$14,IF(Berechnung!F172="Dieselöl (MDO)",Treibhausgas_Kennzahlen!G$16,Treibhausgas_Kennzahlen!G$15))) -> 
H173: =IF(G173="","",VLOOKUP(INDEX(Seehäfen!$A$3:$A$502, MATCH(Berechnung!D173,Seehäfen!$B$3:$B$502,0))&"_"&INDEX(Seehäfen!$A$3:$A$502, MATCH(Berechnung!E173,Seehäfen!$B$3:$B$502,0)),Entfernung_Seehäfen!$C$2:$E$10001,2,FALSE)) ->  | I173: =IF(G173="","",SUM(IF(A173=Energieverbrauch!$A$2:$A$41,1,0)*IF(Berechnung!B173=Energieverbrauch!$B$2:$B$41,1,0)*IF(Berechnung!F173=Energieverbrauch!$C$2:$C$41,1,0)*Energieverbrauch!$D$2:$D$41)) ->  | K173: =IF(G173="","",J173/IF($C173="Schweröl (HFO)", Treibhausgas_Kennzahlen!B$7,IF(Berechnung!C173="Dieselöl (MDO)",Treibhausgas_Kennzahlen!B$9,Treibhausgas_Kennzahlen!B$8))) ->  | L173: =IF(G173="","",$K173*IF($C173="Schweröl (HFO)",Treibhausgas_Kennzahlen!B$14,IF(Berechnung!C173="Dieselöl (MDO)", Treibhausgas_Kennzahlen!B$16,Treibhausgas_Kennzahlen!B$15))) ->  | M173: =IF(G173="","",$K173*IF($C173="Schweröl (HFO)",Treibhausgas_Kennzahlen!C$14,IF(Berechnung!D173="Dieselöl (MDO)", Treibhausgas_Kennzahlen!C$16,Treibhausgas_Kennzahlen!C$15))) ->  | N173: =IF(G173="","",$J173*IF($C173="Schweröl (HFO)",Treibhausgas_Kennzahlen!D$14,IF(Berechnung!C173="Dieselöl (MDO)",Treibhausgas_Kennzahlen!D$16,Treibhausgas_Kennzahlen!D$15))) ->  | O173: =IF(G173="","",$J173*IF($C173="Schweröl (HFO)",Treibhausgas_Kennzahlen!E$14,IF(Berechnung!D173="Dieselöl (MDO)",Treibhausgas_Kennzahlen!E$16,Treibhausgas_Kennzahlen!E$15))) ->  | P173: =IF(G173="","",$J173*IF($C173="Schweröl (HFO)",Treibhausgas_Kennzahlen!F$14,IF(Berechnung!E173="Dieselöl (MDO)",Treibhausgas_Kennzahlen!F$16,Treibhausgas_Kennzahlen!F$15))) ->  | Q173: =IF(G173="","",$J173*IF($C173="Schweröl (HFO)",Treibhausgas_Kennzahlen!G$14,IF(Berechnung!F173="Dieselöl (MDO)",Treibhausgas_Kennzahlen!G$16,Treibhausgas_Kennzahlen!G$15))) -> 
H174: =IF(G174="","",VLOOKUP(INDEX(Seehäfen!$A$3:$A$502, MATCH(Berechnung!D174,Seehäfen!$B$3:$B$502,0))&"_"&INDEX(Seehäfen!$A$3:$A$502, MATCH(Berechnung!E174,Seehäfen!$B$3:$B$502,0)),Entfernung_Seehäfen!$C$2:$E$100001,2,FALSE)) ->  | I174: =IF(G174="","",SUM(IF(A174=Energieverbrauch!$A$2:$A$41,1,0)*IF(Berechnung!B174=Energieverbrauch!$B$2:$B$41,1,0)*IF(Berechnung!F174=Energieverbrauch!$C$2:$C$41,1,0)*Energieverbrauch!$D$2:$D$41)) ->  | K174: =IF(G174="","",J174/IF($C174="Schweröl (HFO)", Treibhausgas_Kennzahlen!B$7,IF(Berechnung!C174="Dieselöl (MDO)",Treibhausgas_Kennzahlen!B$9,Treibhausgas_Kennzahlen!B$8))) ->  | L174: =IF(G174="","",$K174*IF($C174="Schweröl (HFO)",Treibhausgas_Kennzahlen!B$14,IF(Berechnung!C174="Dieselöl (MDO)", Treibhausgas_Kennzahlen!B$16,Treibhausgas_Kennzahlen!B$15))) ->  | M174: =IF(G174="","",$K174*IF($C174="Schweröl (HFO)",Treibhausgas_Kennzahlen!C$14,IF(Berechnung!D174="Dieselöl (MDO)", Treibhausgas_Kennzahlen!C$16,Treibhausgas_Kennzahlen!C$15))) ->  | N174: =IF(G174="","",$J174*IF($C174="Schweröl (HFO)",Treibhausgas_Kennzahlen!D$14,IF(Berechnung!C174="Dieselöl (MDO)",Treibhausgas_Kennzahlen!D$16,Treibhausgas_Kennzahlen!D$15))) ->  | O174: =IF(G174="","",$J174*IF($C174="Schweröl (HFO)",Treibhausgas_Kennzahlen!E$14,IF(Berechnung!D174="Dieselöl (MDO)",Treibhausgas_Kennzahlen!E$16,Treibhausgas_Kennzahlen!E$15))) ->  | P174: =IF(G174="","",$J174*IF($C174="Schweröl (HFO)",Treibhausgas_Kennzahlen!F$14,IF(Berechnung!E174="Dieselöl (MDO)",Treibhausgas_Kennzahlen!F$16,Treibhausgas_Kennzahlen!F$15))) ->  | Q174: =IF(G174="","",$J174*IF($C174="Schweröl (HFO)",Treibhausgas_Kennzahlen!G$14,IF(Berechnung!F174="Dieselöl (MDO)",Treibhausgas_Kennzahlen!G$16,Treibhausgas_Kennzahlen!G$15))) -> 
H175: =IF(G175="","",VLOOKUP(INDEX(Seehäfen!$A$3:$A$502, MATCH(Berechnung!D175,Seehäfen!$B$3:$B$502,0))&"_"&INDEX(Seehäfen!$A$3:$A$502, MATCH(Berechnung!E175,Seehäfen!$B$3:$B$502,0)),Entfernung_Seehäfen!$C$2:$E$10001,2,FALSE)) ->  | I175: =IF(G175="","",SUM(IF(A175=Energieverbrauch!$A$2:$A$41,1,0)*IF(Berechnung!B175=Energieverbrauch!$B$2:$B$41,1,0)*IF(Berechnung!F175=Energieverbrauch!$C$2:$C$41,1,0)*Energieverbrauch!$D$2:$D$41)) ->  | K175: =IF(G175="","",J175/IF($C175="Schweröl (HFO)", Treibhausgas_Kennzahlen!B$7,IF(Berechnung!C175="Dieselöl (MDO)",Treibhausgas_Kennzahlen!B$9,Treibhausgas_Kennzahlen!B$8))) ->  | L175: =IF(G175="","",$K175*IF($C175="Schweröl (HFO)",Treibhausgas_Kennzahlen!B$14,IF(Berechnung!C175="Dieselöl (MDO)", Treibhausgas_Kennzahlen!B$16,Treibhausgas_Kennzahlen!B$15))) ->  | M175: =IF(G175="","",$K175*IF($C175="Schweröl (HFO)",Treibhausgas_Kennzahlen!C$14,IF(Berechnung!D175="Dieselöl (MDO)", Treibhausgas_Kennzahlen!C$16,Treibhausgas_Kennzahlen!C$15))) ->  | N175: =IF(G175="","",$J175*IF($C175="Schweröl (HFO)",Treibhausgas_Kennzahlen!D$14,IF(Berechnung!C175="Dieselöl (MDO)",Treibhausgas_Kennzahlen!D$16,Treibhausgas_Kennzahlen!D$15))) ->  | O175: =IF(G175="","",$J175*IF($C175="Schweröl (HFO)",Treibhausgas_Kennzahlen!E$14,IF(Berechnung!D175="Dieselöl (MDO)",Treibhausgas_Kennzahlen!E$16,Treibhausgas_Kennzahlen!E$15))) ->  | P175: =IF(G175="","",$J175*IF($C175="Schweröl (HFO)",Treibhausgas_Kennzahlen!F$14,IF(Berechnung!E175="Dieselöl (MDO)",Treibhausgas_Kennzahlen!F$16,Treibhausgas_Kennzahlen!F$15))) ->  | Q175: =IF(G175="","",$J175*IF($C175="Schweröl (HFO)",Treibhausgas_Kennzahlen!G$14,IF(Berechnung!F175="Dieselöl (MDO)",Treibhausgas_Kennzahlen!G$16,Treibhausgas_Kennzahlen!G$15))) -> 
H176: =IF(G176="","",VLOOKUP(INDEX(Seehäfen!$A$3:$A$502, MATCH(Berechnung!D176,Seehäfen!$B$3:$B$502,0))&"_"&INDEX(Seehäfen!$A$3:$A$502, MATCH(Berechnung!E176,Seehäfen!$B$3:$B$502,0)),Entfernung_Seehäfen!$C$2:$E$100001,2,FALSE)) ->  | I176: =IF(G176="","",SUM(IF(A176=Energieverbrauch!$A$2:$A$41,1,0)*IF(Berechnung!B176=Energieverbrauch!$B$2:$B$41,1,0)*IF(Berechnung!F176=Energieverbrauch!$C$2:$C$41,1,0)*Energieverbrauch!$D$2:$D$41)) ->  | K176: =IF(G176="","",J176/IF($C176="Schweröl (HFO)", Treibhausgas_Kennzahlen!B$7,IF(Berechnung!C176="Dieselöl (MDO)",Treibhausgas_Kennzahlen!B$9,Treibhausgas_Kennzahlen!B$8))) ->  | L176: =IF(G176="","",$K176*IF($C176="Schweröl (HFO)",Treibhausgas_Kennzahlen!B$14,IF(Berechnung!C176="Dieselöl (MDO)", Treibhausgas_Kennzahlen!B$16,Treibhausgas_Kennzahlen!B$15))) ->  | M176: =IF(G176="","",$K176*IF($C176="Schweröl (HFO)",Treibhausgas_Kennzahlen!C$14,IF(Berechnung!D176="Dieselöl (MDO)", Treibhausgas_Kennzahlen!C$16,Treibhausgas_Kennzahlen!C$15))) ->  | N176: =IF(G176="","",$J176*IF($C176="Schweröl (HFO)",Treibhausgas_Kennzahlen!D$14,IF(Berechnung!C176="Dieselöl (MDO)",Treibhausgas_Kennzahlen!D$16,Treibhausgas_Kennzahlen!D$15))) ->  | O176: =IF(G176="","",$J176*IF($C176="Schweröl (HFO)",Treibhausgas_Kennzahlen!E$14,IF(Berechnung!D176="Dieselöl (MDO)",Treibhausgas_Kennzahlen!E$16,Treibhausgas_Kennzahlen!E$15))) ->  | P176: =IF(G176="","",$J176*IF($C176="Schweröl (HFO)",Treibhausgas_Kennzahlen!F$14,IF(Berechnung!E176="Dieselöl (MDO)",Treibhausgas_Kennzahlen!F$16,Treibhausgas_Kennzahlen!F$15))) ->  | Q176: =IF(G176="","",$J176*IF($C176="Schweröl (HFO)",Treibhausgas_Kennzahlen!G$14,IF(Berechnung!F176="Dieselöl (MDO)",Treibhausgas_Kennzahlen!G$16,Treibhausgas_Kennzahlen!G$15))) -> 
H177: =IF(G177="","",VLOOKUP(INDEX(Seehäfen!$A$3:$A$502, MATCH(Berechnung!D177,Seehäfen!$B$3:$B$502,0))&"_"&INDEX(Seehäfen!$A$3:$A$502, MATCH(Berechnung!E177,Seehäfen!$B$3:$B$502,0)),Entfernung_Seehäfen!$C$2:$E$10001,2,FALSE)) ->  | I177: =IF(G177="","",SUM(IF(A177=Energieverbrauch!$A$2:$A$41,1,0)*IF(Berechnung!B177=Energieverbrauch!$B$2:$B$41,1,0)*IF(Berechnung!F177=Energieverbrauch!$C$2:$C$41,1,0)*Energieverbrauch!$D$2:$D$41)) ->  | K177: =IF(G177="","",J177/IF($C177="Schweröl (HFO)", Treibhausgas_Kennzahlen!B$7,IF(Berechnung!C177="Dieselöl (MDO)",Treibhausgas_Kennzahlen!B$9,Treibhausgas_Kennzahlen!B$8))) ->  | L177: =IF(G177="","",$K177*IF($C177="Schweröl (HFO)",Treibhausgas_Kennzahlen!B$14,IF(Berechnung!C177="Dieselöl (MDO)", Treibhausgas_Kennzahlen!B$16,Treibhausgas_Kennzahlen!B$15))) ->  | M177: =IF(G177="","",$K177*IF($C177="Schweröl (HFO)",Treibhausgas_Kennzahlen!C$14,IF(Berechnung!D177="Dieselöl (MDO)", Treibhausgas_Kennzahlen!C$16,Treibhausgas_Kennzahlen!C$15))) ->  | N177: =IF(G177="","",$J177*IF($C177="Schweröl (HFO)",Treibhausgas_Kennzahlen!D$14,IF(Berechnung!C177="Dieselöl (MDO)",Treibhausgas_Kennzahlen!D$16,Treibhausgas_Kennzahlen!D$15))) ->  | O177: =IF(G177="","",$J177*IF($C177="Schweröl (HFO)",Treibhausgas_Kennzahlen!E$14,IF(Berechnung!D177="Dieselöl (MDO)",Treibhausgas_Kennzahlen!E$16,Treibhausgas_Kennzahlen!E$15))) ->  | P177: =IF(G177="","",$J177*IF($C177="Schweröl (HFO)",Treibhausgas_Kennzahlen!F$14,IF(Berechnung!E177="Dieselöl (MDO)",Treibhausgas_Kennzahlen!F$16,Treibhausgas_Kennzahlen!F$15))) ->  | Q177: =IF(G177="","",$J177*IF($C177="Schweröl (HFO)",Treibhausgas_Kennzahlen!G$14,IF(Berechnung!F177="Dieselöl (MDO)",Treibhausgas_Kennzahlen!G$16,Treibhausgas_Kennzahlen!G$15))) -> 
